Workbook

Sheet About
E3: Tilapia production strategy explorer
E5: A tool for modelling small and medium-scale cage farms in Lake Victoria or similar water bodies
E7: Version 1.1.00 - Release Date 28 February 2024
E9: Disclaimer
E10: NB This spreadsheet is intended as an education and training tool and has not been validated for commercial use The "predictions" produced by the model should not be relied upon as they are based on limited data and simplified arithmetic calculations. The model can only support planning and decision making when used alongside a good understanding of fish biology, husbandry and farm management. It is particularly important to note that fish growth and survival is highly dependent on local site conditions and suitability, as well as on equipment, feed and seed quality, and the knowledge and skills of the farmer. For users in Kenya, please consult this website for further information about site suitability and carrying capacity:
E11: http://sawa.blue
E13: For users elsewhere please consult relevant guidelines on site suitability and carrying capacity such as:
E14: https://www.fao.org/3/i3099e/i3099e00.htm
E15: http://hdl.handle.net/1893/24680
E17: This spreadsheet is provided "as is" and "with all faults" without any express or implied warranties of any kind. The authors and distributors of this spreadsheet disclaim all liability for any damages, losses, or injuries arising from the use or inability to use this software, even if they have been advised of the possibility of such damages, losses, or injuries. The user assumes all responsibility for determining the suitability, accuracy, and quality of this spreadsheet for their own purposes. The user also agrees to comply with all applicable laws and regulations regarding the use, copying and distribution of this spreadsheet.
E19: Credits
E20: This spreadsheet was developed with the support of GCFR Funding through Innovate UK KTN
E21: Our thanks to the staff of Victory Farms, Unga Group and Nutreco for sharing data
E22: and to Dr Clive Talbot and Leila Gharani for providing solutions to statistical and spreadsheet problems respectively
E24: Copyright
E25: You may copy and distribute this spreadsheet providing you make no modifications or levy any kind of charge
E26: Copyright: University of Stirling - All rights reserved 2023
E27: http://www.susaquastirling.net
E30: To help improve this modelling tool, please send comments and examples of real farm data to j.c.bostock@stir.ac.uk

Sheet 0-StartHere
B2: Tilapia Cage Farm Production Strategy Explorer
B4: This tool allows you to quickly consider stocking and harvesting options
B5: for small-scale cage-based farming of tilapia in Lake Victoria and similar water bodies
B7: Start by answering the following questions:
B9: What is the average water depth at your site? (m) | C9: 10 | D9: =C9/3 -> 3.333333333
B11: How many cages do you have? | C11: 8 | E11: << This model assumes all cages are the same volume
B13: Are the cages rectangular or circular? | C13: Rectangular | AA13: Rectangular
AA14: Circular
B15: If applicable, what are your rectangular cage dimensions?
B16: Length (m) | C16: 3
B17: Width (m) | C17: 3
B18: Depth (m) | C18: 3 | E18: =IF(C13="Rectangular",IF(C18>D9,"WARNING: Your cage depth is greater than that recommended for this site",""),"") -> 
B20: If applicable, what are your circular cage dimensions?
B21: Circumference (length) (m) | C21: 30
B22: Diameter (m) (calculated from circumference) | C22: =C21/PI() -> 9.549296586
B23: Depth (m) | C23: 2.5 | E23: =IF(C13="Circular",IF(C23>D9,"WARNING: Your cage depth is greater than that recommended for this site",""),"") -> 
B25: Individual cage volume used in calculations is (m3) | C25: =IF(C13="Rectangular",C16*C17*C18,IF(C13="Circular",PI()*((C22/2)^2)*C23,"ERROR")) -> 27
B27: If you can't grow fish all year, how many days
B28: per year are not suitable for farming? | C28: 0
B30: You have this numer of days available for farming each year | C30: =365-C28 -> 365
B32: What is the average water temperature? (°C) | C32: 26 | E32: << suggested value for Lake Victoria is 26°C - must be between 20 and 30°C
B34: Assume loss of weight between harvest and sales (%) | C34: 0
B36: On the next 4 sheets there are 4 culture strategies (Scenarios) that you can explore:
B37: By default these are:
B38: 1. Standard stocking density and harvest of larger fish
B39: 2. Double density stocking and harvest of larger fish
B40: 3. Double density stocking and harvest of smaller fish
B41: 4. Double density stocking with interim harvest of small fish
B43: On the 5th sheet you can compare the results of these and allocate your cages to the different strategies
B45: To enter more of your own data and assumtions use the advanced set-up below
B47: Advanced set-up
B49: What currency are you using (enter currency code) | C49: KES | E49: << note this only changes currency lables it does not convert amounts
B51: Edit the table of sales prices
B53: Edit the table of fry/fingerling costs
B55: Edit the table of feed costs
B58: Feed Conversion Ratio - use formula or table? | C58: Formula
B60: Use custom or temperature-based SFR? | C60: Temp.
B62: Edit the feed allocation table
B64: Edit the growth adjust table for density
B67: Edit the farm operating costs
B69: Edit the farm set-up costs
B72: Mortality rates
B74: For all cages
B75: What percentage of stocked fish do you expect
B76: to die within 24 hours of first stocking? | C76: 0.006 | E76: <<Suggested value 0.5 - 1%
B78: At what rate will inital mortalities decline (Li) | C78: -0.15 | E78: <<Suggested value -0.05 to -0.25
B80: What percentage of stocked fish do you expect
B81: to die on the last culture day? | C81: 0.001 | E81: <<Suggested value 0 to 2%
B83: At what rate will mortalities increase to the final day rate (Lf) | C83: -0.2 | E83: <<Suggested value -0.05 to -0.5
B85: For partially harvested cages
B86: What percentage of remaining fish do you expect
B87: to die within 24 hours of a partial harvest? | C87: 0.007 | E87: <<Suggested value 0.5 - 1%
B89: At what rate will remaining fish mortalities
B90: decline (equation paramter Lp) | C90: -0.25 | E90: <<Suggested value -0.1 to -0.25
B93: Size variability
B95: Coefficient of variation | C95: 0.24 | E95: <<Suggested value 22 to 26%
B98: Scenario names | E98: Note: Chaging these does not change the tab names
A100: 1 | B100: Standard Stocking and Harvest | C100: Standard | E100: << Default: "Standard Stocking and Harvest" - Standard
A102: 2 | B102: Double Stocking with Single Harvest | C102: Double | E102: <<Default: "Double Stocking with Single Harvest" - Double
A104: 3 | B104: Short Cycle with Double Stocking | C104: Short | E104: << Default: "Short Cycle with Double Stocking" - Short
A106: 4 | B106: Double Stocking with Partial Harvest | C106: Partial | E106: <<Default: Double Stocking with Partial Harvest" - Partial

Sheet S1-Standard
B2: =_xlfn.CONCAT("Strategy 1: ",'0-StartHere'!$B$100) -> Strategy 1: Standard Stocking and Harvest | R2: ='0-StartHere'!C100 -> Standard
AF3: mono sex
B4: Input data | E4: << Change these input varibles to see the impact they have on overall production and indicators of potential profitability | AF4: mixed sex
B5: Ave wt. at stocking (g) | C5: 40 | D5: mono sex
B6: Initial stock density (No./m3) | C6: 75
B7: Days to harvest | Predicted average weight | C7: 137 | D7: =C20 -> 492.591836 | I7: Output charts (per cage cycle)
B8: Temp. (Degrees C) | C8: ='0-StartHere'!C32 -> 26
B9: Cage type | C9: ='0-StartHere'!$C$13 -> Rectangular
B10: Cage surface area (m2) | C10: =IF('0-StartHere'!$C$13="Rectangular",'0-StartHere'!$C$16*'0-StartHere'!$C$17,IF('0-StartHere'!$C$13="Circular",PI()*(('0-StartHere'!$C$22/2)^2),"ERROR")) -> 9
B11: Cage depth (m) | C11: =IF('0-StartHere'!$C$13="Rectangular",'0-StartHere'!$C$18,IF('0-StartHere'!$C$13="Circular",'0-StartHere'!$C$23,"ERROR")) -> 3 | AF11: Indicator | AG11: ='0-StartHere'!$C$49 -> KES
B12: Days between harvest and restocking | C12: 10 | AF12: Sales Income | AG12: =C30 -> 344946.3655
AF13: Fry and feed costs | AG13: =C32+C31 -> 214355.505
AF14: Surplus/loss | AG14: =AG12-AG13 -> 130590.8605
B15: Output data (per cage/cycle)
B16: Cycle per year | C16: ='0-StartHere'!C30/(C7+C12) -> 2.482993197
B17: Cage volume (m3) | C17: ='0-StartHere'!C25 -> 27
B18: Number stocked | C18: =C17*C6 -> 2025
B19: Biomass stocked (kg) | C19: =(C18*C5)/1000 -> 81
B20: Ave. harvest weight (g) | C20: =_xlfn.XLOOKUP($C$7,'Growth-Model-1'!$A$2:$A$366,'Growth-Model-1'!$B$2:$B$366,,0) -> 492.591836
B21: Harvest number | C21: =_xlfn.XLOOKUP($C$7,'Growth-Model-1'!$A$2:$A$366,'Growth-Model-1'!$F$2:$F$366,,0) -> 1928.626955
B22: Harvest biomass (kg) | C22: =_xlfn.XLOOKUP($C$7,'Growth-Model-1'!$A$2:$A$366,'Growth-Model-1'!$M$2:$M$366,,0) -> 950.0258924
B23: Final stock density (kg/m3) | C23: =C22/C17 -> 35.18614416
B24: Mortalities (No.) | C24: =_xlfn.XLOOKUP($C$7,'Growth-Model-1'!$A$2:$A$366,'Growth-Model-1'!$I$2:$I$366,,0) -> 98.39805686
B25: Mortalities (%) | C25: =_xlfn.XLOOKUP($C$7,'Growth-Model-1'!$A$2:$A$366,'Growth-Model-1'!$J$2:$J$366,,0) -> 0.04859163302
B26: Mortality biomass (kg) | C26: =_xlfn.XLOOKUP($C$7,'Growth-Model-1'!$A$2:$A$366,'Growth-Model-1'!$L$2:$L$366,,0) -> 9.613422088
B27: Feed used (kg) | C27: =_xlfn.XLOOKUP($C$7,'Growth-Model-1'!$A$2:$A$366,'Growth-Model-1'!$P$2:$P$366,,0) -> 1331.572901
B28: Biological FCR | C28: =C27/(C22+C26-C19) -> 1.515494332
B29: Economic FCR | C29: =C27/(C22-C19) -> 1.53225918
B30: =_xlfn.CONCAT("Sales income"," (",'0-StartHere'!$C$49,")") -> Sales income (KES) | C30: ='Growth-Model-1'!$S$391 -> 344946.3655
B31: =_xlfn.CONCAT("Feed cost"," (",'0-StartHere'!$C$49,")") -> Feed cost (KES) | C31: =_xlfn.XLOOKUP($C$7,'Growth-Model-1'!$A$2:$A$366,'Growth-Model-1'!$S$2:$S$366,,0) -> 133355.505
B32: =_xlfn.CONCAT("Fry cost"," (",'0-StartHere'!$C$49,")") -> Fry cost (KES) | C32: =_xlfn.XLOOKUP(C5,FryWeight,_xlfn.XLOOKUP(D5,FryType,FryTypeCost))*C18 -> 81000
B33: =_xlfn.CONCAT("Income less feed and fry"," (",'0-StartHere'!$C$49,")") -> Income less feed and fry (KES) | C33: =C30-C31-C32 -> 130590.8605
B34: % margin on feed and fry cost | C34: =C33/C30 -> 0.3785830888
B36: Including short-term finance cost:
B37: =_xlfn.CONCAT("Interest paid on fry"," (",'0-StartHere'!$C$49,")") -> Interest paid on fry (KES) | C37: =(C32*(C7*OperatingCosts!$C$19)*OperatingCosts!$C$21)/365 -> 4256.383562
B38: =_xlfn.CONCAT("Interest paid on feed"," (",'0-StartHere'!$C$49,")") -> Interest paid on feed (KES) | C38: =(C31*(C7*OperatingCosts!$C$20)*OperatingCosts!$C$21)/365 -> 2803.023108
B39: =_xlfn.CONCAT("Total short-term financing"," (",'0-StartHere'!$C$49,")") -> Total short-term financing (KES) | C39: =C37+C38 -> 7059.40667
B40: =_xlfn.CONCAT("Adjusted Income less fry and feed cost"," (",'0-StartHere'!$C$49,")") -> Adjusted Income less fry and feed cost (KES) | C40: =C33-C39 -> 123531.4538
B41: Adjusted % margin on fry and feed cost | C41: =C40/C30 -> 0.3581178589
B44: Output data (per cage/year)
B45: Annual production (kg) | C45: =C22*C16 -> 2358.907828
B46: =_xlfn.CONCAT("Annual income"," (",'0-StartHere'!$C$49,")") -> Annual income (KES) | C46: =C30*C16 -> 856499.479
B47: Annual feed use (kg) | C47: =C27*C16 -> 3306.286455
B48: Fingerlings used (No.) | C48: =C18*C16 -> 5028.061224
B49: =_xlfn.CONCAT("Feed cost"," (",'0-StartHere'!$C$49,")") -> Feed cost (KES) | C49: =C31*C16 -> 331120.8118
B50: =_xlfn.CONCAT("Fingerling cost"," (",'0-StartHere'!$C$49,")") -> Fingerling cost (KES) | C50: =C32*C16 -> 201122.449
B51: =_xlfn.CONCAT("Income less feed and fry"," (",'0-StartHere'!$C$49,")") -> Income less feed and fry (KES) | C51: =C46-C49-C50 -> 324256.2183
B53: Including short-term finance cost:
B54: =_xlfn.CONCAT("Feed cost"," (",'0-StartHere'!$C$49,")") -> Feed cost (KES) | C54: =C49+(C16*C38) -> 338080.6991
B55: =_xlfn.CONCAT("Fingerling cost"," (",'0-StartHere'!$C$49,")") -> Fingerling cost (KES) | C55: =C50+(C37*C16) -> 211691.0204
B56: =_xlfn.CONCAT("Income less feed and fry"," (",'0-StartHere'!$C$49,")") -> Income less feed and fry (KES) | C56: =C46-C54-C55 -> 306727.7596
N65: Feed Use by Type | Q65: Kg used | R65: =_xlfn.CONCAT("Cost"," (",'0-StartHere'!$C$49,")") -> Cost (KES)
N66: ='Growth-Model-1'!Z32 -> Skretting 0.5mm | Q66: ='Growth-Model-1'!AA32 -> 0 | R66: ='Growth-Model-1'!AB32 -> 0
N67: ='Growth-Model-1'!Z33 -> Skretting 1mm | Q67: ='Growth-Model-1'!AA33 -> 0 | R67: ='Growth-Model-1'!AB33 -> 0
N68: ='Growth-Model-1'!Z34 -> Skretting 2mm | Q68: ='Growth-Model-1'!AA34 -> 0 | R68: ='Growth-Model-1'!AB34 -> 0
N69: ='Growth-Model-1'!Z35 -> Unga 2mm | Q69: ='Growth-Model-1'!AA35 -> 0 | R69: ='Growth-Model-1'!AB35 -> 0
N70: ='Growth-Model-1'!Z36 -> Unga 3mm | Q70: ='Growth-Model-1'!AA36 -> 159.8820353 | R70: ='Growth-Model-1'!AB36 -> 16971.33415
N71: ='Growth-Model-1'!Z37 -> Unga 4mm | Q71: ='Growth-Model-1'!AA37 -> 1171.690866 | R71: ='Growth-Model-1'!AB37 -> 116384.1709

Sheet S2-Double
B2: =_xlfn.CONCAT("Strategy 2: ",'0-StartHere'!$B$102) -> Strategy 2: Double Stocking with Single Harvest | R2: ='0-StartHere'!$C$102 -> Double
AF3: mono sex
B4: Input data | E4: << Change these input varibles to see the impact they have on overall production and indicators of potential profitability | AF4: mixed sex
B5: Ave wt. at stocking (g) | C5: 40 | D5: mixed sex
B6: Initial stock density (No./m3) | C6: 150
B7: Days to harvest | Predicted average weight | C7: 137 | D7: =C20 -> 453.5956687 | I7: Output charts
B8: Temp. (Degrees C) | C8: ='0-StartHere'!C32 -> 26
B9: Cage type | C9: ='0-StartHere'!$C$13 -> Rectangular | AG9: Indicator | AH9: ='0-StartHere'!$C$49 -> KES
B10: Cage surface area (m2) | C10: =IF('0-StartHere'!$C$13="Rectangular",'0-StartHere'!$C$16*'0-StartHere'!$C$17,IF('0-StartHere'!$C$13="Circular",PI()*(('0-StartHere'!$C$22/2)^2),"ERROR")) -> 9 | AG10: Sales Income | AH10: =C30 -> 630433.1078
B11: Cage depth (m) | C11: =IF('0-StartHere'!$C$13="Rectangular",'0-StartHere'!$C$18,IF('0-StartHere'!$C$13="Circular",'0-StartHere'!$C$23,"ERROR")) -> 3 | AG11: Fry and feed costs | AH11: =C32+C31 -> 343921.9088
B12: Days between harvest and restocking | C12: 10 | AG12: Surplus/loss | AH12: =AH10-AH11 -> 286511.199
B15: Output data (per cage/cycle)
B16: Cycle per year | C16: ='0-StartHere'!C30/(C7+C12) -> 2.482993197
B17: Cage volume (m3) | C17: ='0-StartHere'!C25 -> 27
B18: Number stocked | C18: =C17*C6 -> 4050
B19: Biomass stocked (kg) | C19: =(C18*C5)/1000 -> 162
B20: Ave. harvest weight (g) | C20: =_xlfn.XLOOKUP($C$7,'Growth-Model-2'!$A$2:$A$366,'Growth-Model-2'!$B$2:$B$366,,0) -> 453.5956687
B21: Harvest number | C21: =_xlfn.XLOOKUP($C$7,'Growth-Model-2'!$A$2:$A$366,'Growth-Model-2'!$F$2:$F$366,,0) -> 3857.253909
B22: Harvest biomass (kg) | C22: =_xlfn.XLOOKUP($C$7,'Growth-Model-2'!$A$2:$A$366,'Growth-Model-2'!$M$2:$M$366,,0) -> 1749.633666
B23: Final stock density (kg/m3) | C23: =C22/C17 -> 64.80124689
B24: Mortalities (No.) | C24: =_xlfn.XLOOKUP($C$7,'Growth-Model-2'!$A$2:$A$366,'Growth-Model-2'!$I$2:$I$366,,0) -> 196.796091
B25: Mortalities (%) | C25: =_xlfn.XLOOKUP($C$7,'Growth-Model-2'!$A$2:$A$366,'Growth-Model-2'!$J$2:$J$366,,0) -> 0.04859162741
B26: Mortality biomass (kg) | C26: =_xlfn.XLOOKUP($C$7,'Growth-Model-2'!$A$2:$A$366,'Growth-Model-2'!$L$2:$L$366,,0) -> 18.46732748
B27: Feed used (kg) | C27: =_xlfn.XLOOKUP($C$7,'Growth-Model-2'!$A$2:$A$366,'Growth-Model-2'!$P$2:$P$366,,0) -> 2624.999246
B28: Biological FCR | C28: =C27/(C22+C26-C19) -> 1.634392393
B29: Economic FCR | C29: =C27/(C22-C19) -> 1.653403617
B30: =_xlfn.CONCAT("Sales income"," (",'0-StartHere'!$C$49,")") -> Sales income (KES) | C30: ='Growth-Model-2'!$S$391 -> 630433.1078
B31: =_xlfn.CONCAT("Feed cost"," (",'0-StartHere'!$C$49,")") -> Feed cost (KES) | C31: =_xlfn.XLOOKUP($C$7,'Growth-Model-2'!$A$2:$A$366,'Growth-Model-2'!$S$2:$S$366,,0) -> 262921.9088
B32: =_xlfn.CONCAT("Fry cost"," (",'0-StartHere'!$C$49,")") -> Fry cost (KES) | C32: =_xlfn.XLOOKUP(C5,FryWeight,_xlfn.XLOOKUP(D5,FryType,FryTypeCost))*C18 -> 81000
B33: =_xlfn.CONCAT("Income less feed and fry"," (",'0-StartHere'!$C$49,")") -> Income less feed and fry (KES) | C33: =C30-C31-C32 -> 286511.199
B34: % margin on feed and fry cost | C34: =C33/C30 -> 0.4544672472
B36: Including short-term finance cost:
B37: =_xlfn.CONCAT("Interest paid on fry"," (",'0-StartHere'!$C$49,")") -> Interest paid on fry (KES) | C37: =(C32*(C7*OperatingCosts!$C$19)*OperatingCosts!$C$21)/365 -> 4256.383562
B38: =_xlfn.CONCAT("Interest paid on feed"," (",'0-StartHere'!$C$49,")") -> Interest paid on feed (KES) | C38: =(C31*(C7*OperatingCosts!$C$20)*OperatingCosts!$C$21)/365 -> 5526.402422
B39: =_xlfn.CONCAT("Total short-term financing"," (",'0-StartHere'!$C$49,")") -> Total short-term financing (KES) | C39: =C37+C38 -> 9782.785984
B40: =_xlfn.CONCAT("Adjusted Income less fry and feed cost"," (",'0-StartHere'!$C$49,")") -> Adjusted Income less fry and feed cost (KES) | C40: =C33-C39 -> 276728.413
B41: Adjusted % margin on fry and feed cost | C41: =C40/C30 -> 0.4389496833
B44: Output data (per cage/year)
B45: Annual production (kg) | C45: =C22*C16 -> 4344.328491
B46: =_xlfn.CONCAT("Annual income"," (",'0-StartHere'!$C$49,")") -> Annual income (KES) | C46: =C30*C16 -> 1565361.118
B47: Annual feed use (kg) | C47: =C27*C16 -> 6517.85527
B48: Fingerlings used (No.) | C48: =C18*C16 -> 10056.12245
B49: =_xlfn.CONCAT("Feed cost"," (",'0-StartHere'!$C$49,")") -> Feed cost (KES) | C49: =C31*C16 -> 652833.3109
B50: =_xlfn.CONCAT("Fingerling cost"," (",'0-StartHere'!$C$49,")") -> Fingerling cost (KES) | C50: =C32*C16 -> 201122.449
B51: =_xlfn.CONCAT("Income less feed and fry"," (",'0-StartHere'!$C$49,")") -> Income less feed and fry (KES) | C51: =C46-C49-C50 -> 711405.3581
B53: Including short-term finance cost:
B54: =_xlfn.CONCAT("Feed cost"," (",'0-StartHere'!$C$49,")") -> Feed cost (KES) | C54: =C49+(C16*C38) -> 666555.3305
B55: =_xlfn.CONCAT("Fingerling cost"," (",'0-StartHere'!$C$49,")") -> Fingerling cost (KES) | C55: =C50+(C37*C16) -> 211691.0204
B56: =_xlfn.CONCAT("Income less feed and fry"," (",'0-StartHere'!$C$49,")") -> Income less feed and fry (KES) | C56: =C46-C54-C55 -> 687114.7671
N67: Feed Use by Type | Q67: Kg used | R67: =_xlfn.CONCAT("Cost"," (",'0-StartHere'!$C$49,")") -> Cost (KES)
N68: ='Growth-Model-2'!Z32 -> Skretting 0.5mm | Q68: ='Growth-Model-2'!AA32 -> 0 | R68: ='Growth-Model-2'!AB32 -> 0
N69: ='Growth-Model-2'!Z33 -> Skretting 1mm | Q69: ='Growth-Model-2'!AA33 -> 0 | R69: ='Growth-Model-2'!AB33 -> 0
N70: ='Growth-Model-2'!Z34 -> Skretting 2mm | Q70: ='Growth-Model-2'!AA34 -> 0 | R70: ='Growth-Model-2'!AB34 -> 0
N71: ='Growth-Model-2'!Z35 -> Unga 2mm | Q71: ='Growth-Model-2'!AA35 -> 0 | R71: ='Growth-Model-2'!AB35 -> 0
N72: ='Growth-Model-2'!Z36 -> Unga 3mm | Q72: ='Growth-Model-2'!AA36 -> 319.7640705 | R72: ='Growth-Model-2'!AB36 -> 33942.6683
N73: ='Growth-Model-2'!Z37 -> Unga 4mm | Q73: ='Growth-Model-2'!AA37 -> 2305.235175 | R73: ='Growth-Model-2'!AB37 -> 228979.2405

Sheet S3-Short
B2: =_xlfn.CONCAT("Strategy 3: ",'0-StartHere'!$B$104) -> Strategy 3: Short Cycle with Double Stocking | R2: ='0-StartHere'!C104 -> Short
AF3: mono sex
B4: Input data | E4: << Change these input varibles to see the impact they have on overall production and indicators of potential profitability | AF4: mixed sex
B5: Ave wt. at stocking (g) | C5: 40 | D5: mixed sex
B6: Initial stock density (No./m3) | C6: 150
B7: Days to harvest | Predicted average weight | C7: 76 | D7: =C20 -> 235.3246567 | I7: Output charts
B8: Temp. (Degrees C) | C8: ='0-StartHere'!C32 -> 26
B9: Cage type | C9: ='0-StartHere'!$C$13 -> Rectangular
B10: Cage surface area (m2) | C10: =IF('0-StartHere'!$C$13="Rectangular",'0-StartHere'!$C$16*'0-StartHere'!$C$17,IF('0-StartHere'!$C$13="Circular",PI()*(('0-StartHere'!$C$22/2)^2),"ERROR")) -> 9 | AG10: Indicator | AH10: ='0-StartHere'!$C$49 -> KES
B11: Cage depth (m) | C11: =IF('0-StartHere'!$C$13="Rectangular",'0-StartHere'!$C$18,IF('0-StartHere'!$C$13="Circular",'0-StartHere'!$C$23,"ERROR")) -> 3 | AG11: Sales Income | AH11: =C30 -> 276350.2285
B12: Days between harvest and restocking | C12: 10 | AG12: Fry and feed costs | AH12: =C32+C31 -> 192043.498
AG13: Surplus/loss | AH13: =AH11-AH12 -> 84306.7305
B15: Output data (per cage/cycle)
B16: Cycle per year | C16: ='0-StartHere'!C30/(C7+C12) -> 4.244186047
B17: Cage volume (m3) | C17: ='0-StartHere'!C25 -> 27
B18: Number stocked | C18: =C17*C6 -> 4050
B19: Biomass stocked (kg) | C19: =(C18*C5)/1000 -> 162
B20: Ave. harvest weight (g) | C20: =_xlfn.XLOOKUP($C$7,'Growth-Model-3'!$A$2:$A$366,'Growth-Model-3'!$B$2:$B$366,,0) -> 235.3246567
B21: Harvest number | C21: =_xlfn.XLOOKUP($C$7,'Growth-Model-3'!$A$2:$A$366,'Growth-Model-3'!$F$2:$F$366,,0) -> 3857.255866
B22: Harvest biomass (kg) | C22: =_xlfn.XLOOKUP($C$7,'Growth-Model-3'!$A$2:$A$366,'Growth-Model-3'!$M$2:$M$366,,0) -> 907.7074127
B23: Final stock density (kg/m3) | C23: =C22/C17 -> 33.61879306
B24: Mortalities (No.) | C24: =_xlfn.XLOOKUP($C$7,'Growth-Model-3'!$A$2:$A$366,'Growth-Model-3'!$I$2:$I$366,,0) -> 196.7944056
B25: Mortalities (%) | C25: =_xlfn.XLOOKUP($C$7,'Growth-Model-3'!$A$2:$A$366,'Growth-Model-3'!$J$2:$J$366,,0) -> 0.04859121125
B26: Mortality biomass (kg) | C26: =_xlfn.XLOOKUP($C$7,'Growth-Model-3'!$A$2:$A$366,'Growth-Model-3'!$L$2:$L$366,,0) -> 13.58086581
B27: Feed used (kg) | C27: =_xlfn.XLOOKUP($C$7,'Growth-Model-3'!$A$2:$A$366,'Growth-Model-3'!$P$2:$P$366,,0) -> 1095.972188
B28: Biological FCR | C28: =C27/(C22+C26-C19) -> 1.443420397
B29: Economic FCR | C29: =C27/(C22-C19) -> 1.469708051
B30: =_xlfn.CONCAT("Sales income"," (",'0-StartHere'!$C$49,")") -> Sales income (KES) | C30: ='Growth-Model-3'!$S$391 -> 276350.2285
B31: =_xlfn.CONCAT("Feed cost"," (",'0-StartHere'!$C$49,")") -> Feed cost (KES) | C31: =_xlfn.XLOOKUP($C$7,'Growth-Model-3'!$A$2:$A$366,'Growth-Model-3'!$S$2:$S$366,,0) -> 111043.498
B32: =_xlfn.CONCAT("Fry cost"," (",'0-StartHere'!$C$49,")") -> Fry cost (KES) | C32: =_xlfn.XLOOKUP(C5,FryWeight,_xlfn.XLOOKUP(D5,FryType,FryTypeCost))*C18 -> 81000
B33: =_xlfn.CONCAT("Income less feed and fry"," (",'0-StartHere'!$C$49,")") -> Income less feed and fry (KES) | C33: =C30-C31-C32 -> 84306.7305
B34: % margin on feed and fry cost | C34: =C33/C30 -> 0.3050720492
B36: Including short-term finance cost:
B37: =_xlfn.CONCAT("Interest paid on fry"," (",'0-StartHere'!$C$49,")") -> Interest paid on fry (KES) | C37: =(C32*(C7*OperatingCosts!$C$19)*OperatingCosts!$C$21)/365 -> 2361.205479
B38: =_xlfn.CONCAT("Interest paid on feed"," (",'0-StartHere'!$C$49,")") -> Interest paid on feed (KES) | C38: =(C31*(C7*OperatingCosts!$C$20)*OperatingCosts!$C$21)/365 -> 1294.797609
B39: =_xlfn.CONCAT("Total short-term financing"," (",'0-StartHere'!$C$49,")") -> Total short-term financing (KES) | C39: =C37+C38 -> 3656.003089
B40: =_xlfn.CONCAT("Adjusted Income less fry and feed cost"," (",'0-StartHere'!$C$49,")") -> Adjusted Income less fry and feed cost (KES) | C40: =C33-C39 -> 80650.72741
B41: Adjusted % margin on fry and feed cost | C41: =C40/C30 -> 0.2918424488
B44: Output data (per cage/year)
B45: Annual production (kg) | C45: =C22*C16 -> 3852.479135
B46: =_xlfn.CONCAT("Annual income"," (",'0-StartHere'!$C$49,")") -> Annual income (KES) | C46: =C30*C16 -> 1172881.784
B47: Annual feed use (kg) | C47: =C27*C16 -> 4651.509869
B48: Fingerlings used (No.) | C48: =C18*C16 -> 17188.95349
B49: =_xlfn.CONCAT("Feed cost"," (",'0-StartHere'!$C$49,")") -> Feed cost (KES) | C49: =C31*C16 -> 471289.2647
B50: =_xlfn.CONCAT("Fingerling cost"," (",'0-StartHere'!$C$49,")") -> Fingerling cost (KES) | C50: =C32*C16 -> 343779.0698
B51: =_xlfn.CONCAT("Income less feed and fry"," (",'0-StartHere'!$C$49,")") -> Income less feed and fry (KES) | C51: =C46-C49-C50 -> 357813.4492
B53: Including short-term finance cost:
B54: =_xlfn.CONCAT("Feed cost"," (",'0-StartHere'!$C$49,")") -> Feed cost (KES) | C54: =C49+(C16*C38) -> 476784.6267
B55: =_xlfn.CONCAT("Fingerling cost"," (",'0-StartHere'!$C$49,")") -> Fingerling cost (KES) | C55: =C50+(C37*C16) -> 353800.4651
B56: =_xlfn.CONCAT("Income less feed and fry"," (",'0-StartHere'!$C$49,")") -> Income less feed and fry (KES) | C56: =C46-C54-C55 -> 342296.6919
N65: Feed Use by Type | Q65: Kg used | R65: =_xlfn.CONCAT("Cost"," (",'0-StartHere'!$C$49,")") -> Cost (KES)
N66: ='Growth-Model-3'!Z32 -> Skretting 0.5mm | Q66: ='Growth-Model-3'!AA32 -> 0 | R66: ='Growth-Model-3'!AB32 -> 0
N67: ='Growth-Model-3'!Z33 -> Skretting 1mm | Q67: ='Growth-Model-3'!AA33 -> 0 | R67: ='Growth-Model-3'!AB33 -> 0
N68: ='Growth-Model-3'!Z34 -> Skretting 2mm | Q68: ='Growth-Model-3'!AA34 -> 0 | R68: ='Growth-Model-3'!AB34 -> 0
N69: ='Growth-Model-3'!Z35 -> Unga 2mm | Q69: ='Growth-Model-3'!AA35 -> 0 | R69: ='Growth-Model-3'!AB35 -> 0
N70: ='Growth-Model-3'!Z36 -> Unga 3mm | Q70: ='Growth-Model-3'!AA36 -> 319.7640313 | R70: ='Growth-Model-3'!AB36 -> 33942.66414
N71: ='Growth-Model-3'!Z37 -> Unga 4mm | Q71: ='Growth-Model-3'!AA37 -> 776.208157 | R71: ='Growth-Model-3'!AB37 -> 77100.83385

Sheet S4-PartialHarvest
B2: =_xlfn.CONCAT("Strategy 4: ",'0-StartHere'!B106) -> Strategy 4: Double Stocking with Partial Harvest | R2: ='0-StartHere'!$C$106 -> Partial
AI3: mono sex
B4: Input data | E4: << Change these input varibles to see the impact they have on overall production and indicators of potential profitability | AI4: mixed sex
B5: Ave wt. at stocking (g) | C5: 40 | D5: mono sex
B6: Initial stock density (No./m3) | C6: 150 | AK6: Indicator | AL6: 1st harvest | AM6: 2nd harvest | AN6: Combined
B7: Days to first harvest | Predicted average weight (Interim) | C7: 75 | D7: =C23 -> 232.0814809 | K7: Output charts | AK7: Sales Income | AL7: =C36 -> 135772.5569 | AM7: =C55 -> 331075.1607 | AN7: =AL7+AM7 -> 466847.7176
B8: % fish removed at first harvest | C8: 0.5 | AK8: Fry and feed costs | AL8: =C37+C35 -> 136259.7583 | AM8: =C56+C54 -> 210082.729 | AN8: =AL8+AM8 -> 346342.4872
B9: Total culture days | Predicted average weight (Final) | C9: 137 | D9: =C41 -> 490.8804414 | AK9: Surplus/loss | AL9: =AL7-AL8 -> -487.2013582 | AM9: =AM7-AM8 -> 120992.4317 | AN9: =AL9+AM9 -> 120505.2303
B10: Temp. (Degrees C) | C10: ='0-StartHere'!C32 -> 26
B11: Cage type | C11: ='0-StartHere'!$C$13 -> Rectangular
B12: Cage surface area (m2) | C12: =IF('0-StartHere'!$C$13="Rectangular",'0-StartHere'!$C$16*'0-StartHere'!$C$17,IF('0-StartHere'!$C$13="Circular",PI()*(('0-StartHere'!$C$22/2)^2),"ERROR")) -> 9
B13: Cage depth (m) | C13: =IF('0-StartHere'!$C$13="Rectangular",'0-StartHere'!$C$18,IF('0-StartHere'!$C$13="Circular",'0-StartHere'!$C$23,"ERROR")) -> 3
B14: Days between 2nd harvest and restocking | C14: 10
B17: Output data (per cage/cycle)
B18: Cycle per year | C18: ='0-StartHere'!C30/(C9+C14) -> 2.482993197
B19: Cage volume (m3) | C19: ='0-StartHere'!C25 -> 27
B20: Number stocked | C20: =C19*C6 -> 4050
B21: Biomass stocked (kg) | C21: =(C20*C5)/1000 -> 162
B22: 1st harvest
B23: Ave. 1st harvest weight (g) | C23: =_xlfn.XLOOKUP(C7,'Growth-Model-4'!$A$2:$A$366,'Growth-Model-4'!$B$2:$B$366,,0) -> 232.0814809
B24: Stock density at 1st harvest (kg/m3) | C24: =_xlfn.XLOOKUP(C7-1,'Growth-Model-4'!$A$2:$A$366,'Growth-Model-4'!$N$2:$N$366,,0) -> 32.77095354
B25: 1st harvest number | C25: =_xlfn.XLOOKUP($C$7-1,'Growth-Model-4'!$A$2:$A$366,'Growth-Model-4'!$F$2:$F$366,,0)-_xlfn.XLOOKUP($C$7,'Growth-Model-4'!$A$2:$A$366,'Growth-Model-4'!$F$2:$F$366,,0) -> 1937.77466
B26: 1st harvest biomass (kg) | C26: =_xlfn.XLOOKUP($C$7-1,'Growth-Model-4'!$A$2:$A$366,'Growth-Model-4'!$M$2:$M$366,,0)*C8 -> 442.4078728
B27: Mortalities to 1st harvest (No.) | C27: =_xlfn.XLOOKUP(C7,'Growth-Model-4'!$A$2:$A$366,'Growth-Model-4'!$I$2:$I$366,,0) -> 188.016195
B28: Mortalities to 1st harvest (%) | C28: =_xlfn.XLOOKUP(C7,'Growth-Model-4'!$A$2:$A$366,'Growth-Model-4'!$J$2:$J$366,,0) -> 0.04642375186
B29: Mortalities to 1st harvest biomass (kg) | C29: =_xlfn.XLOOKUP(C7,'Growth-Model-4'!$A$2:$A$366,'Growth-Model-4'!$L$2:$L$366,,0) -> 11.82396178
B30: Feed used to 1st harvest (kg) | C30: =_xlfn.XLOOKUP(C7,'Growth-Model-4'!$A$2:$A$366,'Growth-Model-4'!$P$2:$P$366,,0) -> 1066.425726
B31: Feed used for 1st harvested fish (kg) | C31: =C30*C8 -> 533.2128631
B32: Biological FCR to 1st harvest | C32: =C31/(C26+C29-C21) -> 1.824622783
B33: Economic FCR to 1st harvest | C33: =C31/(C26-C21) -> 1.901561671
B34: =_xlfn.CONCAT("Feed cost to 1st harvest"," (",'0-StartHere'!$C$49,")") -> Feed cost to 1st harvest (KES) | C34: =_xlfn.XLOOKUP(C7-1,'Growth-Model-4'!$A$2:$A$366,'Growth-Model-4'!$S$2:$S$366,,0) -> 107121.7085
B35: =_xlfn.CONCAT("Cost to feed first harvested fish"," (",'0-StartHere'!$C$49,")") -> Cost to feed first harvested fish (KES) | C35: =C34*C8 -> 53560.85426
B36: =_xlfn.CONCAT("Sales income 1st harvest"," (",'0-StartHere'!$C$49,")") -> Sales income 1st harvest (KES) | C36: ='Growth-Model-4'!S391 -> 135772.5569
B37: =_xlfn.CONCAT("1st harvest share of fry cost"," (",'0-StartHere'!$C$49,")") -> 1st harvest share of fry cost (KES) | C37: =(C25/C60)*C69 -> 82698.90399
B38: Income less fry and feed to first harvest | C38: =C36-C35-C37 -> -487.2013582
B39: % margin on feed and fry cost to first harvest | C39: =C38/C36 -> -0.003588364021
B40: 2nd harvest
B41: Ave. final harvest weight (g) | C41: =_xlfn.XLOOKUP($C$9,'Growth-Model-4'!$A$2:$A$366,'Growth-Model-4'!$B$2:$B$366,,0) -> 490.8804414
B42: Biomass remaining after 1st harvest (kg) | C42: =_xlfn.XLOOKUP(C7,'Growth-Model-4'!$A$2:$A$366,'Growth-Model-4'!$M$2:$M$366,,0) -> 449.7215242
B43: Stock density after 1st harvest (kg/m3) | C43: =_xlfn.XLOOKUP($C$7,'Growth-Model-4'!$A$2:$A$366,'Growth-Model-4'!$N$2:$N$366,,0) -> 16.65635275
B44: Final stock density (kg/m3) | C44: =_xlfn.XLOOKUP(C9,'Growth-Model-4'!$A$2:$A$366,'Growth-Model-4'!$N$2:$N$366,,0) -> 33.78272457
B45: Final harvest number | C45: =_xlfn.XLOOKUP($C$9,'Growth-Model-4'!$A$2:$A$366,'Growth-Model-4'!$F$2:$F$366,,0) -> 1858.158294
B46: Final harvest biomass (kg) | C46: =_xlfn.XLOOKUP($C$9,'Growth-Model-4'!$A$2:$A$366,'Growth-Model-4'!$M$2:$M$366,,0) -> 912.1335633
B47: Biomass increase between 1st & 2nd harvests (kg) | C47: =C46-C42 -> 462.4120391
B48: Mortalities between 1st & 2nd harvests | C48: =_xlfn.XLOOKUP($C$9,'Growth-Model-4'!$A$2:$A$366,'Growth-Model-4'!$I$2:$I$366,,0)-C27 -> 70.10123248
B49: Mortality biomass between 1st & 2nd harvests (kg) | C49: =C63-C29 -> 22.36390103
B50: Feed used for 2nd harvest fish (kg) | C50: =C65-C31 -> 1300.69263
B51: Feed used between 1st and 2nd harvests (kg) | C51: =C65-C30 -> 767.4797671
B52: Biological FCR 1st to 2nd harvest | C52: =IF(C47+C49=0,"N/A",C51/(C47+C49)) -> 1.583163898
B53: Economic FCR 1st to 2nd harvest | C53: =IF(C47=0,"N/A",C51/(C47)) -> 1.65973137
B54: =_xlfn.CONCAT("Feed cost for 2nd harvest fish"," (",'0-StartHere'!$C$49,")") -> Feed cost for 2nd harvest fish (KES) | C54: =C68-C35 -> 130781.633
B55: =_xlfn.CONCAT("Sales income from 2nd harvest"," (",'0-StartHere'!$C$49,")") -> Sales income from 2nd harvest (KES) | C55: ='Growth-Model-4'!S416 -> 331075.1607
B56: =_xlfn.CONCAT("Final harvest share of fry/fingerling cost"," (",'0-StartHere'!$C$49,")") -> Final harvest share of fry/fingerling cost (KES) | C56: =(C45/C60)*C69 -> 79301.09601
B57: Income less fry and feed from first to final harvest | C57: =C55-C56-C54 -> 120992.4317
B58: % margin on feed and fry cost from 1st to final harvest | C58: =C57/C55 -> 0.3654530634
B59: Totals
B60: Total number (survived) | C60: =C25+C45 -> 3795.932953
B61: Total mortalities | C61: =_xlfn.XLOOKUP($C$9,'Growth-Model-4'!$A$2:$A$366,'Growth-Model-4'!$I$2:$I$366,,0) -> 258.1174275
B62: Total mortalities % | C62: =_xlfn.XLOOKUP($C$9,'Growth-Model-4'!$A$2:$A$366,'Growth-Model-4'!$J$2:$J$366,,0) -> 0.06373269815
B63: Total mortalities biomass (kg) | C63: =_xlfn.XLOOKUP($C$9,'Growth-Model-4'!$A$2:$A$366,'Growth-Model-4'!$L$2:$L$366,,0) -> 34.18786281
B64: Total harvest (kg) | C64: =C26+C46 -> 1354.541436
B65: Total feed used (kg) | C65: =_xlfn.XLOOKUP($C$9,'Growth-Model-4'!$A$2:$A$366,'Growth-Model-4'!$P$2:$P$366,,0) -> 1833.905493
B66: Overall biological FCR | C66: =C65/(C64+C63-C21) -> 1.494955322
B67: Overall economic FCR | C67: =C65/(C64-C21) -> 1.537812807
B68: =_xlfn.CONCAT("Total feed cost"," (",'0-StartHere'!$C$49,")") -> Total feed cost (KES) | C68: =_xlfn.XLOOKUP(C9,'Growth-Model-4'!$A$2:$A$366,'Growth-Model-4'!$S$2:$S$366,,0) -> 184342.4872
B69: =_xlfn.CONCAT("Fry/Fingerling cost"," (",'0-StartHere'!$C$49,")") -> Fry/Fingerling cost (KES) | C69: =_xlfn.XLOOKUP(C5,FryWeight,_xlfn.XLOOKUP(D5,FryType,FryTypeCost))*C20 -> 162000
B70: =_xlfn.CONCAT("Sales income"," (",'0-StartHere'!$C$49,")") -> Sales income (KES) | C70: ='Growth-Model-4'!R438 -> 466847.7176
B71: =_xlfn.CONCAT("Income less feed and fry"," (",'0-StartHere'!$C$49,")") -> Income less feed and fry (KES) | C71: =C70-C69-C68 -> 120505.2303
B72: % margin on feed and fry cost | C72: =C71/C70 -> 0.2581253496
B74: Including short-term finance cost:
B75: 1st Harvest
B76: =_xlfn.CONCAT("Interest paid on fry"," (",'0-StartHere'!$C$49,")") -> Interest paid on fry (KES) | C76: =(C37*(C7*OperatingCosts!$C$19)*OperatingCosts!$C$21)/365 -> 2379.009567
B77: =_xlfn.CONCAT("Interest paid on feed"," (",'0-StartHere'!$C$49,")") -> Interest paid on feed (KES) | C77: =(C35*(C7*OperatingCosts!$C$20)*OperatingCosts!$C$21)/365 -> 616.3166792
B78: 2nd Harvest
B79: =_xlfn.CONCAT("Interest paid on fry"," (",'0-StartHere'!$C$49,")") -> Interest paid on fry (KES) | C79: =(C56*(C9*OperatingCosts!$C$19)*OperatingCosts!$C$21)/365 -> 4167.109648
B80: =_xlfn.CONCAT("Interest paid on feed"," (",'0-StartHere'!$C$49,")") -> Interest paid on feed (KES) | C80: =(C54*(C9*OperatingCosts!$C$20)*OperatingCosts!$C$21)/365 -> 2748.922434
B81: Totals
B82: =_xlfn.CONCAT("Total short-term financing"," (",'0-StartHere'!$C$49,")") -> Total short-term financing (KES) | C82: =C76+C77+C79+C80 -> 9911.358327
B83: =_xlfn.CONCAT("Adjusted Income less fry and feed cost"," (",'0-StartHere'!$C$49,")") -> Adjusted Income less fry and feed cost (KES) | C83: =C71-C82 -> 110593.872
B84: Adjusted % margin on fry and feed cost | C84: =C83/C70 -> 0.2368949613
B86: Output data (per cage/year)
B87: Annual production (kg) | C87: =C64*C18 -> 3363.317171
B88: =_xlfn.CONCAT("Annual income"," (",'0-StartHere'!$C$49,")") -> Annual income (KES) | C88: =C70*C18 -> 1159179.707
B89: Annual feed use (kg) | C89: =C65*C18 -> 4553.574865
B90: Fingerlings used (No.) | C90: =C20*C18 -> 10056.12245
B91: =_xlfn.CONCAT("Feed cost"," (",'0-StartHere'!$C$49,")") -> Feed cost (KES) | C91: =C68*C18 -> 457721.1418
B92: =_xlfn.CONCAT("Fingerling cost"," (",'0-StartHere'!$C$49,")") -> Fingerling cost (KES) | C92: =C69*C18 -> 402244.898
B93: =_xlfn.CONCAT("Income less feed and fry"," (",'0-StartHere'!$C$49,")") -> Income less feed and fry (KES) | C93: =C88-C91-C92 -> 299213.6671
B95: Including short-term finance cost:
B96: =_xlfn.CONCAT("Feed cost"," (",'0-StartHere'!$C$49,")") -> Feed cost (KES) | C96: =C91+(C18*(C77+C80)) -> 466077.0076
B97: =_xlfn.CONCAT("Fingerling cost"," (",'0-StartHere'!$C$49,")") -> Fingerling cost (KES) | C97: =C92+(C18*(C76+C79)) -> 418498.8674
B98: =_xlfn.CONCAT("Income less feed and fry"," (",'0-StartHere'!$C$49,")") -> Income less feed and fry (KES) | C98: =C88-C96-C97 -> 274603.8318
N108: Feed Use by Type | Q108: Kg used | R108: =_xlfn.CONCAT("Cost"," (",'0-StartHere'!$C$49,")") -> Cost (KES)
N109: ='Growth-Model-4'!Y32 -> Skretting 0.5mm | Q109: ='Growth-Model-4'!Z32 -> 0 | R109: ='Growth-Model-4'!AA32 -> 0
N110: ='Growth-Model-4'!Y33 -> Skretting 1mm | Q110: ='Growth-Model-4'!Z33 -> 0 | R110: ='Growth-Model-4'!AA33 -> 0
N111: ='Growth-Model-4'!Y34 -> Skretting 2mm | Q111: ='Growth-Model-4'!Z34 -> 0 | R111: ='Growth-Model-4'!AA34 -> 0
N112: ='Growth-Model-4'!Y35 -> Unga 2mm | Q112: ='Growth-Model-4'!Z35 -> 0 | R112: ='Growth-Model-4'!AA35 -> 0
N113: ='Growth-Model-4'!Y36 -> Unga 3mm | Q113: ='Growth-Model-4'!Z36 -> 319.7640705 | R113: ='Growth-Model-4'!AA36 -> 33942.6683
N114: ='Growth-Model-4'!Y37 -> Unga 4mm | Q114: ='Growth-Model-4'!Z37 -> 1514.141423 | R114: ='Growth-Model-4'!AA37 -> 150399.819

Sheet 5-Comparison
AN1: yes
B2: Annual comparison for 1 cage | AN2: no | AW2: Without short-term credit
C3: Strategy 1 | D3: Strategy 2 | E3: Strategy 3 | F3: Strategy 4 | H3: Include the cost of | S3: Copy strategy data to consolidation sheet | AW3: Strategy 1 | AX3: Strategy 2 | AY3: Strategy 3 | AZ3: Strategy 4
C4: ='0-StartHere'!$C$100 -> Standard | D4: ='0-StartHere'!$C$102 -> Double | E4: ='0-StartHere'!$C$104 -> Short | F4: ='0-StartHere'!$C$106 -> Partial | H4: short-term credit | AN4: Strategy_1 | AW4: ='0-StartHere'!$C$100 -> Standard | AX4: ='0-StartHere'!$C$102 -> Double | AY4: ='0-StartHere'!$C$104 -> Short | AZ4: ='0-StartHere'!$C$106 -> Partial
B5: Individual cage volume (m3) | C5: ='0-StartHere'!$C$25 -> 27 | D5: ='0-StartHere'!$C$25 -> 27 | E5: ='0-StartHere'!$C$25 -> 27 | F5: ='0-StartHere'!$C$25 -> 27 | H5: for fry and feed? | S5: Copy from | T5: Strategy_1 | AN5: Strategy_2 | AV5: Annual production (kg) | AW5: =C6 -> 2358.907828 | AX5: 4344.328491 | AY5: 3852.479135 | AZ5: 3363.317171
B6: Annual production (kg) | C6: ='S1-Standard'!C45 -> 2358.907828 | D6: ='S2-Double'!C45 -> 4344.328491 | E6: ='S3-Short'!C45 -> 3852.479135 | F6: ='S4-PartialHarvest'!C87 -> 3363.317171 | H6: yes | S6: Paste to | T6: Strategy_A | AN6: Strategy_3 | AV6: Annual income (KES) | AW6: 856499.479 | AX6: 1565361.118 | AY6: 1172881.784 | AZ6: 1159179.707
B7: =_xlfn.CONCAT("Annual income"," (",'0-StartHere'!$C$49,")") -> Annual income (KES) | C7: ='S1-Standard'!C46 -> 856499.479 | D7: ='S2-Double'!C46 -> 1565361.118 | E7: ='S3-Short'!C46 -> 1172881.784 | F7: ='S4-PartialHarvest'!C88 -> 1159179.707 | AN7: Strategy_4 | AV7: Annual feed use (kg) | AW7: 3306.286455 | AX7: 6517.85527 | AY7: 4651.509869 | AZ7: 4553.574865
B8: Annual feed use (kg) | C8: ='S1-Standard'!C47 -> 3306.286455 | D8: ='S2-Double'!C47 -> 6517.85527 | E8: ='S3-Short'!C47 -> 4651.509869 | F8: ='S4-PartialHarvest'!C89 -> 4553.574865 | AN8: Strategy_A | AV8: Fingerlings used (No.) | AW8: 5028.061224 | AX8: 10056.12245 | AY8: 17188.95349 | AZ8: 10056.12245
B9: Fingerlings used (No.) | C9: ='S1-Standard'!C48 -> 5028.061224 | D9: ='S2-Double'!C48 -> 10056.12245 | E9: ='S3-Short'!C48 -> 17188.95349 | F9: ='S4-PartialHarvest'!C90 -> 10056.12245 | AN9: Strategy_B | AV9: Feed cost (KES) | AW9: ='S1-Standard'!C49 -> 331120.8118 | AX9: ='S2-Double'!C49 -> 652833.3109 | AY9: ='S3-Short'!C49 -> 471289.2647 | AZ9: ='S4-PartialHarvest'!C91 -> 457721.1418
B10: =_xlfn.CONCAT("Feed cost"," (",'0-StartHere'!$C$49,")") -> Feed cost (KES) | C10: =IF(H6="no",'S1-Standard'!C49,'S1-Standard'!C54) -> 338080.6991 | D10: =IF(H6="no",'S2-Double'!C49,'S2-Double'!C54) -> 666555.3305 | E10: =IF(H6="no",'S3-Short'!C49,'S3-Short'!C54) -> 476784.6267 | F10: =IF(H6="no",'S4-PartialHarvest'!C91,'S4-PartialHarvest'!C96) -> 466077.0076 | AN10: Strategy_C | AV10: Fry/Fingerling cost (KES) | AW10: ='S1-Standard'!C50 -> 201122.449 | AX10: ='S2-Double'!C50 -> 201122.449 | AY10: ='S3-Short'!C50 -> 343779.0698 | AZ10: ='S4-PartialHarvest'!C92 -> 402244.898
B11: =_xlfn.CONCAT("Fry/Fingerling cost"," (",'0-StartHere'!$C$49,")") -> Fry/Fingerling cost (KES) | C11: =IF(H6="no",'S1-Standard'!C50,'S1-Standard'!C55) -> 211691.0204 | D11: =IF(H6="no",'S2-Double'!C50,'S2-Double'!C55) -> 211691.0204 | E11: =IF(H6="no",'S3-Short'!C50,'S3-Short'!C55) -> 353800.4651 | F11: =IF(H6="no",'S4-PartialHarvest'!C92,'S4-PartialHarvest'!C97) -> 418498.8674 | AN11: Strategy_D | AV11: Income less feed and fry (KES) | AW11: ='S1-Standard'!C51 -> 324256.2183 | AX11: ='S2-Double'!C51 -> 711405.3581 | AY11: ='S3-Short'!C51 -> 357813.4492 | AZ11: ='S4-PartialHarvest'!C93 -> 299213.6671
B12: =_xlfn.CONCAT("Income less feed and fry"," (",'0-StartHere'!$C$49,")") -> Income less feed and fry (KES) | C12: =IF(H6="no",'S1-Standard'!C51,'S1-Standard'!C56) -> 306727.7596 | D12: =IF(H6="no",'S2-Double'!C51,'S2-Double'!C56) -> 687114.7671 | E12: =IF(H6="no",'S3-Short'!C51,'S3-Short'!C56) -> 342296.6919 | F12: =IF(H6="no",'S4-PartialHarvest'!C93,'S4-PartialHarvest'!C98) -> 274603.8318
B14: The table above summarises the results for each of the 4 strategies.
B15: You can now allocate your cages to the stragegies for a total annual production estimate | AV15: =B23 -> Number of cages per strategy | AW15: =C23 -> 1 | AX15: 4 | AY15: 0 | AZ15: 3 | BB15: TOTAL
B17: Annual total for all cages | AV17: Annual production (kg) | AW17: =AW5*AW$15 -> 2358.907828 | AX17: =AX5*AX$15 -> 17377.31396 | AY17: 0 | AZ17: 10089.95151 | BB17: =SUM(AW17:AZ17) -> 29826.1733
AV18: =_xlfn.CONCAT("Annual income"," (",'0-StartHere'!$C$49,")") -> Annual income (KES) | AW18: =AW6*AW$15 -> 856499.479 | AX18: 6261444.472 | AY18: 0 | AZ18: 3477539.121 | BB18: =SUM(AW18:AZ18) -> 10595483.07
B19: Number of cages to allocate (from start sheet) | G19: ='0-StartHere'!C11 -> 8 | AV19: Annual feed use (kg) | AW19: =AW7*AW$15 -> 3306.286455 | AX19: 26071.42108 | AY19: 0 | AZ19: 13660.72459 | BB19: 43038.43213
AV20: Fingerlings used (No.) | AW20: =AW8*AW$15 -> 5028.061224 | AX20: 40224.4898 | AY20: 0 | AZ20: 30168.36735 | BB20: =SUM(AW20:AZ20) -> 75420.91837
C21: =C3 -> Strategy 1 | D21: =D3 -> Strategy 2 | E21: Strategy 3 | F21: Strategy 4 | AV21: =_xlfn.CONCAT("Feed cost"," (",'0-StartHere'!$C$49,")") -> Feed cost (KES) | AW21: 331120.8118 | AX21: 2611333.244 | AY21: 0 | AZ21: 1373163.425 | BB21: =SUM(AW21:AZ21) -> 4315617.481
C22: ='0-StartHere'!$C$100 -> Standard | D22: ='0-StartHere'!$C$102 -> Double | E22: ='0-StartHere'!$C$104 -> Short | F22: ='0-StartHere'!$C$106 -> Partial | AV22: =_xlfn.CONCAT("Fry/Fingerling cost"," (",'0-StartHere'!$C$49,")") -> Fry/Fingerling cost (KES) | AW22: 201122.449 | AX22: 804489.7959 | AY22: 0 | AZ22: 1206734.694 | BB22: =SUM(AW22:AZ22) -> 2212346.939
B23: Number of cages per strategy | C23: 1 | D23: 4 | E23: 0 | F23: 3 | G23: =SUM(C23:F23) -> 8 | H23: =IF(G23='0-StartHere'!C11,"OK",IF('5-Comparison'!G23>'0-StartHere'!C11,"Over-Allocated","Under-Allocated")) -> OK | AV23: =_xlfn.CONCAT("Income less feed and fry"," (",'0-StartHere'!$C$49,")") -> Income less feed and fry (KES) | AW23: 324256.2183 | AX23: 2845621.432 | AY23: 0 | AZ23: 897641.0014 | BB23: =SUM(AW23:AZ23) -> 4067518.652
H25: TOTAL
B26: Cage volume (m3) | C26: =C23*'0-StartHere'!$C$25 -> 27 | D26: =D23*'0-StartHere'!$C$25 -> 108 | E26: =E23*'0-StartHere'!$C$25 -> 0 | F26: =F23*'0-StartHere'!$C$25 -> 81 | H26: =SUM(C26:F26) -> 216
B27: Percentage of total cage volume | C27: =C26/$H$26 -> 0.125 | D27: =D26/$H$26 -> 0.5 | E27: 0 | F27: 0.375 | H27: =SUM(C27:F27) -> 1
B28: Annual production (kg) | C28: =C6*C$23 -> 2358.907828 | D28: =D6*D$23 -> 17377.31396 | E28: =E6*E$23 -> 0 | F28: =F6*F$23 -> 10089.95151 | H28: =SUM(C28:F28) -> 29826.1733
B29: Percentage of total production | C29: =C28/$H$28 -> 0.07908851746 | D29: =D28/$H$28 -> 0.5826196269 | E29: 0 | F29: 0.3382918556 | H29: =SUM(C29:F29) -> 1
B30: =_xlfn.CONCAT("Annual income"," (",'0-StartHere'!$C$49,")") -> Annual income (KES) | C30: =C7*C$23 -> 856499.479 | D30: =D7*D$23 -> 6261444.472 | E30: =E7*E$23 -> 0 | F30: =F7*F$23 -> 3477539.121 | H30: =SUM(C30:F30) -> 10595483.07
B31: Percentage of annual income | C31: =C30/$H$30 -> 0.08083628403 | D31: =D30/$H$30 -> 0.5909541292 | E31: 0 | F31: 0.3282095868 | H31: =SUM(C31:F31) -> 1 | AV31: =_xlfn.CONCAT("Total interest on feed credit"," (",'0-StartHere'!$C$49,")") -> Total interest on feed credit (KES) | AW31: =H34-BB21 -> 86915.56326
B32: Annual feed use (kg) | C32: =C8*C$23 -> 3306.286455 | D32: 26071.42108 | E32: 0 | F32: 13660.72459 | H32: 43038.43213 | AV32: =_xlfn.CONCAT("Total interest on seed credit"," (",'0-StartHere'!$C$49,")") -> Total interest on seed credit (KES) | AW32: =H35-BB22 -> 101604.7656
B33: Fingerlings used (No.) | C33: 5028.061224 | D33: 40224.4898 | E33: 0 | F33: 30168.36735 | H33: 75420.91837 | AV33: =_xlfn.CONCAT("Interest on feed & seed credit"," (",'0-StartHere'!$C$49,")") -> Interest on feed & seed credit (KES) | AW33: =AW31+AW32 -> 188520.3288
B34: =_xlfn.CONCAT("Feed cost"," (",'0-StartHere'!$C$49,")") -> Feed cost (KES) | C34: 338080.6991 | D34: 2666221.322 | E34: 0 | F34: 1398231.023 | H34: 4402533.044
B35: =_xlfn.CONCAT("Fry/Fingerling cost"," (",'0-StartHere'!$C$49,")") -> Fry/Fingerling cost (KES) | C35: 211691.0204 | D35: 846764.0816 | E35: 0 | F35: 1255496.602 | H35: 2313951.704
B36: =_xlfn.CONCAT("Income less feed and fry"," (",'0-StartHere'!$C$49,")") -> Income less feed and fry (KES) | C36: 306727.7596 | D36: 2748459.068 | E36: 0 | F36: 823811.4955 | H36: 3878998.323
B37: Percentage of income less feed and fry | C37: =C36/$H$36 -> 0.07907396033 | D37: =D36/$H$36 -> 0.7085486611 | E37: 0 | F37: 0.2123773786 | H37: =SUM(C37:F37) -> 1
B39: NB. Ensure data in the SetupCosts and OperatingCosts sheets match the selected cage sizes and scale of operation for the following analysis to be meaningful
B41: Profit/Loss calculation
C42: ='0-StartHere'!$C$49 -> KES
B43: Annual income from sales | C43: =H30 -> 10595483.07
B44: Less variable costs:
B45: Cost of feed | C45: =BB21 -> 4315617.481
B46: Cost of fry/fingerlings | C46: =BB22 -> 2212346.939
B47: Labour | C47: =OperatingCosts!C31 -> 1314000
B48: Fuel and other inputs | C48: =OperatingCosts!C32+OperatingCosts!C33 -> 823861.733
B49: Processing & distribution | C49: =OperatingCosts!C37+OperatingCosts!C38 -> 298261.733
B50: Interest on feed & seed credit | C50: =AW33 -> 188520.3288
B51: Gross profit | C51: =C43-C45-C46-C47-C48-C49-C50 -> 1442874.857 | D51: =C51/C43 -> 0.1361782986
B52: Less fixed costs:
B53: Lease, processing & maintenance | C53: =OperatingCosts!C44+OperatingCosts!C45+OperatingCosts!C49+OperatingCosts!C50 -> 140175
B54: Administration and sales | C54: =OperatingCosts!C53+OperatingCosts!C54 -> 35000
B55: Net profit | C55: =C51-C53-C54 -> 1267699.857 | D55: =C55/C43 -> 0.11964531
B56: Less
B57: Depreciation | C57: =SetupCosts!C35 -> 586160
B58: Long term loan interest payments | C58: =OperatingCosts!C56 -> 158202.5
B59: Annual return | C59: =C55-C57-C58 -> 523337.3572 | D59: =C59/C43 -> 0.04939249619
B62: Other indicators
B64: Variable cost breakeven price per kg fish | C64: =SUM(C45:C50)/H28 -> 306.8649847 | D64: ='0-StartHere'!C49 -> KES
B65: Total cost breakeven price per kg fish | C65: =(SUM(C45:C50)+SUM(C53:C54)+SUM(C57:C58))/H28 -> 337.6948699 | D65: ='0-StartHere'!C49 -> KES
B66: Breakeven yield (above total costs) | C66: =(SUM(C45:C50)+SUM(C53:C54)+SUM(C57:C58))/(H30/H28) -> 28352.98415 | D66: Kg/yr
B67: Breakeven yield (above variable costs) | C67: =(SUM(C45:C50))/(H30/H28) -> 25764.49577 | D67: Kg/yr
B68: Gross profit/loss per m3 | C68: =C51/('0-StartHere'!C11*'0-StartHere'!C25) -> 6679.976191 | D68: =_xlfn.CONCAT('0-StartHere'!C49,"/yr") -> KES/yr
B69: Net operating profit/loss per m3 | C69: =C55/('0-StartHere'!C11*'0-StartHere'!C25) -> 5868.980821 | D69: =_xlfn.CONCAT('0-StartHere'!C49,"/yr") -> KES/yr
B70: Overall profit/loss per m3 | C70: =C59/('0-StartHere'!C11*'0-StartHere'!C25) -> 2422.858135 | D70: =_xlfn.CONCAT('0-StartHere'!C49,"/yr") -> KES/yr
B85: Data for chart
B86: Annual income | C86: =C43 -> 10595483.07
B87: Feed | C87: =-C45 -> -4315617.481
B88: Fry/fingerlings | C88: =-C46 -> -2212346.939
B89: Labour | C89: -1314000
B90: Fuel etc. | C90: -823861.733
B91: Processing & distrib. | C91: =-C49 -> -298261.733
B92: Overdraft interest | C92: =C50 -> 188520.3288
B93: Gross profit | C93: =SUM(C86:C92) -> 1819915.515
B94: Fixed costs | C94: =-C53 -> -140175
B95: Admin. & sales | C95: =-C54 -> -35000
B96: Net profit | C96: =SUM(C93:C95) -> 1644740.515
B97: Depreciation | C97: =-C57 -> -586160
B98: Interest payments | C98: =-C58 -> -158202.5
B99: Annual return | C99: =C96+C97+C98 -> 900378.0149

Sheet Growth-Model-1
A1: Day | B1: Av. Wt (g) | C1: Feed rate % bw/day | D1: FCR | E1: SGR | F1: No. | G1: Early Morts | H1: Late Morts | I1: Cum. Morts | J1: Cum Mort % | K1: Mort Biomas (g) | L1: Cum. Mort biomass (kg) | M1: Biomass (kg) | N1: Density (kg/m3) | O1: Feed fed (kg) | P1: Cum. Feed (kg) | Q1: FeedType | R1: Feed cost | S1: Cum. Feed Cost | T1: Labour needed | U1: Labour cost | V1: Cum. labour cost | Z1: EXP Mortalities
A2: 0 | B2: ='S1-Standard'!C5 -> 40 | C2: =_xlfn.XLOOKUP($B2,FeedTables!$C$42:$T$42,FeedTables!$C$44:$T$44,,-1) -> 4.168455011 | D2: =_xlfn.XLOOKUP($B2,FeedTables!$C$42:$T$42,FeedTables!$C$45:$T$45,,-1) -> 1.283309932 | E2: =_xlfn.XLOOKUP($B2,FeedTables!$C$42:$T$42,FeedTables!$C$46:$T$46,,-1) -> 3.248205993 | F2: ='S1-Standard'!C18 -> 2025 | G2: =AA6 -> 12.15 | H2: =IF(A2<='S1-Standard'!$C$7,$AD$6*EXP($AD$7*('S1-Standard'!C$7-'Growth-Model-1'!A2)),0) -> 2.551268832e-12 | I2: =G2+H2 -> 12.15 | J2: =I2/$F$2 -> 0.006 | K2: =(G2+H2)*B2 -> 486 | L2: =K2/1000 -> 0.486 | M2: =(B2*F2)/1000 -> 81 | N2: =M2/'S1-Standard'!$C$17 -> 3 | O2: =M2*(C2/100) -> 3.376448559 | P2: =O2 -> 3.376448559 | Q2: =_xlfn.XLOOKUP(B2,FeedTables!$C$17:$T$17,FeedTables!$C$31:$T$31,,-1) -> Unga 3mm | R2: =_xlfn.XLOOKUP(Q2,FeedPrice[Feed],FeedPrice[Price per kg],"Unknown",0)*O2 -> 358.4069758 | S2: =R2 -> 358.4069758 | T2: =_xlfn.XLOOKUP(O2,LabourFromFeed[Feed Quantity (kg)],LabourFromFeed[No. Labour],"Out of range",-1) -> 1 | U2: =T2*OperatingCosts!$C$9 -> 1200 | V2: =U2 -> 1200 | Z2: (Mort=Prev * EXP(L) | AC2: (Mort=Final * EXP(L*(T-t)) | AE2: (T = total culture days, t = day no.)
A3: 1 | B3: =IF(A3<='S1-Standard'!$C$7, B2*EXP((LN((E2/100)+1))*1),) -> 41.2992824 | C3: =_xlfn.XLOOKUP($B3,FeedTables!$C$42:$T$42,FeedTables!$C$44:$T$44,,-1) -> 4.168455011 | D3: =_xlfn.XLOOKUP($B3,FeedTables!$C$42:$T$42,FeedTables!$C$45:$T$45,,-1) -> 1.283309932 | E3: =_xlfn.XLOOKUP($B3,FeedTables!$C$42:$T$42,FeedTables!$C$46:$T$46,,-1)*_xlfn.XLOOKUP(N2,DensityMultiplier[Biomass kg/m3],DensityMultiplier[Multiplier],,-1) -> 3.248205993 | F3: =F2-G2-H2 -> 2012.85 | G3: =IF(A3<='S1-Standard'!$C$7,('Growth-Model-1'!G2*EXP($AA$7)),0) -> 10.45760191 | H3: =IF(A3<='S1-Standard'!$C$7,$AD$6*EXP($AD$7*('S1-Standard'!C$7-'Growth-Model-1'!A3)),0) -> 3.116126788e-12 | I3: =I2+G3+H3 -> 22.60760191 | J3: =I3/$F$2 -> 0.01116424786 | K3: =(G3+H3)*B3 -> 431.8914546 | L3: =(K3/1000)+L2 -> 0.9178914546 | M3: 83.12926057 | N3: =M3/'S1-Standard'!$C$17 -> 3.078861503 | O3: 3.465205828 | P3: =O3+P2 -> 6.841654388 | Q3: =_xlfn.XLOOKUP(B3,FeedTables!$C$17:$T$17,FeedTables!$C$31:$T$31,,-1) -> Unga 3mm | R3: =_xlfn.XLOOKUP(Q3,FeedPrice[Feed],FeedPrice[Price per kg],"Unknown",0)*O3 -> 367.82848 | S3: =R3+S2 -> 726.2354557 | T3: =_xlfn.XLOOKUP(O3,LabourFromFeed[Feed Quantity (kg)],LabourFromFeed[No. Labour],"Out of range",-1) -> 1 | U3: =T3*OperatingCosts!$C$9 -> 1200 | V3: =U3+V2 -> 2400 | Z3: (Mort Final =Start*EXP(L*t) | AE3: (Final = No. of morts on final day)
A4: 2 | B4: =IF(A4<='S1-Standard'!$C$7, B3*EXP((LN((E3/100)+1))*1),) -> 42.64076816 | C4: =_xlfn.XLOOKUP($B4,FeedTables!$C$42:$T$42,FeedTables!$C$44:$T$44,,-1) -> 4.168455011 | D4: =_xlfn.XLOOKUP($B4,FeedTables!$C$42:$T$42,FeedTables!$C$45:$T$45,,-1) -> 1.283309932 | E4: =_xlfn.XLOOKUP($B4,FeedTables!$C$42:$T$42,FeedTables!$C$46:$T$46,,-1)*_xlfn.XLOOKUP(N3,DensityMultiplier[Biomass kg/m3],DensityMultiplier[Multiplier],,-1) -> 3.248205993 | F4: =F3-G3-H3 -> 2002.392398 | G4: =IF(A4<='S1-Standard'!$C$7,('Growth-Model-1'!G3*EXP($AA$7)),0) -> 9.000941381 | H4: =IF(A4<='S1-Standard'!$C$7,$AD$6*EXP($AD$7*('S1-Standard'!C$7-'Growth-Model-1'!A4)),0) -> 3.806045853e-12 | I4: =I3+G4+H4 -> 31.60854329 | J4: 0.01560915718 | K4: 383.8070547 | L4: =(K4/1000)+L3 -> 1.301698509 | M4: 85.38355002 | N4: =M4/'S1-Standard'!$C$17 -> 3.162353704 | O4: 3.55917487 | P4: =O4+P3 -> 10.40082926 | Q4: =_xlfn.XLOOKUP(B4,FeedTables!$C$17:$T$17,FeedTables!$C$31:$T$31,,-1) -> Unga 3mm | R4: =_xlfn.XLOOKUP(Q4,FeedPrice[Feed],FeedPrice[Price per kg],"Unknown",0)*O4 -> 377.8032092 | S4: =R4+S3 -> 1104.038665 | T4: =_xlfn.XLOOKUP(O4,LabourFromFeed[Feed Quantity (kg)],LabourFromFeed[No. Labour],"Out of range",-1) -> 1 | U4: =T4*OperatingCosts!$C$9 -> 1200 | V4: =U4+V3 -> 3600 | Z4: Early Mortalities | AC4: Late Mortalities
A5: 3 | B5: =IF(A5<='S1-Standard'!$C$7, B4*EXP((LN((E4/100)+1))*1),) -> 44.02582815 | C5: =_xlfn.XLOOKUP($B5,FeedTables!$C$42:$T$42,FeedTables!$C$44:$T$44,,-1) -> 4.168455011 | D5: =_xlfn.XLOOKUP($B5,FeedTables!$C$42:$T$42,FeedTables!$C$45:$T$45,,-1) -> 1.283309932 | E5: =_xlfn.XLOOKUP($B5,FeedTables!$C$42:$T$42,FeedTables!$C$46:$T$46,,-1)*_xlfn.XLOOKUP(N4,DensityMultiplier[Biomass kg/m3],DensityMultiplier[Multiplier],,-1) -> 3.248205993 | F5: =F4-G4-H4 -> 1993.391457 | G5: =IF(A5<='S1-Standard'!$C$7,('Growth-Model-1'!G4*EXP($AA$7)),0) -> 7.747182042 | H5: =IF(A5<='S1-Standard'!$C$7,$AD$6*EXP($AD$7*('S1-Standard'!C$7-'Growth-Model-1'!A5)),0) -> 4.648714903e-12 | I5: 39.35572534 | J5: 0.01943492609 | K5: 341.0761052 | L5: 1.642774615 | M5: 87.76070971 | N5: =M5/'S1-Standard'!$C$17 -> 3.250396656 | O5: 3.658265702 | P5: 14.05909496 | Q5: =_xlfn.XLOOKUP(B5,FeedTables!$C$17:$T$17,FeedTables!$C$31:$T$31,,-1) -> Unga 3mm | R5: =_xlfn.XLOOKUP(Q5,FeedPrice[Feed],FeedPrice[Price per kg],"Unknown",0)*O5 -> 388.3216118 | S5: 1492.360277 | T5: =_xlfn.XLOOKUP(O5,LabourFromFeed[Feed Quantity (kg)],LabourFromFeed[No. Labour],"Out of range",-1) -> 1 | U5: =T5*OperatingCosts!$C$9 -> 1200 | V5: 4800 | Z5: Initial morts % | AA5: ='0-StartHere'!C76 -> 0.006 | AC5: Final morts % | AD5: ='0-StartHere'!C81 -> 0.001
A6: 4 | B6: =IF(A6<='S1-Standard'!$C$7, B5*EXP((LN((E5/100)+1))*1),) -> 45.45587774 | C6: =_xlfn.XLOOKUP($B6,FeedTables!$C$42:$T$42,FeedTables!$C$44:$T$44,,-1) -> 4.168455011 | D6: =_xlfn.XLOOKUP($B6,FeedTables!$C$42:$T$42,FeedTables!$C$45:$T$45,,-1) -> 1.283309932 | E6: =_xlfn.XLOOKUP($B6,FeedTables!$C$42:$T$42,FeedTables!$C$46:$T$46,,-1)*_xlfn.XLOOKUP(N5,DensityMultiplier[Biomass kg/m3],DensityMultiplier[Multiplier],,-1) -> 3.248205993 | F6: 1985.644275 | G6: =IF(A6<='S1-Standard'!$C$7,('Growth-Model-1'!G5*EXP($AA$7)),0) -> 6.668061379 | H6: =IF(A6<='S1-Standard'!$C$7,$AD$6*EXP($AD$7*('S1-Standard'!C$7-'Growth-Model-1'!A6)),0) -> 5.677953205e-12 | I6: 46.02378672 | J6: 0.02272779591 | K6: 303.1025828 | L6: 1.945877197 | M6: 90.25920338 | N6: =M6/'S1-Standard'!$C$17 -> 3.342933459 | O6: 3.762414287 | P6: 17.82150925 | Q6: =_xlfn.XLOOKUP(B6,FeedTables!$C$17:$T$17,FeedTables!$C$31:$T$31,,-1) -> Unga 3mm | R6: =_xlfn.XLOOKUP(Q6,FeedPrice[Feed],FeedPrice[Price per kg],"Unknown",0)*O6 -> 399.3768904 | S6: 1891.737167 | T6: =_xlfn.XLOOKUP(O6,LabourFromFeed[Feed Quantity (kg)],LabourFromFeed[No. Labour],"Out of range",-1) -> 1 | U6: =T6*OperatingCosts!$C$9 -> 1200 | V6: 6000 | Z6: First day morts | AA6: ='S1-Standard'!C18*AA5 -> 12.15 | AC6: Final day morts | AD6: ='S1-Standard'!C18*AD5 -> 2.025
A7: 5 | B7: =IF(A7<='S1-Standard'!$C$7, B6*EXP((LN((E6/100)+1))*1),) -> 46.93237828 | C7: =_xlfn.XLOOKUP($B7,FeedTables!$C$42:$T$42,FeedTables!$C$44:$T$44,,-1) -> 4.168455011 | D7: =_xlfn.XLOOKUP($B7,FeedTables!$C$42:$T$42,FeedTables!$C$45:$T$45,,-1) -> 1.283309932 | E7: =_xlfn.XLOOKUP($B7,FeedTables!$C$42:$T$42,FeedTables!$C$46:$T$46,,-1)*_xlfn.XLOOKUP(N6,DensityMultiplier[Biomass kg/m3],DensityMultiplier[Multiplier],,-1) -> 3.248205993 | F7: 1978.976213 | G7: =IF(A7<='S1-Standard'!$C$7,('Growth-Model-1'!G6*EXP($AA$7)),0) -> 5.739253616 | H7: =IF(A7<='S1-Standard'!$C$7,$AD$6*EXP($AD$7*('S1-Standard'!C$7-'Growth-Model-1'!A7)),0) -> 6.935067705e-12 | I7: 51.76304033 | J7: 0.02556199523 | K7: 269.3568218 | L7: 2.215234019 | M7: 92.87806026 | N7: =M7/'S1-Standard'!$C$17 -> 3.439928158 | O7: 3.871580157 | P7: 21.6930894 | Q7: =_xlfn.XLOOKUP(B7,FeedTables!$C$17:$T$17,FeedTables!$C$31:$T$31,,-1) -> Unga 3mm | R7: =_xlfn.XLOOKUP(Q7,FeedPrice[Feed],FeedPrice[Price per kg],"Unknown",0)*O7 -> 410.9647493 | S7: 2302.701916 | T7: =_xlfn.XLOOKUP(O7,LabourFromFeed[Feed Quantity (kg)],LabourFromFeed[No. Labour],"Out of range",-1) -> 1 | U7: =T7*OperatingCosts!$C$9 -> 1200 | V7: 7200 | Z7: Li | AA7: ='0-StartHere'!C78 -> -0.15 | AC7: Lf | AD7: ='0-StartHere'!C83 -> -0.2
A8: 6 | B8: =IF(A8<='S1-Standard'!$C$7, B7*EXP((LN((E7/100)+1))*1),) -> 48.45683861 | C8: =_xlfn.XLOOKUP($B8,FeedTables!$C$42:$T$42,FeedTables!$C$44:$T$44,,-1) -> 4.168455011 | D8: =_xlfn.XLOOKUP($B8,FeedTables!$C$42:$T$42,FeedTables!$C$45:$T$45,,-1) -> 1.283309932 | E8: =_xlfn.XLOOKUP($B8,FeedTables!$C$42:$T$42,FeedTables!$C$46:$T$46,,-1)*_xlfn.XLOOKUP(N7,DensityMultiplier[Biomass kg/m3],DensityMultiplier[Multiplier],,-1) -> 3.248205993 | F8: 1973.23696 | G8: =IF(A8<='S1-Standard'!$C$7,('Growth-Model-1'!G7*EXP($AA$7)),0) -> 4.939821366 | H8: =IF(A8<='S1-Standard'!$C$7,$AD$6*EXP($AD$7*('S1-Standard'!C$7-'Growth-Model-1'!A8)),0) -> 8.470510823e-12 | I8: 56.7028617 | J8: 0.02800141318 | K8: 239.3681267 | L8: 2.454602146 | M8: 95.61682489 | N8: =M8/'S1-Standard'!$C$17 -> 3.541363885 | O8: 3.985744329 | P8: 25.67883373 | Q8: =_xlfn.XLOOKUP(B8,FeedTables!$C$17:$T$17,FeedTables!$C$31:$T$31,,-1) -> Unga 3mm | R8: =_xlfn.XLOOKUP(Q8,FeedPrice[Feed],FeedPrice[Price per kg],"Unknown",0)*O8 -> 423.0831733 | S8: 2725.78509 | T8: =_xlfn.XLOOKUP(O8,LabourFromFeed[Feed Quantity (kg)],LabourFromFeed[No. Labour],"Out of range",-1) -> 1 | U8: =T8*OperatingCosts!$C$9 -> 1200 | V8: 8400 | Z8: Final morts | AA8: =AA6*EXP(AA7*'S1-Standard'!C7) -> 1.444856363e-08
A9: 7 | B9: =IF(A9<='S1-Standard'!$C$7, B8*EXP((LN((E8/100)+1))*1),) -> 50.03081654 | C9: =_xlfn.XLOOKUP($B9,FeedTables!$C$42:$T$42,FeedTables!$C$44:$T$44,,-1) -> 4.168455011 | D9: =_xlfn.XLOOKUP($B9,FeedTables!$C$42:$T$42,FeedTables!$C$45:$T$45,,-1) -> 1.283309932 | E9: =_xlfn.XLOOKUP($B9,FeedTables!$C$42:$T$42,FeedTables!$C$46:$T$46,,-1)*_xlfn.XLOOKUP(N8,DensityMultiplier[Biomass kg/m3],DensityMultiplier[Multiplier],,-1) -> 3.248205993 | F9: 1968.297138 | G9: =IF(A9<='S1-Standard'!$C$7,('Growth-Model-1'!G8*EXP($AA$7)),0) -> 4.251743652 | H9: =IF(A9<='S1-Standard'!$C$7,$AD$6*EXP($AD$7*('S1-Standard'!C$7-'Growth-Model-1'!A9)),0) -> 1.034590528e-11 | I9: 60.95460535 | J9: 0.03010103968 | K9: 212.7182066 | L9: 2.667320352 | M9: 98.47551303 | N9: =M9/'S1-Standard'!$C$17 -> 3.647241223 | O9: 4.104907458 | P9: 29.78374119 | Q9: =_xlfn.XLOOKUP(B9,FeedTables!$C$17:$T$17,FeedTables!$C$31:$T$31,,-1) -> Unga 3mm | R9: =_xlfn.XLOOKUP(Q9,FeedPrice[Feed],FeedPrice[Price per kg],"Unknown",0)*O9 -> 435.7322322 | S9: 3161.517322 | T9: =_xlfn.XLOOKUP(O9,LabourFromFeed[Feed Quantity (kg)],LabourFromFeed[No. Labour],"Out of range",-1) -> 1 | U9: =T9*OperatingCosts!$C$9 -> 1200 | V9: 9600
A10: 8 | B10: =IF(A10<='S1-Standard'!$C$7, B9*EXP((LN((E9/100)+1))*1),) -> 51.65592052 | C10: =_xlfn.XLOOKUP($B10,FeedTables!$C$42:$T$42,FeedTables!$C$44:$T$44,,-1) -> 4.168455011 | D10: =_xlfn.XLOOKUP($B10,FeedTables!$C$42:$T$42,FeedTables!$C$45:$T$45,,-1) -> 1.283309932 | E10: =_xlfn.XLOOKUP($B10,FeedTables!$C$42:$T$42,FeedTables!$C$46:$T$46,,-1)*_xlfn.XLOOKUP(N9,DensityMultiplier[Biomass kg/m3],DensityMultiplier[Multiplier],,-1) -> 3.248205993 | F10: 1964.045395 | G10: =IF(A10<='S1-Standard'!$C$7,('Growth-Model-1'!G9*EXP($AA$7)),0) -> 3.659509675 | H10: =IF(A10<='S1-Standard'!$C$7,$AD$6*EXP($AD$7*('S1-Standard'!C$7-'Growth-Model-1'!A10)),0) -> 1.263651725e-11 | I10: 64.61411502 | J10: 0.03190820495 | K10: 189.0353409 | L10: 2.856355693 | M10: 101.4545728 | N10: =M10/'S1-Standard'!$C$17 -> 3.757576771 | O10: 4.229088225 | P10: 34.01282941 | Q10: =_xlfn.XLOOKUP(B10,FeedTables!$C$17:$T$17,FeedTables!$C$31:$T$31,,-1) -> Unga 3mm | R10: =_xlfn.XLOOKUP(Q10,FeedPrice[Feed],FeedPrice[Price per kg],"Unknown",0)*O10 -> 448.9139089 | S10: 3610.431231 | T10: =_xlfn.XLOOKUP(O10,LabourFromFeed[Feed Quantity (kg)],LabourFromFeed[No. Labour],"Out of range",-1) -> 1 | U10: =T10*OperatingCosts!$C$9 -> 1200 | V10: 10800
A11: 9 | B11: =IF(A11<='S1-Standard'!$C$7, B10*EXP((LN((E10/100)+1))*1),) -> 53.33381123 | C11: =_xlfn.XLOOKUP($B11,FeedTables!$C$42:$T$42,FeedTables!$C$44:$T$44,,-1) -> 4.168455011 | D11: =_xlfn.XLOOKUP($B11,FeedTables!$C$42:$T$42,FeedTables!$C$45:$T$45,,-1) -> 1.283309932 | E11: =_xlfn.XLOOKUP($B11,FeedTables!$C$42:$T$42,FeedTables!$C$46:$T$46,,-1)*_xlfn.XLOOKUP(N10,DensityMultiplier[Biomass kg/m3],DensityMultiplier[Multiplier],,-1) -> 3.248205993 | F11: 1960.385885 | G11: =IF(A11<='S1-Standard'!$C$7,('Growth-Model-1'!G10*EXP($AA$7)),0) -> 3.149769167 | H11: =IF(A11<='S1-Standard'!$C$7,$AD$6*EXP($AD$7*('S1-Standard'!C$7-'Growth-Model-1'!A11)),0) -> 1.543427702e-11 | I11: 67.76388419 | J11: 0.03346364651 | K11: 167.9891942 | L11: 3.024344887 | M11: 104.5548507 | N11: =M11/'S1-Standard'!$C$17 -> 3.872401879 | O11: 4.358321915 | P11: 38.37115133 | Q11: =_xlfn.XLOOKUP(B11,FeedTables!$C$17:$T$17,FeedTables!$C$31:$T$31,,-1) -> Unga 3mm | R11: =_xlfn.XLOOKUP(Q11,FeedPrice[Feed],FeedPrice[Price per kg],"Unknown",0)*O11 -> 462.6319488 | S11: 4073.06318 | T11: =_xlfn.XLOOKUP(O11,LabourFromFeed[Feed Quantity (kg)],LabourFromFeed[No. Labour],"Out of range",-1) -> 1 | U11: =T11*OperatingCosts!$C$9 -> 1200 | V11: 12000
A12: 10 | B12: =IF(A12<='S1-Standard'!$C$7, B11*EXP((LN((E11/100)+1))*1),) -> 55.06620328 | C12: =_xlfn.XLOOKUP($B12,FeedTables!$C$42:$T$42,FeedTables!$C$44:$T$44,,-1) -> 4.168455011 | D12: =_xlfn.XLOOKUP($B12,FeedTables!$C$42:$T$42,FeedTables!$C$45:$T$45,,-1) -> 1.283309932 | E12: =_xlfn.XLOOKUP($B12,FeedTables!$C$42:$T$42,FeedTables!$C$46:$T$46,,-1)*_xlfn.XLOOKUP(N11,DensityMultiplier[Biomass kg/m3],DensityMultiplier[Multiplier],,-1) -> 3.248205993 | F12: 1957.236116 | G12: =IF(A12<='S1-Standard'!$C$7,('Growth-Model-1'!G11*EXP($AA$7)),0) -> 2.711031446 | H12: =IF(A12<='S1-Standard'!$C$7,$AD$6*EXP($AD$7*('S1-Standard'!C$7-'Growth-Model-1'!A12)),0) -> 1.885146852e-11 | I12: 70.47491564 | J12: 0.03480242747 | K12: 149.2862087 | L12: 3.173631096 | M12: 107.7775618 | N12: =M12/'S1-Standard'!$C$17 -> 3.991761549 | O12: 4.492659177 | P12: 42.86381051 | Q12: =_xlfn.XLOOKUP(B12,FeedTables!$C$17:$T$17,FeedTables!$C$31:$T$31,,-1) -> Unga 3mm | R12: =_xlfn.XLOOKUP(Q12,FeedPrice[Feed],FeedPrice[Price per kg],"Unknown",0)*O12 -> 476.8917283 | S12: 4549.954908 | T12: =_xlfn.XLOOKUP(O12,LabourFromFeed[Feed Quantity (kg)],LabourFromFeed[No. Labour],"Out of range",-1) -> 1 | U12: =T12*OperatingCosts!$C$9 -> 1200 | V12: 13200
A13: 11 | B13: =IF(A13<='S1-Standard'!$C$7, B12*EXP((LN((E12/100)+1))*1),) -> 56.854867 | C13: =_xlfn.XLOOKUP($B13,FeedTables!$C$42:$T$42,FeedTables!$C$44:$T$44,,-1) -> 4.168455011 | D13: =_xlfn.XLOOKUP($B13,FeedTables!$C$42:$T$42,FeedTables!$C$45:$T$45,,-1) -> 1.283309932 | E13: =_xlfn.XLOOKUP($B13,FeedTables!$C$42:$T$42,FeedTables!$C$46:$T$46,,-1)*_xlfn.XLOOKUP(N12,DensityMultiplier[Biomass kg/m3],DensityMultiplier[Multiplier],,-1) -> 3.248205993 | F13: 1954.525084 | G13: =IF(A13<='S1-Standard'!$C$7,('Growth-Model-1'!G12*EXP($AA$7)),0) -> 2.33340639 | H13: =IF(A13<='S1-Standard'!$C$7,$AD$6*EXP($AD$7*('S1-Standard'!C$7-'Growth-Model-1'!A13)),0) -> 2.302523565e-11 | I13: 72.80832203 | J13: 0.03595472693 | K13: 132.6655099 | L13: 3.306296606 | M13: 111.1242637 | N13: =M13/'S1-Standard'!$C$17 -> 4.115713471 | O13: 4.63216494 | P13: 47.49597545 | Q13: =_xlfn.XLOOKUP(B13,FeedTables!$C$17:$T$17,FeedTables!$C$31:$T$31,,-1) -> Unga 3mm | R13: =_xlfn.XLOOKUP(Q13,FeedPrice[Feed],FeedPrice[Price per kg],"Unknown",0)*O13 -> 491.7001394 | S13: 5041.655047 | T13: =_xlfn.XLOOKUP(O13,LabourFromFeed[Feed Quantity (kg)],LabourFromFeed[No. Labour],"Out of range",-1) -> 1 | U13: =T13*OperatingCosts!$C$9 -> 1200 | V13: 14400
A14: 12 | B14: =IF(A14<='S1-Standard'!$C$7, B13*EXP((LN((E13/100)+1))*1),) -> 58.7016302 | C14: =_xlfn.XLOOKUP($B14,FeedTables!$C$42:$T$42,FeedTables!$C$44:$T$44,,-1) -> 4.168455011 | D14: =_xlfn.XLOOKUP($B14,FeedTables!$C$42:$T$42,FeedTables!$C$45:$T$45,,-1) -> 1.283309932 | E14: =_xlfn.XLOOKUP($B14,FeedTables!$C$42:$T$42,FeedTables!$C$46:$T$46,,-1)*_xlfn.XLOOKUP(N13,DensityMultiplier[Biomass kg/m3],DensityMultiplier[Multiplier],,-1) -> 3.248205993 | F14: 1952.191678 | G14: =IF(A14<='S1-Standard'!$C$7,('Growth-Model-1'!G13*EXP($AA$7)),0) -> 2.008381492 | H14: =IF(A14<='S1-Standard'!$C$7,$AD$6*EXP($AD$7*('S1-Standard'!C$7-'Growth-Model-1'!A14)),0) -> 2.812308633e-11 | I14: 74.81670352 | J14: 0.03694652026 | K14: 117.8952676 | L14: 3.424191874 | M14: 114.596834 | N14: =M14/'S1-Standard'!$C$17 -> 4.244327183 | O14: 4.776917468 | P14: 52.27289291 | Q14: =_xlfn.XLOOKUP(B14,FeedTables!$C$17:$T$17,FeedTables!$C$31:$T$31,,-1) -> Unga 3mm | R14: =_xlfn.XLOOKUP(Q14,FeedPrice[Feed],FeedPrice[Price per kg],"Unknown",0)*O14 -> 507.06549 | S14: 5548.720537 | T14: =_xlfn.XLOOKUP(O14,LabourFromFeed[Feed Quantity (kg)],LabourFromFeed[No. Labour],"Out of range",-1) -> 1 | U14: =T14*OperatingCosts!$C$9 -> 1200 | V14: 15600
A15: 13 | B15: =IF(A15<='S1-Standard'!$C$7, B14*EXP((LN((E14/100)+1))*1),) -> 60.60838007 | C15: =_xlfn.XLOOKUP($B15,FeedTables!$C$42:$T$42,FeedTables!$C$44:$T$44,,-1) -> 4.168455011 | D15: =_xlfn.XLOOKUP($B15,FeedTables!$C$42:$T$42,FeedTables!$C$45:$T$45,,-1) -> 1.283309932 | E15: =_xlfn.XLOOKUP($B15,FeedTables!$C$42:$T$42,FeedTables!$C$46:$T$46,,-1)*_xlfn.XLOOKUP(N14,DensityMultiplier[Biomass kg/m3],DensityMultiplier[Multiplier],,-1) -> 3.248205993 | F15: 1950.183296 | G15: =IF(A15<='S1-Standard'!$C$7,('Growth-Model-1'!G14*EXP($AA$7)),0) -> 1.72862997 | H15: =IF(A15<='S1-Standard'!$C$7,$AD$6*EXP($AD$7*('S1-Standard'!C$7-'Growth-Model-1'!A15)),0) -> 3.434961521e-11 | I15: 76.54533349 | J15: 0.03780016469 | K15: 104.7694622 | L15: 3.528961336 | M15: 118.1974504 | N15: =M15/'S1-Standard'!$C$17 -> 4.377683349 | O15: 4.927007546 | P15: 57.19990046 | Q15: =_xlfn.XLOOKUP(B15,FeedTables!$C$17:$T$17,FeedTables!$C$31:$T$31,,-1) -> Unga 3mm | R15: =_xlfn.XLOOKUP(Q15,FeedPrice[Feed],FeedPrice[Price per kg],"Unknown",0)*O15 -> 522.9974167 | S15: 6071.717954 | T15: =_xlfn.XLOOKUP(O15,LabourFromFeed[Feed Quantity (kg)],LabourFromFeed[No. Labour],"Out of range",-1) -> 1 | U15: =T15*OperatingCosts!$C$9 -> 1200 | V15: 16800
A16: 14 | B16: =IF(A16<='S1-Standard'!$C$7, B15*EXP((LN((E15/100)+1))*1),) -> 62.5770651 | C16: =_xlfn.XLOOKUP($B16,FeedTables!$C$42:$T$42,FeedTables!$C$44:$T$44,,-1) -> 4.168455011 | D16: =_xlfn.XLOOKUP($B16,FeedTables!$C$42:$T$42,FeedTables!$C$45:$T$45,,-1) -> 1.283309932 | E16: =_xlfn.XLOOKUP($B16,FeedTables!$C$42:$T$42,FeedTables!$C$46:$T$46,,-1)*_xlfn.XLOOKUP(N15,DensityMultiplier[Biomass kg/m3],DensityMultiplier[Multiplier],,-1) -> 3.248205993 | F16: 1948.454667 | G16: =IF(A16<='S1-Standard'!$C$7,('Growth-Model-1'!G15*EXP($AA$7)),0) -> 1.487845603 | H16: =IF(A16<='S1-Standard'!$C$7,$AD$6*EXP($AD$7*('S1-Standard'!C$7-'Growth-Model-1'!A16)),0) -> 4.195471476e-11 | I16: 78.03317909 | J16: 0.03853490325 | K16: 93.10501118 | L16: 3.622066347 | M16: 121.9285745 | N16: =M16/'S1-Standard'!$C$17 -> 4.51587313 | O16: 5.082537775 | P16: 62.28243823 | Q16: =_xlfn.XLOOKUP(B16,FeedTables!$C$17:$T$17,FeedTables!$C$31:$T$31,,-1) -> Unga 3mm | R16: =_xlfn.XLOOKUP(Q16,FeedPrice[Feed],FeedPrice[Price per kg],"Unknown",0)*O16 -> 539.5068105 | S16: 6611.224764 | T16: =_xlfn.XLOOKUP(O16,LabourFromFeed[Feed Quantity (kg)],LabourFromFeed[No. Labour],"Out of range",-1) -> 1 | U16: =T16*OperatingCosts!$C$9 -> 1200 | V16: 18000
A17: 15 | B17: =IF(A17<='S1-Standard'!$C$7, B16*EXP((LN((E16/100)+1))*1),) -> 64.60969708 | C17: =_xlfn.XLOOKUP($B17,FeedTables!$C$42:$T$42,FeedTables!$C$44:$T$44,,-1) -> 4.168455011 | D17: =_xlfn.XLOOKUP($B17,FeedTables!$C$42:$T$42,FeedTables!$C$45:$T$45,,-1) -> 1.283309932 | E17: =_xlfn.XLOOKUP($B17,FeedTables!$C$42:$T$42,FeedTables!$C$46:$T$46,,-1)*_xlfn.XLOOKUP(N16,DensityMultiplier[Biomass kg/m3],DensityMultiplier[Multiplier],,-1) -> 3.248205993 | F17: 1946.966821 | G17: =IF(A17<='S1-Standard'!$C$7,('Growth-Model-1'!G16*EXP($AA$7)),0) -> 1.280600578 | H17: =IF(A17<='S1-Standard'!$C$7,$AD$6*EXP($AD$7*('S1-Standard'!C$7-'Growth-Model-1'!A17)),0) -> 5.124360432e-11 | I17: 79.31377967 | J17: 0.0391672986 | K17: 82.73921545 | L17: 3.704805563 | M17: 125.7929365 | N17: =M17/'S1-Standard'!$C$17 -> 4.658997649 | O17: 5.243621966 | P17: 67.5260602 | Q17: =_xlfn.XLOOKUP(B17,FeedTables!$C$17:$T$17,FeedTables!$C$31:$T$31,,-1) -> Unga 3mm | R17: =_xlfn.XLOOKUP(Q17,FeedPrice[Feed],FeedPrice[Price per kg],"Unknown",0)*O17 -> 556.6057525 | S17: 7167.830517 | T17: =_xlfn.XLOOKUP(O17,LabourFromFeed[Feed Quantity (kg)],LabourFromFeed[No. Labour],"Out of range",-1) -> 1 | U17: =T17*OperatingCosts!$C$9 -> 1200 | V17: 19200
A18: 16 | B18: =IF(A18<='S1-Standard'!$C$7, B17*EXP((LN((E17/100)+1))*1),) -> 66.70835313 | C18: =_xlfn.XLOOKUP($B18,FeedTables!$C$42:$T$42,FeedTables!$C$44:$T$44,,-1) -> 4.168455011 | D18: =_xlfn.XLOOKUP($B18,FeedTables!$C$42:$T$42,FeedTables!$C$45:$T$45,,-1) -> 1.283309932 | E18: =_xlfn.XLOOKUP($B18,FeedTables!$C$42:$T$42,FeedTables!$C$46:$T$46,,-1)*_xlfn.XLOOKUP(N17,DensityMultiplier[Biomass kg/m3],DensityMultiplier[Multiplier],,-1) -> 3.248205993 | F18: 1945.68622 | G18: =IF(A18<='S1-Standard'!$C$7,('Growth-Model-1'!G17*EXP($AA$7)),0) -> 1.102223132 | H18: =IF(A18<='S1-Standard'!$C$7,$AD$6*EXP($AD$7*('S1-Standard'!C$7-'Growth-Model-1'!A18)),0) -> 6.258907966e-11 | I18: 80.4160028 | J18: 0.03971160632 | K18: 73.52748995 | L18: 3.778333053 | M18: 129.7935235 | N18: =M18/'S1-Standard'!$C$17 -> 4.807167536 | O18: 5.410384634 | P18: 72.93644483 | Q18: =_xlfn.XLOOKUP(B18,FeedTables!$C$17:$T$17,FeedTables!$C$31:$T$31,,-1) -> Unga 3mm | R18: =_xlfn.XLOOKUP(Q18,FeedPrice[Feed],FeedPrice[Price per kg],"Unknown",0)*O18 -> 574.3074595 | S18: 7742.137976 | T18: =_xlfn.XLOOKUP(O18,LabourFromFeed[Feed Quantity (kg)],LabourFromFeed[No. Labour],"Out of range",-1) -> 1 | U18: =T18*OperatingCosts!$C$9 -> 1200 | V18: 20400
A19: 17 | B19: =IF(A19<='S1-Standard'!$C$7, B18*EXP((LN((E18/100)+1))*1),) -> 68.87517786 | C19: =_xlfn.XLOOKUP($B19,FeedTables!$C$42:$T$42,FeedTables!$C$44:$T$44,,-1) -> 4.168455011 | D19: =_xlfn.XLOOKUP($B19,FeedTables!$C$42:$T$42,FeedTables!$C$45:$T$45,,-1) -> 1.283309932 | E19: =_xlfn.XLOOKUP($B19,FeedTables!$C$42:$T$42,FeedTables!$C$46:$T$46,,-1)*_xlfn.XLOOKUP(N18,DensityMultiplier[Biomass kg/m3],DensityMultiplier[Multiplier],,-1) -> 3.248205993 | F19: 1944.583997 | G19: =IF(A19<='S1-Standard'!$C$7,('Growth-Model-1'!G18*EXP($AA$7)),0) -> 0.9486922419 | H19: =IF(A19<='S1-Standard'!$C$7,$AD$6*EXP($AD$7*('S1-Standard'!C$7-'Growth-Model-1'!A19)),0) -> 7.644647452e-11 | I19: 81.36469504 | J19: 0.04018009632 | K19: 65.3413469 | L19: 3.843674399 | M19: 133.9335687 | N19: =M19/'S1-Standard'!$C$17 -> 4.960502543 | O19: 5.582960555 | P19: 78.51940539 | Q19: =_xlfn.XLOOKUP(B19,FeedTables!$C$17:$T$17,FeedTables!$C$31:$T$31,,-1) -> Unga 3mm | R19: =_xlfn.XLOOKUP(Q19,FeedPrice[Feed],FeedPrice[Price per kg],"Unknown",0)*O19 -> 592.6262382 | S19: 8334.764215 | T19: =_xlfn.XLOOKUP(O19,LabourFromFeed[Feed Quantity (kg)],LabourFromFeed[No. Labour],"Out of range",-1) -> 1 | U19: =T19*OperatingCosts!$C$9 -> 1200 | V19: 21600
A20: 18 | B20: =IF(A20<='S1-Standard'!$C$7, B19*EXP((LN((E19/100)+1))*1),) -> 71.11238551 | C20: =_xlfn.XLOOKUP($B20,FeedTables!$C$42:$T$42,FeedTables!$C$44:$T$44,,-1) -> 3.541685329 | D20: =_xlfn.XLOOKUP($B20,FeedTables!$C$42:$T$42,FeedTables!$C$45:$T$45,,-1) -> 1.353261905 | E20: =_xlfn.XLOOKUP($B20,FeedTables!$C$42:$T$42,FeedTables!$C$46:$T$46,,-1)*_xlfn.XLOOKUP(N19,DensityMultiplier[Biomass kg/m3],DensityMultiplier[Multiplier],,-1) -> 2.617146995 | F20: 1943.635305 | G20: =IF(A20<='S1-Standard'!$C$7,('Growth-Model-1'!G19*EXP($AA$7)),0) -> 0.8165469798 | H20: =IF(A20<='S1-Standard'!$C$7,$AD$6*EXP($AD$7*('S1-Standard'!C$7-'Growth-Model-1'!A20)),0) -> 9.337193483e-11 | I20: 82.18124202 | J20: 0.04058332939 | K20: 58.06660362 | L20: 3.901741003 | M20: 138.2165431 | N20: =M20/'S1-Standard'!$C$17 -> 5.119131226 | O20: 4.895195029 | P20: 83.41460042 | Q20: =_xlfn.XLOOKUP(B20,FeedTables!$C$17:$T$17,FeedTables!$C$31:$T$31,,-1) -> Unga 3mm | R20: =_xlfn.XLOOKUP(Q20,FeedPrice[Feed],FeedPrice[Price per kg],"Unknown",0)*O20 -> 519.6205467 | S20: 8854.384761 | T20: =_xlfn.XLOOKUP(O20,LabourFromFeed[Feed Quantity (kg)],LabourFromFeed[No. Labour],"Out of range",-1) -> 1 | U20: =T20*OperatingCosts!$C$9 -> 1200 | V20: 22800
A21: 19 | B21: =IF(A21<='S1-Standard'!$C$7, B20*EXP((LN((E20/100)+1))*1),) -> 72.97350117 | C21: =_xlfn.XLOOKUP($B21,FeedTables!$C$42:$T$42,FeedTables!$C$44:$T$44,,-1) -> 3.541685329 | D21: =_xlfn.XLOOKUP($B21,FeedTables!$C$42:$T$42,FeedTables!$C$45:$T$45,,-1) -> 1.353261905 | E21: =_xlfn.XLOOKUP($B21,FeedTables!$C$42:$T$42,FeedTables!$C$46:$T$46,,-1)*_xlfn.XLOOKUP(N20,DensityMultiplier[Biomass kg/m3],DensityMultiplier[Multiplier],,-1) -> 2.617146995 | F21: 1942.818758 | G21: =IF(A21<='S1-Standard'!$C$7,('Growth-Model-1'!G20*EXP($AA$7)),0) -> 0.7028084986 | H21: =IF(A21<='S1-Standard'!$C$7,$AD$6*EXP($AD$7*('S1-Standard'!C$7-'Growth-Model-1'!A21)),0) -> 1.140447387e-10 | I21: 82.88405052 | J21: 0.04093039532 | K21: 51.28639681 | L21: 3.9530274 | M21: 141.7742869 | N21: =M21/'S1-Standard'!$C$17 -> 5.250899515 | O21: 5.02119912 | P21: 88.43579954 | Q21: =_xlfn.XLOOKUP(B21,FeedTables!$C$17:$T$17,FeedTables!$C$31:$T$31,,-1) -> Unga 3mm | R21: =_xlfn.XLOOKUP(Q21,FeedPrice[Feed],FeedPrice[Price per kg],"Unknown",0)*O21 -> 532.9957675 | S21: 9387.380529 | T21: =_xlfn.XLOOKUP(O21,LabourFromFeed[Feed Quantity (kg)],LabourFromFeed[No. Labour],"Out of range",-1) -> 1 | U21: =T21*OperatingCosts!$C$9 -> 1200 | V21: 24000
A22: 20 | B22: =IF(A22<='S1-Standard'!$C$7, B21*EXP((LN((E21/100)+1))*1),) -> 74.88332496 | C22: =_xlfn.XLOOKUP($B22,FeedTables!$C$42:$T$42,FeedTables!$C$44:$T$44,,-1) -> 3.541685329 | D22: =_xlfn.XLOOKUP($B22,FeedTables!$C$42:$T$42,FeedTables!$C$45:$T$45,,-1) -> 1.353261905 | E22: =_xlfn.XLOOKUP($B22,FeedTables!$C$42:$T$42,FeedTables!$C$46:$T$46,,-1)*_xlfn.XLOOKUP(N21,DensityMultiplier[Biomass kg/m3],DensityMultiplier[Multiplier],,-1) -> 2.617146995 | F22: 1942.115949 | G22: =IF(A22<='S1-Standard'!$C$7,('Growth-Model-1'!G21*EXP($AA$7)),0) -> 0.6049128807 | H22: =IF(A22<='S1-Standard'!$C$7,$AD$6*EXP($AD$7*('S1-Standard'!C$7-'Growth-Model-1'!A22)),0) -> 1.392945584e-10 | I22: 83.4889634 | J22: 0.04122911773 | K22: 45.29788783 | L22: 3.998325288 | M22: 145.4320998 | N22: =M22/'S1-Standard'!$C$17 -> 5.386374065 | O22: 5.150747341 | P22: 93.58654688 | Q22: =_xlfn.XLOOKUP(B22,FeedTables!$C$17:$T$17,FeedTables!$C$31:$T$31,,-1) -> Unga 3mm | R22: =_xlfn.XLOOKUP(Q22,FeedPrice[Feed],FeedPrice[Price per kg],"Unknown",0)*O22 -> 546.7471946 | S22: 9934.127723 | T22: =_xlfn.XLOOKUP(O22,LabourFromFeed[Feed Quantity (kg)],LabourFromFeed[No. Labour],"Out of range",-1) -> 1 | U22: =T22*OperatingCosts!$C$9 -> 1200 | V22: 25200
A23: 21 | B23: =IF(A23<='S1-Standard'!$C$7, B22*EXP((LN((E22/100)+1))*1),) -> 76.84313165 | C23: =_xlfn.XLOOKUP($B23,FeedTables!$C$42:$T$42,FeedTables!$C$44:$T$44,,-1) -> 3.541685329 | D23: =_xlfn.XLOOKUP($B23,FeedTables!$C$42:$T$42,FeedTables!$C$45:$T$45,,-1) -> 1.353261905 | E23: =_xlfn.XLOOKUP($B23,FeedTables!$C$42:$T$42,FeedTables!$C$46:$T$46,,-1)*_xlfn.XLOOKUP(N22,DensityMultiplier[Biomass kg/m3],DensityMultiplier[Multiplier],,-1) -> 2.617146995 | F23: 1941.511037 | G23: =IF(A23<='S1-Standard'!$C$7,('Growth-Model-1'!G22*EXP($AA$7)),0) -> 0.5206533414 | H23: =IF(A23<='S1-Standard'!$C$7,$AD$6*EXP($AD$7*('S1-Standard'!C$7-'Growth-Model-1'!A23)),0) -> 1.701347579e-10 | I23: 84.00961675 | J23: 0.04148623049 | K23: 40.00863327 | L23: 4.038333921 | M23: 149.1917882 | N23: =M23/'S1-Standard'!$C$17 -> 5.525621785 | O23: 5.283903674 | P23: 98.87045055 | Q23: =_xlfn.XLOOKUP(B23,FeedTables!$C$17:$T$17,FeedTables!$C$31:$T$31,,-1) -> Unga 3mm | R23: =_xlfn.XLOOKUP(Q23,FeedPrice[Feed],FeedPrice[Price per kg],"Unknown",0)*O23 -> 560.8816195 | S23: 10495.00934 | T23: =_xlfn.XLOOKUP(O23,LabourFromFeed[Feed Quantity (kg)],LabourFromFeed[No. Labour],"Out of range",-1) -> 1 | U23: =T23*OperatingCosts!$C$9 -> 1200 | V23: 26400
A24: 22 | B24: =IF(A24<='S1-Standard'!$C$7, B23*EXP((LN((E23/100)+1))*1),) -> 78.85422936 | C24: =_xlfn.XLOOKUP($B24,FeedTables!$C$42:$T$42,FeedTables!$C$44:$T$44,,-1) -> 3.541685329 | D24: =_xlfn.XLOOKUP($B24,FeedTables!$C$42:$T$42,FeedTables!$C$45:$T$45,,-1) -> 1.353261905 | E24: =_xlfn.XLOOKUP($B24,FeedTables!$C$42:$T$42,FeedTables!$C$46:$T$46,,-1)*_xlfn.XLOOKUP(N23,DensityMultiplier[Biomass kg/m3],DensityMultiplier[Multiplier],,-1) -> 2.617146995 | F24: 1940.990383 | G24: =IF(A24<='S1-Standard'!$C$7,('Growth-Model-1'!G23*EXP($AA$7)),0) -> 0.4481304839 | H24: =IF(A24<='S1-Standard'!$C$7,$AD$6*EXP($AD$7*('S1-Standard'!C$7-'Growth-Model-1'!A24)),0) -> 2.078030625e-10 | I24: 84.45774723 | J24: 0.0417075295 | K24: 35.33698398 | L24: 4.073670905 | M24: 153.0553009 | N24: =M24/'S1-Standard'!$C$17 -> 5.668714847 | O24: 5.420737136 | P24: 104.2911877 | Q24: =_xlfn.XLOOKUP(B24,FeedTables!$C$17:$T$17,FeedTables!$C$31:$T$31,,-1) -> Unga 3mm | R24: =_xlfn.XLOOKUP(Q24,FeedPrice[Feed],FeedPrice[Price per kg],"Unknown",0)*O24 -> 575.4063683 | S24: 11070.41571 | T24: =_xlfn.XLOOKUP(O24,LabourFromFeed[Feed Quantity (kg)],LabourFromFeed[No. Labour],"Out of range",-1) -> 1 | U24: =T24*OperatingCosts!$C$9 -> 1200 | V24: 27600
A25: 23 | B25: =IF(A25<='S1-Standard'!$C$7, B24*EXP((LN((E24/100)+1))*1),) -> 80.91796046 | C25: =_xlfn.XLOOKUP($B25,FeedTables!$C$42:$T$42,FeedTables!$C$44:$T$44,,-1) -> 3.541685329 | D25: =_xlfn.XLOOKUP($B25,FeedTables!$C$42:$T$42,FeedTables!$C$45:$T$45,,-1) -> 1.353261905 | E25: =_xlfn.XLOOKUP($B25,FeedTables!$C$42:$T$42,FeedTables!$C$46:$T$46,,-1)*_xlfn.XLOOKUP(N24,DensityMultiplier[Biomass kg/m3],DensityMultiplier[Multiplier],,-1) -> 2.617146995 | F25: 1940.542253 | G25: =IF(A25<='S1-Standard'!$C$7,('Growth-Model-1'!G24*EXP($AA$7)),0) -> 0.385709482 | H25: =IF(A25<='S1-Standard'!$C$7,$AD$6*EXP($AD$7*('S1-Standard'!C$7-'Growth-Model-1'!A25)),0) -> 2.538112337e-10 | I25: 84.84345671 | J25: 0.04189800331 | K25: 31.21082463 | L25: 4.10488173 | M25: 157.0247213 | N25: =M25/'S1-Standard'!$C$17 -> 5.815730418 | O25: 5.561321516 | P25: 109.8525092 | Q25: =_xlfn.XLOOKUP(B25,FeedTables!$C$17:$T$17,FeedTables!$C$31:$T$31,,-1) -> Unga 3mm | R25: =_xlfn.XLOOKUP(Q25,FeedPrice[Feed],FeedPrice[Price per kg],"Unknown",0)*O25 -> 590.3292738 | S25: 11660.74498 | T25: =_xlfn.XLOOKUP(O25,LabourFromFeed[Feed Quantity (kg)],LabourFromFeed[No. Labour],"Out of range",-1) -> 1 | U25: =T25*OperatingCosts!$C$9 -> 1200 | V25: 28800
A26: 24 | B26: =IF(A26<='S1-Standard'!$C$7, B25*EXP((LN((E25/100)+1))*1),) -> 83.03570243 | C26: =_xlfn.XLOOKUP($B26,FeedTables!$C$42:$T$42,FeedTables!$C$44:$T$44,,-1) -> 3.541685329 | D26: =_xlfn.XLOOKUP($B26,FeedTables!$C$42:$T$42,FeedTables!$C$45:$T$45,,-1) -> 1.353261905 | E26: =_xlfn.XLOOKUP($B26,FeedTables!$C$42:$T$42,FeedTables!$C$46:$T$46,,-1)*_xlfn.XLOOKUP(N25,DensityMultiplier[Biomass kg/m3],DensityMultiplier[Multiplier],,-1) -> 2.617146995 | F26: 1940.156543 | G26: =IF(A26<='S1-Standard'!$C$7,('Growth-Model-1'!G25*EXP($AA$7)),0) -> 0.3319832277 | H26: =IF(A26<='S1-Standard'!$C$7,$AD$6*EXP($AD$7*('S1-Standard'!C$7-'Growth-Model-1'!A26)),0) -> 3.100057409e-10 | I26: 85.17543994 | J26: 0.04206194565 | K26: 27.56646054 | L26: 4.13244819 | M26: 161.1022614 | N26: =M26/'S1-Standard'!$C$17 -> 5.966750422 | O26: 5.705735156 | P26: 115.5582444 | Q26: =_xlfn.XLOOKUP(B26,FeedTables!$C$17:$T$17,FeedTables!$C$31:$T$31,,-1) -> Unga 3mm | R26: =_xlfn.XLOOKUP(Q26,FeedPrice[Feed],FeedPrice[Price per kg],"Unknown",0)*O26 -> 605.6586517 | S26: 12266.40364 | T26: =_xlfn.XLOOKUP(O26,LabourFromFeed[Feed Quantity (kg)],LabourFromFeed[No. Labour],"Out of range",-1) -> 1 | U26: =T26*OperatingCosts!$C$9 -> 1200 | V26: 30000
A27: 25 | B27: =IF(A27<='S1-Standard'!$C$7, B26*EXP((LN((E26/100)+1))*1),) -> 85.20886882 | C27: =_xlfn.XLOOKUP($B27,FeedTables!$C$42:$T$42,FeedTables!$C$44:$T$44,,-1) -> 3.541685329 | D27: =_xlfn.XLOOKUP($B27,FeedTables!$C$42:$T$42,FeedTables!$C$45:$T$45,,-1) -> 1.353261905 | E27: =_xlfn.XLOOKUP($B27,FeedTables!$C$42:$T$42,FeedTables!$C$46:$T$46,,-1)*_xlfn.XLOOKUP(N26,DensityMultiplier[Biomass kg/m3],DensityMultiplier[Multiplier],,-1) -> 2.617146995 | F27: 1939.82456 | G27: =IF(A27<='S1-Standard'!$C$7,('Growth-Model-1'!G26*EXP($AA$7)),0) -> 0.2857406122 | H27: =IF(A27<='S1-Standard'!$C$7,$AD$6*EXP($AD$7*('S1-Standard'!C$7-'Growth-Model-1'!A27)),0) -> 3.78641867e-10 | I27: 85.46118055 | J27: 0.04220305212 | K27: 24.34763437 | L27: 4.156795825 | M27: 165.2902565 | N27: =M27/'S1-Standard'!$C$17 -> 6.121861351 | O27: 5.854060764 | P27: 121.4123051 | Q27: =_xlfn.XLOOKUP(B27,FeedTables!$C$17:$T$17,FeedTables!$C$31:$T$31,,-1) -> Unga 3mm | R27: =_xlfn.XLOOKUP(Q27,FeedPrice[Feed],FeedPrice[Price per kg],"Unknown",0)*O27 -> 621.4032814 | S27: 12887.80692 | T27: =_xlfn.XLOOKUP(O27,LabourFromFeed[Feed Quantity (kg)],LabourFromFeed[No. Labour],"Out of range",-1) -> 1 | U27: =T27*OperatingCosts!$C$9 -> 1200 | V27: 31200
A28: 26 | B28: =IF(A28<='S1-Standard'!$C$7, B27*EXP((LN((E27/100)+1))*1),) -> 87.43891017 | C28: =_xlfn.XLOOKUP($B28,FeedTables!$C$42:$T$42,FeedTables!$C$44:$T$44,,-1) -> 3.541685329 | D28: =_xlfn.XLOOKUP($B28,FeedTables!$C$42:$T$42,FeedTables!$C$45:$T$45,,-1) -> 1.353261905 | E28: =_xlfn.XLOOKUP($B28,FeedTables!$C$42:$T$42,FeedTables!$C$46:$T$46,,-1)*_xlfn.XLOOKUP(N27,DensityMultiplier[Biomass kg/m3],DensityMultiplier[Multiplier],,-1) -> 2.617146995 | F28: 1939.538819 | G28: =IF(A28<='S1-Standard'!$C$7,('Growth-Model-1'!G27*EXP($AA$7)),0) -> 0.2459392241 | H28: =IF(A28<='S1-Standard'!$C$7,$AD$6*EXP($AD$7*('S1-Standard'!C$7-'Growth-Model-1'!A28)),0) -> 4.624742208e-10 | I28: 85.70711978 | J28: 0.04232450359 | K28: 21.50465776 | L28: 4.178300482 | M28: 169.5911606 | N28: =M28/'S1-Standard'!$C$17 -> 6.281154097 | O28: 6.006385254 | P28: 127.4186904 | Q28: =_xlfn.XLOOKUP(B28,FeedTables!$C$17:$T$17,FeedTables!$C$31:$T$31,,-1) -> Unga 3mm | R28: =_xlfn.XLOOKUP(Q28,FeedPrice[Feed],FeedPrice[Price per kg],"Unknown",0)*O28 -> 637.572389 | S28: 13525.37931 | T28: =_xlfn.XLOOKUP(O28,LabourFromFeed[Feed Quantity (kg)],LabourFromFeed[No. Labour],"Out of range",-1) -> 1 | U28: =T28*OperatingCosts!$C$9 -> 1200 | V28: 32400
A29: 27 | B29: =IF(A29<='S1-Standard'!$C$7, B28*EXP((LN((E28/100)+1))*1),) -> 89.72731498 | C29: =_xlfn.XLOOKUP($B29,FeedTables!$C$42:$T$42,FeedTables!$C$44:$T$44,,-1) -> 3.541685329 | D29: =_xlfn.XLOOKUP($B29,FeedTables!$C$42:$T$42,FeedTables!$C$45:$T$45,,-1) -> 1.353261905 | E29: =_xlfn.XLOOKUP($B29,FeedTables!$C$42:$T$42,FeedTables!$C$46:$T$46,,-1)*_xlfn.XLOOKUP(N28,DensityMultiplier[Biomass kg/m3],DensityMultiplier[Multiplier],,-1) -> 2.617146995 | F29: 1939.29288 | G29: =IF(A29<='S1-Standard'!$C$7,('Growth-Model-1'!G28*EXP($AA$7)),0) -> 0.2116818519 | H29: =IF(A29<='S1-Standard'!$C$7,$AD$6*EXP($AD$7*('S1-Standard'!C$7-'Growth-Model-1'!A29)),0) -> 5.648672888e-10 | I29: 85.91880163 | J29: 0.04242903784 | K29: 18.99364425 | L29: 4.197294127 | M29: 174.0075431 | N29: =M29/'S1-Standard'!$C$17 -> 6.444723819 | O29: 6.162799625 | P29: 133.58149 | Q29: =_xlfn.XLOOKUP(B29,FeedTables!$C$17:$T$17,FeedTables!$C$31:$T$31,,-1) -> Unga 3mm | R29: =_xlfn.XLOOKUP(Q29,FeedPrice[Feed],FeedPrice[Price per kg],"Unknown",0)*O29 -> 654.1756337 | S29: 14179.55494 | T29: =_xlfn.XLOOKUP(O29,LabourFromFeed[Feed Quantity (kg)],LabourFromFeed[No. Labour],"Out of range",-1) -> 1 | U29: =T29*OperatingCosts!$C$9 -> 1200 | V29: 33600
A30: 28 | B30: =IF(A30<='S1-Standard'!$C$7, B29*EXP((LN((E29/100)+1))*1),) -> 92.07561071 | C30: =_xlfn.XLOOKUP($B30,FeedTables!$C$42:$T$42,FeedTables!$C$44:$T$44,,-1) -> 3.541685329 | D30: =_xlfn.XLOOKUP($B30,FeedTables!$C$42:$T$42,FeedTables!$C$45:$T$45,,-1) -> 1.353261905 | E30: =_xlfn.XLOOKUP($B30,FeedTables!$C$42:$T$42,FeedTables!$C$46:$T$46,,-1)*_xlfn.XLOOKUP(N29,DensityMultiplier[Biomass kg/m3],DensityMultiplier[Multiplier],,-1) -> 2.617146995 | F30: 1939.081198 | G30: =IF(A30<='S1-Standard'!$C$7,('Growth-Model-1'!G29*EXP($AA$7)),0) -> 0.1821962584 | H30: =IF(A30<='S1-Standard'!$C$7,$AD$6*EXP($AD$7*('S1-Standard'!C$7-'Growth-Model-1'!A30)),0) -> 6.899304645e-10 | I30: 86.10099789 | J30: 0.0425190113 | K30: 16.77583182 | L30: 4.214069958 | M30: 178.5420856 | N30: =M30/'S1-Standard'!$C$17 -> 6.612669835 | O30: 6.32339885 | P30: 139.9048889 | Q30: =_xlfn.XLOOKUP(B30,FeedTables!$C$17:$T$17,FeedTables!$C$31:$T$31,,-1) -> Unga 3mm | R30: =_xlfn.XLOOKUP(Q30,FeedPrice[Feed],FeedPrice[Price per kg],"Unknown",0)*O30 -> 671.2230969 | S30: 14850.77804 | T30: =_xlfn.XLOOKUP(O30,LabourFromFeed[Feed Quantity (kg)],LabourFromFeed[No. Labour],"Out of range",-1) -> 1 | U30: =T30*OperatingCosts!$C$9 -> 1200 | V30: 34800
A31: 29 | B31: =IF(A31<='S1-Standard'!$C$7, B30*EXP((LN((E30/100)+1))*1),) -> 94.48536479 | C31: =_xlfn.XLOOKUP($B31,FeedTables!$C$42:$T$42,FeedTables!$C$44:$T$44,,-1) -> 3.541685329 | D31: =_xlfn.XLOOKUP($B31,FeedTables!$C$42:$T$42,FeedTables!$C$45:$T$45,,-1) -> 1.353261905 | E31: =_xlfn.XLOOKUP($B31,FeedTables!$C$42:$T$42,FeedTables!$C$46:$T$46,,-1)*_xlfn.XLOOKUP(N30,DensityMultiplier[Biomass kg/m3],DensityMultiplier[Multiplier],,-1) -> 2.617146995 | F31: 1938.899002 | G31: =IF(A31<='S1-Standard'!$C$7,('Growth-Model-1'!G30*EXP($AA$7)),0) -> 0.1568177729 | H31: =IF(A31<='S1-Standard'!$C$7,$AD$6*EXP($AD$7*('S1-Standard'!C$7-'Growth-Model-1'!A31)),0) -> 8.426829723e-10 | I31: 86.25781566 | J31: 0.04259645218 | K31: 14.81698455 | L31: 4.228886943 | M31: 183.1975795 | N31: =M31/'S1-Standard'!$C$17 -> 6.785095537 | O31: 6.488281796 | P31: 146.3931707 | Q31: =_xlfn.XLOOKUP(B31,FeedTables!$C$17:$T$17,FeedTables!$C$31:$T$31,,-1) -> Unga 3mm | R31: =_xlfn.XLOOKUP(Q31,FeedPrice[Feed],FeedPrice[Price per kg],"Unknown",0)*O31 -> 688.7252732 | S31: 15539.50331 | T31: =_xlfn.XLOOKUP(O31,LabourFromFeed[Feed Quantity (kg)],LabourFromFeed[No. Labour],"Out of range",-1) -> 1 | U31: =T31*OperatingCosts!$C$9 -> 1200 | V31: 36000 | Z31: Feed Use by Type | AA31: Kg used | AB31: =_xlfn.CONCAT("Cost"," (",'0-StartHere'!$C$49,")") -> Cost (KES)
A32: 30 | B32: =IF(A32<='S1-Standard'!$C$7, B31*EXP((LN((E31/100)+1))*1),) -> 96.95818567 | C32: =_xlfn.XLOOKUP($B32,FeedTables!$C$42:$T$42,FeedTables!$C$44:$T$44,,-1) -> 3.541685329 | D32: =_xlfn.XLOOKUP($B32,FeedTables!$C$42:$T$42,FeedTables!$C$45:$T$45,,-1) -> 1.353261905 | E32: =_xlfn.XLOOKUP($B32,FeedTables!$C$42:$T$42,FeedTables!$C$46:$T$46,,-1)*_xlfn.XLOOKUP(N31,DensityMultiplier[Biomass kg/m3],DensityMultiplier[Multiplier],,-1) -> 2.617146995 | F32: 1938.742184 | G32: =IF(A32<='S1-Standard'!$C$7,('Growth-Model-1'!G31*EXP($AA$7)),0) -> 0.1349743079 | H32: =IF(A32<='S1-Standard'!$C$7,$AD$6*EXP($AD$7*('S1-Standard'!C$7-'Growth-Model-1'!A32)),0) -> 1.029255307e-09 | I32: 86.39278997 | J32: 0.04266310616 | K32: 13.08686411 | L32: 4.241973807 | M32: 187.9769247 | N32: =M32/'S1-Standard'!$C$17 -> 6.962108321 | O32: 6.657551163 | P32: 153.0507218 | Q32: =_xlfn.XLOOKUP(B32,FeedTables!$C$17:$T$17,FeedTables!$C$31:$T$31,,-1) -> Unga 3mm | R32: =_xlfn.XLOOKUP(Q32,FeedPrice[Feed],FeedPrice[Price per kg],"Unknown",0)*O32 -> 706.6930642 | S32: 16246.19637 | T32: =_xlfn.XLOOKUP(O32,LabourFromFeed[Feed Quantity (kg)],LabourFromFeed[No. Labour],"Out of range",-1) -> 1 | U32: =T32*OperatingCosts!$C$9 -> 1200 | V32: 37200 | Z32: =FeedCosts!A2 -> Skretting 0.5mm | AA32: =SUMIF($Q$2:$Q$366,Z32,$O$2:$O$366) -> 0 | AB32: =SUMIF($Q$2:$Q$366,Z32,$R$2:$R$366) -> 0
A33: 31 | B33: =IF(A33<='S1-Standard'!$C$7, B32*EXP((LN((E32/100)+1))*1),) -> 99.49572392 | C33: =_xlfn.XLOOKUP($B33,FeedTables!$C$42:$T$42,FeedTables!$C$44:$T$44,,-1) -> 3.541685329 | D33: =_xlfn.XLOOKUP($B33,FeedTables!$C$42:$T$42,FeedTables!$C$45:$T$45,,-1) -> 1.353261905 | E33: =_xlfn.XLOOKUP($B33,FeedTables!$C$42:$T$42,FeedTables!$C$46:$T$46,,-1)*_xlfn.XLOOKUP(N32,DensityMultiplier[Biomass kg/m3],DensityMultiplier[Multiplier],,-1) -> 2.617146995 | F33: 1938.60721 | G33: =IF(A33<='S1-Standard'!$C$7,('Growth-Model-1'!G32*EXP($AA$7)),0) -> 0.1161734635 | H33: =IF(A33<='S1-Standard'!$C$7,$AD$6*EXP($AD$7*('S1-Standard'!C$7-'Growth-Model-1'!A33)),0) -> 1.25713527e-09 | I33: 86.50896344 | J33: 0.04272047577 | K33: 11.55876297 | L33: 4.25353257 | M33: 192.8831277 | N33: =M33/'S1-Standard'!$C$17 -> 7.143819546 | O33: 6.831313437 | P33: 159.8820353 | Q33: =_xlfn.XLOOKUP(B33,FeedTables!$C$17:$T$17,FeedTables!$C$31:$T$31,,-1) -> Unga 3mm | R33: =_xlfn.XLOOKUP(Q33,FeedPrice[Feed],FeedPrice[Price per kg],"Unknown",0)*O33 -> 725.1377732 | S33: 16971.33415 | T33: =_xlfn.XLOOKUP(O33,LabourFromFeed[Feed Quantity (kg)],LabourFromFeed[No. Labour],"Out of range",-1) -> 1 | U33: =T33*OperatingCosts!$C$9 -> 1200 | V33: 38400 | Z33: =FeedCosts!A3 -> Skretting 1mm | AA33: 0 | AB33: 0
A34: 32 | B34: =IF(A34<='S1-Standard'!$C$7, B33*EXP((LN((E33/100)+1))*1),) -> 102.0996733 | C34: =_xlfn.XLOOKUP($B34,FeedTables!$C$42:$T$42,FeedTables!$C$44:$T$44,,-1) -> 3.142209392 | D34: =_xlfn.XLOOKUP($B34,FeedTables!$C$42:$T$42,FeedTables!$C$45:$T$45,,-1) -> 1.397846273 | E34: =_xlfn.XLOOKUP($B34,FeedTables!$C$42:$T$42,FeedTables!$C$46:$T$46,,-1)*_xlfn.XLOOKUP(N33,DensityMultiplier[Biomass kg/m3],DensityMultiplier[Multiplier],,-1) -> 2.247893386 | F34: 1938.491037 | G34: =IF(A34<='S1-Standard'!$C$7,('Growth-Model-1'!G33*EXP($AA$7)),0) -> 0.09999142665 | H34: =IF(A34<='S1-Standard'!$C$7,$AD$6*EXP($AD$7*('S1-Standard'!C$7-'Growth-Model-1'!A34)),0) -> 1.535468487e-09 | I34: 86.60895486 | J34: 0.04276985425 | K34: 10.20909215 | L34: 4.263741662 | M34: 197.9193015 | N34: =M34/'S1-Standard'!$C$17 -> 7.330344498 | O34: 6.219038878 | P34: 166.1010741 | Q34: =_xlfn.XLOOKUP(B34,FeedTables!$C$17:$T$17,FeedTables!$C$31:$T$31,,-1) -> Unga 4mm | R34: =_xlfn.XLOOKUP(Q34,FeedPrice[Feed],FeedPrice[Price per kg],"Unknown",0)*O34 -> 617.7377537 | S34: 17589.0719 | T34: =_xlfn.XLOOKUP(O34,LabourFromFeed[Feed Quantity (kg)],LabourFromFeed[No. Labour],"Out of range",-1) -> 1 | U34: =T34*OperatingCosts!$C$9 -> 1200 | V34: 39600 | Z34: =FeedCosts!A4 -> Skretting 2mm | AA34: 0 | AB34: 0
A35: 33 | B35: =IF(A35<='S1-Standard'!$C$7, B34*EXP((LN((E34/100)+1))*1),) -> 104.3947651 | C35: =_xlfn.XLOOKUP($B35,FeedTables!$C$42:$T$42,FeedTables!$C$44:$T$44,,-1) -> 3.142209392 | D35: =_xlfn.XLOOKUP($B35,FeedTables!$C$42:$T$42,FeedTables!$C$45:$T$45,,-1) -> 1.397846273 | E35: =_xlfn.XLOOKUP($B35,FeedTables!$C$42:$T$42,FeedTables!$C$46:$T$46,,-1)*_xlfn.XLOOKUP(N34,DensityMultiplier[Biomass kg/m3],DensityMultiplier[Multiplier],,-1) -> 2.247893386 | F35: 1938.391045 | G35: =IF(A35<='S1-Standard'!$C$7,('Growth-Model-1'!G34*EXP($AA$7)),0) -> 0.08606341849 | H35: =IF(A35<='S1-Standard'!$C$7,$AD$6*EXP($AD$7*('S1-Standard'!C$7-'Growth-Model-1'!A35)),0) -> 1.875425445e-09 | I35: 86.69501828 | J35: 0.04281235471 | K35: 8.98457055 | L35: 4.272726233 | M35: 202.3578778 | N35: =M35/'S1-Standard'!$C$17 -> 7.494736213 | O35: 6.35850824 | P35: 172.4595824 | Q35: =_xlfn.XLOOKUP(B35,FeedTables!$C$17:$T$17,FeedTables!$C$31:$T$31,,-1) -> Unga 4mm | R35: =_xlfn.XLOOKUP(Q35,FeedPrice[Feed],FeedPrice[Price per kg],"Unknown",0)*O35 -> 631.5912593 | S35: 18220.66316 | T35: =_xlfn.XLOOKUP(O35,LabourFromFeed[Feed Quantity (kg)],LabourFromFeed[No. Labour],"Out of range",-1) -> 1 | U35: =T35*OperatingCosts!$C$9 -> 1200 | V35: 40800 | Z35: =FeedCosts!A5 -> Unga 2mm | AA35: =SUMIF($Q$2:$Q$366,Z35,$O$2:$O$366) -> 0 | AB35: 0
A36: 34 | B36: =IF(A36<='S1-Standard'!$C$7, B35*EXP((LN((E35/100)+1))*1),) -> 106.7414481 | C36: =_xlfn.XLOOKUP($B36,FeedTables!$C$42:$T$42,FeedTables!$C$44:$T$44,,-1) -> 3.142209392 | D36: =_xlfn.XLOOKUP($B36,FeedTables!$C$42:$T$42,FeedTables!$C$45:$T$45,,-1) -> 1.397846273 | E36: =_xlfn.XLOOKUP($B36,FeedTables!$C$42:$T$42,FeedTables!$C$46:$T$46,,-1)*_xlfn.XLOOKUP(N35,DensityMultiplier[Biomass kg/m3],DensityMultiplier[Multiplier],,-1) -> 2.247893386 | F36: 1938.304982 | G36: =IF(A36<='S1-Standard'!$C$7,('Growth-Model-1'!G35*EXP($AA$7)),0) -> 0.07407547077 | H36: =IF(A36<='S1-Standard'!$C$7,$AD$6*EXP($AD$7*('S1-Standard'!C$7-'Growth-Model-1'!A36)),0) -> 2.290649811e-09 | I36: 86.76909376 | J36: 0.04284893519 | K36: 7.906923262 | L36: 4.280633156 | M36: 206.8974806 | N36: =M36/'S1-Standard'!$C$17 -> 7.662869651 | O36: 6.501152066 | P36: 178.9607344 | Q36: =_xlfn.XLOOKUP(B36,FeedTables!$C$17:$T$17,FeedTables!$C$31:$T$31,,-1) -> Unga 4mm | R36: =_xlfn.XLOOKUP(Q36,FeedPrice[Feed],FeedPrice[Price per kg],"Unknown",0)*O36 -> 645.7600848 | S36: 18866.42325 | T36: =_xlfn.XLOOKUP(O36,LabourFromFeed[Feed Quantity (kg)],LabourFromFeed[No. Labour],"Out of range",-1) -> 1 | U36: =T36*OperatingCosts!$C$9 -> 1200 | V36: 42000 | Z36: =FeedCosts!A6 -> Unga 3mm | AA36: =SUMIF($Q$2:$Q$366,Z36,$O$2:$O$366) -> 159.8820353 | AB36: 16971.33415
A37: 35 | B37: =IF(A37<='S1-Standard'!$C$7, B36*EXP((LN((E36/100)+1))*1),) -> 109.140882 | C37: =_xlfn.XLOOKUP($B37,FeedTables!$C$42:$T$42,FeedTables!$C$44:$T$44,,-1) -> 3.142209392 | D37: =_xlfn.XLOOKUP($B37,FeedTables!$C$42:$T$42,FeedTables!$C$45:$T$45,,-1) -> 1.397846273 | E37: =_xlfn.XLOOKUP($B37,FeedTables!$C$42:$T$42,FeedTables!$C$46:$T$46,,-1)*_xlfn.XLOOKUP(N36,DensityMultiplier[Biomass kg/m3],DensityMultiplier[Multiplier],,-1) -> 2.247893386 | F37: 1938.230906 | G37: =IF(A37<='S1-Standard'!$C$7,('Growth-Model-1'!G36*EXP($AA$7)),0) -> 0.06375734855 | H37: =IF(A37<='S1-Standard'!$C$7,$AD$6*EXP($AD$7*('S1-Standard'!C$7-'Growth-Model-1'!A37)),0) -> 2.797805997e-09 | I37: 86.83285111 | J37: 0.0428804203 | K37: 6.958533562 | L37: 4.287591689 | M37: 211.5402307 | N37: =M37/'S1-Standard'!$C$17 -> 7.834823359 | O37: 6.647036996 | P37: 185.6077714 | Q37: =_xlfn.XLOOKUP(B37,FeedTables!$C$17:$T$17,FeedTables!$C$31:$T$31,,-1) -> Unga 4mm | R37: =_xlfn.XLOOKUP(Q37,FeedPrice[Feed],FeedPrice[Price per kg],"Unknown",0)*O37 -> 660.2508495 | S37: 19526.6741 | T37: =_xlfn.XLOOKUP(O37,LabourFromFeed[Feed Quantity (kg)],LabourFromFeed[No. Labour],"Out of range",-1) -> 1 | U37: =T37*OperatingCosts!$C$9 -> 1200 | V37: 43200 | Z37: =FeedCosts!A7 -> Unga 4mm | AA37: =SUMIF($Q$2:$Q$366,Z37,$O$2:$O$366) -> 1171.690866 | AB37: 116384.1709
A38: 36 | B38: =IF(A38<='S1-Standard'!$C$7, B37*EXP((LN((E37/100)+1))*1),) -> 111.5942527 | C38: =_xlfn.XLOOKUP($B38,FeedTables!$C$42:$T$42,FeedTables!$C$44:$T$44,,-1) -> 3.142209392 | D38: =_xlfn.XLOOKUP($B38,FeedTables!$C$42:$T$42,FeedTables!$C$45:$T$45,,-1) -> 1.397846273 | E38: =_xlfn.XLOOKUP($B38,FeedTables!$C$42:$T$42,FeedTables!$C$46:$T$46,,-1)*_xlfn.XLOOKUP(N37,DensityMultiplier[Biomass kg/m3],DensityMultiplier[Multiplier],,-1) -> 2.247893386 | F38: 1938.167149 | G38: =IF(A38<='S1-Standard'!$C$7,('Growth-Model-1'!G37*EXP($AA$7)),0) -> 0.05487645845 | H38: =IF(A38<='S1-Standard'!$C$7,$AD$6*EXP($AD$7*('S1-Standard'!C$7-'Growth-Model-1'!A38)),0) -> 3.417247961e-09 | I38: 86.88772757 | J38: 0.04290751979 | K38: 6.123897753 | L38: 4.293715587 | M38: 216.2883146 | N38: =M38/'S1-Standard'!$C$17 -> 8.010678318 | O38: 6.796231734 | P38: 192.4040032 | Q38: =_xlfn.XLOOKUP(B38,FeedTables!$C$17:$T$17,FeedTables!$C$31:$T$31,,-1) -> Unga 4mm | R38: =_xlfn.XLOOKUP(Q38,FeedPrice[Feed],FeedPrice[Price per kg],"Unknown",0)*O38 -> 675.0703778 | S38: 20201.74447 | T38: =_xlfn.XLOOKUP(O38,LabourFromFeed[Feed Quantity (kg)],LabourFromFeed[No. Labour],"Out of range",-1) -> 1 | U38: =T38*OperatingCosts!$C$9 -> 1200 | V38: 44400
A39: 37 | B39: =IF(A39<='S1-Standard'!$C$7, B38*EXP((LN((E38/100)+1))*1),) -> 114.1027725 | C39: =_xlfn.XLOOKUP($B39,FeedTables!$C$42:$T$42,FeedTables!$C$44:$T$44,,-1) -> 3.142209392 | D39: =_xlfn.XLOOKUP($B39,FeedTables!$C$42:$T$42,FeedTables!$C$45:$T$45,,-1) -> 1.397846273 | E39: =_xlfn.XLOOKUP($B39,FeedTables!$C$42:$T$42,FeedTables!$C$46:$T$46,,-1)*_xlfn.XLOOKUP(N38,DensityMultiplier[Biomass kg/m3],DensityMultiplier[Multiplier],,-1) -> 2.247893386 | F39: 1938.112272 | G39: =IF(A39<='S1-Standard'!$C$7,('Growth-Model-1'!G38*EXP($AA$7)),0) -> 0.04723260551 | H39: =IF(A39<='S1-Standard'!$C$7,$AD$6*EXP($AD$7*('S1-Standard'!C$7-'Growth-Model-1'!A39)),0) -> 4.173836085e-09 | I39: 86.93496018 | J39: 0.04293084453 | K39: 5.389371719 | L39: 4.299104959 | M39: 221.1439838 | N39: =M39/'S1-Standard'!$C$17 -> 8.190517917 | O39: 6.948807027 | P39: 199.3528102 | Q39: =_xlfn.XLOOKUP(B39,FeedTables!$C$17:$T$17,FeedTables!$C$31:$T$31,,-1) -> Unga 4mm | R39: =_xlfn.XLOOKUP(Q39,FeedPrice[Feed],FeedPrice[Price per kg],"Unknown",0)*O39 -> 690.2256969 | S39: 20891.97017 | T39: =_xlfn.XLOOKUP(O39,LabourFromFeed[Feed Quantity (kg)],LabourFromFeed[No. Labour],"Out of range",-1) -> 1 | U39: =T39*OperatingCosts!$C$9 -> 1200 | V39: 45600
A40: 38 | B40: =IF(A40<='S1-Standard'!$C$7, B39*EXP((LN((E39/100)+1))*1),) -> 116.6676812 | C40: =_xlfn.XLOOKUP($B40,FeedTables!$C$42:$T$42,FeedTables!$C$44:$T$44,,-1) -> 3.142209392 | D40: =_xlfn.XLOOKUP($B40,FeedTables!$C$42:$T$42,FeedTables!$C$45:$T$45,,-1) -> 1.397846273 | E40: =_xlfn.XLOOKUP($B40,FeedTables!$C$42:$T$42,FeedTables!$C$46:$T$46,,-1)*_xlfn.XLOOKUP(N39,DensityMultiplier[Biomass kg/m3],DensityMultiplier[Multiplier],,-1) -> 2.247893386 | F40: 1938.06504 | G40: =IF(A40<='S1-Standard'!$C$7,('Growth-Model-1'!G39*EXP($AA$7)),0) -> 0.04065348031 | H40: =IF(A40<='S1-Standard'!$C$7,$AD$6*EXP($AD$7*('S1-Standard'!C$7-'Growth-Model-1'!A40)),0) -> 5.097934907e-09 | I40: 86.97561367 | J40: 0.04295092033 | K40: 4.742947875 | L40: 4.303847907 | M40: 226.1095542 | N40: =M40/'S1-Standard'!$C$17 -> 8.374427934 | O40: 7.104835648 | P40: 206.4576458 | Q40: =_xlfn.XLOOKUP(B40,FeedTables!$C$17:$T$17,FeedTables!$C$31:$T$31,,-1) -> Unga 4mm | R40: =_xlfn.XLOOKUP(Q40,FeedPrice[Feed],FeedPrice[Price per kg],"Unknown",0)*O40 -> 705.7240354 | S40: 21597.69421 | T40: =_xlfn.XLOOKUP(O40,LabourFromFeed[Feed Quantity (kg)],LabourFromFeed[No. Labour],"Out of range",-1) -> 1 | U40: =T40*OperatingCosts!$C$9 -> 1200 | V40: 46800
A41: 39 | B41: =IF(A41<='S1-Standard'!$C$7, B40*EXP((LN((E40/100)+1))*1),) -> 119.2902463 | C41: =_xlfn.XLOOKUP($B41,FeedTables!$C$42:$T$42,FeedTables!$C$44:$T$44,,-1) -> 3.142209392 | D41: =_xlfn.XLOOKUP($B41,FeedTables!$C$42:$T$42,FeedTables!$C$45:$T$45,,-1) -> 1.397846273 | E41: =_xlfn.XLOOKUP($B41,FeedTables!$C$42:$T$42,FeedTables!$C$46:$T$46,,-1)*_xlfn.XLOOKUP(N40,DensityMultiplier[Biomass kg/m3],DensityMultiplier[Multiplier],,-1) -> 2.247893386 | F41: 1938.024386 | G41: =IF(A41<='S1-Standard'!$C$7,('Growth-Model-1'!G40*EXP($AA$7)),0) -> 0.03499077477 | H41: =IF(A41<='S1-Standard'!$C$7,$AD$6*EXP($AD$7*('S1-Standard'!C$7-'Growth-Model-1'!A41)),0) -> 6.226631756e-09 | I41: 87.01060445 | J41: 0.04296819973 | K41: 4.174058883 | L41: 4.308021966 | M41: 231.1874064 | N41: =M41/'S1-Standard'!$C$17 -> 8.562496532 | O41: 7.264392395 | P41: 213.7220382 | Q41: =_xlfn.XLOOKUP(B41,FeedTables!$C$17:$T$17,FeedTables!$C$31:$T$31,,-1) -> Unga 4mm | R41: =_xlfn.XLOOKUP(Q41,FeedPrice[Feed],FeedPrice[Price per kg],"Unknown",0)*O41 -> 721.5728231 | S41: 22319.26703 | T41: =_xlfn.XLOOKUP(O41,LabourFromFeed[Feed Quantity (kg)],LabourFromFeed[No. Labour],"Out of range",-1) -> 1 | U41: =T41*OperatingCosts!$C$9 -> 1200 | V41: 48000
A42: 40 | B42: =IF(A42<='S1-Standard'!$C$7, B41*EXP((LN((E41/100)+1))*1),) -> 121.9717639 | C42: =_xlfn.XLOOKUP($B42,FeedTables!$C$42:$T$42,FeedTables!$C$44:$T$44,,-1) -> 3.142209392 | D42: =_xlfn.XLOOKUP($B42,FeedTables!$C$42:$T$42,FeedTables!$C$45:$T$45,,-1) -> 1.397846273 | E42: =_xlfn.XLOOKUP($B42,FeedTables!$C$42:$T$42,FeedTables!$C$46:$T$46,,-1)*_xlfn.XLOOKUP(N41,DensityMultiplier[Biomass kg/m3],DensityMultiplier[Multiplier],,-1) -> 2.247893386 | F42: 1937.989396 | G42: =IF(A42<='S1-Standard'!$C$7,('Growth-Model-1'!G41*EXP($AA$7)),0) -> 0.03011683895 | H42: =IF(A42<='S1-Standard'!$C$7,$AD$6*EXP($AD$7*('S1-Standard'!C$7-'Growth-Model-1'!A42)),0) -> 7.605225201e-09 | I42: 87.04072129 | J42: 0.04298307224 | K42: 3.673404896 | L42: 4.311695371 | M42: 236.3799849 | N42: =M42/'S1-Standard'!$C$17 -> 8.754814256 | O42: 7.427554086 | P42: 221.1495923 | Q42: =_xlfn.XLOOKUP(B42,FeedTables!$C$17:$T$17,FeedTables!$C$31:$T$31,,-1) -> Unga 4mm | R42: =_xlfn.XLOOKUP(Q42,FeedPrice[Feed],FeedPrice[Price per kg],"Unknown",0)*O42 -> 737.7796901 | S42: 23057.04672 | T42: =_xlfn.XLOOKUP(O42,LabourFromFeed[Feed Quantity (kg)],LabourFromFeed[No. Labour],"Out of range",-1) -> 1 | U42: =T42*OperatingCosts!$C$9 -> 1200 | V42: 49200
A43: 41 | B43: =IF(A43<='S1-Standard'!$C$7, B42*EXP((LN((E42/100)+1))*1),) -> 124.7135591 | C43: =_xlfn.XLOOKUP($B43,FeedTables!$C$42:$T$42,FeedTables!$C$44:$T$44,,-1) -> 3.142209392 | D43: =_xlfn.XLOOKUP($B43,FeedTables!$C$42:$T$42,FeedTables!$C$45:$T$45,,-1) -> 1.397846273 | E43: =_xlfn.XLOOKUP($B43,FeedTables!$C$42:$T$42,FeedTables!$C$46:$T$46,,-1)*_xlfn.XLOOKUP(N42,DensityMultiplier[Biomass kg/m3],DensityMultiplier[Multiplier],,-1) -> 2.247893386 | F43: 1937.959279 | G43: =IF(A43<='S1-Standard'!$C$7,('Growth-Model-1'!G42*EXP($AA$7)),0) -> 0.02592180351 | H43: =IF(A43<='S1-Standard'!$C$7,$AD$6*EXP($AD$7*('S1-Standard'!C$7-'Growth-Model-1'!A43)),0) -> 9.289043037e-09 | I43: 87.06664311 | J43: 0.04299587314 | K43: 3.232801531 | L43: 4.314928172 | M43: 241.689799 | N43: =M43/'S1-Standard'!$C$17 -> 8.951474036 | O43: 7.594399562 | P43: 228.7439919 | Q43: =_xlfn.XLOOKUP(B43,FeedTables!$C$17:$T$17,FeedTables!$C$31:$T$31,,-1) -> Unga 4mm | R43: =_xlfn.XLOOKUP(Q43,FeedPrice[Feed],FeedPrice[Price per kg],"Unknown",0)*O43 -> 754.3524679 | S43: 23811.39919 | T43: =_xlfn.XLOOKUP(O43,LabourFromFeed[Feed Quantity (kg)],LabourFromFeed[No. Labour],"Out of range",-1) -> 1 | U43: =T43*OperatingCosts!$C$9 -> 1200 | V43: 50400
A44: 42 | B44: =IF(A44<='S1-Standard'!$C$7, B43*EXP((LN((E43/100)+1))*1),) -> 127.5169869 | C44: =_xlfn.XLOOKUP($B44,FeedTables!$C$42:$T$42,FeedTables!$C$44:$T$44,,-1) -> 3.142209392 | D44: =_xlfn.XLOOKUP($B44,FeedTables!$C$42:$T$42,FeedTables!$C$45:$T$45,,-1) -> 1.397846273 | E44: =_xlfn.XLOOKUP($B44,FeedTables!$C$42:$T$42,FeedTables!$C$46:$T$46,,-1)*_xlfn.XLOOKUP(N43,DensityMultiplier[Biomass kg/m3],DensityMultiplier[Multiplier],,-1) -> 2.247893386 | F44: 1937.933357 | G44: =IF(A44<='S1-Standard'!$C$7,('Growth-Model-1'!G43*EXP($AA$7)),0) -> 0.02231110304 | H44: =IF(A44<='S1-Standard'!$C$7,$AD$6*EXP($AD$7*('S1-Standard'!C$7-'Growth-Model-1'!A44)),0) -> 1.134566279e-08 | I44: 87.08895422 | J44: 0.04300689097 | K44: 2.845046081 | L44: 4.317773218 | M44: 247.1194225 | N44: =M44/'S1-Standard'!$C$17 -> 9.152571204 | O44: 7.765009702 | P44: 236.5090016 | Q44: =_xlfn.XLOOKUP(B44,FeedTables!$C$17:$T$17,FeedTables!$C$31:$T$31,,-1) -> Unga 4mm | R44: =_xlfn.XLOOKUP(Q44,FeedPrice[Feed],FeedPrice[Price per kg],"Unknown",0)*O44 -> 771.2991902 | S44: 24582.69838 | T44: =_xlfn.XLOOKUP(O44,LabourFromFeed[Feed Quantity (kg)],LabourFromFeed[No. Labour],"Out of range",-1) -> 1 | U44: =T44*OperatingCosts!$C$9 -> 1200 | V44: 51600
A45: 43 | B45: =IF(A45<='S1-Standard'!$C$7, B44*EXP((LN((E44/100)+1))*1),) -> 130.3834328 | C45: =_xlfn.XLOOKUP($B45,FeedTables!$C$42:$T$42,FeedTables!$C$44:$T$44,,-1) -> 2.848361415 | D45: =_xlfn.XLOOKUP($B45,FeedTables!$C$42:$T$42,FeedTables!$C$45:$T$45,,-1) -> 1.430641806 | E45: =_xlfn.XLOOKUP($B45,FeedTables!$C$42:$T$42,FeedTables!$C$46:$T$46,,-1)*_xlfn.XLOOKUP(N44,DensityMultiplier[Biomass kg/m3],DensityMultiplier[Multiplier],,-1) -> 1.990967552 | F45: 1937.911046 | G45: =IF(A45<='S1-Standard'!$C$7,('Growth-Model-1'!G44*EXP($AA$7)),0) -> 0.01920334435 | H45: =IF(A45<='S1-Standard'!$C$7,$AD$6*EXP($AD$7*('S1-Standard'!C$7-'Growth-Model-1'!A45)),0) -> 1.385762382e-08 | I45: 87.10815758 | J45: 0.04301637411 | K45: 2.503799765 | L45: 4.320277018 | M45: 252.6714947 | N45: =M45/'S1-Standard'!$C$17 -> 9.358203506 | O45: 7.196997362 | P45: 243.7059989 | Q45: =_xlfn.XLOOKUP(B45,FeedTables!$C$17:$T$17,FeedTables!$C$31:$T$31,,-1) -> Unga 4mm | R45: =_xlfn.XLOOKUP(Q45,FeedPrice[Feed],FeedPrice[Price per kg],"Unknown",0)*O45 -> 714.8784676 | S45: 25297.57684 | T45: =_xlfn.XLOOKUP(O45,LabourFromFeed[Feed Quantity (kg)],LabourFromFeed[No. Labour],"Out of range",-1) -> 1 | U45: =T45*OperatingCosts!$C$9 -> 1200 | V45: 52800
A46: 44 | B46: =IF(A46<='S1-Standard'!$C$7, B45*EXP((LN((E45/100)+1))*1),) -> 132.9793247 | C46: =_xlfn.XLOOKUP($B46,FeedTables!$C$42:$T$42,FeedTables!$C$44:$T$44,,-1) -> 2.848361415 | D46: =_xlfn.XLOOKUP($B46,FeedTables!$C$42:$T$42,FeedTables!$C$45:$T$45,,-1) -> 1.430641806 | E46: =_xlfn.XLOOKUP($B46,FeedTables!$C$42:$T$42,FeedTables!$C$46:$T$46,,-1)*_xlfn.XLOOKUP(N45,DensityMultiplier[Biomass kg/m3],DensityMultiplier[Multiplier],,-1) -> 1.990967552 | F46: 1937.891842 | G46: =IF(A46<='S1-Standard'!$C$7,('Growth-Model-1'!G45*EXP($AA$7)),0) -> 0.01652847166 | H46: =IF(A46<='S1-Standard'!$C$7,$AD$6*EXP($AD$7*('S1-Standard'!C$7-'Growth-Model-1'!A46)),0) -> 1.692573996e-08 | I46: 87.12468607 | J46: 0.04302453633 | K46: 2.197947249 | L46: 4.322474965 | M46: 257.6995485 | N46: =M46/'S1-Standard'!$C$17 -> 9.544427721 | O46: 7.340214507 | P46: 251.0462135 | Q46: =_xlfn.XLOOKUP(B46,FeedTables!$C$17:$T$17,FeedTables!$C$31:$T$31,,-1) -> Unga 4mm | R46: =_xlfn.XLOOKUP(Q46,FeedPrice[Feed],FeedPrice[Price per kg],"Unknown",0)*O46 -> 729.104241 | S46: 26026.68109 | T46: =_xlfn.XLOOKUP(O46,LabourFromFeed[Feed Quantity (kg)],LabourFromFeed[No. Labour],"Out of range",-1) -> 1 | U46: =T46*OperatingCosts!$C$9 -> 1200 | V46: 54000
A47: 45 | B47: =IF(A47<='S1-Standard'!$C$7, B46*EXP((LN((E46/100)+1))*1),) -> 135.6268999 | C47: =_xlfn.XLOOKUP($B47,FeedTables!$C$42:$T$42,FeedTables!$C$44:$T$44,,-1) -> 2.848361415 | D47: =_xlfn.XLOOKUP($B47,FeedTables!$C$42:$T$42,FeedTables!$C$45:$T$45,,-1) -> 1.430641806 | E47: =_xlfn.XLOOKUP($B47,FeedTables!$C$42:$T$42,FeedTables!$C$46:$T$46,,-1)*_xlfn.XLOOKUP(N46,DensityMultiplier[Biomass kg/m3],DensityMultiplier[Multiplier],,-1) -> 1.990967552 | F47: 1937.875314 | G47: =IF(A47<='S1-Standard'!$C$7,('Growth-Model-1'!G46*EXP($AA$7)),0) -> 0.01422618739 | H47: =IF(A47<='S1-Standard'!$C$7,$AD$6*EXP($AD$7*('S1-Standard'!C$7-'Growth-Model-1'!A47)),0) -> 2.067314547e-08 | I47: 87.13891228 | J47: 0.04303156162 | K47: 1.929456497 | L47: 4.324404422 | M47: 262.8280212 | N47: =M47/'S1-Standard'!$C$17 -> 9.734371154 | O47: 7.486291944 | P47: 258.5325054 | Q47: =_xlfn.XLOOKUP(B47,FeedTables!$C$17:$T$17,FeedTables!$C$31:$T$31,,-1) -> Unga 4mm | R47: =_xlfn.XLOOKUP(Q47,FeedPrice[Feed],FeedPrice[Price per kg],"Unknown",0)*O47 -> 743.6141274 | S47: 26770.29521 | T47: =_xlfn.XLOOKUP(O47,LabourFromFeed[Feed Quantity (kg)],LabourFromFeed[No. Labour],"Out of range",-1) -> 1 | U47: =T47*OperatingCosts!$C$9 -> 1200 | V47: 55200
A48: 46 | B48: =IF(A48<='S1-Standard'!$C$7, B47*EXP((LN((E47/100)+1))*1),) -> 138.3271874 | C48: =_xlfn.XLOOKUP($B48,FeedTables!$C$42:$T$42,FeedTables!$C$44:$T$44,,-1) -> 2.848361415 | D48: =_xlfn.XLOOKUP($B48,FeedTables!$C$42:$T$42,FeedTables!$C$45:$T$45,,-1) -> 1.430641806 | E48: =_xlfn.XLOOKUP($B48,FeedTables!$C$42:$T$42,FeedTables!$C$46:$T$46,,-1)*_xlfn.XLOOKUP(N47,DensityMultiplier[Biomass kg/m3],DensityMultiplier[Multiplier],,-1) -> 1.990967552 | F48: 1937.861088 | G48: =IF(A48<='S1-Standard'!$C$7,('Growth-Model-1'!G47*EXP($AA$7)),0) -> 0.01224459296 | H48: =IF(A48<='S1-Standard'!$C$7,$AD$6*EXP($AD$7*('S1-Standard'!C$7-'Growth-Model-1'!A48)),0) -> 2.525023689e-08 | I48: 87.15115689 | J48: 0.04303760834 | K48: 1.693763599 | L48: 4.326098185 | M48: 268.0588739 | N48: =M48/'S1-Standard'!$C$17 -> 9.928106441 | O48: 7.635285535 | P48: 266.1677909 | Q48: =_xlfn.XLOOKUP(B48,FeedTables!$C$17:$T$17,FeedTables!$C$31:$T$31,,-1) -> Unga 4mm | R48: =_xlfn.XLOOKUP(Q48,FeedPrice[Feed],FeedPrice[Price per kg],"Unknown",0)*O48 -> 758.4136757 | S48: 27528.70889 | T48: =_xlfn.XLOOKUP(O48,LabourFromFeed[Feed Quantity (kg)],LabourFromFeed[No. Labour],"Out of range",-1) -> 1 | U48: =T48*OperatingCosts!$C$9 -> 1200 | V48: 56400
A49: 47 | B49: =IF(A49<='S1-Standard'!$C$7, B48*EXP((LN((E48/100)+1))*1),) -> 141.0812369 | C49: =_xlfn.XLOOKUP($B49,FeedTables!$C$42:$T$42,FeedTables!$C$44:$T$44,,-1) -> 2.848361415 | D49: =_xlfn.XLOOKUP($B49,FeedTables!$C$42:$T$42,FeedTables!$C$45:$T$45,,-1) -> 1.430641806 | E49: =_xlfn.XLOOKUP($B49,FeedTables!$C$42:$T$42,FeedTables!$C$46:$T$46,,-1)*_xlfn.XLOOKUP(N48,DensityMultiplier[Biomass kg/m3],DensityMultiplier[Multiplier],,-1) -> 1.990967552 | F49: 1937.848843 | G49: =IF(A49<='S1-Standard'!$C$7,('Growth-Model-1'!G48*EXP($AA$7)),0) -> 0.01053901883 | H49: =IF(A49<='S1-Standard'!$C$7,$AD$6*EXP($AD$7*('S1-Standard'!C$7-'Growth-Model-1'!A49)),0) -> 3.084070898e-08 | I49: 87.16169594 | J49: 0.04304281281 | K49: 1.486862163 | L49: 4.327585048 | M49: 273.3941116 | N49: =M49/'S1-Standard'!$C$17 -> 10.12570784 | O49: 7.787252388 | P49: 273.9550433 | Q49: =_xlfn.XLOOKUP(B49,FeedTables!$C$17:$T$17,FeedTables!$C$31:$T$31,,-1) -> Unga 4mm | R49: =_xlfn.XLOOKUP(Q49,FeedPrice[Feed],FeedPrice[Price per kg],"Unknown",0)*O49 -> 773.5085584 | S49: 28302.21745 | T49: =_xlfn.XLOOKUP(O49,LabourFromFeed[Feed Quantity (kg)],LabourFromFeed[No. Labour],"Out of range",-1) -> 1 | U49: =T49*OperatingCosts!$C$9 -> 1200 | V49: 57600
A50: 48 | B50: =IF(A50<='S1-Standard'!$C$7, B49*EXP((LN((E49/100)+1))*1),) -> 143.8901185 | C50: =_xlfn.XLOOKUP($B50,FeedTables!$C$42:$T$42,FeedTables!$C$44:$T$44,,-1) -> 2.848361415 | D50: =_xlfn.XLOOKUP($B50,FeedTables!$C$42:$T$42,FeedTables!$C$45:$T$45,,-1) -> 1.430641806 | E50: =_xlfn.XLOOKUP($B50,FeedTables!$C$42:$T$42,FeedTables!$C$46:$T$46,,-1)*_xlfn.XLOOKUP(N49,DensityMultiplier[Biomass kg/m3],DensityMultiplier[Multiplier],,-1) -> 1.990967552 | F50: 1937.838304 | G50: =IF(A50<='S1-Standard'!$C$7,('Growth-Model-1'!G49*EXP($AA$7)),0) -> 0.009071017572 | H50: =IF(A50<='S1-Standard'!$C$7,$AD$6*EXP($AD$7*('S1-Standard'!C$7-'Growth-Model-1'!A50)),0) -> 3.766892702e-08 | I50: 87.170767 | J50: 0.04304729234 | K50: 1.305235214 | L50: 4.328890283 | M50: 278.8357832 | N50: =M50/'S1-Standard'!$C$17 -> 10.32725123 | O50: 7.942250862 | P50: 281.8972942 | Q50: =_xlfn.XLOOKUP(B50,FeedTables!$C$17:$T$17,FeedTables!$C$31:$T$31,,-1) -> Unga 4mm | R50: =_xlfn.XLOOKUP(Q50,FeedPrice[Feed],FeedPrice[Price per kg],"Unknown",0)*O50 -> 788.9045723 | S50: 29091.12202 | T50: =_xlfn.XLOOKUP(O50,LabourFromFeed[Feed Quantity (kg)],LabourFromFeed[No. Labour],"Out of range",-1) -> 1 | U50: =T50*OperatingCosts!$C$9 -> 1200 | V50: 58800
A51: 49 | B51: =IF(A51<='S1-Standard'!$C$7, B50*EXP((LN((E50/100)+1))*1),) -> 146.7549241 | C51: =_xlfn.XLOOKUP($B51,FeedTables!$C$42:$T$42,FeedTables!$C$44:$T$44,,-1) -> 2.848361415 | D51: =_xlfn.XLOOKUP($B51,FeedTables!$C$42:$T$42,FeedTables!$C$45:$T$45,,-1) -> 1.430641806 | E51: =_xlfn.XLOOKUP($B51,FeedTables!$C$42:$T$42,FeedTables!$C$46:$T$46,,-1)*_xlfn.XLOOKUP(N50,DensityMultiplier[Biomass kg/m3],DensityMultiplier[Multiplier],,-1) -> 1.990967552 | F51: 1937.829233 | G51: =IF(A51<='S1-Standard'!$C$7,('Growth-Model-1'!G50*EXP($AA$7)),0) -> 0.007807497178 | H51: =IF(A51<='S1-Standard'!$C$7,$AD$6*EXP($AD$7*('S1-Standard'!C$7-'Growth-Model-1'!A51)),0) -> 4.600893135e-08 | I51: 87.17857454 | J51: 0.04305114792 | K51: 1.145795408 | L51: 4.330036078 | M51: 284.385982 | N51: =M51/'S1-Standard'!$C$17 -> 10.53281415 | O51: 8.100340581 | P51: 289.9976348 | Q51: =_xlfn.XLOOKUP(B51,FeedTables!$C$17:$T$17,FeedTables!$C$31:$T$31,,-1) -> Unga 4mm | R51: =_xlfn.XLOOKUP(Q51,FeedPrice[Feed],FeedPrice[Price per kg],"Unknown",0)*O51 -> 804.60764 | S51: 29895.72966 | T51: =_xlfn.XLOOKUP(O51,LabourFromFeed[Feed Quantity (kg)],LabourFromFeed[No. Labour],"Out of range",-1) -> 1 | U51: =T51*OperatingCosts!$C$9 -> 1200 | V51: 60000
A52: 50 | B52: =IF(A52<='S1-Standard'!$C$7, B51*EXP((LN((E51/100)+1))*1),) -> 149.676767 | C52: =_xlfn.XLOOKUP($B52,FeedTables!$C$42:$T$42,FeedTables!$C$44:$T$44,,-1) -> 2.848361415 | D52: =_xlfn.XLOOKUP($B52,FeedTables!$C$42:$T$42,FeedTables!$C$45:$T$45,,-1) -> 1.430641806 | E52: =_xlfn.XLOOKUP($B52,FeedTables!$C$42:$T$42,FeedTables!$C$46:$T$46,,-1)*_xlfn.XLOOKUP(N51,DensityMultiplier[Biomass kg/m3],DensityMultiplier[Multiplier],,-1) -> 1.990967552 | F52: 1937.821425 | G52: =IF(A52<='S1-Standard'!$C$7,('Growth-Model-1'!G51*EXP($AA$7)),0) -> 0.006719975097 | H52: =IF(A52<='S1-Standard'!$C$7,$AD$6*EXP($AD$7*('S1-Standard'!C$7-'Growth-Model-1'!A52)),0) -> 5.619543566e-08 | I52: 87.18529457 | J52: 0.04305446646 | K52: 1.005832558 | L52: 4.331041911 | M52: 290.046846 | N52: =M52/'S1-Standard'!$C$17 -> 10.74247578 | O52: 8.261582448 | P52: 298.2592172 | Q52: =_xlfn.XLOOKUP(B52,FeedTables!$C$17:$T$17,FeedTables!$C$31:$T$31,,-1) -> Unga 4mm | R52: =_xlfn.XLOOKUP(Q52,FeedPrice[Feed],FeedPrice[Price per kg],"Unknown",0)*O52 -> 820.6238107 | S52: 30716.35347 | T52: =_xlfn.XLOOKUP(O52,LabourFromFeed[Feed Quantity (kg)],LabourFromFeed[No. Labour],"Out of range",-1) -> 1 | U52: =T52*OperatingCosts!$C$9 -> 1200 | V52: 61200
A53: 51 | B53: =IF(A53<='S1-Standard'!$C$7, B52*EXP((LN((E52/100)+1))*1),) -> 152.6567829 | C53: =_xlfn.XLOOKUP($B53,FeedTables!$C$42:$T$42,FeedTables!$C$44:$T$44,,-1) -> 2.848361415 | D53: =_xlfn.XLOOKUP($B53,FeedTables!$C$42:$T$42,FeedTables!$C$45:$T$45,,-1) -> 1.430641806 | E53: =_xlfn.XLOOKUP($B53,FeedTables!$C$42:$T$42,FeedTables!$C$46:$T$46,,-1)*_xlfn.XLOOKUP(N52,DensityMultiplier[Biomass kg/m3],DensityMultiplier[Multiplier],,-1) -> 1.990967552 | F53: 1937.814705 | G53: =IF(A53<='S1-Standard'!$C$7,('Growth-Model-1'!G52*EXP($AA$7)),0) -> 0.005783936168 | H53: =IF(A53<='S1-Standard'!$C$7,$AD$6*EXP($AD$7*('S1-Standard'!C$7-'Growth-Model-1'!A53)),0) -> 6.863726011e-08 | I53: 87.19107858 | J53: 0.04305732275 | K53: 0.8829675656 | L53: 4.331924878 | M53: 295.8205587 | N53: =M53/'S1-Standard'!$C$17 -> 10.95631699 | O53: 8.426038653 | P53: 306.6852559 | Q53: =_xlfn.XLOOKUP(B53,FeedTables!$C$17:$T$17,FeedTables!$C$31:$T$31,,-1) -> Unga 4mm | R53: =_xlfn.XLOOKUP(Q53,FeedPrice[Feed],FeedPrice[Price per kg],"Unknown",0)*O53 -> 836.959262 | S53: 31553.31273 | T53: =_xlfn.XLOOKUP(O53,LabourFromFeed[Feed Quantity (kg)],LabourFromFeed[No. Labour],"Out of range",-1) -> 1 | U53: =T53*OperatingCosts!$C$9 -> 1200 | V53: 62400
A54: 52 | B54: =IF(A54<='S1-Standard'!$C$7, B53*EXP((LN((E53/100)+1))*1),) -> 155.6961299 | C54: =_xlfn.XLOOKUP($B54,FeedTables!$C$42:$T$42,FeedTables!$C$44:$T$44,,-1) -> 2.848361415 | D54: =_xlfn.XLOOKUP($B54,FeedTables!$C$42:$T$42,FeedTables!$C$45:$T$45,,-1) -> 1.430641806 | E54: =_xlfn.XLOOKUP($B54,FeedTables!$C$42:$T$42,FeedTables!$C$46:$T$46,,-1)*_xlfn.XLOOKUP(N53,DensityMultiplier[Biomass kg/m3],DensityMultiplier[Multiplier],,-1) -> 1.990967552 | F54: 1937.808921 | G54: =IF(A54<='S1-Standard'!$C$7,('Growth-Model-1'!G53*EXP($AA$7)),0) -> 0.004978279995 | H54: =IF(A54<='S1-Standard'!$C$7,$AD$6*EXP($AD$7*('S1-Standard'!C$7-'Growth-Model-1'!A54)),0) -> 8.383373881e-08 | I54: 87.19605694 | J54: 0.04305978121 | K54: 0.7751119812 | L54: 4.33269999 | M54: 301.7093495 | N54: =M54/'S1-Standard'!$C$17 -> 11.17442035 | O54: 8.593772698 | P54: 315.2790286 | Q54: =_xlfn.XLOOKUP(B54,FeedTables!$C$17:$T$17,FeedTables!$C$31:$T$31,,-1) -> Unga 4mm | R54: =_xlfn.XLOOKUP(Q54,FeedPrice[Feed],FeedPrice[Price per kg],"Unknown",0)*O54 -> 853.6203015 | S54: 32406.93303 | T54: =_xlfn.XLOOKUP(O54,LabourFromFeed[Feed Quantity (kg)],LabourFromFeed[No. Labour],"Out of range",-1) -> 1 | U54: =T54*OperatingCosts!$C$9 -> 1200 | V54: 63600
A55: 53 | B55: =IF(A55<='S1-Standard'!$C$7, B54*EXP((LN((E54/100)+1))*1),) -> 158.7959893 | C55: =_xlfn.XLOOKUP($B55,FeedTables!$C$42:$T$42,FeedTables!$C$44:$T$44,,-1) -> 2.848361415 | D55: =_xlfn.XLOOKUP($B55,FeedTables!$C$42:$T$42,FeedTables!$C$45:$T$45,,-1) -> 1.430641806 | E55: =_xlfn.XLOOKUP($B55,FeedTables!$C$42:$T$42,FeedTables!$C$46:$T$46,,-1)*_xlfn.XLOOKUP(N54,DensityMultiplier[Biomass kg/m3],DensityMultiplier[Multiplier],,-1) -> 1.990967552 | F55: 1937.803943 | G55: =IF(A55<='S1-Standard'!$C$7,('Growth-Model-1'!G54*EXP($AA$7)),0) -> 0.0042848453 | H55: =IF(A55<='S1-Standard'!$C$7,$AD$6*EXP($AD$7*('S1-Standard'!C$7-'Growth-Model-1'!A55)),0) -> 1.023947598e-07 | I55: 87.20034189 | J55: 0.04306189723 | K55: 0.6804325083 | L55: 4.333380423 | M55: 307.7154942 | N55: =M55/'S1-Standard'!$C$17 -> 11.39687016 | O55: 8.764849406 | P55: 324.043878 | Q55: =_xlfn.XLOOKUP(B55,FeedTables!$C$17:$T$17,FeedTables!$C$31:$T$31,,-1) -> Unga 4mm | R55: =_xlfn.XLOOKUP(Q55,FeedPrice[Feed],FeedPrice[Price per kg],"Unknown",0)*O55 -> 870.613368 | S55: 33277.5464 | T55: =_xlfn.XLOOKUP(O55,LabourFromFeed[Feed Quantity (kg)],LabourFromFeed[No. Labour],"Out of range",-1) -> 1 | U55: =T55*OperatingCosts!$C$9 -> 1200 | V55: 64800
A56: 54 | B56: =IF(A56<='S1-Standard'!$C$7, B55*EXP((LN((E55/100)+1))*1),) -> 161.9575659 | C56: =_xlfn.XLOOKUP($B56,FeedTables!$C$42:$T$42,FeedTables!$C$44:$T$44,,-1) -> 2.848361415 | D56: =_xlfn.XLOOKUP($B56,FeedTables!$C$42:$T$42,FeedTables!$C$45:$T$45,,-1) -> 1.430641806 | E56: =_xlfn.XLOOKUP($B56,FeedTables!$C$42:$T$42,FeedTables!$C$46:$T$46,,-1)*_xlfn.XLOOKUP(N55,DensityMultiplier[Biomass kg/m3],DensityMultiplier[Multiplier],,-1) -> 1.990967552 | F56: 1937.799658 | G56: =IF(A56<='S1-Standard'!$C$7,('Growth-Model-1'!G55*EXP($AA$7)),0) -> 0.003688000528 | H56: =IF(A56<='S1-Standard'!$C$7,$AD$6*EXP($AD$7*('S1-Standard'!C$7-'Growth-Model-1'!A56)),0) -> 1.25065242e-07 | I56: 87.20403001 | J56: 0.04306371853 | K56: 0.5973198438 | L56: 4.333977743 | M56: 313.8413159 | N56: =M56/'S1-Standard'!$C$17 -> 11.62375244 | O56: 8.939334947 | P56: 332.9832129 | Q56: =_xlfn.XLOOKUP(B56,FeedTables!$C$17:$T$17,FeedTables!$C$31:$T$31,,-1) -> Unga 4mm | R56: =_xlfn.XLOOKUP(Q56,FeedPrice[Feed],FeedPrice[Price per kg],"Unknown",0)*O56 -> 887.9450342 | S56: 34165.49144 | T56: =_xlfn.XLOOKUP(O56,LabourFromFeed[Feed Quantity (kg)],LabourFromFeed[No. Labour],"Out of range",-1) -> 1 | U56: =T56*OperatingCosts!$C$9 -> 1200 | V56: 66000
A57: 55 | B57: =IF(A57<='S1-Standard'!$C$7, B56*EXP((LN((E56/100)+1))*1),) -> 165.1820885 | C57: =_xlfn.XLOOKUP($B57,FeedTables!$C$42:$T$42,FeedTables!$C$44:$T$44,,-1) -> 2.848361415 | D57: =_xlfn.XLOOKUP($B57,FeedTables!$C$42:$T$42,FeedTables!$C$45:$T$45,,-1) -> 1.430641806 | E57: =_xlfn.XLOOKUP($B57,FeedTables!$C$42:$T$42,FeedTables!$C$46:$T$46,,-1)*_xlfn.XLOOKUP(N56,DensityMultiplier[Biomass kg/m3],DensityMultiplier[Multiplier],,-1) -> 1.990967552 | F57: 1937.79597 | G57: =IF(A57<='S1-Standard'!$C$7,('Growth-Model-1'!G56*EXP($AA$7)),0) -> 0.003174291471 | H57: =IF(A57<='S1-Standard'!$C$7,$AD$6*EXP($AD$7*('S1-Standard'!C$7-'Growth-Model-1'!A57)),0) -> 1.527550316e-07 | I57: 87.20720446 | J57: 0.04306528615 | K57: 0.5243613271 | L57: 4.334502104 | M57: 320.0891854 | N57: =M57/'S1-Standard'!$C$17 -> 11.85515502 | O57: 9.117296853 | P57: 342.1005098 | Q57: =_xlfn.XLOOKUP(B57,FeedTables!$C$17:$T$17,FeedTables!$C$31:$T$31,,-1) -> Unga 4mm | R57: =_xlfn.XLOOKUP(Q57,FeedPrice[Feed],FeedPrice[Price per kg],"Unknown",0)*O57 -> 905.6220081 | S57: 35071.11344 | T57: =_xlfn.XLOOKUP(O57,LabourFromFeed[Feed Quantity (kg)],LabourFromFeed[No. Labour],"Out of range",-1) -> 1 | U57: =T57*OperatingCosts!$C$9 -> 1200 | V57: 67200
A58: 56 | B58: =IF(A58<='S1-Standard'!$C$7, B57*EXP((LN((E57/100)+1))*1),) -> 168.4708103 | C58: =_xlfn.XLOOKUP($B58,FeedTables!$C$42:$T$42,FeedTables!$C$44:$T$44,,-1) -> 2.848361415 | D58: =_xlfn.XLOOKUP($B58,FeedTables!$C$42:$T$42,FeedTables!$C$45:$T$45,,-1) -> 1.430641806 | E58: =_xlfn.XLOOKUP($B58,FeedTables!$C$42:$T$42,FeedTables!$C$46:$T$46,,-1)*_xlfn.XLOOKUP(N57,DensityMultiplier[Biomass kg/m3],DensityMultiplier[Multiplier],,-1) -> 1.990967552 | F58: 1937.792796 | G58: =IF(A58<='S1-Standard'!$C$7,('Growth-Model-1'!G57*EXP($AA$7)),0) -> 0.002732137989 | H58: =IF(A58<='S1-Standard'!$C$7,$AD$6*EXP($AD$7*('S1-Standard'!C$7-'Growth-Model-1'!A58)),0) -> 1.865754169e-07 | I58: 87.20993678 | J58: 0.04306663545 | K58: 0.4603169333 | L58: 4.334962421 | M58: 326.4615224 | N58: =M58/'S1-Standard'!$C$17 -> 12.0911675 | O58: 9.298804042 | P58: 351.3993138 | Q58: =_xlfn.XLOOKUP(B58,FeedTables!$C$17:$T$17,FeedTables!$C$31:$T$31,,-1) -> Unga 4mm | R58: =_xlfn.XLOOKUP(Q58,FeedPrice[Feed],FeedPrice[Price per kg],"Unknown",0)*O58 -> 923.6511353 | S58: 35994.76458 | T58: =_xlfn.XLOOKUP(O58,LabourFromFeed[Feed Quantity (kg)],LabourFromFeed[No. Labour],"Out of range",-1) -> 1 | U58: =T58*OperatingCosts!$C$9 -> 1200 | V58: 68400
A59: 57 | B59: =IF(A59<='S1-Standard'!$C$7, B58*EXP((LN((E58/100)+1))*1),) -> 171.8250095 | C59: =_xlfn.XLOOKUP($B59,FeedTables!$C$42:$T$42,FeedTables!$C$44:$T$44,,-1) -> 2.547905751 | D59: =_xlfn.XLOOKUP($B59,FeedTables!$C$42:$T$42,FeedTables!$C$45:$T$45,,-1) -> 1.464174805 | E59: =_xlfn.XLOOKUP($B59,FeedTables!$C$42:$T$42,FeedTables!$C$46:$T$46,,-1)*_xlfn.XLOOKUP(N58,DensityMultiplier[Biomass kg/m3],DensityMultiplier[Multiplier],,-1) -> 1.740165001 | F59: 1937.790063 | G59: =IF(A59<='S1-Standard'!$C$7,('Growth-Model-1'!G58*EXP($AA$7)),0) -> 0.00235157296 | H59: =IF(A59<='S1-Standard'!$C$7,$AD$6*EXP($AD$7*('S1-Standard'!C$7-'Growth-Model-1'!A59)),0) -> 2.278837288e-07 | I59: 87.21228858 | J59: 0.04306779683 | K59: 0.4040982022 | L59: 4.335366519 | M59: 332.9607959 | N59: =M59/'S1-Standard'!$C$17 -> 12.33188133 | O59: 8.483527267 | P59: 359.8828411 | Q59: =_xlfn.XLOOKUP(B59,FeedTables!$C$17:$T$17,FeedTables!$C$31:$T$31,,-1) -> Unga 4mm | R59: =_xlfn.XLOOKUP(Q59,FeedPrice[Feed],FeedPrice[Price per kg],"Unknown",0)*O59 -> 842.6696118 | S59: 36837.43419 | T59: =_xlfn.XLOOKUP(O59,LabourFromFeed[Feed Quantity (kg)],LabourFromFeed[No. Labour],"Out of range",-1) -> 1 | U59: =T59*OperatingCosts!$C$9 -> 1200 | V59: 69600
A60: 58 | B60: =IF(A60<='S1-Standard'!$C$7, B59*EXP((LN((E59/100)+1))*1),) -> 174.8150481 | C60: =_xlfn.XLOOKUP($B60,FeedTables!$C$42:$T$42,FeedTables!$C$44:$T$44,,-1) -> 2.547905751 | D60: =_xlfn.XLOOKUP($B60,FeedTables!$C$42:$T$42,FeedTables!$C$45:$T$45,,-1) -> 1.464174805 | E60: =_xlfn.XLOOKUP($B60,FeedTables!$C$42:$T$42,FeedTables!$C$46:$T$46,,-1)*_xlfn.XLOOKUP(N59,DensityMultiplier[Biomass kg/m3],DensityMultiplier[Multiplier],,-1) -> 1.740165001 | F60: 1937.787711 | G60: =IF(A60<='S1-Standard'!$C$7,('Growth-Model-1'!G59*EXP($AA$7)),0) -> 0.002024017603 | H60: =IF(A60<='S1-Standard'!$C$7,$AD$6*EXP($AD$7*('S1-Standard'!C$7-'Growth-Model-1'!A60)),0) -> 2.783378149e-07 | I60: 87.21431288 | J60: 0.04306879648 | K60: 0.3538773924 | L60: 4.335720396 | M60: 338.754452 | N60: =M60/'S1-Standard'!$C$17 -> 12.54646119 | O60: 8.631144164 | P60: 368.5139852 | Q60: =_xlfn.XLOOKUP(B60,FeedTables!$C$17:$T$17,FeedTables!$C$31:$T$31,,-1) -> Unga 4mm | R60: =_xlfn.XLOOKUP(Q60,FeedPrice[Feed],FeedPrice[Price per kg],"Unknown",0)*O60 -> 857.3324129 | S60: 37694.7666 | T60: =_xlfn.XLOOKUP(O60,LabourFromFeed[Feed Quantity (kg)],LabourFromFeed[No. Labour],"Out of range",-1) -> 1 | U60: =T60*OperatingCosts!$C$9 -> 1200 | V60: 70800
A61: 59 | B61: =IF(A61<='S1-Standard'!$C$7, B60*EXP((LN((E60/100)+1))*1),) -> 177.8571184 | C61: =_xlfn.XLOOKUP($B61,FeedTables!$C$42:$T$42,FeedTables!$C$44:$T$44,,-1) -> 2.547905751 | D61: =_xlfn.XLOOKUP($B61,FeedTables!$C$42:$T$42,FeedTables!$C$45:$T$45,,-1) -> 1.464174805 | E61: =_xlfn.XLOOKUP($B61,FeedTables!$C$42:$T$42,FeedTables!$C$46:$T$46,,-1)*_xlfn.XLOOKUP(N60,DensityMultiplier[Biomass kg/m3],DensityMultiplier[Multiplier],,-1) -> 1.740165001 | F61: 1937.785687 | G61: =IF(A61<='S1-Standard'!$C$7,('Growth-Model-1'!G60*EXP($AA$7)),0) -> 0.001742088096 | H61: =IF(A61<='S1-Standard'!$C$7,$AD$6*EXP($AD$7*('S1-Standard'!C$7-'Growth-Model-1'!A61)),0) -> 3.399625748e-07 | I61: 87.21605531 | J61: 0.04306965694 | K61: 0.3099032335 | L61: 4.3360303 | M61: 344.6489784 | N61: =M61/'S1-Standard'!$C$17 -> 12.76477698 | O61: 8.78133114 | P61: 377.2953164 | Q61: =_xlfn.XLOOKUP(B61,FeedTables!$C$17:$T$17,FeedTables!$C$31:$T$31,,-1) -> Unga 4mm | R61: =_xlfn.XLOOKUP(Q61,FeedPrice[Feed],FeedPrice[Price per kg],"Unknown",0)*O61 -> 872.2505003 | S61: 38567.0171 | T61: =_xlfn.XLOOKUP(O61,LabourFromFeed[Feed Quantity (kg)],LabourFromFeed[No. Labour],"Out of range",-1) -> 1 | U61: =T61*OperatingCosts!$C$9 -> 1200 | V61: 72000
A62: 60 | B62: =IF(A62<='S1-Standard'!$C$7, B61*EXP((LN((E61/100)+1))*1),) -> 180.9521257 | C62: =_xlfn.XLOOKUP($B62,FeedTables!$C$42:$T$42,FeedTables!$C$44:$T$44,,-1) -> 2.547905751 | D62: =_xlfn.XLOOKUP($B62,FeedTables!$C$42:$T$42,FeedTables!$C$45:$T$45,,-1) -> 1.464174805 | E62: =_xlfn.XLOOKUP($B62,FeedTables!$C$42:$T$42,FeedTables!$C$46:$T$46,,-1)*_xlfn.XLOOKUP(N61,DensityMultiplier[Biomass kg/m3],DensityMultiplier[Multiplier],,-1) -> 1.740165001 | F62: 1937.783945 | G62: =IF(A62<='S1-Standard'!$C$7,('Growth-Model-1'!G61*EXP($AA$7)),0) -> 0.00149942912 | H62: =IF(A62<='S1-Standard'!$C$7,$AD$6*EXP($AD$7*('S1-Standard'!C$7-'Growth-Model-1'!A62)),0) -> 4.152312266e-07 | I62: 87.21755515 | J62: 0.04307039761 | K62: 0.2714000236 | L62: 4.3363017 | M62: 350.646124 | N62: =M62/'S1-Standard'!$C$17 -> 12.98689348 | O62: 8.934132758 | P62: 386.2294491 | Q62: =_xlfn.XLOOKUP(B62,FeedTables!$C$17:$T$17,FeedTables!$C$31:$T$31,,-1) -> Unga 4mm | R62: =_xlfn.XLOOKUP(Q62,FeedPrice[Feed],FeedPrice[Price per kg],"Unknown",0)*O62 -> 887.4283003 | S62: 39454.4454 | T62: =_xlfn.XLOOKUP(O62,LabourFromFeed[Feed Quantity (kg)],LabourFromFeed[No. Labour],"Out of range",-1) -> 1 | U62: =T62*OperatingCosts!$C$9 -> 1200 | V62: 73200
A63: 61 | B63: =IF(A63<='S1-Standard'!$C$7, B62*EXP((LN((E62/100)+1))*1),) -> 184.1009913 | C63: =_xlfn.XLOOKUP($B63,FeedTables!$C$42:$T$42,FeedTables!$C$44:$T$44,,-1) -> 2.547905751 | D63: =_xlfn.XLOOKUP($B63,FeedTables!$C$42:$T$42,FeedTables!$C$45:$T$45,,-1) -> 1.464174805 | E63: =_xlfn.XLOOKUP($B63,FeedTables!$C$42:$T$42,FeedTables!$C$46:$T$46,,-1)*_xlfn.XLOOKUP(N62,DensityMultiplier[Biomass kg/m3],DensityMultiplier[Multiplier],,-1) -> 1.740165001 | F63: 1937.782445 | G63: =IF(A63<='S1-Standard'!$C$7,('Growth-Model-1'!G62*EXP($AA$7)),0) -> 0.001290570603 | H63: =IF(A63<='S1-Standard'!$C$7,$AD$6*EXP($AD$7*('S1-Standard'!C$7-'Growth-Model-1'!A63)),0) -> 5.071645654e-07 | I63: 87.21884623 | J63: 0.04307103518 | K63: 0.2376886969 | L63: 4.336539388 | M63: 356.747669 | N63: =M63/'S1-Standard'!$C$17 -> 13.21287663 | O63: 9.089594374 | P63: 395.3190435 | Q63: =_xlfn.XLOOKUP(B63,FeedTables!$C$17:$T$17,FeedTables!$C$31:$T$31,,-1) -> Unga 4mm | R63: =_xlfn.XLOOKUP(Q63,FeedPrice[Feed],FeedPrice[Price per kg],"Unknown",0)*O63 -> 902.8703181 | S63: 40357.31572 | T63: =_xlfn.XLOOKUP(O63,LabourFromFeed[Feed Quantity (kg)],LabourFromFeed[No. Labour],"Out of range",-1) -> 1 | U63: =T63*OperatingCosts!$C$9 -> 1200 | V63: 74400
A64: 62 | B64: =IF(A64<='S1-Standard'!$C$7, B63*EXP((LN((E63/100)+1))*1),) -> 187.3046523 | C64: =_xlfn.XLOOKUP($B64,FeedTables!$C$42:$T$42,FeedTables!$C$44:$T$44,,-1) -> 2.547905751 | D64: =_xlfn.XLOOKUP($B64,FeedTables!$C$42:$T$42,FeedTables!$C$45:$T$45,,-1) -> 1.464174805 | E64: =_xlfn.XLOOKUP($B64,FeedTables!$C$42:$T$42,FeedTables!$C$46:$T$46,,-1)*_xlfn.XLOOKUP(N63,DensityMultiplier[Biomass kg/m3],DensityMultiplier[Multiplier],,-1) -> 1.740165001 | F64: 1937.781154 | G64: =IF(A64<='S1-Standard'!$C$7,('Growth-Model-1'!G63*EXP($AA$7)),0) -> 0.001110804412 | H64: =IF(A64<='S1-Standard'!$C$7,$AD$6*EXP($AD$7*('S1-Standard'!C$7-'Growth-Model-1'!A64)),0) -> 6.19452199e-07 | I64: 87.21995765 | J64: 0.04307158403 | K64: 0.2081748606 | L64: 4.336747563 | M64: 362.9554253 | N64: =M64/'S1-Standard'!$C$17 -> 13.44279353 | O64: 9.247762153 | P64: 404.5668057 | Q64: =_xlfn.XLOOKUP(B64,FeedTables!$C$17:$T$17,FeedTables!$C$31:$T$31,,-1) -> Unga 4mm | R64: =_xlfn.XLOOKUP(Q64,FeedPrice[Feed],FeedPrice[Price per kg],"Unknown",0)*O64 -> 918.5811394 | S64: 41275.89686 | T64: =_xlfn.XLOOKUP(O64,LabourFromFeed[Feed Quantity (kg)],LabourFromFeed[No. Labour],"Out of range",-1) -> 1 | U64: =T64*OperatingCosts!$C$9 -> 1200 | V64: 75600
A65: 63 | B65: =IF(A65<='S1-Standard'!$C$7, B64*EXP((LN((E64/100)+1))*1),) -> 190.5640623 | C65: =_xlfn.XLOOKUP($B65,FeedTables!$C$42:$T$42,FeedTables!$C$44:$T$44,,-1) -> 2.547905751 | D65: =_xlfn.XLOOKUP($B65,FeedTables!$C$42:$T$42,FeedTables!$C$45:$T$45,,-1) -> 1.464174805 | E65: =_xlfn.XLOOKUP($B65,FeedTables!$C$42:$T$42,FeedTables!$C$46:$T$46,,-1)*_xlfn.XLOOKUP(N64,DensityMultiplier[Biomass kg/m3],DensityMultiplier[Multiplier],,-1) -> 1.740165001 | F65: 1937.780042 | G65: =IF(A65<='S1-Standard'!$C$7,('Growth-Model-1'!G64*EXP($AA$7)),0) -> 0.0009560782181 | H65: =IF(A65<='S1-Standard'!$C$7,$AD$6*EXP($AD$7*('S1-Standard'!C$7-'Growth-Model-1'!A65)),0) -> 7.566006244e-07 | I65: 87.22091449 | J65: 0.04307205654 | K65: 0.18233833 | L65: 4.336929902 | M65: 369.2712368 | N65: =M65/'S1-Standard'!$C$17 -> 13.67671247 | O65: 9.408683077 | P65: 413.9754887 | Q65: =_xlfn.XLOOKUP(B65,FeedTables!$C$17:$T$17,FeedTables!$C$31:$T$31,,-1) -> Unga 4mm | R65: =_xlfn.XLOOKUP(Q65,FeedPrice[Feed],FeedPrice[Price per kg],"Unknown",0)*O65 -> 934.5654309 | S65: 42210.46229 | T65: =_xlfn.XLOOKUP(O65,LabourFromFeed[Feed Quantity (kg)],LabourFromFeed[No. Labour],"Out of range",-1) -> 1 | U65: =T65*OperatingCosts!$C$9 -> 1200 | V65: 76800
A66: 64 | B66: =IF(A66<='S1-Standard'!$C$7, B65*EXP((LN((E65/100)+1))*1),) -> 193.8801914 | C66: =_xlfn.XLOOKUP($B66,FeedTables!$C$42:$T$42,FeedTables!$C$44:$T$44,,-1) -> 2.547905751 | D66: =_xlfn.XLOOKUP($B66,FeedTables!$C$42:$T$42,FeedTables!$C$45:$T$45,,-1) -> 1.464174805 | E66: =_xlfn.XLOOKUP($B66,FeedTables!$C$42:$T$42,FeedTables!$C$46:$T$46,,-1)*_xlfn.XLOOKUP(N65,DensityMultiplier[Biomass kg/m3],DensityMultiplier[Multiplier],,-1) -> 1.740165001 | F66: 1937.779086 | G66: =IF(A66<='S1-Standard'!$C$7,('Growth-Model-1'!G65*EXP($AA$7)),0) -> 0.0008229041484 | H66: =IF(A66<='S1-Standard'!$C$7,$AD$6*EXP($AD$7*('S1-Standard'!C$7-'Growth-Model-1'!A66)),0) -> 9.241140895e-07 | I66: 87.22173832 | J66: 0.04307246337 | K66: 0.1597239812 | L66: 4.337089626 | M66: =(B66*F66)/1000 -> 375.6969801 | N66: =M66/'S1-Standard'!$C$17 -> 13.91470297 | O66: =M66*(C66/100) -> 9.57240496 | P66: 423.5478937 | Q66: =_xlfn.XLOOKUP(B66,FeedTables!$C$17:$T$17,FeedTables!$C$31:$T$31,,-1) -> Unga 4mm | R66: =_xlfn.XLOOKUP(Q66,FeedPrice[Feed],FeedPrice[Price per kg],"Unknown",0)*O66 -> 950.8279419 | S66: 43161.29023 | T66: =_xlfn.XLOOKUP(O66,LabourFromFeed[Feed Quantity (kg)],LabourFromFeed[No. Labour],"Out of range",-1) -> 1 | U66: =T66*OperatingCosts!$C$9 -> 1200 | V66: 78000
A67: 65 | B67: =IF(A67<='S1-Standard'!$C$7, B66*EXP((LN((E66/100)+1))*1),) -> 197.2540267 | C67: =_xlfn.XLOOKUP($B67,FeedTables!$C$42:$T$42,FeedTables!$C$44:$T$44,,-1) -> 2.547905751 | D67: =_xlfn.XLOOKUP($B67,FeedTables!$C$42:$T$42,FeedTables!$C$45:$T$45,,-1) -> 1.464174805 | E67: =_xlfn.XLOOKUP($B67,FeedTables!$C$42:$T$42,FeedTables!$C$46:$T$46,,-1)*_xlfn.XLOOKUP(N66,DensityMultiplier[Biomass kg/m3],DensityMultiplier[Multiplier],,-1) -> 1.740165001 | F67: 1937.778262 | G67: =IF(A67<='S1-Standard'!$C$7,('Growth-Model-1'!G66*EXP($AA$7)),0) -> 0.0007082801643 | H67: =IF(A67<='S1-Standard'!$C$7,$AD$6*EXP($AD$7*('S1-Standard'!C$7-'Growth-Model-1'!A67)),0) -> 1.128715498e-06 | I67: 87.22244773 | J67: =I67/$F$2 -> 0.04307281369 | K67: =(G67+H67)*B67 -> 0.1399337581 | L67: 4.337229559 | M67: 382.2345649 | N67: =M67/'S1-Standard'!$C$17 -> 14.15683574 | O67: 9.73897646 | P67: 433.2868702 | Q67: =_xlfn.XLOOKUP(B67,FeedTables!$C$17:$T$17,FeedTables!$C$31:$T$31,,-1) -> Unga 4mm | R67: =_xlfn.XLOOKUP(Q67,FeedPrice[Feed],FeedPrice[Price per kg],"Unknown",0)*O67 -> 967.3735057 | S67: 44128.66374 | T67: =_xlfn.XLOOKUP(O67,LabourFromFeed[Feed Quantity (kg)],LabourFromFeed[No. Labour],"Out of range",-1) -> 1 | U67: =T67*OperatingCosts!$C$9 -> 1200 | V67: 79200
A68: 66 | B68: =IF(A68<='S1-Standard'!$C$7, B67*EXP((LN((E67/100)+1))*1),) -> 200.6865722 | C68: =_xlfn.XLOOKUP($B68,FeedTables!$C$42:$T$42,FeedTables!$C$44:$T$44,,-1) -> 2.547905751 | D68: =_xlfn.XLOOKUP($B68,FeedTables!$C$42:$T$42,FeedTables!$C$45:$T$45,,-1) -> 1.464174805 | E68: =_xlfn.XLOOKUP($B68,FeedTables!$C$42:$T$42,FeedTables!$C$46:$T$46,,-1)*_xlfn.XLOOKUP(N67,DensityMultiplier[Biomass kg/m3],DensityMultiplier[Multiplier],,-1) -> 1.740165001 | F68: 1937.777552 | G68: =IF(A68<='S1-Standard'!$C$7,('Growth-Model-1'!G67*EXP($AA$7)),0) -> 0.000609622387 | H68: =IF(A68<='S1-Standard'!$C$7,$AD$6*EXP($AD$7*('S1-Standard'!C$7-'Growth-Model-1'!A68)),0) -> 1.378616222e-06 | I68: =I67+G68+H68 -> 87.22305873 | J68: 0.04307311542 | K68: 0.122619697 | L68: =(K68/1000)+L67 -> 4.337352179 | M68: 388.8859347 | N68: =M68/'S1-Standard'!$C$17 -> 14.40318277 | O68: 9.908447093 | P68: =O68+P67 -> 443.1953173 | Q68: =_xlfn.XLOOKUP(B68,FeedTables!$C$17:$T$17,FeedTables!$C$31:$T$31,,-1) -> Unga 4mm | R68: =_xlfn.XLOOKUP(Q68,FeedPrice[Feed],FeedPrice[Price per kg],"Unknown",0)*O68 -> 984.2070406 | S68: =R68+S67 -> 45112.87078 | T68: =_xlfn.XLOOKUP(O68,LabourFromFeed[Feed Quantity (kg)],LabourFromFeed[No. Labour],"Out of range",-1) -> 1 | U68: =T68*OperatingCosts!$C$9 -> 1200 | V68: =U68+V67 -> 80400
A69: 67 | B69: =IF(A69<='S1-Standard'!$C$7, B68*EXP((LN((E68/100)+1))*1),) -> 204.1788497 | C69: =_xlfn.XLOOKUP($B69,FeedTables!$C$42:$T$42,FeedTables!$C$44:$T$44,,-1) -> 2.547905751 | D69: =_xlfn.XLOOKUP($B69,FeedTables!$C$42:$T$42,FeedTables!$C$45:$T$45,,-1) -> 1.464174805 | E69: =_xlfn.XLOOKUP($B69,FeedTables!$C$42:$T$42,FeedTables!$C$46:$T$46,,-1)*_xlfn.XLOOKUP(N68,DensityMultiplier[Biomass kg/m3],DensityMultiplier[Multiplier],,-1) -> 1.740165001 | F69: =F68-G68-H68 -> 1937.776941 | G69: =IF(A69<='S1-Standard'!$C$7,('Growth-Model-1'!G68*EXP($AA$7)),0) -> 0.0005247068511 | H69: =IF(A69<='S1-Standard'!$C$7,$AD$6*EXP($AD$7*('S1-Standard'!C$7-'Growth-Model-1'!A69)),0) -> 1.683845656e-06 | I69: 87.22358512 | J69: 0.04307337537 | K69: 0.107477847 | L69: 4.337459657 | M69: 395.6530669 | N69: =M69/'S1-Standard'!$C$17 -> 14.65381729 | O69: 10.08086724 | P69: 453.2761845 | Q69: =_xlfn.XLOOKUP(B69,FeedTables!$C$17:$T$17,FeedTables!$C$31:$T$31,,-1) -> Unga 4mm | R69: =_xlfn.XLOOKUP(Q69,FeedPrice[Feed],FeedPrice[Price per kg],"Unknown",0)*O69 -> 1001.333551 | S69: 46114.20433 | T69: =_xlfn.XLOOKUP(O69,LabourFromFeed[Feed Quantity (kg)],LabourFromFeed[No. Labour],"Out of range",-1) -> 1 | U69: =T69*OperatingCosts!$C$9 -> 1200 | V69: 81600
A70: 68 | B70: =IF(A70<='S1-Standard'!$C$7, B69*EXP((LN((E69/100)+1))*1),) -> 207.7318986 | C70: =_xlfn.XLOOKUP($B70,FeedTables!$C$42:$T$42,FeedTables!$C$44:$T$44,,-1) -> 2.547905751 | D70: =_xlfn.XLOOKUP($B70,FeedTables!$C$42:$T$42,FeedTables!$C$45:$T$45,,-1) -> 1.464174805 | E70: =_xlfn.XLOOKUP($B70,FeedTables!$C$42:$T$42,FeedTables!$C$46:$T$46,,-1)*_xlfn.XLOOKUP(N69,DensityMultiplier[Biomass kg/m3],DensityMultiplier[Multiplier],,-1) -> 1.740165001 | F70: 1937.776415 | G70: =IF(A70<='S1-Standard'!$C$7,('Growth-Model-1'!G69*EXP($AA$7)),0) -> 0.000451619372 | H70: =IF(A70<='S1-Standard'!$C$7,$AD$6*EXP($AD$7*('S1-Standard'!C$7-'Growth-Model-1'!A70)),0) -> 2.056653729e-06 | I70: 87.22403879 | J70: 0.0430735994 | K70: 0.09424298217 | L70: 4.3375539 | M70: 402.5379737 | N70: =M70/'S1-Standard'!$C$17 -> 14.90881384 | O70: 10.25628818 | P70: 463.5324727 | Q70: =_xlfn.XLOOKUP(B70,FeedTables!$C$17:$T$17,FeedTables!$C$31:$T$31,,-1) -> Unga 4mm | R70: =_xlfn.XLOOKUP(Q70,FeedPrice[Feed],FeedPrice[Price per kg],"Unknown",0)*O70 -> 1018.758131 | S70: 47132.96246 | T70: =_xlfn.XLOOKUP(O70,LabourFromFeed[Feed Quantity (kg)],LabourFromFeed[No. Labour],"Out of range",-1) -> 1 | U70: =T70*OperatingCosts!$C$9 -> 1200 | V70: 82800
A71: 69 | B71: =IF(A71<='S1-Standard'!$C$7, B70*EXP((LN((E70/100)+1))*1),) -> 211.3467764 | C71: =_xlfn.XLOOKUP($B71,FeedTables!$C$42:$T$42,FeedTables!$C$44:$T$44,,-1) -> 2.547905751 | D71: =_xlfn.XLOOKUP($B71,FeedTables!$C$42:$T$42,FeedTables!$C$45:$T$45,,-1) -> 1.464174805 | E71: =_xlfn.XLOOKUP($B71,FeedTables!$C$42:$T$42,FeedTables!$C$46:$T$46,,-1)*_xlfn.XLOOKUP(N70,DensityMultiplier[Biomass kg/m3],DensityMultiplier[Multiplier],,-1) -> 1.740165001 | F71: 1937.775961 | G71: =IF(A71<='S1-Standard'!$C$7,('Growth-Model-1'!G70*EXP($AA$7)),0) -> 0.0003887123958 | H71: =IF(A71<='S1-Standard'!$C$7,$AD$6*EXP($AD$7*('S1-Standard'!C$7-'Growth-Model-1'!A71)),0) -> 2.512002537e-06 | I71: 87.22443002 | J71: 0.0430737926 | K71: 0.08268401543 | L71: 4.337636584 | M71: 409.5427028 | N71: =M71/'S1-Standard'!$C$17 -> 15.16824825 | O71: 10.43476207 | P71: 473.9672348 | Q71: =_xlfn.XLOOKUP(B71,FeedTables!$C$17:$T$17,FeedTables!$C$31:$T$31,,-1) -> Unga 4mm | R71: =_xlfn.XLOOKUP(Q71,FeedPrice[Feed],FeedPrice[Price per kg],"Unknown",0)*O71 -> 1036.48596 | S71: 48169.44842 | T71: =_xlfn.XLOOKUP(O71,LabourFromFeed[Feed Quantity (kg)],LabourFromFeed[No. Labour],"Out of range",-1) -> 1 | U71: =T71*OperatingCosts!$C$9 -> 1200 | V71: 84000
A72: 70 | B72: =IF(A72<='S1-Standard'!$C$7, B71*EXP((LN((E71/100)+1))*1),) -> 215.024559 | C72: =_xlfn.XLOOKUP($B72,FeedTables!$C$42:$T$42,FeedTables!$C$44:$T$44,,-1) -> 2.547905751 | D72: =_xlfn.XLOOKUP($B72,FeedTables!$C$42:$T$42,FeedTables!$C$45:$T$45,,-1) -> 1.464174805 | E72: =_xlfn.XLOOKUP($B72,FeedTables!$C$42:$T$42,FeedTables!$C$46:$T$46,,-1)*_xlfn.XLOOKUP(N71,DensityMultiplier[Biomass kg/m3],DensityMultiplier[Multiplier],,-1) -> 1.740165001 | F72: 1937.77557 | G72: =IF(A72<='S1-Standard'!$C$7,('Growth-Model-1'!G71*EXP($AA$7)),0) -> 0.0003345678596 | H72: =IF(A72<='S1-Standard'!$C$7,$AD$6*EXP($AD$7*('S1-Standard'!C$7-'Growth-Model-1'!A72)),0) -> 3.068166827e-06 | I72: 87.22476765 | J72: 0.04307395934 | K72: 0.07260003769 | L72: 4.337709184 | M72: 416.6693374 | N72: =M72/'S1-Standard'!$C$17 -> 15.43219768 | O72: 10.61634201 | P72: 484.5835768 | Q72: =_xlfn.XLOOKUP(B72,FeedTables!$C$17:$T$17,FeedTables!$C$31:$T$31,,-1) -> Unga 4mm | R72: =_xlfn.XLOOKUP(Q72,FeedPrice[Feed],FeedPrice[Price per kg],"Unknown",0)*O72 -> 1054.522313 | S72: 49223.97074 | T72: =_xlfn.XLOOKUP(O72,LabourFromFeed[Feed Quantity (kg)],LabourFromFeed[No. Labour],"Out of range",-1) -> 1 | U72: =T72*OperatingCosts!$C$9 -> 1200 | V72: 85200
A73: 71 | B73: =IF(A73<='S1-Standard'!$C$7, B72*EXP((LN((E72/100)+1))*1),) -> 218.7663411 | C73: =_xlfn.XLOOKUP($B73,FeedTables!$C$42:$T$42,FeedTables!$C$44:$T$44,,-1) -> 2.547905751 | D73: =_xlfn.XLOOKUP($B73,FeedTables!$C$42:$T$42,FeedTables!$C$45:$T$45,,-1) -> 1.464174805 | E73: =_xlfn.XLOOKUP($B73,FeedTables!$C$42:$T$42,FeedTables!$C$46:$T$46,,-1)*_xlfn.XLOOKUP(N72,DensityMultiplier[Biomass kg/m3],DensityMultiplier[Multiplier],,-1) -> 1.740165001 | F73: 1937.775232 | G73: =IF(A73<='S1-Standard'!$C$7,('Growth-Model-1'!G72*EXP($AA$7)),0) -> 0.0002879652254 | H73: =IF(A73<='S1-Standard'!$C$7,$AD$6*EXP($AD$7*('S1-Standard'!C$7-'Growth-Model-1'!A73)),0) -> 3.747467425e-06 | I73: 87.22505937 | J73: 0.04307410339 | K73: 0.06381691848 | L73: 4.337773001 | M73: 423.9199975 | N73: =M73/'S1-Standard'!$C$17 -> 15.70074065 | O73: 10.80108199 | P73: 495.3846588 | Q73: =_xlfn.XLOOKUP(B73,FeedTables!$C$17:$T$17,FeedTables!$C$31:$T$31,,-1) -> Unga 4mm | R73: =_xlfn.XLOOKUP(Q73,FeedPrice[Feed],FeedPrice[Price per kg],"Unknown",0)*O73 -> 1072.872555 | S73: 50296.84329 | T73: =_xlfn.XLOOKUP(O73,LabourFromFeed[Feed Quantity (kg)],LabourFromFeed[No. Labour],"Out of range",-1) -> 1 | U73: =T73*OperatingCosts!$C$9 -> 1200 | V73: 86400
A74: 72 | B74: =IF(A74<='S1-Standard'!$C$7, B73*EXP((LN((E73/100)+1))*1),) -> 222.5732364 | C74: =_xlfn.XLOOKUP($B74,FeedTables!$C$42:$T$42,FeedTables!$C$44:$T$44,,-1) -> 2.547905751 | D74: =_xlfn.XLOOKUP($B74,FeedTables!$C$42:$T$42,FeedTables!$C$45:$T$45,,-1) -> 1.464174805 | E74: =_xlfn.XLOOKUP($B74,FeedTables!$C$42:$T$42,FeedTables!$C$46:$T$46,,-1)*_xlfn.XLOOKUP(N73,DensityMultiplier[Biomass kg/m3],DensityMultiplier[Multiplier],,-1) -> 1.740165001 | F74: 1937.774941 | G74: =IF(A74<='S1-Standard'!$C$7,('Growth-Model-1'!G73*EXP($AA$7)),0) -> 0.0002478539664 | H74: =IF(A74<='S1-Standard'!$C$7,$AD$6*EXP($AD$7*('S1-Standard'!C$7-'Growth-Model-1'!A74)),0) -> 4.577167049e-06 | I74: 87.2253118 | J74: 0.04307422805 | K74: 0.05618441436 | L74: 4.337829185 | M74: 431.29684 | N74: =M74/'S1-Standard'!$C$17 -> 15.97395704 | O74: 10.98903699 | P74: 506.3736957 | Q74: =_xlfn.XLOOKUP(B74,FeedTables!$C$17:$T$17,FeedTables!$C$31:$T$31,,-1) -> Unga 4mm | R74: =_xlfn.XLOOKUP(Q74,FeedPrice[Feed],FeedPrice[Price per kg],"Unknown",0)*O74 -> 1091.542143 | S74: 51388.38543 | T74: =_xlfn.XLOOKUP(O74,LabourFromFeed[Feed Quantity (kg)],LabourFromFeed[No. Labour],"Out of range",-1) -> 1 | U74: =T74*OperatingCosts!$C$9 -> 1200 | V74: 87600
A75: 73 | B75: =IF(A75<='S1-Standard'!$C$7, B74*EXP((LN((E74/100)+1))*1),) -> 226.446378 | C75: =_xlfn.XLOOKUP($B75,FeedTables!$C$42:$T$42,FeedTables!$C$44:$T$44,,-1) -> 2.547905751 | D75: =_xlfn.XLOOKUP($B75,FeedTables!$C$42:$T$42,FeedTables!$C$45:$T$45,,-1) -> 1.464174805 | E75: =_xlfn.XLOOKUP($B75,FeedTables!$C$42:$T$42,FeedTables!$C$46:$T$46,,-1)*_xlfn.XLOOKUP(N74,DensityMultiplier[Biomass kg/m3],DensityMultiplier[Multiplier],,-1) -> 1.740165001 | F75: 1937.774688 | G75: =IF(A75<='S1-Standard'!$C$7,('Growth-Model-1'!G74*EXP($AA$7)),0) -> 0.0002133298859 | H75: =IF(A75<='S1-Standard'!$C$7,$AD$6*EXP($AD$7*('S1-Standard'!C$7-'Growth-Model-1'!A75)),0) -> 5.590564458e-06 | I75: 87.22553072 | J75: 0.04307433616 | K75: 0.04957374306 | L75: 4.337878759 | M75: 438.8020595 | N75: =M75/'S1-Standard'!$C$17 -> 16.25192813 | O75: 11.18026291 | P75: 517.5539587 | Q75: =_xlfn.XLOOKUP(B75,FeedTables!$C$17:$T$17,FeedTables!$C$31:$T$31,,-1) -> Unga 4mm | R75: =_xlfn.XLOOKUP(Q75,FeedPrice[Feed],FeedPrice[Price per kg],"Unknown",0)*O75 -> 1110.536633 | S75: 52498.92207 | T75: =_xlfn.XLOOKUP(O75,LabourFromFeed[Feed Quantity (kg)],LabourFromFeed[No. Labour],"Out of range",-1) -> 1 | U75: =T75*OperatingCosts!$C$9 -> 1200 | V75: 88800
A76: 74 | B76: =IF(A76<='S1-Standard'!$C$7, B75*EXP((LN((E75/100)+1))*1),) -> 230.3869186 | C76: =_xlfn.XLOOKUP($B76,FeedTables!$C$42:$T$42,FeedTables!$C$44:$T$44,,-1) -> 2.209351174 | D76: =_xlfn.XLOOKUP($B76,FeedTables!$C$42:$T$42,FeedTables!$C$45:$T$45,,-1) -> 1.501959914 | E76: =_xlfn.XLOOKUP($B76,FeedTables!$C$42:$T$42,FeedTables!$C$46:$T$46,,-1)*_xlfn.XLOOKUP(N75,DensityMultiplier[Biomass kg/m3],DensityMultiplier[Multiplier],,-1) -> 1.470978788 | F76: 1937.774469 | G76: =IF(A76<='S1-Standard'!$C$7,('Growth-Model-1'!G75*EXP($AA$7)),0) -> 0.0001836147344 | H76: =IF(A76<='S1-Standard'!$C$7,$AD$6*EXP($AD$7*('S1-Standard'!C$7-'Growth-Model-1'!A76)),0) -> 6.828330849e-06 | I76: 87.22572116 | J76: 0.0430744302 | K76: 0.04387559098 | L76: 4.337922635 | M76: 446.437889 | N76: =M76/'S1-Standard'!$C$17 -> 16.53473663 | O76: 9.863380741 | P76: 527.4173394 | Q76: =_xlfn.XLOOKUP(B76,FeedTables!$C$17:$T$17,FeedTables!$C$31:$T$31,,-1) -> Unga 4mm | R76: =_xlfn.XLOOKUP(Q76,FeedPrice[Feed],FeedPrice[Price per kg],"Unknown",0)*O76 -> 979.7305954 | S76: 53478.65266 | T76: =_xlfn.XLOOKUP(O76,LabourFromFeed[Feed Quantity (kg)],LabourFromFeed[No. Labour],"Out of range",-1) -> 1 | U76: =T76*OperatingCosts!$C$9 -> 1200 | V76: 90000
A77: 75 | B77: =IF(A77<='S1-Standard'!$C$7, B76*EXP((LN((E76/100)+1))*1),) -> 233.7758613 | C77: =_xlfn.XLOOKUP($B77,FeedTables!$C$42:$T$42,FeedTables!$C$44:$T$44,,-1) -> 2.209351174 | D77: =_xlfn.XLOOKUP($B77,FeedTables!$C$42:$T$42,FeedTables!$C$45:$T$45,,-1) -> 1.501959914 | E77: =_xlfn.XLOOKUP($B77,FeedTables!$C$42:$T$42,FeedTables!$C$46:$T$46,,-1)*_xlfn.XLOOKUP(N76,DensityMultiplier[Biomass kg/m3],DensityMultiplier[Multiplier],,-1) -> 1.470978788 | F77: 1937.774279 | G77: =IF(A77<='S1-Standard'!$C$7,('Growth-Model-1'!G76*EXP($AA$7)),0) -> 0.0001580386665 | H77: =IF(A77<='S1-Standard'!$C$7,$AD$6*EXP($AD$7*('S1-Standard'!C$7-'Growth-Model-1'!A77)),0) -> 8.340142133e-06 | I77: 87.22588754 | J77: 0.04307451237 | K77: 0.03889534929 | L77: 4.33796153 | M77: 453.0048511 | N77: =M77/'S1-Standard'!$C$17 -> 16.77795745 | O77: 10.008468 | P77: 537.4258074 | Q77: =_xlfn.XLOOKUP(B77,FeedTables!$C$17:$T$17,FeedTables!$C$31:$T$31,,-1) -> Unga 4mm | R77: =_xlfn.XLOOKUP(Q77,FeedPrice[Feed],FeedPrice[Price per kg],"Unknown",0)*O77 -> 994.1421269 | S77: 54472.79479 | T77: =_xlfn.XLOOKUP(O77,LabourFromFeed[Feed Quantity (kg)],LabourFromFeed[No. Labour],"Out of range",-1) -> 1 | U77: =T77*OperatingCosts!$C$9 -> 1200 | V77: 91200
A78: 76 | B78: =IF(A78<='S1-Standard'!$C$7, B77*EXP((LN((E77/100)+1))*1),) -> 237.2146547 | C78: =_xlfn.XLOOKUP($B78,FeedTables!$C$42:$T$42,FeedTables!$C$44:$T$44,,-1) -> 2.209351174 | D78: =_xlfn.XLOOKUP($B78,FeedTables!$C$42:$T$42,FeedTables!$C$45:$T$45,,-1) -> 1.501959914 | E78: =_xlfn.XLOOKUP($B78,FeedTables!$C$42:$T$42,FeedTables!$C$46:$T$46,,-1)*_xlfn.XLOOKUP(N77,DensityMultiplier[Biomass kg/m3],DensityMultiplier[Multiplier],,-1) -> 1.470978788 | F78: 1937.774112 | G78: =IF(A78<='S1-Standard'!$C$7,('Growth-Model-1'!G77*EXP($AA$7)),0) -> 0.0001360251408 | H78: =IF(A78<='S1-Standard'!$C$7,$AD$6*EXP($AD$7*('S1-Standard'!C$7-'Growth-Model-1'!A78)),0) -> 1.01866726e-05 | I78: 87.22603375 | J78: 0.04307458457 | K78: 0.03468358483 | L78: 4.337996214 | M78: 459.6684169 | N78: =M78/'S1-Standard'!$C$17 -> 17.02475618 | O78: 10.15568957 | P78: 547.581497 | Q78: =_xlfn.XLOOKUP(B78,FeedTables!$C$17:$T$17,FeedTables!$C$31:$T$31,,-1) -> Unga 4mm | R78: =_xlfn.XLOOKUP(Q78,FeedPrice[Feed],FeedPrice[Price per kg],"Unknown",0)*O78 -> 1008.76566 | S78: 55481.56045 | T78: =_xlfn.XLOOKUP(O78,LabourFromFeed[Feed Quantity (kg)],LabourFromFeed[No. Labour],"Out of range",-1) -> 1 | U78: =T78*OperatingCosts!$C$9 -> 1200 | V78: 92400
A79: 77 | B79: =IF(A79<='S1-Standard'!$C$7, B78*EXP((LN((E78/100)+1))*1),) -> 240.7040319 | C79: =_xlfn.XLOOKUP($B79,FeedTables!$C$42:$T$42,FeedTables!$C$44:$T$44,,-1) -> 2.209351174 | D79: =_xlfn.XLOOKUP($B79,FeedTables!$C$42:$T$42,FeedTables!$C$45:$T$45,,-1) -> 1.501959914 | E79: =_xlfn.XLOOKUP($B79,FeedTables!$C$42:$T$42,FeedTables!$C$46:$T$46,,-1)*_xlfn.XLOOKUP(N78,DensityMultiplier[Biomass kg/m3],DensityMultiplier[Multiplier],,-1) -> 1.470978788 | F79: 1937.773966 | G79: =IF(A79<='S1-Standard'!$C$7,('Growth-Model-1'!G78*EXP($AA$7)),0) -> 0.0001170779237 | H79: =IF(A79<='S1-Standard'!$C$7,$AD$6*EXP($AD$7*('S1-Standard'!C$7-'Growth-Model-1'!A79)),0) -> 1.244203002e-05 | I79: 87.22616327 | J79: 0.04307464853 | K79: 0.03117597508 | L79: 4.338027389 | M79: 466.4300066 | N79: =M79/'S1-Standard'!$C$17 -> 17.27518543 | O79: 10.30507683 | P79: 557.8865738 | Q79: =_xlfn.XLOOKUP(B79,FeedTables!$C$17:$T$17,FeedTables!$C$31:$T$31,,-1) -> Unga 4mm | R79: =_xlfn.XLOOKUP(Q79,FeedPrice[Feed],FeedPrice[Price per kg],"Unknown",0)*O79 -> 1023.604312 | S79: 56505.16476 | T79: =_xlfn.XLOOKUP(O79,LabourFromFeed[Feed Quantity (kg)],LabourFromFeed[No. Labour],"Out of range",-1) -> 1 | U79: =T79*OperatingCosts!$C$9 -> 1200 | V79: 93600
A80: 78 | B80: =IF(A80<='S1-Standard'!$C$7, B79*EXP((LN((E79/100)+1))*1),) -> 244.2447372 | C80: =_xlfn.XLOOKUP($B80,FeedTables!$C$42:$T$42,FeedTables!$C$44:$T$44,,-1) -> 2.209351174 | D80: =_xlfn.XLOOKUP($B80,FeedTables!$C$42:$T$42,FeedTables!$C$45:$T$45,,-1) -> 1.501959914 | E80: =_xlfn.XLOOKUP($B80,FeedTables!$C$42:$T$42,FeedTables!$C$46:$T$46,,-1)*_xlfn.XLOOKUP(N79,DensityMultiplier[Biomass kg/m3],DensityMultiplier[Multiplier],,-1) -> 1.470978788 | F80: 1937.773837 | G80: =IF(A80<='S1-Standard'!$C$7,('Growth-Model-1'!G79*EXP($AA$7)),0) -> 0.0001007699028 | H80: =IF(A80<='S1-Standard'!$C$7,$AD$6*EXP($AD$7*('S1-Standard'!C$7-'Growth-Model-1'!A80)),0) -> 1.519672978e-05 | I80: 87.22627924 | J80: 0.0430747058 | K80: 0.02832423969 | L80: 4.338055714 | M80: 473.2910614 | N80: =M80/'S1-Standard'!$C$17 -> 17.52929857 | O80: 10.45666162 | P80: 568.3432354 | Q80: =_xlfn.XLOOKUP(B80,FeedTables!$C$17:$T$17,FeedTables!$C$31:$T$31,,-1) -> Unga 4mm | R80: =_xlfn.XLOOKUP(Q80,FeedPrice[Feed],FeedPrice[Price per kg],"Unknown",0)*O80 -> 1038.661245 | S80: 57543.82601 | T80: =_xlfn.XLOOKUP(O80,LabourFromFeed[Feed Quantity (kg)],LabourFromFeed[No. Labour],"Out of range",-1) -> 1 | U80: =T80*OperatingCosts!$C$9 -> 1200 | V80: 94800
A81: 79 | B81: =IF(A81<='S1-Standard'!$C$7, B80*EXP((LN((E80/100)+1))*1),) -> 247.8375254 | C81: =_xlfn.XLOOKUP($B81,FeedTables!$C$42:$T$42,FeedTables!$C$44:$T$44,,-1) -> 2.209351174 | D81: =_xlfn.XLOOKUP($B81,FeedTables!$C$42:$T$42,FeedTables!$C$45:$T$45,,-1) -> 1.501959914 | E81: =_xlfn.XLOOKUP($B81,FeedTables!$C$42:$T$42,FeedTables!$C$46:$T$46,,-1)*_xlfn.XLOOKUP(N80,DensityMultiplier[Biomass kg/m3],DensityMultiplier[Multiplier],,-1) -> 1.470978788 | F81: 1937.773721 | G81: =IF(A81<='S1-Standard'!$C$7,('Growth-Model-1'!G80*EXP($AA$7)),0) -> 8.673345913e-05 | H81: =IF(A81<='S1-Standard'!$C$7,$AD$6*EXP($AD$7*('S1-Standard'!C$7-'Growth-Model-1'!A81)),0) -> 1.856132767e-05 | I81: 87.22638453 | J81: 0.04307475779 | K81: 0.0260959994 | L81: 4.33808181 | M81: 480.2530438 | N81: =M81/'S1-Standard'!$C$17 -> 17.78714977 | O81: 10.61047626 | P81: 578.9537117 | Q81: =_xlfn.XLOOKUP(B81,FeedTables!$C$17:$T$17,FeedTables!$C$31:$T$31,,-1) -> Unga 4mm | R81: =_xlfn.XLOOKUP(Q81,FeedPrice[Feed],FeedPrice[Price per kg],"Unknown",0)*O81 -> 1053.939668 | S81: 58597.76567 | T81: =_xlfn.XLOOKUP(O81,LabourFromFeed[Feed Quantity (kg)],LabourFromFeed[No. Labour],"Out of range",-1) -> 1 | U81: =T81*OperatingCosts!$C$9 -> 1200 | V81: 96000
A82: 80 | B82: =IF(A82<='S1-Standard'!$C$7, B81*EXP((LN((E81/100)+1))*1),) -> 251.4831629 | C82: =_xlfn.XLOOKUP($B82,FeedTables!$C$42:$T$42,FeedTables!$C$44:$T$44,,-1) -> 2.209351174 | D82: =_xlfn.XLOOKUP($B82,FeedTables!$C$42:$T$42,FeedTables!$C$45:$T$45,,-1) -> 1.501959914 | E82: =_xlfn.XLOOKUP($B82,FeedTables!$C$42:$T$42,FeedTables!$C$46:$T$46,,-1)*_xlfn.XLOOKUP(N81,DensityMultiplier[Biomass kg/m3],DensityMultiplier[Multiplier],,-1) -> 1.470978788 | F82: 1937.773615 | G82: =IF(A82<='S1-Standard'!$C$7,('Growth-Model-1'!G81*EXP($AA$7)),0) -> 7.465218009e-05 | H82: =IF(A82<='S1-Standard'!$C$7,$AD$6*EXP($AD$7*('S1-Standard'!C$7-'Growth-Model-1'!A82)),0) -> 2.267085681e-05 | I82: 87.22648186 | J82: 0.04307480586 | K82: 0.02447510514 | L82: 4.338106285 | M82: 487.3174377 | N82: =M82/'S1-Standard'!$C$17 -> 18.04879399 | O82: 10.76655353 | P82: 589.7202652 | Q82: =_xlfn.XLOOKUP(B82,FeedTables!$C$17:$T$17,FeedTables!$C$31:$T$31,,-1) -> Unga 4mm | R82: =_xlfn.XLOOKUP(Q82,FeedPrice[Feed],FeedPrice[Price per kg],"Unknown",0)*O82 -> 1069.442839 | S82: 59667.20851 | T82: =_xlfn.XLOOKUP(O82,LabourFromFeed[Feed Quantity (kg)],LabourFromFeed[No. Labour],"Out of range",-1) -> 1 | U82: =T82*OperatingCosts!$C$9 -> 1200 | V82: 97200
A83: 81 | B83: =IF(A83<='S1-Standard'!$C$7, B82*EXP((LN((E82/100)+1))*1),) -> 255.1824269 | C83: =_xlfn.XLOOKUP($B83,FeedTables!$C$42:$T$42,FeedTables!$C$44:$T$44,,-1) -> 2.209351174 | D83: =_xlfn.XLOOKUP($B83,FeedTables!$C$42:$T$42,FeedTables!$C$45:$T$45,,-1) -> 1.501959914 | E83: =_xlfn.XLOOKUP($B83,FeedTables!$C$42:$T$42,FeedTables!$C$46:$T$46,,-1)*_xlfn.XLOOKUP(N82,DensityMultiplier[Biomass kg/m3],DensityMultiplier[Multiplier],,-1) -> 1.470978788 | F83: 1937.773518 | G83: =IF(A83<='S1-Standard'!$C$7,('Growth-Model-1'!G82*EXP($AA$7)),0) -> 6.425372686e-05 | H83: =IF(A83<='S1-Standard'!$C$7,$AD$6*EXP($AD$7*('S1-Standard'!C$7-'Growth-Model-1'!A83)),0) -> 2.769024703e-05 | I83: 87.2265738 | J83: 0.04307485126 | K83: 0.02346248639 | L83: 4.338129747 | M83: 494.4857491 | N83: =M83/'S1-Standard'!$C$17 -> 18.314287 | O83: 10.9249267 | P83: 600.6451919 | Q83: =_xlfn.XLOOKUP(B83,FeedTables!$C$17:$T$17,FeedTables!$C$31:$T$31,,-1) -> Unga 4mm | R83: =_xlfn.XLOOKUP(Q83,FeedPrice[Feed],FeedPrice[Price per kg],"Unknown",0)*O83 -> 1085.174062 | S83: 60752.38257 | T83: =_xlfn.XLOOKUP(O83,LabourFromFeed[Feed Quantity (kg)],LabourFromFeed[No. Labour],"Out of range",-1) -> 1 | U83: =T83*OperatingCosts!$C$9 -> 1200 | V83: 98400
A84: 82 | B84: =IF(A84<='S1-Standard'!$C$7, B83*EXP((LN((E83/100)+1))*1),) -> 258.9361062 | C84: =_xlfn.XLOOKUP($B84,FeedTables!$C$42:$T$42,FeedTables!$C$44:$T$44,,-1) -> 2.209351174 | D84: =_xlfn.XLOOKUP($B84,FeedTables!$C$42:$T$42,FeedTables!$C$45:$T$45,,-1) -> 1.501959914 | E84: =_xlfn.XLOOKUP($B84,FeedTables!$C$42:$T$42,FeedTables!$C$46:$T$46,,-1)*_xlfn.XLOOKUP(N83,DensityMultiplier[Biomass kg/m3],DensityMultiplier[Multiplier],,-1) -> 1.470978788 | F84: 1937.773426 | G84: =IF(A84<='S1-Standard'!$C$7,('Growth-Model-1'!G83*EXP($AA$7)),0) -> 5.530369523e-05 | H84: =IF(A84<='S1-Standard'!$C$7,$AD$6*EXP($AD$7*('S1-Standard'!C$7-'Growth-Model-1'!A84)),0) -> 3.38209441e-05 | I84: 87.22666293 | J84: 0.04307489527 | K84: 0.02307758708 | L84: 4.338152825 | M84: 501.7595057 | N84: =M84/'S1-Standard'!$C$17 -> 18.5836854 | O84: 11.08562953 | P84: 611.7308214 | Q84: =_xlfn.XLOOKUP(B84,FeedTables!$C$17:$T$17,FeedTables!$C$31:$T$31,,-1) -> Unga 4mm | R84: =_xlfn.XLOOKUP(Q84,FeedPrice[Feed],FeedPrice[Price per kg],"Unknown",0)*O84 -> 1101.13669 | S84: 61853.51926 | T84: =_xlfn.XLOOKUP(O84,LabourFromFeed[Feed Quantity (kg)],LabourFromFeed[No. Labour],"Out of range",-1) -> 1 | U84: =T84*OperatingCosts!$C$9 -> 1200 | V84: 99600
A85: 83 | B85: =IF(A85<='S1-Standard'!$C$7, B84*EXP((LN((E84/100)+1))*1),) -> 262.7450014 | C85: =_xlfn.XLOOKUP($B85,FeedTables!$C$42:$T$42,FeedTables!$C$44:$T$44,,-1) -> 2.209351174 | D85: =_xlfn.XLOOKUP($B85,FeedTables!$C$42:$T$42,FeedTables!$C$45:$T$45,,-1) -> 1.501959914 | E85: =_xlfn.XLOOKUP($B85,FeedTables!$C$42:$T$42,FeedTables!$C$46:$T$46,,-1)*_xlfn.XLOOKUP(N84,DensityMultiplier[Biomass kg/m3],DensityMultiplier[Multiplier],,-1) -> 1.470978788 | F85: 1937.773337 | G85: =IF(A85<='S1-Standard'!$C$7,('Growth-Model-1'!G84*EXP($AA$7)),0) -> 4.760033161e-05 | H85: =IF(A85<='S1-Standard'!$C$7,$AD$6*EXP($AD$7*('S1-Standard'!C$7-'Growth-Model-1'!A85)),0) -> 4.130899441e-05 | I85: 87.22675183 | J85: 0.04307493918 | K85: 0.02336048099 | L85: 4.338176185 | M85: 509.1402582 | N85: =M85/'S1-Standard'!$C$17 -> 18.8570466 | O85: 11.24869627 | P85: 622.9795177 | Q85: =_xlfn.XLOOKUP(B85,FeedTables!$C$17:$T$17,FeedTables!$C$31:$T$31,,-1) -> Unga 4mm | R85: =_xlfn.XLOOKUP(Q85,FeedPrice[Feed],FeedPrice[Price per kg],"Unknown",0)*O85 -> 1117.334126 | S85: 62970.85339 | T85: =_xlfn.XLOOKUP(O85,LabourFromFeed[Feed Quantity (kg)],LabourFromFeed[No. Labour],"Out of range",-1) -> 1 | U85: =T85*OperatingCosts!$C$9 -> 1200 | V85: 100800
A86: 84 | B86: =IF(A86<='S1-Standard'!$C$7, B85*EXP((LN((E85/100)+1))*1),) -> 266.6099247 | C86: =_xlfn.XLOOKUP($B86,FeedTables!$C$42:$T$42,FeedTables!$C$44:$T$44,,-1) -> 2.209351174 | D86: =_xlfn.XLOOKUP($B86,FeedTables!$C$42:$T$42,FeedTables!$C$45:$T$45,,-1) -> 1.501959914 | E86: =_xlfn.XLOOKUP($B86,FeedTables!$C$42:$T$42,FeedTables!$C$46:$T$46,,-1)*_xlfn.XLOOKUP(N85,DensityMultiplier[Biomass kg/m3],DensityMultiplier[Multiplier],,-1) -> 1.470978788 | F86: 1937.773248 | G86: =IF(A86<='S1-Standard'!$C$7,('Growth-Model-1'!G85*EXP($AA$7)),0) -> 4.096998509e-05 | H86: =IF(A86<='S1-Standard'!$C$7,$AD$6*EXP($AD$7*('S1-Standard'!C$7-'Growth-Model-1'!A86)),0) -> 5.045491971e-05 | I86: 87.22684326 | J86: 0.04307498433 | K86: 0.02437478698 | L86: 4.33820056 | M86: 516.6295797 | N86: =M86/'S1-Standard'!$C$17 -> 19.13442888 | O86: 11.41416168 | P86: 634.3936794 | Q86: =_xlfn.XLOOKUP(B86,FeedTables!$C$17:$T$17,FeedTables!$C$31:$T$31,,-1) -> Unga 4mm | R86: =_xlfn.XLOOKUP(Q86,FeedPrice[Feed],FeedPrice[Price per kg],"Unknown",0)*O86 -> 1133.769822 | S86: 64104.62321 | T86: =_xlfn.XLOOKUP(O86,LabourFromFeed[Feed Quantity (kg)],LabourFromFeed[No. Labour],"Out of range",-1) -> 1 | U86: =T86*OperatingCosts!$C$9 -> 1200 | V86: 102000
A87: 85 | B87: =IF(A87<='S1-Standard'!$C$7, B86*EXP((LN((E86/100)+1))*1),) -> 270.5317001 | C87: =_xlfn.XLOOKUP($B87,FeedTables!$C$42:$T$42,FeedTables!$C$44:$T$44,,-1) -> 2.209351174 | D87: =_xlfn.XLOOKUP($B87,FeedTables!$C$42:$T$42,FeedTables!$C$45:$T$45,,-1) -> 1.501959914 | E87: =_xlfn.XLOOKUP($B87,FeedTables!$C$42:$T$42,FeedTables!$C$46:$T$46,,-1)*_xlfn.XLOOKUP(N86,DensityMultiplier[Biomass kg/m3],DensityMultiplier[Multiplier],,-1) -> 1.470978788 | F87: 1937.773157 | G87: =IF(A87<='S1-Standard'!$C$7,('Growth-Model-1'!G86*EXP($AA$7)),0) -> 3.526319297e-05 | H87: =IF(A87<='S1-Standard'!$C$7,$AD$6*EXP($AD$7*('S1-Standard'!C$7-'Growth-Model-1'!A87)),0) -> 6.162577809e-05 | I87: 87.22694015 | J87: 0.04307503217 | K87: 0.02621153806 | L87: 4.338226772 | M87: 524.2290665 | N87: =M87/'S1-Standard'!$C$17 -> 19.41589135 | O87: 11.58206104 | P87: 645.9757404 | Q87: =_xlfn.XLOOKUP(B87,FeedTables!$C$17:$T$17,FeedTables!$C$31:$T$31,,-1) -> Unga 4mm | R87: =_xlfn.XLOOKUP(Q87,FeedPrice[Feed],FeedPrice[Price per kg],"Unknown",0)*O87 -> 1150.447281 | S87: 65255.07049 | T87: =_xlfn.XLOOKUP(O87,LabourFromFeed[Feed Quantity (kg)],LabourFromFeed[No. Labour],"Out of range",-1) -> 1 | U87: =T87*OperatingCosts!$C$9 -> 1200 | V87: 103200
A88: 86 | B88: =IF(A88<='S1-Standard'!$C$7, B87*EXP((LN((E87/100)+1))*1),) -> 274.511164 | C88: =_xlfn.XLOOKUP($B88,FeedTables!$C$42:$T$42,FeedTables!$C$44:$T$44,,-1) -> 2.209351174 | D88: =_xlfn.XLOOKUP($B88,FeedTables!$C$42:$T$42,FeedTables!$C$45:$T$45,,-1) -> 1.501959914 | E88: =_xlfn.XLOOKUP($B88,FeedTables!$C$42:$T$42,FeedTables!$C$46:$T$46,,-1)*_xlfn.XLOOKUP(N87,DensityMultiplier[Biomass kg/m3],DensityMultiplier[Multiplier],,-1) -> 1.470978788 | F88: 1937.77306 | G88: =IF(A88<='S1-Standard'!$C$7,('Growth-Model-1'!G87*EXP($AA$7)),0) -> 3.035131146e-05 | H88: =IF(A88<='S1-Standard'!$C$7,$AD$6*EXP($AD$7*('S1-Standard'!C$7-'Growth-Model-1'!A88)),0) -> 7.526989534e-05 | I88: 87.22704577 | J88: 0.04307508433 | K88: 0.02899420042 | L88: 4.338255766 | M88: 531.9403383 | N88: =M88/'S1-Standard'!$C$17 -> 19.70149401 | O88: 11.75243011 | P88: 657.7281705 | Q88: =_xlfn.XLOOKUP(B88,FeedTables!$C$17:$T$17,FeedTables!$C$31:$T$31,,-1) -> Unga 4mm | R88: =_xlfn.XLOOKUP(Q88,FeedPrice[Feed],FeedPrice[Price per kg],"Unknown",0)*O88 -> 1167.370058 | S88: 66422.44055 | T88: =_xlfn.XLOOKUP(O88,LabourFromFeed[Feed Quantity (kg)],LabourFromFeed[No. Labour],"Out of range",-1) -> 1 | U88: =T88*OperatingCosts!$C$9 -> 1200 | V88: 104400
A89: 87 | B89: =IF(A89<='S1-Standard'!$C$7, B88*EXP((LN((E88/100)+1))*1),) -> 278.549165 | C89: =_xlfn.XLOOKUP($B89,FeedTables!$C$42:$T$42,FeedTables!$C$44:$T$44,,-1) -> 2.209351174 | D89: =_xlfn.XLOOKUP($B89,FeedTables!$C$42:$T$42,FeedTables!$C$45:$T$45,,-1) -> 1.501959914 | E89: =_xlfn.XLOOKUP($B89,FeedTables!$C$42:$T$42,FeedTables!$C$46:$T$46,,-1)*_xlfn.XLOOKUP(N88,DensityMultiplier[Biomass kg/m3],DensityMultiplier[Multiplier],,-1) -> 1.470978788 | F89: 1937.772954 | G89: =IF(A89<='S1-Standard'!$C$7,('Growth-Model-1'!G88*EXP($AA$7)),0) -> 2.612361587e-05 | H89: =IF(A89<='S1-Standard'!$C$7,$AD$6*EXP($AD$7*('S1-Standard'!C$7-'Growth-Model-1'!A89)),0) -> 9.193485777e-05 | I89: 87.22716383 | J89: 0.04307514263 | K89: 0.03288508926 | L89: 4.338288651 | M89: 539.7650384 | N89: =M89/'S1-Standard'!$C$17 -> 19.99129772 | O89: 11.92530521 | P89: 669.6534757 | Q89: =_xlfn.XLOOKUP(B89,FeedTables!$C$17:$T$17,FeedTables!$C$31:$T$31,,-1) -> Unga 4mm | R89: =_xlfn.XLOOKUP(Q89,FeedPrice[Feed],FeedPrice[Price per kg],"Unknown",0)*O89 -> 1184.541759 | S89: 67606.98231 | T89: =_xlfn.XLOOKUP(O89,LabourFromFeed[Feed Quantity (kg)],LabourFromFeed[No. Labour],"Out of range",-1) -> 1 | U89: =T89*OperatingCosts!$C$9 -> 1200 | V89: 105600
A90: 88 | B90: =IF(A90<='S1-Standard'!$C$7, B89*EXP((LN((E89/100)+1))*1),) -> 282.6465642 | C90: =_xlfn.XLOOKUP($B90,FeedTables!$C$42:$T$42,FeedTables!$C$44:$T$44,,-1) -> 2.209351174 | D90: =_xlfn.XLOOKUP($B90,FeedTables!$C$42:$T$42,FeedTables!$C$45:$T$45,,-1) -> 1.501959914 | E90: =_xlfn.XLOOKUP($B90,FeedTables!$C$42:$T$42,FeedTables!$C$46:$T$46,,-1)*_xlfn.XLOOKUP(N89,DensityMultiplier[Biomass kg/m3],DensityMultiplier[Multiplier],,-1) -> 1.470978788 | F90: 1937.772836 | G90: =IF(A90<='S1-Standard'!$C$7,('Growth-Model-1'!G89*EXP($AA$7)),0) -> 2.248480455e-05 | H90: =IF(A90<='S1-Standard'!$C$7,$AD$6*EXP($AD$7*('S1-Standard'!C$7-'Growth-Model-1'!A90)),0) -> 0.0001122894889 | I90: 87.2272986 | J90: 0.04307520919 | K90: 0.03809349097 | L90: 4.338326744 | M90: 547.7048343 | N90: =M90/'S1-Standard'!$C$17 -> 20.28536423 | O90: 12.10072319 | P90: 681.7541989 | Q90: =_xlfn.XLOOKUP(B90,FeedTables!$C$17:$T$17,FeedTables!$C$31:$T$31,,-1) -> Unga 4mm | R90: =_xlfn.XLOOKUP(Q90,FeedPrice[Feed],FeedPrice[Price per kg],"Unknown",0)*O90 -> 1201.966044 | S90: 68808.94835 | T90: =_xlfn.XLOOKUP(O90,LabourFromFeed[Feed Quantity (kg)],LabourFromFeed[No. Labour],"Out of range",-1) -> 1 | U90: =T90*OperatingCosts!$C$9 -> 1200 | V90: 106800
A91: 89 | B91: =IF(A91<='S1-Standard'!$C$7, B90*EXP((LN((E90/100)+1))*1),) -> 286.8042352 | C91: =_xlfn.XLOOKUP($B91,FeedTables!$C$42:$T$42,FeedTables!$C$44:$T$44,,-1) -> 2.209351174 | D91: =_xlfn.XLOOKUP($B91,FeedTables!$C$42:$T$42,FeedTables!$C$45:$T$45,,-1) -> 1.501959914 | E91: =_xlfn.XLOOKUP($B91,FeedTables!$C$42:$T$42,FeedTables!$C$46:$T$46,,-1)*_xlfn.XLOOKUP(N90,DensityMultiplier[Biomass kg/m3],DensityMultiplier[Multiplier],,-1) -> 1.470978788 | F91: 1937.772701 | G91: =IF(A91<='S1-Standard'!$C$7,('Growth-Model-1'!G90*EXP($AA$7)),0) -> 1.935285063e-05 | H91: =IF(A91<='S1-Standard'!$C$7,$AD$6*EXP($AD$7*('S1-Standard'!C$7-'Growth-Model-1'!A91)),0) -> 0.0001371506914 | I91: 87.22745511 | J91: 0.04307528647 | K91: 0.04488587867 | L91: 4.33837163 | M91: 555.7614175 | N91: =M91/'S1-Standard'!$C$17 -> 20.5837562 | O91: 12.2787214 | P91: 694.0329203 | Q91: =_xlfn.XLOOKUP(B91,FeedTables!$C$17:$T$17,FeedTables!$C$31:$T$31,,-1) -> Unga 4mm | R91: =_xlfn.XLOOKUP(Q91,FeedPrice[Feed],FeedPrice[Price per kg],"Unknown",0)*O91 -> 1219.646625 | S91: 70028.59498 | T91: =_xlfn.XLOOKUP(O91,LabourFromFeed[Feed Quantity (kg)],LabourFromFeed[No. Labour],"Out of range",-1) -> 1 | U91: =T91*OperatingCosts!$C$9 -> 1200 | V91: 108000
A92: 90 | B92: =IF(A92<='S1-Standard'!$C$7, B91*EXP((LN((E91/100)+1))*1),) -> 291.0230646 | C92: =_xlfn.XLOOKUP($B92,FeedTables!$C$42:$T$42,FeedTables!$C$44:$T$44,,-1) -> 2.209351174 | D92: =_xlfn.XLOOKUP($B92,FeedTables!$C$42:$T$42,FeedTables!$C$45:$T$45,,-1) -> 1.501959914 | E92: =_xlfn.XLOOKUP($B92,FeedTables!$C$42:$T$42,FeedTables!$C$46:$T$46,,-1)*_xlfn.XLOOKUP(N91,DensityMultiplier[Biomass kg/m3],DensityMultiplier[Multiplier],,-1) -> 1.470978788 | F92: 1937.772545 | G92: =IF(A92<='S1-Standard'!$C$7,('Growth-Model-1'!G91*EXP($AA$7)),0) -> 1.66571529e-05 | H92: =IF(A92<='S1-Standard'!$C$7,$AD$6*EXP($AD$7*('S1-Standard'!C$7-'Growth-Model-1'!A92)),0) -> 0.0001675162328 | I92: 87.22763928 | J92: 0.04307537742 | K92: 0.05359870311 | L92: 4.338425229 | M92: 563.9365046 | N92: =M92/'S1-Standard'!$C$17 -> 20.88653721 | O92: 12.45933778 | P92: 706.4922581 | Q92: =_xlfn.XLOOKUP(B92,FeedTables!$C$17:$T$17,FeedTables!$C$31:$T$31,,-1) -> Unga 4mm | R92: =_xlfn.XLOOKUP(Q92,FeedPrice[Feed],FeedPrice[Price per kg],"Unknown",0)*O92 -> 1237.587268 | S92: 71266.18225 | T92: =_xlfn.XLOOKUP(O92,LabourFromFeed[Feed Quantity (kg)],LabourFromFeed[No. Labour],"Out of range",-1) -> 1 | U92: =T92*OperatingCosts!$C$9 -> 1200 | V92: 109200
A93: 91 | B93: =IF(A93<='S1-Standard'!$C$7, B92*EXP((LN((E92/100)+1))*1),) -> 295.3039522 | C93: =_xlfn.XLOOKUP($B93,FeedTables!$C$42:$T$42,FeedTables!$C$44:$T$44,,-1) -> 2.209351174 | D93: =_xlfn.XLOOKUP($B93,FeedTables!$C$42:$T$42,FeedTables!$C$45:$T$45,,-1) -> 1.501959914 | E93: =_xlfn.XLOOKUP($B93,FeedTables!$C$42:$T$42,FeedTables!$C$46:$T$46,,-1)*_xlfn.XLOOKUP(N92,DensityMultiplier[Biomass kg/m3],DensityMultiplier[Multiplier],,-1) -> 1.470978788 | F93: 1937.772361 | G93: =IF(A93<='S1-Standard'!$C$7,('Growth-Model-1'!G92*EXP($AA$7)),0) -> 1.433694437e-05 | H93: =IF(A93<='S1-Standard'!$C$7,$AD$6*EXP($AD$7*('S1-Standard'!C$7-'Growth-Model-1'!A93)),0) -> 0.0002046047887 | I93: 87.22785822 | J93: 0.04307548554 | K93: 0.06465435908 | L93: 4.338489883 | M93: 572.2318365 | N93: =M93/'S1-Standard'!$C$17 -> 21.19377172 | O93: 12.6426108 | P93: 719.1348689 | Q93: =_xlfn.XLOOKUP(B93,FeedTables!$C$17:$T$17,FeedTables!$C$31:$T$31,,-1) -> Unga 4mm | R93: =_xlfn.XLOOKUP(Q93,FeedPrice[Feed],FeedPrice[Price per kg],"Unknown",0)*O93 -> 1255.791795 | S93: 72521.97404 | T93: =_xlfn.XLOOKUP(O93,LabourFromFeed[Feed Quantity (kg)],LabourFromFeed[No. Labour],"Out of range",-1) -> 1 | U93: =T93*OperatingCosts!$C$9 -> 1200 | V93: 110400
A94: 92 | B94: =IF(A94<='S1-Standard'!$C$7, B93*EXP((LN((E93/100)+1))*1),) -> 299.6478107 | C94: =_xlfn.XLOOKUP($B94,FeedTables!$C$42:$T$42,FeedTables!$C$44:$T$44,,-1) -> 2.209351174 | D94: =_xlfn.XLOOKUP($B94,FeedTables!$C$42:$T$42,FeedTables!$C$45:$T$45,,-1) -> 1.501959914 | E94: =_xlfn.XLOOKUP($B94,FeedTables!$C$42:$T$42,FeedTables!$C$46:$T$46,,-1)*_xlfn.XLOOKUP(N93,DensityMultiplier[Biomass kg/m3],DensityMultiplier[Multiplier],,-1) -> 1.470978788 | F94: 1937.772142 | G94: =IF(A94<='S1-Standard'!$C$7,('Growth-Model-1'!G93*EXP($AA$7)),0) -> 1.233992237e-05 | H94: =IF(A94<='S1-Standard'!$C$7,$AD$6*EXP($AD$7*('S1-Standard'!C$7-'Growth-Model-1'!A94)),0) -> 0.0002499048533 | I94: 87.22812047 | J94: 0.04307561504 | K94: 0.07858107288 | L94: 4.338568464 | M94: 580.6491799 | N94: =M94/'S1-Standard'!$C$17 -> 21.50552518 | O94: 12.82857947 | P94: 731.9634484 | Q94: =_xlfn.XLOOKUP(B94,FeedTables!$C$17:$T$17,FeedTables!$C$31:$T$31,,-1) -> Unga 4mm | R94: =_xlfn.XLOOKUP(Q94,FeedPrice[Feed],FeedPrice[Price per kg],"Unknown",0)*O94 -> 1274.264082 | S94: 73796.23812 | T94: =_xlfn.XLOOKUP(O94,LabourFromFeed[Feed Quantity (kg)],LabourFromFeed[No. Labour],"Out of range",-1) -> 1 | U94: =T94*OperatingCosts!$C$9 -> 1200 | V94: 111600
A95: 93 | B95: =IF(A95<='S1-Standard'!$C$7, B94*EXP((LN((E94/100)+1))*1),) -> 304.0555664 | C95: =_xlfn.XLOOKUP($B95,FeedTables!$C$42:$T$42,FeedTables!$C$44:$T$44,,-1) -> 1.911763628 | D95: =_xlfn.XLOOKUP($B95,FeedTables!$C$42:$T$42,FeedTables!$C$45:$T$45,,-1) -> 1.535172809 | E95: =_xlfn.XLOOKUP($B95,FeedTables!$C$42:$T$42,FeedTables!$C$46:$T$46,,-1)*_xlfn.XLOOKUP(N94,DensityMultiplier[Biomass kg/m3],DensityMultiplier[Multiplier],,-1) -> 1.245308422 | F95: 1937.77188 | G95: =IF(A95<='S1-Standard'!$C$7,('Growth-Model-1'!G94*EXP($AA$7)),0) -> 1.062106961e-05 | H95: =IF(A95<='S1-Standard'!$C$7,$AD$6*EXP($AD$7*('S1-Standard'!C$7-'Growth-Model-1'!A95)),0) -> 0.0003052344771 | I95: 87.22843632 | J95: 0.04307577102 | K95: 0.09603763715 | L95: 4.338664502 | M95: 589.1903264 | N95: =M95/'S1-Standard'!$C$17 -> 21.82186394 | O95: 11.26392636 | P95: 743.2273748 | Q95: =_xlfn.XLOOKUP(B95,FeedTables!$C$17:$T$17,FeedTables!$C$31:$T$31,,-1) -> Unga 4mm | R95: =_xlfn.XLOOKUP(Q95,FeedPrice[Feed],FeedPrice[Price per kg],"Unknown",0)*O95 -> 1118.846932 | S95: 74915.08506 | T95: =_xlfn.XLOOKUP(O95,LabourFromFeed[Feed Quantity (kg)],LabourFromFeed[No. Labour],"Out of range",-1) -> 1 | U95: =T95*OperatingCosts!$C$9 -> 1200 | V95: 112800
A96: 94 | B96: =IF(A96<='S1-Standard'!$C$7, B95*EXP((LN((E95/100)+1))*1),) -> 307.841996 | C96: =_xlfn.XLOOKUP($B96,FeedTables!$C$42:$T$42,FeedTables!$C$44:$T$44,,-1) -> 1.911763628 | D96: =_xlfn.XLOOKUP($B96,FeedTables!$C$42:$T$42,FeedTables!$C$45:$T$45,,-1) -> 1.535172809 | E96: =_xlfn.XLOOKUP($B96,FeedTables!$C$42:$T$42,FeedTables!$C$46:$T$46,,-1)*_xlfn.XLOOKUP(N95,DensityMultiplier[Biomass kg/m3],DensityMultiplier[Multiplier],,-1) -> 1.245308422 | F96: 1937.771564 | G96: =IF(A96<='S1-Standard'!$C$7,('Growth-Model-1'!G95*EXP($AA$7)),0) -> 9.141639335e-06 | H96: =IF(A96<='S1-Standard'!$C$7,$AD$6*EXP($AD$7*('S1-Standard'!C$7-'Growth-Model-1'!A96)),0) -> 0.0003728142322 | I96: 87.22881828 | J96: 0.04307595964 | K96: 0.1175820579 | L96: 4.338782084 | M96: 596.5274659 | N96: =M96/'S1-Standard'!$C$17 -> 22.09360985 | O96: 11.40419513 | P96: 754.6315699 | Q96: =_xlfn.XLOOKUP(B96,FeedTables!$C$17:$T$17,FeedTables!$C$31:$T$31,,-1) -> Unga 4mm | R96: =_xlfn.XLOOKUP(Q96,FeedPrice[Feed],FeedPrice[Price per kg],"Unknown",0)*O96 -> 1132.779842 | S96: 76047.8649 | T96: =_xlfn.XLOOKUP(O96,LabourFromFeed[Feed Quantity (kg)],LabourFromFeed[No. Labour],"Out of range",-1) -> 1 | U96: =T96*OperatingCosts!$C$9 -> 1200 | V96: 114000
A97: 95 | B97: =IF(A97<='S1-Standard'!$C$7, B96*EXP((LN((E96/100)+1))*1),) -> 311.6755783 | C97: =_xlfn.XLOOKUP($B97,FeedTables!$C$42:$T$42,FeedTables!$C$44:$T$44,,-1) -> 1.911763628 | D97: =_xlfn.XLOOKUP($B97,FeedTables!$C$42:$T$42,FeedTables!$C$45:$T$45,,-1) -> 1.535172809 | E97: =_xlfn.XLOOKUP($B97,FeedTables!$C$42:$T$42,FeedTables!$C$46:$T$46,,-1)*_xlfn.XLOOKUP(N96,DensityMultiplier[Biomass kg/m3],DensityMultiplier[Multiplier],,-1) -> 1.245308422 | F97: 1937.771182 | G97: =IF(A97<='S1-Standard'!$C$7,('Growth-Model-1'!G96*EXP($AA$7)),0) -> 7.868281894e-06 | H97: =IF(A97<='S1-Standard'!$C$7,$AD$6*EXP($AD$7*('S1-Standard'!C$7-'Growth-Model-1'!A97)),0) -> 0.0004553563315 | I97: 87.2292815 | J97: 0.0430761884 | K97: 0.1443757992 | L97: 4.33892646 | M97: 603.9559536 | N97: =M97/'S1-Standard'!$C$17 -> 22.36873902 | O97: 11.54621025 | P97: 766.1777801 | Q97: =_xlfn.XLOOKUP(B97,FeedTables!$C$17:$T$17,FeedTables!$C$31:$T$31,,-1) -> Unga 4mm | R97: =_xlfn.XLOOKUP(Q97,FeedPrice[Feed],FeedPrice[Price per kg],"Unknown",0)*O97 -> 1146.886219 | S97: 77194.75112 | T97: =_xlfn.XLOOKUP(O97,LabourFromFeed[Feed Quantity (kg)],LabourFromFeed[No. Labour],"Out of range",-1) -> 1 | U97: =T97*OperatingCosts!$C$9 -> 1200 | V97: 115200
A98: 96 | B98: =IF(A98<='S1-Standard'!$C$7, B97*EXP((LN((E97/100)+1))*1),) -> 315.5569005 | C98: =_xlfn.XLOOKUP($B98,FeedTables!$C$42:$T$42,FeedTables!$C$44:$T$44,,-1) -> 1.911763628 | D98: =_xlfn.XLOOKUP($B98,FeedTables!$C$42:$T$42,FeedTables!$C$45:$T$45,,-1) -> 1.535172809 | E98: =_xlfn.XLOOKUP($B98,FeedTables!$C$42:$T$42,FeedTables!$C$46:$T$46,,-1)*_xlfn.XLOOKUP(N97,DensityMultiplier[Biomass kg/m3],DensityMultiplier[Multiplier],,-1) -> 1.245308422 | F98: 1937.770718 | G98: =IF(A98<='S1-Standard'!$C$7,('Growth-Model-1'!G97*EXP($AA$7)),0) -> 6.772292987e-06 | H98: =IF(A98<='S1-Standard'!$C$7,$AD$6*EXP($AD$7*('S1-Standard'!C$7-'Growth-Model-1'!A98)),0) -> 0.0005561734792 | I98: 87.22984445 | J98: 0.04307646639 | K98: 0.177641423 | L98: 4.339104101 | M98: 611.4769218 | N98: =M98/'S1-Standard'!$C$17 -> 22.6472934 | O98: 11.68999339 | P98: 777.8677735 | Q98: =_xlfn.XLOOKUP(B98,FeedTables!$C$17:$T$17,FeedTables!$C$31:$T$31,,-1) -> Unga 4mm | R98: =_xlfn.XLOOKUP(Q98,FeedPrice[Feed],FeedPrice[Price per kg],"Unknown",0)*O98 -> 1161.168212 | S98: 78355.91933 | T98: =_xlfn.XLOOKUP(O98,LabourFromFeed[Feed Quantity (kg)],LabourFromFeed[No. Labour],"Out of range",-1) -> 1 | U98: =T98*OperatingCosts!$C$9 -> 1200 | V98: 116400
A99: 97 | B99: =IF(A99<='S1-Standard'!$C$7, B98*EXP((LN((E98/100)+1))*1),) -> 319.4865572 | C99: =_xlfn.XLOOKUP($B99,FeedTables!$C$42:$T$42,FeedTables!$C$44:$T$44,,-1) -> 1.911763628 | D99: =_xlfn.XLOOKUP($B99,FeedTables!$C$42:$T$42,FeedTables!$C$45:$T$45,,-1) -> 1.535172809 | E99: =_xlfn.XLOOKUP($B99,FeedTables!$C$42:$T$42,FeedTables!$C$46:$T$46,,-1)*_xlfn.XLOOKUP(N98,DensityMultiplier[Biomass kg/m3],DensityMultiplier[Multiplier],,-1) -> 1.245308422 | F99: 1937.770156 | G99: =IF(A99<='S1-Standard'!$C$7,('Growth-Model-1'!G98*EXP($AA$7)),0) -> 5.828966592e-06 | H99: =IF(A99<='S1-Standard'!$C$7,$AD$6*EXP($AD$7*('S1-Standard'!C$7-'Growth-Model-1'!A99)),0) -> 0.0006793118215 | I99: 87.23052959 | J99: 0.04307680474 | K99: 0.2188932716 | L99: 4.339322995 | M99: 619.0915156 | N99: =M99/'S1-Standard'!$C$17 -> 22.92931539 | O99: 11.83556642 | P99: 789.7033399 | Q99: =_xlfn.XLOOKUP(B99,FeedTables!$C$17:$T$17,FeedTables!$C$31:$T$31,,-1) -> Unga 4mm | R99: =_xlfn.XLOOKUP(Q99,FeedPrice[Feed],FeedPrice[Price per kg],"Unknown",0)*O99 -> 1175.627996 | S99: 79531.54733 | T99: =_xlfn.XLOOKUP(O99,LabourFromFeed[Feed Quantity (kg)],LabourFromFeed[No. Labour],"Out of range",-1) -> 1 | U99: =T99*OperatingCosts!$C$9 -> 1200 | V99: 117600
A100: 98 | B100: =IF(A100<='S1-Standard'!$C$7, B99*EXP((LN((E99/100)+1))*1),) -> 323.4651502 | C100: =_xlfn.XLOOKUP($B100,FeedTables!$C$42:$T$42,FeedTables!$C$44:$T$44,,-1) -> 1.911763628 | D100: =_xlfn.XLOOKUP($B100,FeedTables!$C$42:$T$42,FeedTables!$C$45:$T$45,,-1) -> 1.535172809 | E100: =_xlfn.XLOOKUP($B100,FeedTables!$C$42:$T$42,FeedTables!$C$46:$T$46,,-1)*_xlfn.XLOOKUP(N99,DensityMultiplier[Biomass kg/m3],DensityMultiplier[Multiplier],,-1) -> 1.245308422 | F100: 1937.76947 | G100: =IF(A100<='S1-Standard'!$C$7,('Growth-Model-1'!G99*EXP($AA$7)),0) -> 5.01703804e-06 | H100: =IF(A100<='S1-Standard'!$C$7,$AD$6*EXP($AD$7*('S1-Standard'!C$7-'Growth-Model-1'!A100)),0) -> 0.0008297133324 | I100: 87.23136432 | J100: 0.04307721695 | K100: 0.2700061846 | L100: 4.339593001 | M100: 626.8008927 | N100: =M100/'S1-Standard'!$C$17 -> 23.21484788 | O100: 11.98295149 | P100: 801.6862914 | Q100: =_xlfn.XLOOKUP(B100,FeedTables!$C$17:$T$17,FeedTables!$C$31:$T$31,,-1) -> Unga 4mm | R100: =_xlfn.XLOOKUP(Q100,FeedPrice[Feed],FeedPrice[Price per kg],"Unknown",0)*O100 -> 1190.26777 | S100: 80721.81509 | T100: =_xlfn.XLOOKUP(O100,LabourFromFeed[Feed Quantity (kg)],LabourFromFeed[No. Labour],"Out of range",-1) -> 1 | U100: =T100*OperatingCosts!$C$9 -> 1200 | V100: 118800
A101: 99 | B101: =IF(A101<='S1-Standard'!$C$7, B100*EXP((LN((E100/100)+1))*1),) -> 327.4932889 | C101: =_xlfn.XLOOKUP($B101,FeedTables!$C$42:$T$42,FeedTables!$C$44:$T$44,,-1) -> 1.911763628 | D101: =_xlfn.XLOOKUP($B101,FeedTables!$C$42:$T$42,FeedTables!$C$45:$T$45,,-1) -> 1.535172809 | E101: =_xlfn.XLOOKUP($B101,FeedTables!$C$42:$T$42,FeedTables!$C$46:$T$46,,-1)*_xlfn.XLOOKUP(N100,DensityMultiplier[Biomass kg/m3],DensityMultiplier[Multiplier],,-1) -> 1.245308422 | F101: 1937.768636 | G101: =IF(A101<='S1-Standard'!$C$7,('Growth-Model-1'!G100*EXP($AA$7)),0) -> 4.318204659e-06 | H101: =IF(A101<='S1-Standard'!$C$7,$AD$6*EXP($AD$7*('S1-Standard'!C$7-'Growth-Model-1'!A101)),0) -> 0.001013414153 | I101: 87.23238205 | J101: 0.04307771953 | K101: 0.333300517 | L101: 4.339926301 | M101: 634.6062237 | N101: =M101/'S1-Standard'!$C$17 -> 23.50393421 | O101: 12.13217097 | P101: 813.8184624 | Q101: =_xlfn.XLOOKUP(B101,FeedTables!$C$17:$T$17,FeedTables!$C$31:$T$31,,-1) -> Unga 4mm | R101: =_xlfn.XLOOKUP(Q101,FeedPrice[Feed],FeedPrice[Price per kg],"Unknown",0)*O101 -> 1205.089755 | S101: 81926.90485 | T101: =_xlfn.XLOOKUP(O101,LabourFromFeed[Feed Quantity (kg)],LabourFromFeed[No. Labour],"Out of range",-1) -> 1 | U101: =T101*OperatingCosts!$C$9 -> 1200 | V101: 120000
A102: 100 | B102: =IF(A102<='S1-Standard'!$C$7, B101*EXP((LN((E101/100)+1))*1),) -> 331.5715904 | C102: =_xlfn.XLOOKUP($B102,FeedTables!$C$42:$T$42,FeedTables!$C$44:$T$44,,-1) -> 1.911763628 | D102: =_xlfn.XLOOKUP($B102,FeedTables!$C$42:$T$42,FeedTables!$C$45:$T$45,,-1) -> 1.535172809 | E102: =_xlfn.XLOOKUP($B102,FeedTables!$C$42:$T$42,FeedTables!$C$46:$T$46,,-1)*_xlfn.XLOOKUP(N101,DensityMultiplier[Biomass kg/m3],DensityMultiplier[Multiplier],,-1) -> 1.245308422 | F102: 1937.767618 | G102: =IF(A102<='S1-Standard'!$C$7,('Growth-Model-1'!G101*EXP($AA$7)),0) -> 3.716713194e-06 | H102: =IF(A102<='S1-Standard'!$C$7,$AD$6*EXP($AD$7*('S1-Standard'!C$7-'Growth-Model-1'!A102)),0) -> 0.001237786841 | I102: 87.23362355 | J102: 0.04307833262 | K102: 0.4116473081 | L102: 4.340337949 | M102: 642.508691 | N102: =M102/'S1-Standard'!$C$17 -> 23.79661818 | O102: 12.28324746 | P102: 826.1017099 | Q102: =_xlfn.XLOOKUP(B102,FeedTables!$C$17:$T$17,FeedTables!$C$31:$T$31,,-1) -> Unga 4mm | R102: =_xlfn.XLOOKUP(Q102,FeedPrice[Feed],FeedPrice[Price per kg],"Unknown",0)*O102 -> 1220.096199 | S102: 83147.00105 | T102: =_xlfn.XLOOKUP(O102,LabourFromFeed[Feed Quantity (kg)],LabourFromFeed[No. Labour],"Out of range",-1) -> 1 | U102: =T102*OperatingCosts!$C$9 -> 1200 | V102: 121200
A103: 101 | B103: =IF(A103<='S1-Standard'!$C$7, B102*EXP((LN((E102/100)+1))*1),) -> 335.7006794 | C103: =_xlfn.XLOOKUP($B103,FeedTables!$C$42:$T$42,FeedTables!$C$44:$T$44,,-1) -> 1.911763628 | D103: =_xlfn.XLOOKUP($B103,FeedTables!$C$42:$T$42,FeedTables!$C$45:$T$45,,-1) -> 1.535172809 | E103: =_xlfn.XLOOKUP($B103,FeedTables!$C$42:$T$42,FeedTables!$C$46:$T$46,,-1)*_xlfn.XLOOKUP(N102,DensityMultiplier[Biomass kg/m3],DensityMultiplier[Multiplier],,-1) -> 1.245308422 | F103: 1937.766376 | G103: =IF(A103<='S1-Standard'!$C$7,('Growth-Model-1'!G102*EXP($AA$7)),0) -> 3.199004692e-06 | H103: =IF(A103<='S1-Standard'!$C$7,$AD$6*EXP($AD$7*('S1-Standard'!C$7-'Growth-Model-1'!A103)),0) -> 0.001511836262 | I103: 87.23513859 | J103: 0.04307908079 | K103: 0.5085983683 | L103: 4.340846547 | M103: 650.509489 | N103: =M103/'S1-Standard'!$C$17 -> 24.09294404 | O103: 12.43620381 | P103: 838.5379137 | Q103: =_xlfn.XLOOKUP(B103,FeedTables!$C$17:$T$17,FeedTables!$C$31:$T$31,,-1) -> Unga 4mm | R103: =_xlfn.XLOOKUP(Q103,FeedPrice[Feed],FeedPrice[Price per kg],"Unknown",0)*O103 -> 1235.289368 | S103: 84382.29042 | T103: =_xlfn.XLOOKUP(O103,LabourFromFeed[Feed Quantity (kg)],LabourFromFeed[No. Labour],"Out of range",-1) -> 1 | U103: =T103*OperatingCosts!$C$9 -> 1200 | V103: 122400
A104: 102 | B104: =IF(A104<='S1-Standard'!$C$7, B103*EXP((LN((E103/100)+1))*1),) -> 339.8811882 | C104: =_xlfn.XLOOKUP($B104,FeedTables!$C$42:$T$42,FeedTables!$C$44:$T$44,,-1) -> 1.911763628 | D104: =_xlfn.XLOOKUP($B104,FeedTables!$C$42:$T$42,FeedTables!$C$45:$T$45,,-1) -> 1.535172809 | E104: =_xlfn.XLOOKUP($B104,FeedTables!$C$42:$T$42,FeedTables!$C$46:$T$46,,-1)*_xlfn.XLOOKUP(N103,DensityMultiplier[Biomass kg/m3],DensityMultiplier[Multiplier],,-1) -> 1.245308422 | F104: 1937.764861 | G104: =IF(A104<='S1-Standard'!$C$7,('Growth-Model-1'!G103*EXP($AA$7)),0) -> 2.753408855e-06 | H104: =IF(A104<='S1-Standard'!$C$7,$AD$6*EXP($AD$7*('S1-Standard'!C$7-'Growth-Model-1'!A104)),0) -> 0.00184656098 | I104: 87.2369879 | J104: 0.04307999403 | K104: 0.6285471719 | L104: 4.341475094 | M104: 658.6098236 | N104: =M104/'S1-Standard'!$C$17 -> 24.39295643 | O104: 12.59106306 | P104: 851.1289767 | Q104: =_xlfn.XLOOKUP(B104,FeedTables!$C$17:$T$17,FeedTables!$C$31:$T$31,,-1) -> Unga 4mm | R104: =_xlfn.XLOOKUP(Q104,FeedPrice[Feed],FeedPrice[Price per kg],"Unknown",0)*O104 -> 1250.671553 | S104: 85632.96197 | T104: =_xlfn.XLOOKUP(O104,LabourFromFeed[Feed Quantity (kg)],LabourFromFeed[No. Labour],"Out of range",-1) -> 1 | U104: =T104*OperatingCosts!$C$9 -> 1200 | V104: 123600
A105: 103 | B105: =IF(A105<='S1-Standard'!$C$7, B104*EXP((LN((E104/100)+1))*1),) -> 344.1137573 | C105: =_xlfn.XLOOKUP($B105,FeedTables!$C$42:$T$42,FeedTables!$C$44:$T$44,,-1) -> 1.911763628 | D105: =_xlfn.XLOOKUP($B105,FeedTables!$C$42:$T$42,FeedTables!$C$45:$T$45,,-1) -> 1.535172809 | E105: =_xlfn.XLOOKUP($B105,FeedTables!$C$42:$T$42,FeedTables!$C$46:$T$46,,-1)*_xlfn.XLOOKUP(N104,DensityMultiplier[Biomass kg/m3],DensityMultiplier[Multiplier],,-1) -> 1.245308422 | F105: 1937.763012 | G105: =IF(A105<='S1-Standard'!$C$7,('Growth-Model-1'!G104*EXP($AA$7)),0) -> 2.369880964e-06 | H105: =IF(A105<='S1-Standard'!$C$7,$AD$6*EXP($AD$7*('S1-Standard'!C$7-'Growth-Model-1'!A105)),0) -> 0.002255394674 | I105: 87.23924567 | J105: 0.04308110897 | K105: 0.7769278442 | L105: 4.342252022 | M105: 666.8109108 | N105: =M105/'S1-Standard'!$C$17 -> 24.6967004 | O105: 12.74784846 | P105: 863.8768252 | Q105: =_xlfn.XLOOKUP(B105,FeedTables!$C$17:$T$17,FeedTables!$C$31:$T$31,,-1) -> Unga 4mm | R105: =_xlfn.XLOOKUP(Q105,FeedPrice[Feed],FeedPrice[Price per kg],"Unknown",0)*O105 -> 1266.245063 | S105: 86899.20703 | T105: =_xlfn.XLOOKUP(O105,LabourFromFeed[Feed Quantity (kg)],LabourFromFeed[No. Labour],"Out of range",-1) -> 1 | U105: =T105*OperatingCosts!$C$9 -> 1200 | V105: 124800
A106: 104 | B106: =IF(A106<='S1-Standard'!$C$7, B105*EXP((LN((E105/100)+1))*1),) -> 348.3990349 | C106: =_xlfn.XLOOKUP($B106,FeedTables!$C$42:$T$42,FeedTables!$C$44:$T$44,,-1) -> 1.911763628 | D106: =_xlfn.XLOOKUP($B106,FeedTables!$C$42:$T$42,FeedTables!$C$45:$T$45,,-1) -> 1.535172809 | E106: =_xlfn.XLOOKUP($B106,FeedTables!$C$42:$T$42,FeedTables!$C$46:$T$46,,-1)*_xlfn.XLOOKUP(N105,DensityMultiplier[Biomass kg/m3],DensityMultiplier[Multiplier],,-1) -> 1.245308422 | F106: 1937.760754 | G106: =IF(A106<='S1-Standard'!$C$7,('Growth-Model-1'!G105*EXP($AA$7)),0) -> 2.039775449e-06 | H106: =IF(A106<='S1-Standard'!$C$7,$AD$6*EXP($AD$7*('S1-Standard'!C$7-'Growth-Model-1'!A106)),0) -> 0.002754745276 | I106: 87.24200245 | J106: 0.04308247035 | K106: 0.9604612513 | L106: 4.343212483 | M106: 675.1139766 | N106: =M106/'S1-Standard'!$C$17 -> 25.00422136 | O106: 12.90658345 | P106: 876.7834086 | Q106: =_xlfn.XLOOKUP(B106,FeedTables!$C$17:$T$17,FeedTables!$C$31:$T$31,,-1) -> Unga 4mm | R106: =_xlfn.XLOOKUP(Q106,FeedPrice[Feed],FeedPrice[Price per kg],"Unknown",0)*O106 -> 1282.012225 | S106: 88181.21926 | T106: =_xlfn.XLOOKUP(O106,LabourFromFeed[Feed Quantity (kg)],LabourFromFeed[No. Labour],"Out of range",-1) -> 1 | U106: =T106*OperatingCosts!$C$9 -> 1200 | V106: 126000
A107: 105 | B107: =IF(A107<='S1-Standard'!$C$7, B106*EXP((LN((E106/100)+1))*1),) -> 352.7376774 | C107: =_xlfn.XLOOKUP($B107,FeedTables!$C$42:$T$42,FeedTables!$C$44:$T$44,,-1) -> 1.911763628 | D107: =_xlfn.XLOOKUP($B107,FeedTables!$C$42:$T$42,FeedTables!$C$45:$T$45,,-1) -> 1.535172809 | E107: =_xlfn.XLOOKUP($B107,FeedTables!$C$42:$T$42,FeedTables!$C$46:$T$46,,-1)*_xlfn.XLOOKUP(N106,DensityMultiplier[Biomass kg/m3],DensityMultiplier[Multiplier],,-1) -> 1.207949169 | F107: 1937.757998 | G107: =IF(A107<='S1-Standard'!$C$7,('Growth-Model-1'!G106*EXP($AA$7)),0) -> 1.755650999e-06 | H107: =IF(A107<='S1-Standard'!$C$7,$AD$6*EXP($AD$7*('S1-Standard'!C$7-'Growth-Model-1'!A107)),0) -> 0.003364653478 | I107: 87.24536886 | J107: 0.04308413277 | K107: 1.187459337 | L107: 4.344399943 | M107: 683.5202554 | N107: =M107/'S1-Standard'!$C$17 -> 25.31556501 | O107: 13.06729164 | P107: 889.8507003 | Q107: =_xlfn.XLOOKUP(B107,FeedTables!$C$17:$T$17,FeedTables!$C$31:$T$31,,-1) -> Unga 4mm | R107: =_xlfn.XLOOKUP(Q107,FeedPrice[Feed],FeedPrice[Price per kg],"Unknown",0)*O107 -> 1297.975385 | S107: 89479.19464 | T107: =_xlfn.XLOOKUP(O107,LabourFromFeed[Feed Quantity (kg)],LabourFromFeed[No. Labour],"Out of range",-1) -> 1 | U107: =T107*OperatingCosts!$C$9 -> 1200 | V107: 127200
A108: 106 | B108: =IF(A108<='S1-Standard'!$C$7, B107*EXP((LN((E107/100)+1))*1),) -> 356.9985692 | C108: =_xlfn.XLOOKUP($B108,FeedTables!$C$42:$T$42,FeedTables!$C$44:$T$44,,-1) -> 1.911763628 | D108: =_xlfn.XLOOKUP($B108,FeedTables!$C$42:$T$42,FeedTables!$C$45:$T$45,,-1) -> 1.535172809 | E108: =_xlfn.XLOOKUP($B108,FeedTables!$C$42:$T$42,FeedTables!$C$46:$T$46,,-1)*_xlfn.XLOOKUP(N107,DensityMultiplier[Biomass kg/m3],DensityMultiplier[Multiplier],,-1) -> 1.207949169 | F108: 1937.754631 | G108: =IF(A108<='S1-Standard'!$C$7,('Growth-Model-1'!G107*EXP($AA$7)),0) -> 1.511102819e-06 | H108: =IF(A108<='S1-Standard'!$C$7,$AD$6*EXP($AD$7*('S1-Standard'!C$7-'Growth-Model-1'!A108)),0) -> 0.004109597038 | I108: 87.24947997 | J108: 0.04308616295 | K108: 1.467659724 | L108: 4.345867602 | M108: 691.7756308 | N108: =M108/'S1-Standard'!$C$17 -> 25.62131966 | O108: 13.2251149 | P108: 903.0758152 | Q108: =_xlfn.XLOOKUP(B108,FeedTables!$C$17:$T$17,FeedTables!$C$31:$T$31,,-1) -> Unga 4mm | R108: =_xlfn.XLOOKUP(Q108,FeedPrice[Feed],FeedPrice[Price per kg],"Unknown",0)*O108 -> 1313.651986 | S108: 90792.84663 | T108: =_xlfn.XLOOKUP(O108,LabourFromFeed[Feed Quantity (kg)],LabourFromFeed[No. Labour],"Out of range",-1) -> 1 | U108: =T108*OperatingCosts!$C$9 -> 1200 | V108: 128400
A109: 107 | B109: =IF(A109<='S1-Standard'!$C$7, B108*EXP((LN((E108/100)+1))*1),) -> 361.3109305 | C109: =_xlfn.XLOOKUP($B109,FeedTables!$C$42:$T$42,FeedTables!$C$44:$T$44,,-1) -> 1.911763628 | D109: =_xlfn.XLOOKUP($B109,FeedTables!$C$42:$T$42,FeedTables!$C$45:$T$45,,-1) -> 1.535172809 | E109: =_xlfn.XLOOKUP($B109,FeedTables!$C$42:$T$42,FeedTables!$C$46:$T$46,,-1)*_xlfn.XLOOKUP(N108,DensityMultiplier[Biomass kg/m3],DensityMultiplier[Multiplier],,-1) -> 1.207949169 | F109: 1937.75052 | G109: =IF(A109<='S1-Standard'!$C$7,('Growth-Model-1'!G108*EXP($AA$7)),0) -> 1.300618249e-06 | H109: =IF(A109<='S1-Standard'!$C$7,$AD$6*EXP($AD$7*('S1-Standard'!C$7-'Growth-Model-1'!A109)),0) -> 0.005019473158 | I109: 87.25450075 | J109: 0.04308864234 | K109: 1.814060445 | L109: 4.347681663 | M109: 700.1304434 | N109: =M109/'S1-Standard'!$C$17 -> 25.93075716 | O109: 13.38483917 | P109: 916.4606544 | Q109: =_xlfn.XLOOKUP(B109,FeedTables!$C$17:$T$17,FeedTables!$C$31:$T$31,,-1) -> Unga 4mm | R109: =_xlfn.XLOOKUP(Q109,FeedPrice[Feed],FeedPrice[Price per kg],"Unknown",0)*O109 -> 1329.517413 | S109: 92122.36404 | T109: =_xlfn.XLOOKUP(O109,LabourFromFeed[Feed Quantity (kg)],LabourFromFeed[No. Labour],"Out of range",-1) -> 1 | U109: =T109*OperatingCosts!$C$9 -> 1200 | V109: 129600
A110: 108 | B110: =IF(A110<='S1-Standard'!$C$7, B109*EXP((LN((E109/100)+1))*1),) -> 365.6753829 | C110: =_xlfn.XLOOKUP($B110,FeedTables!$C$42:$T$42,FeedTables!$C$44:$T$44,,-1) -> 1.911763628 | D110: =_xlfn.XLOOKUP($B110,FeedTables!$C$42:$T$42,FeedTables!$C$45:$T$45,,-1) -> 1.535172809 | E110: =_xlfn.XLOOKUP($B110,FeedTables!$C$42:$T$42,FeedTables!$C$46:$T$46,,-1)*_xlfn.XLOOKUP(N109,DensityMultiplier[Biomass kg/m3],DensityMultiplier[Multiplier],,-1) -> 1.207949169 | F110: 1937.745499 | G110: =IF(A110<='S1-Standard'!$C$7,('Growth-Model-1'!G109*EXP($AA$7)),0) -> 1.119452501e-06 | H110: =IF(A110<='S1-Standard'!$C$7,$AD$6*EXP($AD$7*('S1-Standard'!C$7-'Growth-Model-1'!A110)),0) -> 0.006130798359 | I110: 87.26063266 | J110: 0.04309167045 | K110: 2.242291394 | L110: 4.349923954 | M110: 708.5858273 | N110: =M110/'S1-Standard'!$C$17 -> 26.24391953 | O110: 13.54648612 | P110: 930.0071405 | Q110: =_xlfn.XLOOKUP(B110,FeedTables!$C$17:$T$17,FeedTables!$C$31:$T$31,,-1) -> Unga 4mm | R110: =_xlfn.XLOOKUP(Q110,FeedPrice[Feed],FeedPrice[Price per kg],"Unknown",0)*O110 -> 1345.573821 | S110: 93467.93786 | T110: =_xlfn.XLOOKUP(O110,LabourFromFeed[Feed Quantity (kg)],LabourFromFeed[No. Labour],"Out of range",-1) -> 1 | U110: =T110*OperatingCosts!$C$9 -> 1200 | V110: 130800
A111: 109 | B111: =IF(A111<='S1-Standard'!$C$7, B110*EXP((LN((E110/100)+1))*1),) -> 370.0925556 | C111: =_xlfn.XLOOKUP($B111,FeedTables!$C$42:$T$42,FeedTables!$C$44:$T$44,,-1) -> 1.911763628 | D111: =_xlfn.XLOOKUP($B111,FeedTables!$C$42:$T$42,FeedTables!$C$45:$T$45,,-1) -> 1.535172809 | E111: =_xlfn.XLOOKUP($B111,FeedTables!$C$42:$T$42,FeedTables!$C$46:$T$46,,-1)*_xlfn.XLOOKUP(N110,DensityMultiplier[Biomass kg/m3],DensityMultiplier[Multiplier],,-1) -> 1.207949169 | F111: 1937.739367 | G111: =IF(A111<='S1-Standard'!$C$7,('Growth-Model-1'!G110*EXP($AA$7)),0) -> 9.635216972e-07 | H111: =IF(A111<='S1-Standard'!$C$7,$AD$6*EXP($AD$7*('S1-Standard'!C$7-'Growth-Model-1'!A111)),0) -> 0.007488174026 | I111: 87.2681218 | J111: 0.04309536879 | K111: 2.771674054 | L111: 4.352695628 | M111: 717.1429146 | N111: =M111/'S1-Standard'!$C$17 -> 26.56084869 | O111: 13.7100774 | P111: 943.7172179 | Q111: =_xlfn.XLOOKUP(B111,FeedTables!$C$17:$T$17,FeedTables!$C$31:$T$31,,-1) -> Unga 4mm | R111: =_xlfn.XLOOKUP(Q111,FeedPrice[Feed],FeedPrice[Price per kg],"Unknown",0)*O111 -> 1361.82336 | S111: 94829.76122 | T111: =_xlfn.XLOOKUP(O111,LabourFromFeed[Feed Quantity (kg)],LabourFromFeed[No. Labour],"Out of range",-1) -> 1 | U111: =T111*OperatingCosts!$C$9 -> 1200 | V111: 132000
A112: 110 | B112: =IF(A112<='S1-Standard'!$C$7, B111*EXP((LN((E111/100)+1))*1),) -> 374.5630856 | C112: =_xlfn.XLOOKUP($B112,FeedTables!$C$42:$T$42,FeedTables!$C$44:$T$44,,-1) -> 1.911763628 | D112: =_xlfn.XLOOKUP($B112,FeedTables!$C$42:$T$42,FeedTables!$C$45:$T$45,,-1) -> 1.535172809 | E112: =_xlfn.XLOOKUP($B112,FeedTables!$C$42:$T$42,FeedTables!$C$46:$T$46,,-1)*_xlfn.XLOOKUP(N111,DensityMultiplier[Biomass kg/m3],DensityMultiplier[Multiplier],,-1) -> 1.207949169 | F112: 1937.731878 | G112: =IF(A112<='S1-Standard'!$C$7,('Growth-Model-1'!G111*EXP($AA$7)),0) -> 8.293108102e-07 | H112: =IF(A112<='S1-Standard'!$C$7,$AD$6*EXP($AD$7*('S1-Standard'!C$7-'Growth-Model-1'!A112)),0) -> 0.009146076409 | I112: 87.27726871 | J112: 0.04309988578 | K112: 3.42609323 | L112: 4.356121722 | M112: 725.8028313 | N112: =M112/'S1-Standard'!$C$17 -> 26.88158634 | O112: 13.87563454 | P112: 957.5928524 | Q112: =_xlfn.XLOOKUP(B112,FeedTables!$C$17:$T$17,FeedTables!$C$31:$T$31,,-1) -> Unga 4mm | R112: =_xlfn.XLOOKUP(Q112,FeedPrice[Feed],FeedPrice[Price per kg],"Unknown",0)*O112 -> 1378.268167 | S112: 96208.02939 | T112: =_xlfn.XLOOKUP(O112,LabourFromFeed[Feed Quantity (kg)],LabourFromFeed[No. Labour],"Out of range",-1) -> 1 | U112: =T112*OperatingCosts!$C$9 -> 1200 | V112: 133200
A113: 111 | B113: =IF(A113<='S1-Standard'!$C$7, B112*EXP((LN((E112/100)+1))*1),) -> 379.0876172 | C113: =_xlfn.XLOOKUP($B113,FeedTables!$C$42:$T$42,FeedTables!$C$44:$T$44,,-1) -> 1.911763628 | D113: =_xlfn.XLOOKUP($B113,FeedTables!$C$42:$T$42,FeedTables!$C$45:$T$45,,-1) -> 1.535172809 | E113: =_xlfn.XLOOKUP($B113,FeedTables!$C$42:$T$42,FeedTables!$C$46:$T$46,,-1)*_xlfn.XLOOKUP(N112,DensityMultiplier[Biomass kg/m3],DensityMultiplier[Multiplier],,-1) -> 1.207949169 | F113: 1937.722731 | G113: =IF(A113<='S1-Standard'!$C$7,('Growth-Model-1'!G112*EXP($AA$7)),0) -> 7.137944293e-07 | H113: =IF(A113<='S1-Standard'!$C$7,$AD$6*EXP($AD$7*('S1-Standard'!C$7-'Growth-Model-1'!A113)),0) -> 0.01117104295 | I113: 87.28844046 | J113: 0.0431054027 | K113: 4.235074645 | L113: 4.360356796 | M113: 734.5666931 | N113: =M113/'S1-Standard'!$C$17 -> 27.20617382 | O113: 14.04317886 | P113: 971.6360313 | Q113: =_xlfn.XLOOKUP(B113,FeedTables!$C$17:$T$17,FeedTables!$C$31:$T$31,,-1) -> Unga 4mm | R113: =_xlfn.XLOOKUP(Q113,FeedPrice[Feed],FeedPrice[Price per kg],"Unknown",0)*O113 -> 1394.910361 | S113: 97602.93975 | T113: =_xlfn.XLOOKUP(O113,LabourFromFeed[Feed Quantity (kg)],LabourFromFeed[No. Labour],"Out of range",-1) -> 1 | U113: =T113*OperatingCosts!$C$9 -> 1200 | V113: 134400
A114: 112 | B114: =IF(A114<='S1-Standard'!$C$7, B113*EXP((LN((E113/100)+1))*1),) -> 383.666803 | C114: =_xlfn.XLOOKUP($B114,FeedTables!$C$42:$T$42,FeedTables!$C$44:$T$44,,-1) -> 1.911763628 | D114: =_xlfn.XLOOKUP($B114,FeedTables!$C$42:$T$42,FeedTables!$C$45:$T$45,,-1) -> 1.535172809 | E114: =_xlfn.XLOOKUP($B114,FeedTables!$C$42:$T$42,FeedTables!$C$46:$T$46,,-1)*_xlfn.XLOOKUP(N113,DensityMultiplier[Biomass kg/m3],DensityMultiplier[Multiplier],,-1) -> 1.207949169 | F114: 1937.71156 | G114: =IF(A114<='S1-Standard'!$C$7,('Growth-Model-1'!G113*EXP($AA$7)),0) -> 6.143685588e-07 | H114: =IF(A114<='S1-Standard'!$C$7,$AD$6*EXP($AD$7*('S1-Standard'!C$7-'Growth-Model-1'!A114)),0) -> 0.01364434267 | I114: 87.30208542 | J114: 0.04311214095 | K114: 5.235117045 | L114: 4.365591913 | M114: 743.4355991 | N114: =M114/'S1-Standard'!$C$17 -> 27.53465182 | O114: 14.21273138 | P114: 985.8487627 | Q114: =_xlfn.XLOOKUP(B114,FeedTables!$C$17:$T$17,FeedTables!$C$31:$T$31,,-1) -> Unga 4mm | R114: =_xlfn.XLOOKUP(Q114,FeedPrice[Feed],FeedPrice[Price per kg],"Unknown",0)*O114 -> 1411.75203 | S114: 99014.69178 | T114: =_xlfn.XLOOKUP(O114,LabourFromFeed[Feed Quantity (kg)],LabourFromFeed[No. Labour],"Out of range",-1) -> 1 | U114: =T114*OperatingCosts!$C$9 -> 1200 | V114: 135600
A115: 113 | B115: =IF(A115<='S1-Standard'!$C$7, B114*EXP((LN((E114/100)+1))*1),) -> 388.3013029 | C115: =_xlfn.XLOOKUP($B115,FeedTables!$C$42:$T$42,FeedTables!$C$44:$T$44,,-1) -> 1.911763628 | D115: =_xlfn.XLOOKUP($B115,FeedTables!$C$42:$T$42,FeedTables!$C$45:$T$45,,-1) -> 1.535172809 | E115: =_xlfn.XLOOKUP($B115,FeedTables!$C$42:$T$42,FeedTables!$C$46:$T$46,,-1)*_xlfn.XLOOKUP(N114,DensityMultiplier[Biomass kg/m3],DensityMultiplier[Multiplier],,-1) -> 1.207949169 | F115: 1937.697915 | G115: =IF(A115<='S1-Standard'!$C$7,('Growth-Model-1'!G114*EXP($AA$7)),0) -> 5.28791919e-07 | H115: =IF(A115<='S1-Standard'!$C$7,$AD$6*EXP($AD$7*('S1-Standard'!C$7-'Growth-Model-1'!A115)),0) -> 0.01666523777 | I115: 87.31875119 | J115: 0.04312037096 | K115: 6.471338872 | L115: 4.372063252 | M115: 752.4106249 | N115: =M115/'S1-Standard'!$C$17 -> 27.86706018 | O115: 14.38431266 | P115: 1000.233075 | Q115: =_xlfn.XLOOKUP(B115,FeedTables!$C$17:$T$17,FeedTables!$C$31:$T$31,,-1) -> Unga 4mm | R115: =_xlfn.XLOOKUP(Q115,FeedPrice[Feed],FeedPrice[Price per kg],"Unknown",0)*O115 -> 1428.795215 | S115: 100443.487 | T115: =_xlfn.XLOOKUP(O115,LabourFromFeed[Feed Quantity (kg)],LabourFromFeed[No. Labour],"Out of range",-1) -> 1 | U115: =T115*OperatingCosts!$C$9 -> 1200 | V115: 136800
A116: 114 | B116: =IF(A116<='S1-Standard'!$C$7, B115*EXP((LN((E115/100)+1))*1),) -> 392.9917853 | C116: =_xlfn.XLOOKUP($B116,FeedTables!$C$42:$T$42,FeedTables!$C$44:$T$44,,-1) -> 1.911763628 | D116: =_xlfn.XLOOKUP($B116,FeedTables!$C$42:$T$42,FeedTables!$C$45:$T$45,,-1) -> 1.535172809 | E116: =_xlfn.XLOOKUP($B116,FeedTables!$C$42:$T$42,FeedTables!$C$46:$T$46,,-1)*_xlfn.XLOOKUP(N115,DensityMultiplier[Biomass kg/m3],DensityMultiplier[Multiplier],,-1) -> 1.207949169 | F116: 1937.681249 | G116: =IF(A116<='S1-Standard'!$C$7,('Growth-Model-1'!G115*EXP($AA$7)),0) -> 4.551354226e-07 | H116: =IF(A116<='S1-Standard'!$C$7,$AD$6*EXP($AD$7*('S1-Standard'!C$7-'Growth-Model-1'!A116)),0) -> 0.02035496738 | I116: 87.33910661 | J116: 0.04313042302 | K116: 7.999513836 | L116: 4.380062766 | M116: 761.4928133 | N116: =M116/'S1-Standard'!$C$17 -> 28.20343753 | O116: 14.55794264 | P116: 1014.791018 | Q116: =_xlfn.XLOOKUP(B116,FeedTables!$C$17:$T$17,FeedTables!$C$31:$T$31,,-1) -> Unga 4mm | R116: =_xlfn.XLOOKUP(Q116,FeedPrice[Feed],FeedPrice[Price per kg],"Unknown",0)*O116 -> 1446.041898 | S116: 101889.5289 | T116: =_xlfn.XLOOKUP(O116,LabourFromFeed[Feed Quantity (kg)],LabourFromFeed[No. Labour],"Out of range",-1) -> 1 | U116: =T116*OperatingCosts!$C$9 -> 1200 | V116: 138000
A117: 115 | B117: =IF(A117<='S1-Standard'!$C$7, B116*EXP((LN((E116/100)+1))*1),) -> 397.7389263 | C117: =_xlfn.XLOOKUP($B117,FeedTables!$C$42:$T$42,FeedTables!$C$44:$T$44,,-1) -> 1.911763628 | D117: =_xlfn.XLOOKUP($B117,FeedTables!$C$42:$T$42,FeedTables!$C$45:$T$45,,-1) -> 1.535172809 | E117: =_xlfn.XLOOKUP($B117,FeedTables!$C$42:$T$42,FeedTables!$C$46:$T$46,,-1)*_xlfn.XLOOKUP(N116,DensityMultiplier[Biomass kg/m3],DensityMultiplier[Multiplier],,-1) -> 1.207949169 | F117: 1937.660893 | G117: =IF(A117<='S1-Standard'!$C$7,('Growth-Model-1'!G116*EXP($AA$7)),0) -> 3.917386886e-07 | H117: =IF(A117<='S1-Standard'!$C$7,$AD$6*EXP($AD$7*('S1-Standard'!C$7-'Growth-Model-1'!A117)),0) -> 0.0248616133 | I117: 87.36396861 | J117: 0.04314270055 | K117: 9.888587191 | L117: 4.389951353 | M117: 770.6831633 | N117: =M117/'S1-Standard'!$C$17 -> 28.54382086 | O117: 14.73364041 | P117: 1029.524658 | Q117: =_xlfn.XLOOKUP(B117,FeedTables!$C$17:$T$17,FeedTables!$C$31:$T$31,,-1) -> Unga 4mm | R117: =_xlfn.XLOOKUP(Q117,FeedPrice[Feed],FeedPrice[Price per kg],"Unknown",0)*O117 -> 1463.493975 | S117: 103353.0229 | T117: =_xlfn.XLOOKUP(O117,LabourFromFeed[Feed Quantity (kg)],LabourFromFeed[No. Labour],"Out of range",-1) -> 1 | U117: =T117*OperatingCosts!$C$9 -> 1200 | V117: 139200
A118: 116 | B118: =IF(A118<='S1-Standard'!$C$7, B117*EXP((LN((E117/100)+1))*1),) -> 402.5434103 | C118: =_xlfn.XLOOKUP($B118,FeedTables!$C$42:$T$42,FeedTables!$C$44:$T$44,,-1) -> 1.589559707 | D118: =_xlfn.XLOOKUP($B118,FeedTables!$C$42:$T$42,FeedTables!$C$45:$T$45,,-1) -> 1.571133068 | E118: =_xlfn.XLOOKUP($B118,FeedTables!$C$42:$T$42,FeedTables!$C$46:$T$46,,-1)*_xlfn.XLOOKUP(N117,DensityMultiplier[Biomass kg/m3],DensityMultiplier[Multiplier],,-1) -> 0.9813764009 | F118: 1937.636031 | G118: =IF(A118<='S1-Standard'!$C$7,('Growth-Model-1'!G117*EXP($AA$7)),0) -> 3.371726139e-07 | H118: =IF(A118<='S1-Standard'!$C$7,$AD$6*EXP($AD$7*('S1-Standard'!C$7-'Growth-Model-1'!A118)),0) -> 0.03036604306 | I118: 87.39433499 | J118: 0.04315769629 | K118: 12.22378626 | L118: 4.402175139 | M118: 779.9826161 | N118: =M118/'S1-Standard'!$C$17 -> 28.88824504 | O118: 12.39828939 | P118: 1041.922948 | Q118: =_xlfn.XLOOKUP(B118,FeedTables!$C$17:$T$17,FeedTables!$C$31:$T$31,,-1) -> Unga 4mm | R118: =_xlfn.XLOOKUP(Q118,FeedPrice[Feed],FeedPrice[Price per kg],"Unknown",0)*O118 -> 1231.523325 | S118: 104584.5462 | T118: =_xlfn.XLOOKUP(O118,LabourFromFeed[Feed Quantity (kg)],LabourFromFeed[No. Labour],"Out of range",-1) -> 1 | U118: =T118*OperatingCosts!$C$9 -> 1200 | V118: 140400
A119: 117 | B119: =IF(A119<='S1-Standard'!$C$7, B118*EXP((LN((E118/100)+1))*1),) -> 406.4938764 | C119: =_xlfn.XLOOKUP($B119,FeedTables!$C$42:$T$42,FeedTables!$C$44:$T$44,,-1) -> 1.589559707 | D119: =_xlfn.XLOOKUP($B119,FeedTables!$C$42:$T$42,FeedTables!$C$45:$T$45,,-1) -> 1.571133068 | E119: =_xlfn.XLOOKUP($B119,FeedTables!$C$42:$T$42,FeedTables!$C$46:$T$46,,-1)*_xlfn.XLOOKUP(N118,DensityMultiplier[Biomass kg/m3],DensityMultiplier[Multiplier],,-1) -> 0.9813764009 | F119: 1937.605665 | G119: =IF(A119<='S1-Standard'!$C$7,('Growth-Model-1'!G118*EXP($AA$7)),0) -> 2.902071582e-07 | H119: =IF(A119<='S1-Standard'!$C$7,$AD$6*EXP($AD$7*('S1-Standard'!C$7-'Growth-Model-1'!A119)),0) -> 0.03708916875 | I119: 87.43142445 | J119: 0.04317601208 | K119: 15.07663794 | L119: 4.417251777 | M119: 787.6248377 | N119: =M119/'S1-Standard'!$C$17 -> 29.17129028 | O119: 12.51976706 | P119: 1054.442715 | Q119: =_xlfn.XLOOKUP(B119,FeedTables!$C$17:$T$17,FeedTables!$C$31:$T$31,,-1) -> Unga 4mm | R119: =_xlfn.XLOOKUP(Q119,FeedPrice[Feed],FeedPrice[Price per kg],"Unknown",0)*O119 -> 1243.589714 | S119: 105828.1359 | T119: =_xlfn.XLOOKUP(O119,LabourFromFeed[Feed Quantity (kg)],LabourFromFeed[No. Labour],"Out of range",-1) -> 1 | U119: =T119*OperatingCosts!$C$9 -> 1200 | V119: 141600
A120: 118 | B120: =IF(A120<='S1-Standard'!$C$7, B119*EXP((LN((E119/100)+1))*1),) -> 410.4831114 | C120: =_xlfn.XLOOKUP($B120,FeedTables!$C$42:$T$42,FeedTables!$C$44:$T$44,,-1) -> 1.589559707 | D120: =_xlfn.XLOOKUP($B120,FeedTables!$C$42:$T$42,FeedTables!$C$45:$T$45,,-1) -> 1.571133068 | E120: =_xlfn.XLOOKUP($B120,FeedTables!$C$42:$T$42,FeedTables!$C$46:$T$46,,-1)*_xlfn.XLOOKUP(N119,DensityMultiplier[Biomass kg/m3],DensityMultiplier[Multiplier],,-1) -> 0.9813764009 | F120: 1937.568576 | G120: =IF(A120<='S1-Standard'!$C$7,('Growth-Model-1'!G119*EXP($AA$7)),0) -> 2.497836159e-07 | H120: =IF(A120<='S1-Standard'!$C$7,$AD$6*EXP($AD$7*('S1-Standard'!C$7-'Growth-Model-1'!A120)),0) -> 0.04530081301 | I120: 87.47672552 | J120: 0.04319838297 | K120: 18.5953212 | L120: 4.435847099 | M120: 795.3391774 | N120: =M120/'S1-Standard'!$C$17 -> 29.45700657 | O120: 12.6423911 | P120: 1067.085106 | Q120: =_xlfn.XLOOKUP(B120,FeedTables!$C$17:$T$17,FeedTables!$C$31:$T$31,,-1) -> Unga 4mm | R120: =_xlfn.XLOOKUP(Q120,FeedPrice[Feed],FeedPrice[Price per kg],"Unknown",0)*O120 -> 1255.769972 | S120: 107083.9059 | T120: =_xlfn.XLOOKUP(O120,LabourFromFeed[Feed Quantity (kg)],LabourFromFeed[No. Labour],"Out of range",-1) -> 1 | U120: =T120*OperatingCosts!$C$9 -> 1200 | V120: 142800
A121: 119 | B121: =IF(A121<='S1-Standard'!$C$7, B120*EXP((LN((E120/100)+1))*1),) -> 414.5114957 | C121: =_xlfn.XLOOKUP($B121,FeedTables!$C$42:$T$42,FeedTables!$C$44:$T$44,,-1) -> 1.589559707 | D121: =_xlfn.XLOOKUP($B121,FeedTables!$C$42:$T$42,FeedTables!$C$45:$T$45,,-1) -> 1.571133068 | E121: =_xlfn.XLOOKUP($B121,FeedTables!$C$42:$T$42,FeedTables!$C$46:$T$46,,-1)*_xlfn.XLOOKUP(N120,DensityMultiplier[Biomass kg/m3],DensityMultiplier[Multiplier],,-1) -> 0.9813764009 | F121: 1937.523274 | G121: =IF(A121<='S1-Standard'!$C$7,('Growth-Model-1'!G120*EXP($AA$7)),0) -> 2.149907506e-07 | H121: =IF(A121<='S1-Standard'!$C$7,$AD$6*EXP($AD$7*('S1-Standard'!C$7-'Growth-Model-1'!A121)),0) -> 0.05533053796 | I121: 87.53205627 | J121: 0.0432257068 | K121: 22.93523316 | L121: 4.458782332 | M121: 803.1256705 | N121: =M121/'S1-Standard'!$C$17 -> 29.74539521 | O121: 12.76616206 | P121: 1079.851268 | Q121: =_xlfn.XLOOKUP(B121,FeedTables!$C$17:$T$17,FeedTables!$C$31:$T$31,,-1) -> Unga 4mm | R121: =_xlfn.XLOOKUP(Q121,FeedPrice[Feed],FeedPrice[Price per kg],"Unknown",0)*O121 -> 1268.064154 | S121: 108351.97 | T121: =_xlfn.XLOOKUP(O121,LabourFromFeed[Feed Quantity (kg)],LabourFromFeed[No. Labour],"Out of range",-1) -> 1 | U121: =T121*OperatingCosts!$C$9 -> 1200 | V121: 144000
A122: 120 | B122: =IF(A122<='S1-Standard'!$C$7, B121*EXP((LN((E121/100)+1))*1),) -> 418.5794137 | C122: =_xlfn.XLOOKUP($B122,FeedTables!$C$42:$T$42,FeedTables!$C$44:$T$44,,-1) -> 1.589559707 | D122: =_xlfn.XLOOKUP($B122,FeedTables!$C$42:$T$42,FeedTables!$C$45:$T$45,,-1) -> 1.571133068 | E122: =_xlfn.XLOOKUP($B122,FeedTables!$C$42:$T$42,FeedTables!$C$46:$T$46,,-1)*_xlfn.XLOOKUP(N121,DensityMultiplier[Biomass kg/m3],DensityMultiplier[Multiplier],,-1) -> 0.9813764009 | F122: 1937.467944 | G122: =IF(A122<='S1-Standard'!$C$7,('Growth-Model-1'!G121*EXP($AA$7)),0) -> 1.850442539e-07 | H122: =IF(A122<='S1-Standard'!$C$7,$AD$6*EXP($AD$7*('S1-Standard'!C$7-'Growth-Model-1'!A122)),0) -> 0.06758087167 | I122: 87.59963733 | J122: 0.04325908016 | K122: 28.2880391 | L122: 4.487070371 | M122: 810.984196 | N122: =M122/'S1-Standard'!$C$17 -> 30.0364517 | O122: 12.89107801 | P122: 1092.742346 | Q122: =_xlfn.XLOOKUP(B122,FeedTables!$C$17:$T$17,FeedTables!$C$31:$T$31,,-1) -> Unga 4mm | R122: =_xlfn.XLOOKUP(Q122,FeedPrice[Feed],FeedPrice[Price per kg],"Unknown",0)*O122 -> 1280.472068 | S122: 109632.4421 | T122: =_xlfn.XLOOKUP(O122,LabourFromFeed[Feed Quantity (kg)],LabourFromFeed[No. Labour],"Out of range",-1) -> 1 | U122: =T122*OperatingCosts!$C$9 -> 1200 | V122: 145200
A123: 121 | B123: =IF(A123<='S1-Standard'!$C$7, B122*EXP((LN((E122/100)+1))*1),) -> 422.6872533 | C123: =_xlfn.XLOOKUP($B123,FeedTables!$C$42:$T$42,FeedTables!$C$44:$T$44,,-1) -> 1.589559707 | D123: =_xlfn.XLOOKUP($B123,FeedTables!$C$42:$T$42,FeedTables!$C$45:$T$45,,-1) -> 1.571133068 | E123: =_xlfn.XLOOKUP($B123,FeedTables!$C$42:$T$42,FeedTables!$C$46:$T$46,,-1)*_xlfn.XLOOKUP(N122,DensityMultiplier[Biomass kg/m3],DensityMultiplier[Multiplier],,-1) -> 0.961141836 | F123: 1937.400363 | G123: =IF(A123<='S1-Standard'!$C$7,('Growth-Model-1'!G122*EXP($AA$7)),0) -> 1.592690653e-07 | H123: =IF(A123<='S1-Standard'!$C$7,$AD$6*EXP($AD$7*('S1-Standard'!C$7-'Growth-Model-1'!A123)),0) -> 0.08254346306 | I123: 87.68218095 | J123: 0.04329984244 | K123: 34.890137 | L123: 4.521960508 | M123: 818.9144379 | N123: =M123/'S1-Standard'!$C$17 -> 30.33016437 | O123: 13.01713394 | P123: 1105.75948 | Q123: =_xlfn.XLOOKUP(B123,FeedTables!$C$17:$T$17,FeedTables!$C$31:$T$31,,-1) -> Unga 4mm | R123: =_xlfn.XLOOKUP(Q123,FeedPrice[Feed],FeedPrice[Price per kg],"Unknown",0)*O123 -> 1292.993216 | S123: 110925.4353 | T123: =_xlfn.XLOOKUP(O123,LabourFromFeed[Feed Quantity (kg)],LabourFromFeed[No. Labour],"Out of range",-1) -> 1 | U123: =T123*OperatingCosts!$C$9 -> 1200 | V123: 146400
A124: 122 | B124: =IF(A124<='S1-Standard'!$C$7, B123*EXP((LN((E123/100)+1))*1),) -> 426.7498773 | C124: =_xlfn.XLOOKUP($B124,FeedTables!$C$42:$T$42,FeedTables!$C$44:$T$44,,-1) -> 1.589559707 | D124: =_xlfn.XLOOKUP($B124,FeedTables!$C$42:$T$42,FeedTables!$C$45:$T$45,,-1) -> 1.571133068 | E124: =_xlfn.XLOOKUP($B124,FeedTables!$C$42:$T$42,FeedTables!$C$46:$T$46,,-1)*_xlfn.XLOOKUP(N123,DensityMultiplier[Biomass kg/m3],DensityMultiplier[Multiplier],,-1) -> 0.961141836 | F124: 1937.317819 | G124: =IF(A124<='S1-Standard'!$C$7,('Growth-Model-1'!G123*EXP($AA$7)),0) -> 1.370841549e-07 | H124: =IF(A124<='S1-Standard'!$C$7,$AD$6*EXP($AD$7*('S1-Standard'!C$7-'Growth-Model-1'!A124)),0) -> 0.1008188134 | I124: 87.7829999 | J124: 0.04334962958 | K124: 43.02447477 | L124: 4.564984983 | M124: 826.7501417 | N124: =M124/'S1-Standard'!$C$17 -> 30.62037562 | O124: 13.14168713 | P124: 1118.901167 | Q124: =_xlfn.XLOOKUP(B124,FeedTables!$C$17:$T$17,FeedTables!$C$31:$T$31,,-1) -> Unga 4mm | R124: =_xlfn.XLOOKUP(Q124,FeedPrice[Feed],FeedPrice[Price per kg],"Unknown",0)*O124 -> 1305.365097 | S124: 112230.8004 | T124: =_xlfn.XLOOKUP(O124,LabourFromFeed[Feed Quantity (kg)],LabourFromFeed[No. Labour],"Out of range",-1) -> 1 | U124: =T124*OperatingCosts!$C$9 -> 1200 | V124: 147600
A125: 123 | B125: =IF(A125<='S1-Standard'!$C$7, B124*EXP((LN((E124/100)+1))*1),) -> 430.851549 | C125: =_xlfn.XLOOKUP($B125,FeedTables!$C$42:$T$42,FeedTables!$C$44:$T$44,,-1) -> 1.589559707 | D125: =_xlfn.XLOOKUP($B125,FeedTables!$C$42:$T$42,FeedTables!$C$45:$T$45,,-1) -> 1.571133068 | E125: =_xlfn.XLOOKUP($B125,FeedTables!$C$42:$T$42,FeedTables!$C$46:$T$46,,-1)*_xlfn.XLOOKUP(N124,DensityMultiplier[Biomass kg/m3],DensityMultiplier[Multiplier],,-1) -> 0.961141836 | F125: 1937.217 | G125: =IF(A125<='S1-Standard'!$C$7,('Growth-Model-1'!G124*EXP($AA$7)),0) -> 1.179894256e-07 | H125: =IF(A125<='S1-Standard'!$C$7,$AD$6*EXP($AD$7*('S1-Standard'!C$7-'Growth-Model-1'!A125)),0) -> 0.1231403768 | I125: 87.90614039 | J125: 0.0434104397 | K125: 53.05527293 | L125: 4.618040255 | M125: 834.6529452 | N125: =M125/'S1-Standard'!$C$17 -> 30.91307204 | O125: 13.26730691 | P125: 1132.168474 | Q125: =_xlfn.XLOOKUP(B125,FeedTables!$C$17:$T$17,FeedTables!$C$31:$T$31,,-1) -> Unga 4mm | R125: =_xlfn.XLOOKUP(Q125,FeedPrice[Feed],FeedPrice[Price per kg],"Unknown",0)*O125 -> 1317.842922 | S125: 113548.6433 | T125: =_xlfn.XLOOKUP(O125,LabourFromFeed[Feed Quantity (kg)],LabourFromFeed[No. Labour],"Out of range",-1) -> 1 | U125: =T125*OperatingCosts!$C$9 -> 1200 | V125: 148800
A126: 124 | B126: =IF(A126<='S1-Standard'!$C$7, B125*EXP((LN((E125/100)+1))*1),) -> 434.9926434 | C126: =_xlfn.XLOOKUP($B126,FeedTables!$C$42:$T$42,FeedTables!$C$44:$T$44,,-1) -> 1.589559707 | D126: =_xlfn.XLOOKUP($B126,FeedTables!$C$42:$T$42,FeedTables!$C$45:$T$45,,-1) -> 1.571133068 | E126: =_xlfn.XLOOKUP($B126,FeedTables!$C$42:$T$42,FeedTables!$C$46:$T$46,,-1)*_xlfn.XLOOKUP(N125,DensityMultiplier[Biomass kg/m3],DensityMultiplier[Multiplier],,-1) -> 0.961141836 | F126: 1937.09386 | G126: =IF(A126<='S1-Standard'!$C$7,('Growth-Model-1'!G125*EXP($AA$7)),0) -> 1.015544397e-07 | H126: =IF(A126<='S1-Standard'!$C$7,$AD$6*EXP($AD$7*('S1-Standard'!C$7-'Growth-Model-1'!A126)),0) -> 0.1504039959 | I126: 88.05654449 | J126: 0.04348471333 | K126: 65.42467593 | L126: 4.683464931 | M126: 842.6215786 | N126: =M126/'S1-Standard'!$C$17 -> 31.20820661 | O126: 13.3939731 | P126: 1145.562447 | Q126: =_xlfn.XLOOKUP(B126,FeedTables!$C$17:$T$17,FeedTables!$C$31:$T$31,,-1) -> Unga 4mm | R126: =_xlfn.XLOOKUP(Q126,FeedPrice[Feed],FeedPrice[Price per kg],"Unknown",0)*O126 -> 1330.424687 | S126: 114879.068 | T126: =_xlfn.XLOOKUP(O126,LabourFromFeed[Feed Quantity (kg)],LabourFromFeed[No. Labour],"Out of range",-1) -> 1 | U126: =T126*OperatingCosts!$C$9 -> 1200 | V126: 150000
A127: 125 | B127: =IF(A127<='S1-Standard'!$C$7, B126*EXP((LN((E126/100)+1))*1),) -> 439.1735397 | C127: =_xlfn.XLOOKUP($B127,FeedTables!$C$42:$T$42,FeedTables!$C$44:$T$44,,-1) -> 1.589559707 | D127: =_xlfn.XLOOKUP($B127,FeedTables!$C$42:$T$42,FeedTables!$C$45:$T$45,,-1) -> 1.571133068 | E127: =_xlfn.XLOOKUP($B127,FeedTables!$C$42:$T$42,FeedTables!$C$46:$T$46,,-1)*_xlfn.XLOOKUP(N126,DensityMultiplier[Biomass kg/m3],DensityMultiplier[Multiplier],,-1) -> 0.961141836 | F127: 1936.943456 | G127: =IF(A127<='S1-Standard'!$C$7,('Growth-Model-1'!G126*EXP($AA$7)),0) -> 8.740871632e-08 | H127: =IF(A127<='S1-Standard'!$C$7,$AD$6*EXP($AD$7*('S1-Standard'!C$7-'Growth-Model-1'!A127)),0) -> 0.1837038554 | I127: 88.24024843 | J127: 0.04357543133 | K127: 80.67791083 | L127: 4.764142842 | M127: 850.6543136 | N127: =M127/'S1-Standard'!$C$17 -> 31.50571532 | O127: 13.52165822 | P127: 1159.084105 | Q127: =_xlfn.XLOOKUP(B127,FeedTables!$C$17:$T$17,FeedTables!$C$31:$T$31,,-1) -> Unga 4mm | R127: =_xlfn.XLOOKUP(Q127,FeedPrice[Feed],FeedPrice[Price per kg],"Unknown",0)*O127 -> 1343.107663 | S127: 116222.1757 | T127: =_xlfn.XLOOKUP(O127,LabourFromFeed[Feed Quantity (kg)],LabourFromFeed[No. Labour],"Out of range",-1) -> 1 | U127: =T127*OperatingCosts!$C$9 -> 1200 | V127: 151200
A128: 126 | B128: =IF(A128<='S1-Standard'!$C$7, B127*EXP((LN((E127/100)+1))*1),) -> 443.3946203 | C128: =_xlfn.XLOOKUP($B128,FeedTables!$C$42:$T$42,FeedTables!$C$44:$T$44,,-1) -> 1.589559707 | D128: =_xlfn.XLOOKUP($B128,FeedTables!$C$42:$T$42,FeedTables!$C$45:$T$45,,-1) -> 1.571133068 | E128: =_xlfn.XLOOKUP($B128,FeedTables!$C$42:$T$42,FeedTables!$C$46:$T$46,,-1)*_xlfn.XLOOKUP(N127,DensityMultiplier[Biomass kg/m3],DensityMultiplier[Multiplier],,-1) -> 0.961141836 | F128: 1936.759752 | G128: =IF(A128<='S1-Standard'!$C$7,('Growth-Model-1'!G127*EXP($AA$7)),0) -> 7.523337934e-08 | H128: =IF(A128<='S1-Standard'!$C$7,$AD$6*EXP($AD$7*('S1-Standard'!C$7-'Growth-Model-1'!A128)),0) -> 0.2243763957 | I128: 88.4646249 | J128: 0.04368623452 | K128: 99.48732014 | L128: 4.863630162 | M128: 858.7488547 | N128: =M128/'S1-Standard'!$C$17 -> 31.80551314 | O128: 13.65032578 | P128: 1172.734431 | Q128: =_xlfn.XLOOKUP(B128,FeedTables!$C$17:$T$17,FeedTables!$C$31:$T$31,,-1) -> Unga 4mm | R128: =_xlfn.XLOOKUP(Q128,FeedPrice[Feed],FeedPrice[Price per kg],"Unknown",0)*O128 -> 1355.888225 | S128: 117578.0639 | T128: =_xlfn.XLOOKUP(O128,LabourFromFeed[Feed Quantity (kg)],LabourFromFeed[No. Labour],"Out of range",-1) -> 1 | U128: =T128*OperatingCosts!$C$9 -> 1200 | V128: 152400
A129: 127 | B129: =IF(A129<='S1-Standard'!$C$7, B128*EXP((LN((E128/100)+1))*1),) -> 447.6562715 | C129: =_xlfn.XLOOKUP($B129,FeedTables!$C$42:$T$42,FeedTables!$C$44:$T$44,,-1) -> 1.589559707 | D129: =_xlfn.XLOOKUP($B129,FeedTables!$C$42:$T$42,FeedTables!$C$45:$T$45,,-1) -> 1.571133068 | E129: =_xlfn.XLOOKUP($B129,FeedTables!$C$42:$T$42,FeedTables!$C$46:$T$46,,-1)*_xlfn.XLOOKUP(N128,DensityMultiplier[Biomass kg/m3],DensityMultiplier[Multiplier],,-1) -> 0.961141836 | F129: 1936.535375 | G129: =IF(A129<='S1-Standard'!$C$7,('Growth-Model-1'!G128*EXP($AA$7)),0) -> 6.47539697e-08 | H129: =IF(A129<='S1-Standard'!$C$7,$AD$6*EXP($AD$7*('S1-Standard'!C$7-'Growth-Model-1'!A129)),0) -> 0.2740539486 | I129: 88.73867892 | J129: 0.04382156984 | K129: 122.6819978 | L129: 4.98631216 | M129: 866.9022057 | N129: =M129/'S1-Standard'!$C$17 -> 32.1074891 | O129: 13.77992816 | P129: 1186.514359 | Q129: =_xlfn.XLOOKUP(B129,FeedTables!$C$17:$T$17,FeedTables!$C$31:$T$31,,-1) -> Unga 4mm | R129: =_xlfn.XLOOKUP(Q129,FeedPrice[Feed],FeedPrice[Price per kg],"Unknown",0)*O129 -> 1368.761642 | S129: 118946.8256 | T129: =_xlfn.XLOOKUP(O129,LabourFromFeed[Feed Quantity (kg)],LabourFromFeed[No. Labour],"Out of range",-1) -> 1 | U129: =T129*OperatingCosts!$C$9 -> 1200 | V129: 153600
A130: 128 | B130: =IF(A130<='S1-Standard'!$C$7, B129*EXP((LN((E129/100)+1))*1),) -> 451.9588832 | C130: =_xlfn.XLOOKUP($B130,FeedTables!$C$42:$T$42,FeedTables!$C$44:$T$44,,-1) -> 1.589559707 | D130: =_xlfn.XLOOKUP($B130,FeedTables!$C$42:$T$42,FeedTables!$C$45:$T$45,,-1) -> 1.571133068 | E130: =_xlfn.XLOOKUP($B130,FeedTables!$C$42:$T$42,FeedTables!$C$46:$T$46,,-1)*_xlfn.XLOOKUP(N129,DensityMultiplier[Biomass kg/m3],DensityMultiplier[Multiplier],,-1) -> 0.961141836 | F130: 1936.261321 | G130: =IF(A130<='S1-Standard'!$C$7,('Growth-Model-1'!G129*EXP($AA$7)),0) -> 5.573425822e-08 | H130: =IF(A130<='S1-Standard'!$C$7,$AD$6*EXP($AD$7*('S1-Standard'!C$7-'Growth-Model-1'!A130)),0) -> 0.3347302486 | I130: 89.07340922 | J130: 0.04398686875 | K130: 151.2843346 | L130: 5.137596495 | M130: =(B130*F130)/1000 -> 875.1105044 | N130: =M130/'S1-Standard'!$C$17 -> 32.41150016 | O130: =M130*(C130/100) -> 13.91040397 | P130: 1200.424763 | Q130: =_xlfn.XLOOKUP(B130,FeedTables!$C$17:$T$17,FeedTables!$C$31:$T$31,,-1) -> Unga 4mm | R130: =_xlfn.XLOOKUP(Q130,FeedPrice[Feed],FeedPrice[Price per kg],"Unknown",0)*O130 -> 1381.721817 | S130: 120328.5474 | T130: =_xlfn.XLOOKUP(O130,LabourFromFeed[Feed Quantity (kg)],LabourFromFeed[No. Labour],"Out of range",-1) -> 1 | U130: =T130*OperatingCosts!$C$9 -> 1200 | V130: 154800
A131: 129 | B131: =IF(A131<='S1-Standard'!$C$7, B130*EXP((LN((E130/100)+1))*1),) -> 456.3028492 | C131: =_xlfn.XLOOKUP($B131,FeedTables!$C$42:$T$42,FeedTables!$C$44:$T$44,,-1) -> 1.589559707 | D131: =_xlfn.XLOOKUP($B131,FeedTables!$C$42:$T$42,FeedTables!$C$45:$T$45,,-1) -> 1.571133068 | E131: =_xlfn.XLOOKUP($B131,FeedTables!$C$42:$T$42,FeedTables!$C$46:$T$46,,-1)*_xlfn.XLOOKUP(N130,DensityMultiplier[Biomass kg/m3],DensityMultiplier[Multiplier],,-1) -> 0.961141836 | F131: 1935.926591 | G131: =IF(A131<='S1-Standard'!$C$7,('Growth-Model-1'!G130*EXP($AA$7)),0) -> 4.797092061e-08 | H131: =IF(A131<='S1-Standard'!$C$7,$AD$6*EXP($AD$7*('S1-Standard'!C$7-'Growth-Model-1'!A131)),0) -> 0.4088404489 | I131: 89.48224972 | J131: =I131/$F$2 -> 0.04418876529 | K131: =(G131+H131)*B131 -> 186.5550836 | L131: 5.324151578 | M131: 883.3688191 | N131: =M131/'S1-Standard'!$C$17 -> 32.71736367 | O131: 14.04167482 | P131: 1214.466438 | Q131: =_xlfn.XLOOKUP(B131,FeedTables!$C$17:$T$17,FeedTables!$C$31:$T$31,,-1) -> Unga 4mm | R131: =_xlfn.XLOOKUP(Q131,FeedPrice[Feed],FeedPrice[Price per kg],"Unknown",0)*O131 -> 1394.760964 | S131: 121723.3083 | T131: =_xlfn.XLOOKUP(O131,LabourFromFeed[Feed Quantity (kg)],LabourFromFeed[No. Labour],"Out of range",-1) -> 1 | U131: =T131*OperatingCosts!$C$9 -> 1200 | V131: 156000
A132: 130 | B132: =IF(A132<='S1-Standard'!$C$7, B131*EXP((LN((E131/100)+1))*1),) -> 460.6885667 | C132: =_xlfn.XLOOKUP($B132,FeedTables!$C$42:$T$42,FeedTables!$C$44:$T$44,,-1) -> 1.589559707 | D132: =_xlfn.XLOOKUP($B132,FeedTables!$C$42:$T$42,FeedTables!$C$45:$T$45,,-1) -> 1.571133068 | E132: =_xlfn.XLOOKUP($B132,FeedTables!$C$42:$T$42,FeedTables!$C$46:$T$46,,-1)*_xlfn.XLOOKUP(N131,DensityMultiplier[Biomass kg/m3],DensityMultiplier[Multiplier],,-1) -> 0.961141836 | F132: 1935.51775 | G132: =IF(A132<='S1-Standard'!$C$7,('Growth-Model-1'!G131*EXP($AA$7)),0) -> 4.128895401e-08 | H132: =IF(A132<='S1-Standard'!$C$7,$AD$6*EXP($AD$7*('S1-Standard'!C$7-'Growth-Model-1'!A132)),0) -> 0.499358852 | I132: =I131+G132+H132 -> 89.98160861 | J132: 0.04443536228 | K132: 230.0489328 | L132: =(K132/1000)+L131 -> 5.554200511 | M132: 891.6708983 | N132: =M132/'S1-Standard'!$C$17 -> 33.02484808 | O132: 14.17364132 | P132: =O132+P131 -> 1228.640079 | Q132: =_xlfn.XLOOKUP(B132,FeedTables!$C$17:$T$17,FeedTables!$C$31:$T$31,,-1) -> Unga 4mm | R132: =_xlfn.XLOOKUP(Q132,FeedPrice[Feed],FeedPrice[Price per kg],"Unknown",0)*O132 -> 1407.86921 | S132: =R132+S131 -> 123131.1775 | T132: =_xlfn.XLOOKUP(O132,LabourFromFeed[Feed Quantity (kg)],LabourFromFeed[No. Labour],"Out of range",-1) -> 1 | U132: =T132*OperatingCosts!$C$9 -> 1200 | V132: =U132+V131 -> 157200
A133: 131 | B133: =IF(A133<='S1-Standard'!$C$7, B132*EXP((LN((E132/100)+1))*1),) -> 465.1164373 | C133: =_xlfn.XLOOKUP($B133,FeedTables!$C$42:$T$42,FeedTables!$C$44:$T$44,,-1) -> 1.589559707 | D133: =_xlfn.XLOOKUP($B133,FeedTables!$C$42:$T$42,FeedTables!$C$45:$T$45,,-1) -> 1.571133068 | E133: =_xlfn.XLOOKUP($B133,FeedTables!$C$42:$T$42,FeedTables!$C$46:$T$46,,-1)*_xlfn.XLOOKUP(N132,DensityMultiplier[Biomass kg/m3],DensityMultiplier[Multiplier],,-1) -> 0.961141836 | F133: =F132-G132-H132 -> 1935.018391 | G133: =IF(A133<='S1-Standard'!$C$7,('Growth-Model-1'!G132*EXP($AA$7)),0) -> 3.553773205e-08 | H133: =IF(A133<='S1-Standard'!$C$7,$AD$6*EXP($AD$7*('S1-Standard'!C$7-'Growth-Model-1'!A133)),0) -> 0.6099182791 | I133: 90.59152693 | J133: 0.04473655651 | K133: 283.6830336 | L133: 5.837883545 | M133: 900.0088603 | N133: =M133/'S1-Standard'!$C$17 -> 33.33366149 | O133: 14.3061782 | P133: 1242.946258 | Q133: =_xlfn.XLOOKUP(B133,FeedTables!$C$17:$T$17,FeedTables!$C$31:$T$31,,-1) -> Unga 4mm | R133: =_xlfn.XLOOKUP(Q133,FeedPrice[Feed],FeedPrice[Price per kg],"Unknown",0)*O133 -> 1421.034112 | S133: 124552.2117 | T133: =_xlfn.XLOOKUP(O133,LabourFromFeed[Feed Quantity (kg)],LabourFromFeed[No. Labour],"Out of range",-1) -> 1 | U133: =T133*OperatingCosts!$C$9 -> 1200 | V133: 158400
A134: 132 | B134: =IF(A134<='S1-Standard'!$C$7, B133*EXP((LN((E133/100)+1))*1),) -> 469.586866 | C134: =_xlfn.XLOOKUP($B134,FeedTables!$C$42:$T$42,FeedTables!$C$44:$T$44,,-1) -> 1.589559707 | D134: =_xlfn.XLOOKUP($B134,FeedTables!$C$42:$T$42,FeedTables!$C$45:$T$45,,-1) -> 1.571133068 | E134: =_xlfn.XLOOKUP($B134,FeedTables!$C$42:$T$42,FeedTables!$C$46:$T$46,,-1)*_xlfn.XLOOKUP(N133,DensityMultiplier[Biomass kg/m3],DensityMultiplier[Multiplier],,-1) -> 0.961141836 | F134: 1934.408473 | G134: =IF(A134<='S1-Standard'!$C$7,('Growth-Model-1'!G133*EXP($AA$7)),0) -> 3.058760944e-08 | H134: =IF(A134<='S1-Standard'!$C$7,$AD$6*EXP($AD$7*('S1-Standard'!C$7-'Growth-Model-1'!A134)),0) -> 0.7449558684 | I134: 91.33648283 | J134: 0.04510443596 | K134: 349.8215059 | L134: 6.187705051 | M134: 908.3728123 | N134: =M134/'S1-Standard'!$C$17 -> 33.64343749 | O134: 14.43912822 | P134: 1257.385386 | Q134: =_xlfn.XLOOKUP(B134,FeedTables!$C$17:$T$17,FeedTables!$C$31:$T$31,,-1) -> Unga 4mm | R134: =_xlfn.XLOOKUP(Q134,FeedPrice[Feed],FeedPrice[Price per kg],"Unknown",0)*O134 -> 1434.24005 | S134: 125986.4517 | T134: =_xlfn.XLOOKUP(O134,LabourFromFeed[Feed Quantity (kg)],LabourFromFeed[No. Labour],"Out of range",-1) -> 1 | U134: =T134*OperatingCosts!$C$9 -> 1200 | V134: 159600
A135: 133 | B135: =IF(A135<='S1-Standard'!$C$7, B134*EXP((LN((E134/100)+1))*1),) -> 474.1002618 | C135: =_xlfn.XLOOKUP($B135,FeedTables!$C$42:$T$42,FeedTables!$C$44:$T$44,,-1) -> 1.589559707 | D135: =_xlfn.XLOOKUP($B135,FeedTables!$C$42:$T$42,FeedTables!$C$45:$T$45,,-1) -> 1.571133068 | E135: =_xlfn.XLOOKUP($B135,FeedTables!$C$42:$T$42,FeedTables!$C$46:$T$46,,-1)*_xlfn.XLOOKUP(N134,DensityMultiplier[Biomass kg/m3],DensityMultiplier[Multiplier],,-1) -> 0.961141836 | F135: 1933.663517 | G135: =IF(A135<='S1-Standard'!$C$7,('Growth-Model-1'!G134*EXP($AA$7)),0) -> 2.632699943e-08 | H135: =IF(A135<='S1-Standard'!$C$7,$AD$6*EXP($AD$7*('S1-Standard'!C$7-'Growth-Model-1'!A135)),0) -> 0.9098911523 | I135: 92.246374 | J135: 0.04555376494 | K135: 431.379646 | L135: 6.619084697 | M135: 916.7503797 | N135: =M135/'S1-Standard'!$C$17 -> 33.95371777 | O135: 14.57229465 | P135: 1271.95768 | Q135: =_xlfn.XLOOKUP(B135,FeedTables!$C$17:$T$17,FeedTables!$C$31:$T$31,,-1) -> Unga 4mm | R135: =_xlfn.XLOOKUP(Q135,FeedPrice[Feed],FeedPrice[Price per kg],"Unknown",0)*O135 -> 1447.467485 | S135: 127433.9192 | T135: =_xlfn.XLOOKUP(O135,LabourFromFeed[Feed Quantity (kg)],LabourFromFeed[No. Labour],"Out of range",-1) -> 1 | U135: =T135*OperatingCosts!$C$9 -> 1200 | V135: 160800
A136: 134 | B136: =IF(A136<='S1-Standard'!$C$7, B135*EXP((LN((E135/100)+1))*1),) -> 478.6570377 | C136: =_xlfn.XLOOKUP($B136,FeedTables!$C$42:$T$42,FeedTables!$C$44:$T$44,,-1) -> 1.589559707 | D136: =_xlfn.XLOOKUP($B136,FeedTables!$C$42:$T$42,FeedTables!$C$45:$T$45,,-1) -> 1.571133068 | E136: =_xlfn.XLOOKUP($B136,FeedTables!$C$42:$T$42,FeedTables!$C$46:$T$46,,-1)*_xlfn.XLOOKUP(N135,DensityMultiplier[Biomass kg/m3],DensityMultiplier[Multiplier],,-1) -> 0.961141836 | F136: 1932.753626 | G136: =IF(A136<='S1-Standard'!$C$7,('Growth-Model-1'!G135*EXP($AA$7)),0) -> 2.26598584e-08 | H136: =IF(A136<='S1-Standard'!$C$7,$AD$6*EXP($AD$7*('S1-Standard'!C$7-'Growth-Model-1'!A136)),0) -> 1.111343563 | I136: 93.35771759 | J136: 0.04610257659 | K136: 531.9524287 | L136: 7.151037125 | M136: 925.1261253 | N136: =M136/'S1-Standard'!$C$17 -> 34.26393057 | O136: 14.70543213 | P136: 1286.663113 | Q136: =_xlfn.XLOOKUP(B136,FeedTables!$C$17:$T$17,FeedTables!$C$31:$T$31,,-1) -> Unga 4mm | R136: =_xlfn.XLOOKUP(Q136,FeedPrice[Feed],FeedPrice[Price per kg],"Unknown",0)*O136 -> 1460.692044 | S136: 128894.6112 | T136: =_xlfn.XLOOKUP(O136,LabourFromFeed[Feed Quantity (kg)],LabourFromFeed[No. Labour],"Out of range",-1) -> 1 | U136: =T136*OperatingCosts!$C$9 -> 1200 | V136: 162000
A137: 135 | B137: =IF(A137<='S1-Standard'!$C$7, B136*EXP((LN((E136/100)+1))*1),) -> 483.2576108 | C137: =_xlfn.XLOOKUP($B137,FeedTables!$C$42:$T$42,FeedTables!$C$44:$T$44,,-1) -> 1.589559707 | D137: =_xlfn.XLOOKUP($B137,FeedTables!$C$42:$T$42,FeedTables!$C$45:$T$45,,-1) -> 1.571133068 | E137: =_xlfn.XLOOKUP($B137,FeedTables!$C$42:$T$42,FeedTables!$C$46:$T$46,,-1)*_xlfn.XLOOKUP(N136,DensityMultiplier[Biomass kg/m3],DensityMultiplier[Multiplier],,-1) -> 0.961141836 | F137: 1931.642282 | G137: =IF(A137<='S1-Standard'!$C$7,('Growth-Model-1'!G136*EXP($AA$7)),0) -> 1.950352087e-08 | H137: =IF(A137<='S1-Standard'!$C$7,$AD$6*EXP($AD$7*('S1-Standard'!C$7-'Growth-Model-1'!A137)),0) -> 1.357398093 | I137: 94.7151157 | J137: 0.04677289664 | K137: 655.9729688 | L137: 7.807010094 | M137: 933.4808343 | N137: =M137/'S1-Standard'!$C$17 -> 34.57336423 | O137: 14.83823522 | P137: 1301.501348 | Q137: =_xlfn.XLOOKUP(B137,FeedTables!$C$17:$T$17,FeedTables!$C$31:$T$31,,-1) -> Unga 4mm | R137: =_xlfn.XLOOKUP(Q137,FeedPrice[Feed],FeedPrice[Price per kg],"Unknown",0)*O137 -> 1473.883388 | S137: 130368.4946 | T137: =_xlfn.XLOOKUP(O137,LabourFromFeed[Feed Quantity (kg)],LabourFromFeed[No. Labour],"Out of range",-1) -> 1 | U137: =T137*OperatingCosts!$C$9 -> 1200 | V137: 163200
A138: 136 | B138: =IF(A138<='S1-Standard'!$C$7, B137*EXP((LN((E137/100)+1))*1),) -> 487.9024018 | C138: =_xlfn.XLOOKUP($B138,FeedTables!$C$42:$T$42,FeedTables!$C$44:$T$44,,-1) -> 1.589559707 | D138: =_xlfn.XLOOKUP($B138,FeedTables!$C$42:$T$42,FeedTables!$C$45:$T$45,,-1) -> 1.571133068 | E138: =_xlfn.XLOOKUP($B138,FeedTables!$C$42:$T$42,FeedTables!$C$46:$T$46,,-1)*_xlfn.XLOOKUP(N137,DensityMultiplier[Biomass kg/m3],DensityMultiplier[Multiplier],,-1) -> 0.961141836 | F138: 1930.284884 | G138: =IF(A138<='S1-Standard'!$C$7,('Growth-Model-1'!G137*EXP($AA$7)),0) -> 1.678683598e-08 | H138: =IF(A138<='S1-Standard'!$C$7,$AD$6*EXP($AD$7*('S1-Standard'!C$7-'Growth-Model-1'!A138)),0) -> 1.657929775 | I138: 96.3730455 | J138: 0.0475916274 | K138: 808.9079275 | L138: 8.615918022 | M138: 941.7906313 | N138: =M138/'S1-Standard'!$C$17 -> 34.88113449 | O138: 14.9703244 | P138: 1316.471672 | Q138: =_xlfn.XLOOKUP(B138,FeedTables!$C$17:$T$17,FeedTables!$C$31:$T$31,,-1) -> Unga 4mm | R138: =_xlfn.XLOOKUP(Q138,FeedPrice[Feed],FeedPrice[Price per kg],"Unknown",0)*O138 -> 1487.00382 | S138: 131855.4984 | T138: =_xlfn.XLOOKUP(O138,LabourFromFeed[Feed Quantity (kg)],LabourFromFeed[No. Labour],"Out of range",-1) -> 1 | U138: =T138*OperatingCosts!$C$9 -> 1200 | V138: 164400
A139: 137 | B139: =IF(A139<='S1-Standard'!$C$7, B138*EXP((LN((E138/100)+1))*1),) -> 492.591836 | C139: =_xlfn.XLOOKUP($B139,FeedTables!$C$42:$T$42,FeedTables!$C$44:$T$44,,-1) -> 1.589559707 | D139: =_xlfn.XLOOKUP($B139,FeedTables!$C$42:$T$42,FeedTables!$C$45:$T$45,,-1) -> 1.571133068 | E139: =_xlfn.XLOOKUP($B139,FeedTables!$C$42:$T$42,FeedTables!$C$46:$T$46,,-1)*_xlfn.XLOOKUP(N138,DensityMultiplier[Biomass kg/m3],DensityMultiplier[Multiplier],,-1) -> 0.961141836 | F139: 1928.626955 | G139: 1.136476945e-05 | H139: =IF(A139<='S1-Standard'!$C$7,$AD$6*EXP($AD$7*('S1-Standard'!C$7-'Growth-Model-1'!A139)),0) -> 2.025 | I139: 98.39805686 | J139: 0.04859163302 | K139: 997.504066 | L139: 9.613422088 | M139: 950.0258924 | N139: =M139/'S1-Standard'!$C$17 -> 35.18614416 | O139: 15.10122879 | P139: 1331.572901 | Q139: =_xlfn.XLOOKUP(B139,FeedTables!$C$17:$T$17,FeedTables!$C$31:$T$31,,-1) -> Unga 4mm | R139: =_xlfn.XLOOKUP(Q139,FeedPrice[Feed],FeedPrice[Price per kg],"Unknown",0)*O139 -> 1500.006566 | S139: 133355.505 | T139: =_xlfn.XLOOKUP(O139,LabourFromFeed[Feed Quantity (kg)],LabourFromFeed[No. Labour],"Out of range",-1) -> 1 | U139: =T139*OperatingCosts!$C$9 -> 1200 | V139: 165600
A140: 138 | B140: =IF(A140<='S1-Standard'!$C$7, B139*EXP((LN((E139/100)+1))*1),) -> 0 | C140: =_xlfn.XLOOKUP($B140,FeedTables!$C$42:$T$42,FeedTables!$C$44:$T$44,,-1) ->  | D140: =_xlfn.XLOOKUP($B140,FeedTables!$C$42:$T$42,FeedTables!$C$45:$T$45,,-1) ->  | E140: =_xlfn.XLOOKUP($B140,FeedTables!$C$42:$T$42,FeedTables!$C$46:$T$46,,-1)*_xlfn.XLOOKUP(N139,DensityMultiplier[Biomass kg/m3],DensityMultiplier[Multiplier],,-1) ->  | F140: 1926.601943 | G140: =IF(A140<='S1-Standard'!$C$7,('Growth-Model-1'!G139*EXP($AA$7)),0) -> 0 | H140: =IF(A140<='S1-Standard'!$C$7,$AD$6*EXP($AD$7*('S1-Standard'!C$7-'Growth-Model-1'!A140)),0) -> 0 | I140: 98.39805686 | J140: 0.04859163302 | K140: 0 | L140: 9.613422088 | M140: 0 | N140: =M140/'S1-Standard'!$C$17 -> 0 | Q140: =_xlfn.XLOOKUP(B140,FeedTables!$C$17:$T$17,FeedTables!$C$31:$T$31,,-1) ->  | R140: =_xlfn.XLOOKUP(Q140,FeedPrice[Feed],FeedPrice[Price per kg],"Unknown",0)*O140 ->  | T140: =_xlfn.XLOOKUP(O140,LabourFromFeed[Feed Quantity (kg)],LabourFromFeed[No. Labour],"Out of range",-1) ->  | U140: =T140*OperatingCosts!$C$9 -> 
A141: 139 | B141: =IF(A141<='S1-Standard'!$C$7, B140*EXP((LN((E140/100)+1))*1),) -> 0 | C141: =_xlfn.XLOOKUP($B141,FeedTables!$C$42:$T$42,FeedTables!$C$44:$T$44,,-1) ->  | D141: =_xlfn.XLOOKUP($B141,FeedTables!$C$42:$T$42,FeedTables!$C$45:$T$45,,-1) ->  | E141: =_xlfn.XLOOKUP($B141,FeedTables!$C$42:$T$42,FeedTables!$C$46:$T$46,,-1)*_xlfn.XLOOKUP(N140,DensityMultiplier[Biomass kg/m3],DensityMultiplier[Multiplier],,-1) ->  | F141: 1926.601943 | G141: =IF(A141<='S1-Standard'!$C$7,('Growth-Model-1'!G140*EXP($AA$7)),0) -> 0 | H141: =IF(A141<='S1-Standard'!$C$7,$AD$6*EXP($AD$7*('S1-Standard'!C$7-'Growth-Model-1'!A141)),0) -> 0 | I141: 98.39805686 | J141: 0.04859163302 | K141: 0 | L141: 9.613422088 | M141: 0 | N141: =M141/'S1-Standard'!$C$17 -> 0 | Q141: =_xlfn.XLOOKUP(B141,FeedTables!$C$17:$T$17,FeedTables!$C$31:$T$31,,-1) ->  | R141: =_xlfn.XLOOKUP(Q141,FeedPrice[Feed],FeedPrice[Price per kg],"Unknown",0)*O141 ->  | T141: =_xlfn.XLOOKUP(O141,LabourFromFeed[Feed Quantity (kg)],LabourFromFeed[No. Labour],"Out of range",-1) ->  | U141: =T141*OperatingCosts!$C$9 -> 
A142: 140 | B142: =IF(A142<='S1-Standard'!$C$7, B141*EXP((LN((E141/100)+1))*1),) -> 0 | C142: =_xlfn.XLOOKUP($B142,FeedTables!$C$42:$T$42,FeedTables!$C$44:$T$44,,-1) ->  | D142: =_xlfn.XLOOKUP($B142,FeedTables!$C$42:$T$42,FeedTables!$C$45:$T$45,,-1) ->  | E142: =_xlfn.XLOOKUP($B142,FeedTables!$C$42:$T$42,FeedTables!$C$46:$T$46,,-1)*_xlfn.XLOOKUP(N141,DensityMultiplier[Biomass kg/m3],DensityMultiplier[Multiplier],,-1) ->  | F142: 1926.601943 | G142: =IF(A142<='S1-Standard'!$C$7,('Growth-Model-1'!G141*EXP($AA$7)),0) -> 0 | H142: =IF(A142<='S1-Standard'!$C$7,$AD$6*EXP($AD$7*('S1-Standard'!C$7-'Growth-Model-1'!A142)),0) -> 0 | I142: 98.39805686 | J142: 0.04859163302 | K142: 0 | L142: 9.613422088 | M142: 0 | N142: =M142/'S1-Standard'!$C$17 -> 0 | Q142: =_xlfn.XLOOKUP(B142,FeedTables!$C$17:$T$17,FeedTables!$C$31:$T$31,,-1) ->  | R142: =_xlfn.XLOOKUP(Q142,FeedPrice[Feed],FeedPrice[Price per kg],"Unknown",0)*O142 ->  | T142: =_xlfn.XLOOKUP(O142,LabourFromFeed[Feed Quantity (kg)],LabourFromFeed[No. Labour],"Out of range",-1) ->  | U142: =T142*OperatingCosts!$C$9 -> 
A143: 141 | B143: =IF(A143<='S1-Standard'!$C$7, B142*EXP((LN((E142/100)+1))*1),) -> 0 | C143: =_xlfn.XLOOKUP($B143,FeedTables!$C$42:$T$42,FeedTables!$C$44:$T$44,,-1) ->  | D143: =_xlfn.XLOOKUP($B143,FeedTables!$C$42:$T$42,FeedTables!$C$45:$T$45,,-1) ->  | E143: =_xlfn.XLOOKUP($B143,FeedTables!$C$42:$T$42,FeedTables!$C$46:$T$46,,-1)*_xlfn.XLOOKUP(N142,DensityMultiplier[Biomass kg/m3],DensityMultiplier[Multiplier],,-1) ->  | F143: 1926.601943 | G143: =IF(A143<='S1-Standard'!$C$7,('Growth-Model-1'!G142*EXP($AA$7)),0) -> 0 | H143: =IF(A143<='S1-Standard'!$C$7,$AD$6*EXP($AD$7*('S1-Standard'!C$7-'Growth-Model-1'!A143)),0) -> 0 | I143: 98.39805686 | J143: 0.04859163302 | K143: 0 | L143: 9.613422088 | M143: 0 | N143: =M143/'S1-Standard'!$C$17 -> 0 | Q143: =_xlfn.XLOOKUP(B143,FeedTables!$C$17:$T$17,FeedTables!$C$31:$T$31,,-1) ->  | R143: =_xlfn.XLOOKUP(Q143,FeedPrice[Feed],FeedPrice[Price per kg],"Unknown",0)*O143 ->  | T143: =_xlfn.XLOOKUP(O143,LabourFromFeed[Feed Quantity (kg)],LabourFromFeed[No. Labour],"Out of range",-1) ->  | U143: =T143*OperatingCosts!$C$9 -> 
A144: 142 | B144: =IF(A144<='S1-Standard'!$C$7, B143*EXP((LN((E143/100)+1))*1),) -> 0 | C144: =_xlfn.XLOOKUP($B144,FeedTables!$C$42:$T$42,FeedTables!$C$44:$T$44,,-1) ->  | D144: =_xlfn.XLOOKUP($B144,FeedTables!$C$42:$T$42,FeedTables!$C$45:$T$45,,-1) ->  | E144: =_xlfn.XLOOKUP($B144,FeedTables!$C$42:$T$42,FeedTables!$C$46:$T$46,,-1)*_xlfn.XLOOKUP(N143,DensityMultiplier[Biomass kg/m3],DensityMultiplier[Multiplier],,-1) ->  | F144: 1926.601943 | G144: =IF(A144<='S1-Standard'!$C$7,('Growth-Model-1'!G143*EXP($AA$7)),0) -> 0 | H144: =IF(A144<='S1-Standard'!$C$7,$AD$6*EXP($AD$7*('S1-Standard'!C$7-'Growth-Model-1'!A144)),0) -> 0 | I144: 98.39805686 | J144: 0.04859163302 | K144: 0 | L144: 9.613422088 | M144: 0 | N144: =M144/'S1-Standard'!$C$17 -> 0 | Q144: =_xlfn.XLOOKUP(B144,FeedTables!$C$17:$T$17,FeedTables!$C$31:$T$31,,-1) ->  | R144: =_xlfn.XLOOKUP(Q144,FeedPrice[Feed],FeedPrice[Price per kg],"Unknown",0)*O144 ->  | T144: =_xlfn.XLOOKUP(O144,LabourFromFeed[Feed Quantity (kg)],LabourFromFeed[No. Labour],"Out of range",-1) ->  | U144: =T144*OperatingCosts!$C$9 -> 
A145: 143 | B145: =IF(A145<='S1-Standard'!$C$7, B144*EXP((LN((E144/100)+1))*1),) -> 0 | C145: =_xlfn.XLOOKUP($B145,FeedTables!$C$42:$T$42,FeedTables!$C$44:$T$44,,-1) ->  | D145: =_xlfn.XLOOKUP($B145,FeedTables!$C$42:$T$42,FeedTables!$C$45:$T$45,,-1) ->  | E145: =_xlfn.XLOOKUP($B145,FeedTables!$C$42:$T$42,FeedTables!$C$46:$T$46,,-1)*_xlfn.XLOOKUP(N144,DensityMultiplier[Biomass kg/m3],DensityMultiplier[Multiplier],,-1) ->  | F145: 1926.601943 | G145: =IF(A145<='S1-Standard'!$C$7,('Growth-Model-1'!G144*EXP($AA$7)),0) -> 0 | H145: =IF(A145<='S1-Standard'!$C$7,$AD$6*EXP($AD$7*('S1-Standard'!C$7-'Growth-Model-1'!A145)),0) -> 0 | I145: 98.39805686 | J145: 0.04859163302 | K145: 0 | L145: 9.613422088 | M145: 0 | N145: =M145/'S1-Standard'!$C$17 -> 0 | Q145: =_xlfn.XLOOKUP(B145,FeedTables!$C$17:$T$17,FeedTables!$C$31:$T$31,,-1) ->  | R145: =_xlfn.XLOOKUP(Q145,FeedPrice[Feed],FeedPrice[Price per kg],"Unknown",0)*O145 ->  | T145: =_xlfn.XLOOKUP(O145,LabourFromFeed[Feed Quantity (kg)],LabourFromFeed[No. Labour],"Out of range",-1) ->  | U145: =T145*OperatingCosts!$C$9 -> 
A146: 144 | B146: =IF(A146<='S1-Standard'!$C$7, B145*EXP((LN((E145/100)+1))*1),) -> 0 | C146: =_xlfn.XLOOKUP($B146,FeedTables!$C$42:$T$42,FeedTables!$C$44:$T$44,,-1) ->  | D146: =_xlfn.XLOOKUP($B146,FeedTables!$C$42:$T$42,FeedTables!$C$45:$T$45,,-1) ->  | E146: =_xlfn.XLOOKUP($B146,FeedTables!$C$42:$T$42,FeedTables!$C$46:$T$46,,-1)*_xlfn.XLOOKUP(N145,DensityMultiplier[Biomass kg/m3],DensityMultiplier[Multiplier],,-1) ->  | F146: 1926.601943 | G146: =IF(A146<='S1-Standard'!$C$7,('Growth-Model-1'!G145*EXP($AA$7)),0) -> 0 | H146: =IF(A146<='S1-Standard'!$C$7,$AD$6*EXP($AD$7*('S1-Standard'!C$7-'Growth-Model-1'!A146)),0) -> 0 | I146: 98.39805686 | J146: 0.04859163302 | K146: 0 | L146: 9.613422088 | M146: 0 | N146: =M146/'S1-Standard'!$C$17 -> 0 | Q146: =_xlfn.XLOOKUP(B146,FeedTables!$C$17:$T$17,FeedTables!$C$31:$T$31,,-1) ->  | R146: =_xlfn.XLOOKUP(Q146,FeedPrice[Feed],FeedPrice[Price per kg],"Unknown",0)*O146 ->  | T146: =_xlfn.XLOOKUP(O146,LabourFromFeed[Feed Quantity (kg)],LabourFromFeed[No. Labour],"Out of range",-1) ->  | U146: =T146*OperatingCosts!$C$9 -> 
A147: 145 | B147: =IF(A147<='S1-Standard'!$C$7, B146*EXP((LN((E146/100)+1))*1),) -> 0 | C147: =_xlfn.XLOOKUP($B147,FeedTables!$C$42:$T$42,FeedTables!$C$44:$T$44,,-1) ->  | D147: =_xlfn.XLOOKUP($B147,FeedTables!$C$42:$T$42,FeedTables!$C$45:$T$45,,-1) ->  | E147: =_xlfn.XLOOKUP($B147,FeedTables!$C$42:$T$42,FeedTables!$C$46:$T$46,,-1)*_xlfn.XLOOKUP(N146,DensityMultiplier[Biomass kg/m3],DensityMultiplier[Multiplier],,-1) ->  | F147: 1926.601943 | G147: =IF(A147<='S1-Standard'!$C$7,('Growth-Model-1'!G146*EXP($AA$7)),0) -> 0 | H147: =IF(A147<='S1-Standard'!$C$7,$AD$6*EXP($AD$7*('S1-Standard'!C$7-'Growth-Model-1'!A147)),0) -> 0 | I147: 98.39805686 | J147: 0.04859163302 | K147: 0 | L147: 9.613422088 | M147: 0 | N147: =M147/'S1-Standard'!$C$17 -> 0 | Q147: =_xlfn.XLOOKUP(B147,FeedTables!$C$17:$T$17,FeedTables!$C$31:$T$31,,-1) ->  | R147: =_xlfn.XLOOKUP(Q147,FeedPrice[Feed],FeedPrice[Price per kg],"Unknown",0)*O147 ->  | T147: =_xlfn.XLOOKUP(O147,LabourFromFeed[Feed Quantity (kg)],LabourFromFeed[No. Labour],"Out of range",-1) ->  | U147: =T147*OperatingCosts!$C$9 -> 
A148: 146 | B148: =IF(A148<='S1-Standard'!$C$7, B147*EXP((LN((E147/100)+1))*1),) -> 0 | C148: =_xlfn.XLOOKUP($B148,FeedTables!$C$42:$T$42,FeedTables!$C$44:$T$44,,-1) ->  | D148: =_xlfn.XLOOKUP($B148,FeedTables!$C$42:$T$42,FeedTables!$C$45:$T$45,,-1) ->  | E148: =_xlfn.XLOOKUP($B148,FeedTables!$C$42:$T$42,FeedTables!$C$46:$T$46,,-1)*_xlfn.XLOOKUP(N147,DensityMultiplier[Biomass kg/m3],DensityMultiplier[Multiplier],,-1) ->  | F148: 1926.601943 | G148: =IF(A148<='S1-Standard'!$C$7,('Growth-Model-1'!G147*EXP($AA$7)),0) -> 0 | H148: =IF(A148<='S1-Standard'!$C$7,$AD$6*EXP($AD$7*('S1-Standard'!C$7-'Growth-Model-1'!A148)),0) -> 0 | I148: 98.39805686 | J148: 0.04859163302 | K148: 0 | L148: 9.613422088 | M148: 0 | N148: =M148/'S1-Standard'!$C$17 -> 0 | Q148: =_xlfn.XLOOKUP(B148,FeedTables!$C$17:$T$17,FeedTables!$C$31:$T$31,,-1) ->  | R148: =_xlfn.XLOOKUP(Q148,FeedPrice[Feed],FeedPrice[Price per kg],"Unknown",0)*O148 ->  | T148: =_xlfn.XLOOKUP(O148,LabourFromFeed[Feed Quantity (kg)],LabourFromFeed[No. Labour],"Out of range",-1) ->  | U148: =T148*OperatingCosts!$C$9 -> 
A149: 147 | B149: =IF(A149<='S1-Standard'!$C$7, B148*EXP((LN((E148/100)+1))*1),) -> 0 | C149: =_xlfn.XLOOKUP($B149,FeedTables!$C$42:$T$42,FeedTables!$C$44:$T$44,,-1) ->  | D149: =_xlfn.XLOOKUP($B149,FeedTables!$C$42:$T$42,FeedTables!$C$45:$T$45,,-1) ->  | E149: =_xlfn.XLOOKUP($B149,FeedTables!$C$42:$T$42,FeedTables!$C$46:$T$46,,-1)*_xlfn.XLOOKUP(N148,DensityMultiplier[Biomass kg/m3],DensityMultiplier[Multiplier],,-1) ->  | F149: 1926.601943 | G149: =IF(A149<='S1-Standard'!$C$7,('Growth-Model-1'!G148*EXP($AA$7)),0) -> 0 | H149: =IF(A149<='S1-Standard'!$C$7,$AD$6*EXP($AD$7*('S1-Standard'!C$7-'Growth-Model-1'!A149)),0) -> 0 | I149: 98.39805686 | J149: 0.04859163302 | K149: 0 | L149: 9.613422088 | M149: 0 | N149: =M149/'S1-Standard'!$C$17 -> 0 | Q149: =_xlfn.XLOOKUP(B149,FeedTables!$C$17:$T$17,FeedTables!$C$31:$T$31,,-1) ->  | R149: =_xlfn.XLOOKUP(Q149,FeedPrice[Feed],FeedPrice[Price per kg],"Unknown",0)*O149 ->  | T149: =_xlfn.XLOOKUP(O149,LabourFromFeed[Feed Quantity (kg)],LabourFromFeed[No. Labour],"Out of range",-1) ->  | U149: =T149*OperatingCosts!$C$9 -> 
A150: 148 | B150: =IF(A150<='S1-Standard'!$C$7, B149*EXP((LN((E149/100)+1))*1),) -> 0 | C150: =_xlfn.XLOOKUP($B150,FeedTables!$C$42:$T$42,FeedTables!$C$44:$T$44,,-1) ->  | D150: =_xlfn.XLOOKUP($B150,FeedTables!$C$42:$T$42,FeedTables!$C$45:$T$45,,-1) ->  | E150: =_xlfn.XLOOKUP($B150,FeedTables!$C$42:$T$42,FeedTables!$C$46:$T$46,,-1)*_xlfn.XLOOKUP(N149,DensityMultiplier[Biomass kg/m3],DensityMultiplier[Multiplier],,-1) ->  | F150: 1926.601943 | G150: =IF(A150<='S1-Standard'!$C$7,('Growth-Model-1'!G149*EXP($AA$7)),0) -> 0 | H150: =IF(A150<='S1-Standard'!$C$7,$AD$6*EXP($AD$7*('S1-Standard'!C$7-'Growth-Model-1'!A150)),0) -> 0 | I150: 98.39805686 | J150: 0.04859163302 | K150: 0 | L150: 9.613422088 | M150: 0 | N150: =M150/'S1-Standard'!$C$17 -> 0 | Q150: =_xlfn.XLOOKUP(B150,FeedTables!$C$17:$T$17,FeedTables!$C$31:$T$31,,-1) ->  | R150: =_xlfn.XLOOKUP(Q150,FeedPrice[Feed],FeedPrice[Price per kg],"Unknown",0)*O150 ->  | T150: =_xlfn.XLOOKUP(O150,LabourFromFeed[Feed Quantity (kg)],LabourFromFeed[No. Labour],"Out of range",-1) ->  | U150: =T150*OperatingCosts!$C$9 -> 
A151: 149 | B151: =IF(A151<='S1-Standard'!$C$7, B150*EXP((LN((E150/100)+1))*1),) -> 0 | C151: =_xlfn.XLOOKUP($B151,FeedTables!$C$42:$T$42,FeedTables!$C$44:$T$44,,-1) ->  | D151: =_xlfn.XLOOKUP($B151,FeedTables!$C$42:$T$42,FeedTables!$C$45:$T$45,,-1) ->  | E151: =_xlfn.XLOOKUP($B151,FeedTables!$C$42:$T$42,FeedTables!$C$46:$T$46,,-1)*_xlfn.XLOOKUP(N150,DensityMultiplier[Biomass kg/m3],DensityMultiplier[Multiplier],,-1) ->  | F151: 1926.601943 | G151: =IF(A151<='S1-Standard'!$C$7,('Growth-Model-1'!G150*EXP($AA$7)),0) -> 0 | H151: =IF(A151<='S1-Standard'!$C$7,$AD$6*EXP($AD$7*('S1-Standard'!C$7-'Growth-Model-1'!A151)),0) -> 0 | I151: 98.39805686 | J151: 0.04859163302 | K151: 0 | L151: 9.613422088 | M151: 0 | N151: =M151/'S1-Standard'!$C$17 -> 0 | Q151: =_xlfn.XLOOKUP(B151,FeedTables!$C$17:$T$17,FeedTables!$C$31:$T$31,,-1) ->  | R151: =_xlfn.XLOOKUP(Q151,FeedPrice[Feed],FeedPrice[Price per kg],"Unknown",0)*O151 ->  | T151: =_xlfn.XLOOKUP(O151,LabourFromFeed[Feed Quantity (kg)],LabourFromFeed[No. Labour],"Out of range",-1) ->  | U151: =T151*OperatingCosts!$C$9 -> 
A152: 150 | B152: =IF(A152<='S1-Standard'!$C$7, B151*EXP((LN((E151/100)+1))*1),) -> 0 | C152: =_xlfn.XLOOKUP($B152,FeedTables!$C$42:$T$42,FeedTables!$C$44:$T$44,,-1) ->  | D152: =_xlfn.XLOOKUP($B152,FeedTables!$C$42:$T$42,FeedTables!$C$45:$T$45,,-1) ->  | E152: =_xlfn.XLOOKUP($B152,FeedTables!$C$42:$T$42,FeedTables!$C$46:$T$46,,-1)*_xlfn.XLOOKUP(N151,DensityMultiplier[Biomass kg/m3],DensityMultiplier[Multiplier],,-1) ->  | F152: 1926.601943 | G152: =IF(A152<='S1-Standard'!$C$7,('Growth-Model-1'!G151*EXP($AA$7)),0) -> 0 | H152: =IF(A152<='S1-Standard'!$C$7,$AD$6*EXP($AD$7*('S1-Standard'!C$7-'Growth-Model-1'!A152)),0) -> 0 | I152: 98.39805686 | J152: 0.04859163302 | K152: 0 | L152: 9.613422088 | M152: 0 | N152: =M152/'S1-Standard'!$C$17 -> 0 | Q152: =_xlfn.XLOOKUP(B152,FeedTables!$C$17:$T$17,FeedTables!$C$31:$T$31,,-1) ->  | R152: =_xlfn.XLOOKUP(Q152,FeedPrice[Feed],FeedPrice[Price per kg],"Unknown",0)*O152 ->  | T152: =_xlfn.XLOOKUP(O152,LabourFromFeed[Feed Quantity (kg)],LabourFromFeed[No. Labour],"Out of range",-1) ->  | U152: =T152*OperatingCosts!$C$9 -> 
A153: 151 | B153: =IF(A153<='S1-Standard'!$C$7, B152*EXP((LN((E152/100)+1))*1),) -> 0 | C153: =_xlfn.XLOOKUP($B153,FeedTables!$C$42:$T$42,FeedTables!$C$44:$T$44,,-1) ->  | D153: =_xlfn.XLOOKUP($B153,FeedTables!$C$42:$T$42,FeedTables!$C$45:$T$45,,-1) ->  | E153: =_xlfn.XLOOKUP($B153,FeedTables!$C$42:$T$42,FeedTables!$C$46:$T$46,,-1)*_xlfn.XLOOKUP(N152,DensityMultiplier[Biomass kg/m3],DensityMultiplier[Multiplier],,-1) ->  | F153: 1926.601943 | G153: =IF(A153<='S1-Standard'!$C$7,('Growth-Model-1'!G152*EXP($AA$7)),0) -> 0 | H153: =IF(A153<='S1-Standard'!$C$7,$AD$6*EXP($AD$7*('S1-Standard'!C$7-'Growth-Model-1'!A153)),0) -> 0 | I153: 98.39805686 | J153: 0.04859163302 | K153: 0 | L153: 9.613422088 | M153: 0 | N153: =M153/'S1-Standard'!$C$17 -> 0 | Q153: =_xlfn.XLOOKUP(B153,FeedTables!$C$17:$T$17,FeedTables!$C$31:$T$31,,-1) ->  | R153: =_xlfn.XLOOKUP(Q153,FeedPrice[Feed],FeedPrice[Price per kg],"Unknown",0)*O153 ->  | T153: =_xlfn.XLOOKUP(O153,LabourFromFeed[Feed Quantity (kg)],LabourFromFeed[No. Labour],"Out of range",-1) ->  | U153: =T153*OperatingCosts!$C$9 -> 
A154: 152 | B154: =IF(A154<='S1-Standard'!$C$7, B153*EXP((LN((E153/100)+1))*1),) -> 0 | C154: =_xlfn.XLOOKUP($B154,FeedTables!$C$42:$T$42,FeedTables!$C$44:$T$44,,-1) ->  | D154: =_xlfn.XLOOKUP($B154,FeedTables!$C$42:$T$42,FeedTables!$C$45:$T$45,,-1) ->  | E154: =_xlfn.XLOOKUP($B154,FeedTables!$C$42:$T$42,FeedTables!$C$46:$T$46,,-1)*_xlfn.XLOOKUP(N153,DensityMultiplier[Biomass kg/m3],DensityMultiplier[Multiplier],,-1) ->  | F154: 1926.601943 | G154: =IF(A154<='S1-Standard'!$C$7,('Growth-Model-1'!G153*EXP($AA$7)),0) -> 0 | H154: =IF(A154<='S1-Standard'!$C$7,$AD$6*EXP($AD$7*('S1-Standard'!C$7-'Growth-Model-1'!A154)),0) -> 0 | I154: 98.39805686 | J154: 0.04859163302 | K154: 0 | L154: 9.613422088 | M154: 0 | N154: =M154/'S1-Standard'!$C$17 -> 0 | Q154: =_xlfn.XLOOKUP(B154,FeedTables!$C$17:$T$17,FeedTables!$C$31:$T$31,,-1) ->  | R154: =_xlfn.XLOOKUP(Q154,FeedPrice[Feed],FeedPrice[Price per kg],"Unknown",0)*O154 ->  | T154: =_xlfn.XLOOKUP(O154,LabourFromFeed[Feed Quantity (kg)],LabourFromFeed[No. Labour],"Out of range",-1) ->  | U154: =T154*OperatingCosts!$C$9 -> 
A155: 153 | B155: =IF(A155<='S1-Standard'!$C$7, B154*EXP((LN((E154/100)+1))*1),) -> 0 | C155: =_xlfn.XLOOKUP($B155,FeedTables!$C$42:$T$42,FeedTables!$C$44:$T$44,,-1) ->  | D155: =_xlfn.XLOOKUP($B155,FeedTables!$C$42:$T$42,FeedTables!$C$45:$T$45,,-1) ->  | E155: =_xlfn.XLOOKUP($B155,FeedTables!$C$42:$T$42,FeedTables!$C$46:$T$46,,-1)*_xlfn.XLOOKUP(N154,DensityMultiplier[Biomass kg/m3],DensityMultiplier[Multiplier],,-1) ->  | F155: 1926.601943 | G155: =IF(A155<='S1-Standard'!$C$7,('Growth-Model-1'!G154*EXP($AA$7)),0) -> 0 | H155: =IF(A155<='S1-Standard'!$C$7,$AD$6*EXP($AD$7*('S1-Standard'!C$7-'Growth-Model-1'!A155)),0) -> 0 | I155: 98.39805686 | J155: 0.04859163302 | K155: 0 | L155: 9.613422088 | M155: 0 | N155: =M155/'S1-Standard'!$C$17 -> 0 | Q155: =_xlfn.XLOOKUP(B155,FeedTables!$C$17:$T$17,FeedTables!$C$31:$T$31,,-1) ->  | R155: =_xlfn.XLOOKUP(Q155,FeedPrice[Feed],FeedPrice[Price per kg],"Unknown",0)*O155 ->  | T155: =_xlfn.XLOOKUP(O155,LabourFromFeed[Feed Quantity (kg)],LabourFromFeed[No. Labour],"Out of range",-1) ->  | U155: =T155*OperatingCosts!$C$9 -> 
A156: 154 | B156: =IF(A156<='S1-Standard'!$C$7, B155*EXP((LN((E155/100)+1))*1),) -> 0 | C156: =_xlfn.XLOOKUP($B156,FeedTables!$C$42:$T$42,FeedTables!$C$44:$T$44,,-1) ->  | D156: =_xlfn.XLOOKUP($B156,FeedTables!$C$42:$T$42,FeedTables!$C$45:$T$45,,-1) ->  | E156: =_xlfn.XLOOKUP($B156,FeedTables!$C$42:$T$42,FeedTables!$C$46:$T$46,,-1)*_xlfn.XLOOKUP(N155,DensityMultiplier[Biomass kg/m3],DensityMultiplier[Multiplier],,-1) ->  | F156: 1926.601943 | G156: =IF(A156<='S1-Standard'!$C$7,('Growth-Model-1'!G155*EXP($AA$7)),0) -> 0 | H156: =IF(A156<='S1-Standard'!$C$7,$AD$6*EXP($AD$7*('S1-Standard'!C$7-'Growth-Model-1'!A156)),0) -> 0 | I156: 98.39805686 | J156: 0.04859163302 | K156: 0 | L156: 9.613422088 | M156: 0 | N156: =M156/'S1-Standard'!$C$17 -> 0 | Q156: =_xlfn.XLOOKUP(B156,FeedTables!$C$17:$T$17,FeedTables!$C$31:$T$31,,-1) ->  | R156: =_xlfn.XLOOKUP(Q156,FeedPrice[Feed],FeedPrice[Price per kg],"Unknown",0)*O156 ->  | T156: =_xlfn.XLOOKUP(O156,LabourFromFeed[Feed Quantity (kg)],LabourFromFeed[No. Labour],"Out of range",-1) ->  | U156: =T156*OperatingCosts!$C$9 -> 
A157: 155 | B157: =IF(A157<='S1-Standard'!$C$7, B156*EXP((LN((E156/100)+1))*1),) -> 0 | C157: =_xlfn.XLOOKUP($B157,FeedTables!$C$42:$T$42,FeedTables!$C$44:$T$44,,-1) ->  | D157: =_xlfn.XLOOKUP($B157,FeedTables!$C$42:$T$42,FeedTables!$C$45:$T$45,,-1) ->  | E157: =_xlfn.XLOOKUP($B157,FeedTables!$C$42:$T$42,FeedTables!$C$46:$T$46,,-1)*_xlfn.XLOOKUP(N156,DensityMultiplier[Biomass kg/m3],DensityMultiplier[Multiplier],,-1) ->  | F157: 1926.601943 | G157: =IF(A157<='S1-Standard'!$C$7,('Growth-Model-1'!G156*EXP($AA$7)),0) -> 0 | H157: =IF(A157<='S1-Standard'!$C$7,$AD$6*EXP($AD$7*('S1-Standard'!C$7-'Growth-Model-1'!A157)),0) -> 0 | I157: 98.39805686 | J157: 0.04859163302 | K157: 0 | L157: 9.613422088 | M157: 0 | N157: =M157/'S1-Standard'!$C$17 -> 0 | Q157: =_xlfn.XLOOKUP(B157,FeedTables!$C$17:$T$17,FeedTables!$C$31:$T$31,,-1) ->  | R157: =_xlfn.XLOOKUP(Q157,FeedPrice[Feed],FeedPrice[Price per kg],"Unknown",0)*O157 ->  | T157: =_xlfn.XLOOKUP(O157,LabourFromFeed[Feed Quantity (kg)],LabourFromFeed[No. Labour],"Out of range",-1) ->  | U157: =T157*OperatingCosts!$C$9 -> 
A158: 156 | B158: =IF(A158<='S1-Standard'!$C$7, B157*EXP((LN((E157/100)+1))*1),) -> 0 | C158: =_xlfn.XLOOKUP($B158,FeedTables!$C$42:$T$42,FeedTables!$C$44:$T$44,,-1) ->  | D158: =_xlfn.XLOOKUP($B158,FeedTables!$C$42:$T$42,FeedTables!$C$45:$T$45,,-1) ->  | E158: =_xlfn.XLOOKUP($B158,FeedTables!$C$42:$T$42,FeedTables!$C$46:$T$46,,-1)*_xlfn.XLOOKUP(N157,DensityMultiplier[Biomass kg/m3],DensityMultiplier[Multiplier],,-1) ->  | F158: 1926.601943 | G158: =IF(A158<='S1-Standard'!$C$7,('Growth-Model-1'!G157*EXP($AA$7)),0) -> 0 | H158: =IF(A158<='S1-Standard'!$C$7,$AD$6*EXP($AD$7*('S1-Standard'!C$7-'Growth-Model-1'!A158)),0) -> 0 | I158: 98.39805686 | J158: 0.04859163302 | K158: 0 | L158: 9.613422088 | M158: 0 | N158: =M158/'S1-Standard'!$C$17 -> 0 | Q158: =_xlfn.XLOOKUP(B158,FeedTables!$C$17:$T$17,FeedTables!$C$31:$T$31,,-1) ->  | R158: =_xlfn.XLOOKUP(Q158,FeedPrice[Feed],FeedPrice[Price per kg],"Unknown",0)*O158 ->  | T158: =_xlfn.XLOOKUP(O158,LabourFromFeed[Feed Quantity (kg)],LabourFromFeed[No. Labour],"Out of range",-1) ->  | U158: =T158*OperatingCosts!$C$9 -> 
A159: 157 | B159: =IF(A159<='S1-Standard'!$C$7, B158*EXP((LN((E158/100)+1))*1),) -> 0 | C159: =_xlfn.XLOOKUP($B159,FeedTables!$C$42:$T$42,FeedTables!$C$44:$T$44,,-1) ->  | D159: =_xlfn.XLOOKUP($B159,FeedTables!$C$42:$T$42,FeedTables!$C$45:$T$45,,-1) ->  | E159: =_xlfn.XLOOKUP($B159,FeedTables!$C$42:$T$42,FeedTables!$C$46:$T$46,,-1)*_xlfn.XLOOKUP(N158,DensityMultiplier[Biomass kg/m3],DensityMultiplier[Multiplier],,-1) ->  | F159: 1926.601943 | G159: =IF(A159<='S1-Standard'!$C$7,('Growth-Model-1'!G158*EXP($AA$7)),0) -> 0 | H159: =IF(A159<='S1-Standard'!$C$7,$AD$6*EXP($AD$7*('S1-Standard'!C$7-'Growth-Model-1'!A159)),0) -> 0 | I159: 98.39805686 | J159: 0.04859163302 | K159: 0 | L159: 9.613422088 | M159: 0 | N159: =M159/'S1-Standard'!$C$17 -> 0 | Q159: =_xlfn.XLOOKUP(B159,FeedTables!$C$17:$T$17,FeedTables!$C$31:$T$31,,-1) ->  | R159: =_xlfn.XLOOKUP(Q159,FeedPrice[Feed],FeedPrice[Price per kg],"Unknown",0)*O159 ->  | T159: =_xlfn.XLOOKUP(O159,LabourFromFeed[Feed Quantity (kg)],LabourFromFeed[No. Labour],"Out of range",-1) ->  | U159: =T159*OperatingCosts!$C$9 -> 
A160: 158 | B160: =IF(A160<='S1-Standard'!$C$7, B159*EXP((LN((E159/100)+1))*1),) -> 0 | C160: =_xlfn.XLOOKUP($B160,FeedTables!$C$42:$T$42,FeedTables!$C$44:$T$44,,-1) ->  | D160: =_xlfn.XLOOKUP($B160,FeedTables!$C$42:$T$42,FeedTables!$C$45:$T$45,,-1) ->  | E160: =_xlfn.XLOOKUP($B160,FeedTables!$C$42:$T$42,FeedTables!$C$46:$T$46,,-1)*_xlfn.XLOOKUP(N159,DensityMultiplier[Biomass kg/m3],DensityMultiplier[Multiplier],,-1) ->  | F160: 1926.601943 | G160: =IF(A160<='S1-Standard'!$C$7,('Growth-Model-1'!G159*EXP($AA$7)),0) -> 0 | H160: =IF(A160<='S1-Standard'!$C$7,$AD$6*EXP($AD$7*('S1-Standard'!C$7-'Growth-Model-1'!A160)),0) -> 0 | I160: 98.39805686 | J160: 0.04859163302 | K160: 0 | L160: 9.613422088 | M160: 0 | N160: =M160/'S1-Standard'!$C$17 -> 0 | Q160: =_xlfn.XLOOKUP(B160,FeedTables!$C$17:$T$17,FeedTables!$C$31:$T$31,,-1) ->  | R160: =_xlfn.XLOOKUP(Q160,FeedPrice[Feed],FeedPrice[Price per kg],"Unknown",0)*O160 ->  | T160: =_xlfn.XLOOKUP(O160,LabourFromFeed[Feed Quantity (kg)],LabourFromFeed[No. Labour],"Out of range",-1) ->  | U160: =T160*OperatingCosts!$C$9 -> 
A161: 159 | B161: =IF(A161<='S1-Standard'!$C$7, B160*EXP((LN((E160/100)+1))*1),) -> 0 | C161: =_xlfn.XLOOKUP($B161,FeedTables!$C$42:$T$42,FeedTables!$C$44:$T$44,,-1) ->  | D161: =_xlfn.XLOOKUP($B161,FeedTables!$C$42:$T$42,FeedTables!$C$45:$T$45,,-1) ->  | E161: =_xlfn.XLOOKUP($B161,FeedTables!$C$42:$T$42,FeedTables!$C$46:$T$46,,-1)*_xlfn.XLOOKUP(N160,DensityMultiplier[Biomass kg/m3],DensityMultiplier[Multiplier],,-1) ->  | F161: 1926.601943 | G161: =IF(A161<='S1-Standard'!$C$7,('Growth-Model-1'!G160*EXP($AA$7)),0) -> 0 | H161: =IF(A161<='S1-Standard'!$C$7,$AD$6*EXP($AD$7*('S1-Standard'!C$7-'Growth-Model-1'!A161)),0) -> 0 | I161: 98.39805686 | J161: 0.04859163302 | K161: 0 | L161: 9.613422088 | M161: 0 | N161: =M161/'S1-Standard'!$C$17 -> 0 | Q161: =_xlfn.XLOOKUP(B161,FeedTables!$C$17:$T$17,FeedTables!$C$31:$T$31,,-1) ->  | R161: =_xlfn.XLOOKUP(Q161,FeedPrice[Feed],FeedPrice[Price per kg],"Unknown",0)*O161 ->  | T161: =_xlfn.XLOOKUP(O161,LabourFromFeed[Feed Quantity (kg)],LabourFromFeed[No. Labour],"Out of range",-1) ->  | U161: =T161*OperatingCosts!$C$9 -> 
A162: 160 | B162: =IF(A162<='S1-Standard'!$C$7, B161*EXP((LN((E161/100)+1))*1),) -> 0 | C162: =_xlfn.XLOOKUP($B162,FeedTables!$C$42:$T$42,FeedTables!$C$44:$T$44,,-1) ->  | D162: =_xlfn.XLOOKUP($B162,FeedTables!$C$42:$T$42,FeedTables!$C$45:$T$45,,-1) ->  | E162: =_xlfn.XLOOKUP($B162,FeedTables!$C$42:$T$42,FeedTables!$C$46:$T$46,,-1)*_xlfn.XLOOKUP(N161,DensityMultiplier[Biomass kg/m3],DensityMultiplier[Multiplier],,-1) ->  | F162: 1926.601943 | G162: =IF(A162<='S1-Standard'!$C$7,('Growth-Model-1'!G161*EXP($AA$7)),0) -> 0 | H162: =IF(A162<='S1-Standard'!$C$7,$AD$6*EXP($AD$7*('S1-Standard'!C$7-'Growth-Model-1'!A162)),0) -> 0 | I162: 98.39805686 | J162: 0.04859163302 | K162: 0 | L162: 9.613422088 | M162: 0 | N162: =M162/'S1-Standard'!$C$17 -> 0 | Q162: =_xlfn.XLOOKUP(B162,FeedTables!$C$17:$T$17,FeedTables!$C$31:$T$31,,-1) ->  | R162: =_xlfn.XLOOKUP(Q162,FeedPrice[Feed],FeedPrice[Price per kg],"Unknown",0)*O162 ->  | T162: =_xlfn.XLOOKUP(O162,LabourFromFeed[Feed Quantity (kg)],LabourFromFeed[No. Labour],"Out of range",-1) ->  | U162: =T162*OperatingCosts!$C$9 -> 
A163: 161 | B163: =IF(A163<='S1-Standard'!$C$7, B162*EXP((LN((E162/100)+1))*1),) -> 0 | C163: =_xlfn.XLOOKUP($B163,FeedTables!$C$42:$T$42,FeedTables!$C$44:$T$44,,-1) ->  | D163: =_xlfn.XLOOKUP($B163,FeedTables!$C$42:$T$42,FeedTables!$C$45:$T$45,,-1) ->  | E163: =_xlfn.XLOOKUP($B163,FeedTables!$C$42:$T$42,FeedTables!$C$46:$T$46,,-1)*_xlfn.XLOOKUP(N162,DensityMultiplier[Biomass kg/m3],DensityMultiplier[Multiplier],,-1) ->  | F163: 1926.601943 | G163: =IF(A163<='S1-Standard'!$C$7,('Growth-Model-1'!G162*EXP($AA$7)),0) -> 0 | H163: =IF(A163<='S1-Standard'!$C$7,$AD$6*EXP($AD$7*('S1-Standard'!C$7-'Growth-Model-1'!A163)),0) -> 0 | I163: 98.39805686 | J163: 0.04859163302 | K163: 0 | L163: 9.613422088 | M163: 0 | N163: =M163/'S1-Standard'!$C$17 -> 0 | Q163: =_xlfn.XLOOKUP(B163,FeedTables!$C$17:$T$17,FeedTables!$C$31:$T$31,,-1) ->  | R163: =_xlfn.XLOOKUP(Q163,FeedPrice[Feed],FeedPrice[Price per kg],"Unknown",0)*O163 ->  | T163: =_xlfn.XLOOKUP(O163,LabourFromFeed[Feed Quantity (kg)],LabourFromFeed[No. Labour],"Out of range",-1) ->  | U163: =T163*OperatingCosts!$C$9 -> 
A164: 162 | B164: =IF(A164<='S1-Standard'!$C$7, B163*EXP((LN((E163/100)+1))*1),) -> 0 | C164: =_xlfn.XLOOKUP($B164,FeedTables!$C$42:$T$42,FeedTables!$C$44:$T$44,,-1) ->  | D164: =_xlfn.XLOOKUP($B164,FeedTables!$C$42:$T$42,FeedTables!$C$45:$T$45,,-1) ->  | E164: =_xlfn.XLOOKUP($B164,FeedTables!$C$42:$T$42,FeedTables!$C$46:$T$46,,-1)*_xlfn.XLOOKUP(N163,DensityMultiplier[Biomass kg/m3],DensityMultiplier[Multiplier],,-1) ->  | F164: 1926.601943 | G164: =IF(A164<='S1-Standard'!$C$7,('Growth-Model-1'!G163*EXP($AA$7)),0) -> 0 | H164: =IF(A164<='S1-Standard'!$C$7,$AD$6*EXP($AD$7*('S1-Standard'!C$7-'Growth-Model-1'!A164)),0) -> 0 | I164: 98.39805686 | J164: 0.04859163302 | K164: 0 | L164: 9.613422088 | M164: 0 | N164: =M164/'S1-Standard'!$C$17 -> 0 | Q164: =_xlfn.XLOOKUP(B164,FeedTables!$C$17:$T$17,FeedTables!$C$31:$T$31,,-1) ->  | R164: =_xlfn.XLOOKUP(Q164,FeedPrice[Feed],FeedPrice[Price per kg],"Unknown",0)*O164 ->  | T164: =_xlfn.XLOOKUP(O164,LabourFromFeed[Feed Quantity (kg)],LabourFromFeed[No. Labour],"Out of range",-1) ->  | U164: =T164*OperatingCosts!$C$9 -> 
A165: 163 | B165: =IF(A165<='S1-Standard'!$C$7, B164*EXP((LN((E164/100)+1))*1),) -> 0 | C165: =_xlfn.XLOOKUP($B165,FeedTables!$C$42:$T$42,FeedTables!$C$44:$T$44,,-1) ->  | D165: =_xlfn.XLOOKUP($B165,FeedTables!$C$42:$T$42,FeedTables!$C$45:$T$45,,-1) ->  | E165: =_xlfn.XLOOKUP($B165,FeedTables!$C$42:$T$42,FeedTables!$C$46:$T$46,,-1)*_xlfn.XLOOKUP(N164,DensityMultiplier[Biomass kg/m3],DensityMultiplier[Multiplier],,-1) ->  | F165: 1926.601943 | G165: =IF(A165<='S1-Standard'!$C$7,('Growth-Model-1'!G164*EXP($AA$7)),0) -> 0 | H165: =IF(A165<='S1-Standard'!$C$7,$AD$6*EXP($AD$7*('S1-Standard'!C$7-'Growth-Model-1'!A165)),0) -> 0 | I165: 98.39805686 | J165: 0.04859163302 | K165: 0 | L165: 9.613422088 | M165: 0 | N165: =M165/'S1-Standard'!$C$17 -> 0 | Q165: =_xlfn.XLOOKUP(B165,FeedTables!$C$17:$T$17,FeedTables!$C$31:$T$31,,-1) ->  | R165: =_xlfn.XLOOKUP(Q165,FeedPrice[Feed],FeedPrice[Price per kg],"Unknown",0)*O165 ->  | T165: =_xlfn.XLOOKUP(O165,LabourFromFeed[Feed Quantity (kg)],LabourFromFeed[No. Labour],"Out of range",-1) ->  | U165: =T165*OperatingCosts!$C$9 -> 
A166: 164 | B166: =IF(A166<='S1-Standard'!$C$7, B165*EXP((LN((E165/100)+1))*1),) -> 0 | C166: =_xlfn.XLOOKUP($B166,FeedTables!$C$42:$T$42,FeedTables!$C$44:$T$44,,-1) ->  | D166: =_xlfn.XLOOKUP($B166,FeedTables!$C$42:$T$42,FeedTables!$C$45:$T$45,,-1) ->  | E166: =_xlfn.XLOOKUP($B166,FeedTables!$C$42:$T$42,FeedTables!$C$46:$T$46,,-1)*_xlfn.XLOOKUP(N165,DensityMultiplier[Biomass kg/m3],DensityMultiplier[Multiplier],,-1) ->  | F166: 1926.601943 | G166: =IF(A166<='S1-Standard'!$C$7,('Growth-Model-1'!G165*EXP($AA$7)),0) -> 0 | H166: =IF(A166<='S1-Standard'!$C$7,$AD$6*EXP($AD$7*('S1-Standard'!C$7-'Growth-Model-1'!A166)),0) -> 0 | I166: 98.39805686 | J166: 0.04859163302 | K166: 0 | L166: 9.613422088 | M166: 0 | N166: =M166/'S1-Standard'!$C$17 -> 0 | Q166: =_xlfn.XLOOKUP(B166,FeedTables!$C$17:$T$17,FeedTables!$C$31:$T$31,,-1) ->  | R166: =_xlfn.XLOOKUP(Q166,FeedPrice[Feed],FeedPrice[Price per kg],"Unknown",0)*O166 ->  | T166: =_xlfn.XLOOKUP(O166,LabourFromFeed[Feed Quantity (kg)],LabourFromFeed[No. Labour],"Out of range",-1) ->  | U166: =T166*OperatingCosts!$C$9 -> 
A167: 165 | B167: =IF(A167<='S1-Standard'!$C$7, B166*EXP((LN((E166/100)+1))*1),) -> 0 | C167: =_xlfn.XLOOKUP($B167,FeedTables!$C$42:$T$42,FeedTables!$C$44:$T$44,,-1) ->  | D167: =_xlfn.XLOOKUP($B167,FeedTables!$C$42:$T$42,FeedTables!$C$45:$T$45,,-1) ->  | E167: =_xlfn.XLOOKUP($B167,FeedTables!$C$42:$T$42,FeedTables!$C$46:$T$46,,-1)*_xlfn.XLOOKUP(N166,DensityMultiplier[Biomass kg/m3],DensityMultiplier[Multiplier],,-1) ->  | F167: 1926.601943 | G167: =IF(A167<='S1-Standard'!$C$7,('Growth-Model-1'!G166*EXP($AA$7)),0) -> 0 | H167: =IF(A167<='S1-Standard'!$C$7,$AD$6*EXP($AD$7*('S1-Standard'!C$7-'Growth-Model-1'!A167)),0) -> 0 | I167: 98.39805686 | J167: 0.04859163302 | K167: 0 | L167: 9.613422088 | M167: 0 | N167: =M167/'S1-Standard'!$C$17 -> 0 | Q167: =_xlfn.XLOOKUP(B167,FeedTables!$C$17:$T$17,FeedTables!$C$31:$T$31,,-1) ->  | R167: =_xlfn.XLOOKUP(Q167,FeedPrice[Feed],FeedPrice[Price per kg],"Unknown",0)*O167 ->  | T167: =_xlfn.XLOOKUP(O167,LabourFromFeed[Feed Quantity (kg)],LabourFromFeed[No. Labour],"Out of range",-1) ->  | U167: =T167*OperatingCosts!$C$9 -> 
A168: 166 | B168: =IF(A168<='S1-Standard'!$C$7, B167*EXP((LN((E167/100)+1))*1),) -> 0 | C168: =_xlfn.XLOOKUP($B168,FeedTables!$C$42:$T$42,FeedTables!$C$44:$T$44,,-1) ->  | D168: =_xlfn.XLOOKUP($B168,FeedTables!$C$42:$T$42,FeedTables!$C$45:$T$45,,-1) ->  | E168: =_xlfn.XLOOKUP($B168,FeedTables!$C$42:$T$42,FeedTables!$C$46:$T$46,,-1)*_xlfn.XLOOKUP(N167,DensityMultiplier[Biomass kg/m3],DensityMultiplier[Multiplier],,-1) ->  | F168: 1926.601943 | G168: =IF(A168<='S1-Standard'!$C$7,('Growth-Model-1'!G167*EXP($AA$7)),0) -> 0 | H168: =IF(A168<='S1-Standard'!$C$7,$AD$6*EXP($AD$7*('S1-Standard'!C$7-'Growth-Model-1'!A168)),0) -> 0 | I168: 98.39805686 | J168: 0.04859163302 | K168: 0 | L168: 9.613422088 | M168: 0 | N168: =M168/'S1-Standard'!$C$17 -> 0 | Q168: =_xlfn.XLOOKUP(B168,FeedTables!$C$17:$T$17,FeedTables!$C$31:$T$31,,-1) ->  | R168: =_xlfn.XLOOKUP(Q168,FeedPrice[Feed],FeedPrice[Price per kg],"Unknown",0)*O168 ->  | T168: =_xlfn.XLOOKUP(O168,LabourFromFeed[Feed Quantity (kg)],LabourFromFeed[No. Labour],"Out of range",-1) ->  | U168: =T168*OperatingCosts!$C$9 -> 
A169: 167 | B169: =IF(A169<='S1-Standard'!$C$7, B168*EXP((LN((E168/100)+1))*1),) -> 0 | C169: =_xlfn.XLOOKUP($B169,FeedTables!$C$42:$T$42,FeedTables!$C$44:$T$44,,-1) ->  | D169: =_xlfn.XLOOKUP($B169,FeedTables!$C$42:$T$42,FeedTables!$C$45:$T$45,,-1) ->  | E169: =_xlfn.XLOOKUP($B169,FeedTables!$C$42:$T$42,FeedTables!$C$46:$T$46,,-1)*_xlfn.XLOOKUP(N168,DensityMultiplier[Biomass kg/m3],DensityMultiplier[Multiplier],,-1) ->  | F169: 1926.601943 | G169: =IF(A169<='S1-Standard'!$C$7,('Growth-Model-1'!G168*EXP($AA$7)),0) -> 0 | H169: =IF(A169<='S1-Standard'!$C$7,$AD$6*EXP($AD$7*('S1-Standard'!C$7-'Growth-Model-1'!A169)),0) -> 0 | I169: 98.39805686 | J169: 0.04859163302 | K169: 0 | L169: 9.613422088 | M169: 0 | N169: =M169/'S1-Standard'!$C$17 -> 0 | Q169: =_xlfn.XLOOKUP(B169,FeedTables!$C$17:$T$17,FeedTables!$C$31:$T$31,,-1) ->  | R169: =_xlfn.XLOOKUP(Q169,FeedPrice[Feed],FeedPrice[Price per kg],"Unknown",0)*O169 ->  | T169: =_xlfn.XLOOKUP(O169,LabourFromFeed[Feed Quantity (kg)],LabourFromFeed[No. Labour],"Out of range",-1) ->  | U169: =T169*OperatingCosts!$C$9 -> 
A170: 168 | B170: =IF(A170<='S1-Standard'!$C$7, B169*EXP((LN((E169/100)+1))*1),) -> 0 | C170: =_xlfn.XLOOKUP($B170,FeedTables!$C$42:$T$42,FeedTables!$C$44:$T$44,,-1) ->  | D170: =_xlfn.XLOOKUP($B170,FeedTables!$C$42:$T$42,FeedTables!$C$45:$T$45,,-1) ->  | E170: =_xlfn.XLOOKUP($B170,FeedTables!$C$42:$T$42,FeedTables!$C$46:$T$46,,-1)*_xlfn.XLOOKUP(N169,DensityMultiplier[Biomass kg/m3],DensityMultiplier[Multiplier],,-1) ->  | F170: 1926.601943 | G170: =IF(A170<='S1-Standard'!$C$7,('Growth-Model-1'!G169*EXP($AA$7)),0) -> 0 | H170: =IF(A170<='S1-Standard'!$C$7,$AD$6*EXP($AD$7*('S1-Standard'!C$7-'Growth-Model-1'!A170)),0) -> 0 | I170: 98.39805686 | J170: 0.04859163302 | K170: 0 | L170: 9.613422088 | M170: 0 | N170: =M170/'S1-Standard'!$C$17 -> 0 | Q170: =_xlfn.XLOOKUP(B170,FeedTables!$C$17:$T$17,FeedTables!$C$31:$T$31,,-1) ->  | R170: =_xlfn.XLOOKUP(Q170,FeedPrice[Feed],FeedPrice[Price per kg],"Unknown",0)*O170 ->  | T170: =_xlfn.XLOOKUP(O170,LabourFromFeed[Feed Quantity (kg)],LabourFromFeed[No. Labour],"Out of range",-1) ->  | U170: =T170*OperatingCosts!$C$9 -> 
A171: 169 | B171: =IF(A171<='S1-Standard'!$C$7, B170*EXP((LN((E170/100)+1))*1),) -> 0 | C171: =_xlfn.XLOOKUP($B171,FeedTables!$C$42:$T$42,FeedTables!$C$44:$T$44,,-1) ->  | D171: =_xlfn.XLOOKUP($B171,FeedTables!$C$42:$T$42,FeedTables!$C$45:$T$45,,-1) ->  | E171: =_xlfn.XLOOKUP($B171,FeedTables!$C$42:$T$42,FeedTables!$C$46:$T$46,,-1)*_xlfn.XLOOKUP(N170,DensityMultiplier[Biomass kg/m3],DensityMultiplier[Multiplier],,-1) ->  | F171: 1926.601943 | G171: =IF(A171<='S1-Standard'!$C$7,('Growth-Model-1'!G170*EXP($AA$7)),0) -> 0 | H171: =IF(A171<='S1-Standard'!$C$7,$AD$6*EXP($AD$7*('S1-Standard'!C$7-'Growth-Model-1'!A171)),0) -> 0 | I171: 98.39805686 | J171: 0.04859163302 | K171: 0 | L171: 9.613422088 | M171: 0 | N171: =M171/'S1-Standard'!$C$17 -> 0 | Q171: =_xlfn.XLOOKUP(B171,FeedTables!$C$17:$T$17,FeedTables!$C$31:$T$31,,-1) ->  | R171: =_xlfn.XLOOKUP(Q171,FeedPrice[Feed],FeedPrice[Price per kg],"Unknown",0)*O171 ->  | T171: =_xlfn.XLOOKUP(O171,LabourFromFeed[Feed Quantity (kg)],LabourFromFeed[No. Labour],"Out of range",-1) ->  | U171: =T171*OperatingCosts!$C$9 -> 
A172: 170 | B172: =IF(A172<='S1-Standard'!$C$7, B171*EXP((LN((E171/100)+1))*1),) -> 0 | C172: =_xlfn.XLOOKUP($B172,FeedTables!$C$42:$T$42,FeedTables!$C$44:$T$44,,-1) ->  | D172: =_xlfn.XLOOKUP($B172,FeedTables!$C$42:$T$42,FeedTables!$C$45:$T$45,,-1) ->  | E172: =_xlfn.XLOOKUP($B172,FeedTables!$C$42:$T$42,FeedTables!$C$46:$T$46,,-1)*_xlfn.XLOOKUP(N171,DensityMultiplier[Biomass kg/m3],DensityMultiplier[Multiplier],,-1) ->  | F172: 1926.601943 | G172: =IF(A172<='S1-Standard'!$C$7,('Growth-Model-1'!G171*EXP($AA$7)),0) -> 0 | H172: =IF(A172<='S1-Standard'!$C$7,$AD$6*EXP($AD$7*('S1-Standard'!C$7-'Growth-Model-1'!A172)),0) -> 0 | I172: 98.39805686 | J172: 0.04859163302 | K172: 0 | L172: 9.613422088 | M172: 0 | N172: =M172/'S1-Standard'!$C$17 -> 0 | Q172: =_xlfn.XLOOKUP(B172,FeedTables!$C$17:$T$17,FeedTables!$C$31:$T$31,,-1) ->  | R172: =_xlfn.XLOOKUP(Q172,FeedPrice[Feed],FeedPrice[Price per kg],"Unknown",0)*O172 ->  | T172: =_xlfn.XLOOKUP(O172,LabourFromFeed[Feed Quantity (kg)],LabourFromFeed[No. Labour],"Out of range",-1) ->  | U172: =T172*OperatingCosts!$C$9 -> 
A173: 171 | B173: =IF(A173<='S1-Standard'!$C$7, B172*EXP((LN((E172/100)+1))*1),) -> 0 | C173: =_xlfn.XLOOKUP($B173,FeedTables!$C$42:$T$42,FeedTables!$C$44:$T$44,,-1) ->  | D173: =_xlfn.XLOOKUP($B173,FeedTables!$C$42:$T$42,FeedTables!$C$45:$T$45,,-1) ->  | E173: =_xlfn.XLOOKUP($B173,FeedTables!$C$42:$T$42,FeedTables!$C$46:$T$46,,-1)*_xlfn.XLOOKUP(N172,DensityMultiplier[Biomass kg/m3],DensityMultiplier[Multiplier],,-1) ->  | F173: 1926.601943 | G173: =IF(A173<='S1-Standard'!$C$7,('Growth-Model-1'!G172*EXP($AA$7)),0) -> 0 | H173: =IF(A173<='S1-Standard'!$C$7,$AD$6*EXP($AD$7*('S1-Standard'!C$7-'Growth-Model-1'!A173)),0) -> 0 | I173: 98.39805686 | J173: 0.04859163302 | K173: 0 | L173: 9.613422088 | M173: 0 | N173: =M173/'S1-Standard'!$C$17 -> 0 | Q173: =_xlfn.XLOOKUP(B173,FeedTables!$C$17:$T$17,FeedTables!$C$31:$T$31,,-1) ->  | R173: =_xlfn.XLOOKUP(Q173,FeedPrice[Feed],FeedPrice[Price per kg],"Unknown",0)*O173 ->  | T173: =_xlfn.XLOOKUP(O173,LabourFromFeed[Feed Quantity (kg)],LabourFromFeed[No. Labour],"Out of range",-1) ->  | U173: =T173*OperatingCosts!$C$9 -> 
A174: 172 | B174: =IF(A174<='S1-Standard'!$C$7, B173*EXP((LN((E173/100)+1))*1),) -> 0 | C174: =_xlfn.XLOOKUP($B174,FeedTables!$C$42:$T$42,FeedTables!$C$44:$T$44,,-1) ->  | D174: =_xlfn.XLOOKUP($B174,FeedTables!$C$42:$T$42,FeedTables!$C$45:$T$45,,-1) ->  | E174: =_xlfn.XLOOKUP($B174,FeedTables!$C$42:$T$42,FeedTables!$C$46:$T$46,,-1)*_xlfn.XLOOKUP(N173,DensityMultiplier[Biomass kg/m3],DensityMultiplier[Multiplier],,-1) ->  | F174: 1926.601943 | G174: =IF(A174<='S1-Standard'!$C$7,('Growth-Model-1'!G173*EXP($AA$7)),0) -> 0 | H174: =IF(A174<='S1-Standard'!$C$7,$AD$6*EXP($AD$7*('S1-Standard'!C$7-'Growth-Model-1'!A174)),0) -> 0 | I174: 98.39805686 | J174: 0.04859163302 | K174: 0 | L174: 9.613422088 | M174: 0 | N174: =M174/'S1-Standard'!$C$17 -> 0 | Q174: =_xlfn.XLOOKUP(B174,FeedTables!$C$17:$T$17,FeedTables!$C$31:$T$31,,-1) ->  | R174: =_xlfn.XLOOKUP(Q174,FeedPrice[Feed],FeedPrice[Price per kg],"Unknown",0)*O174 ->  | T174: =_xlfn.XLOOKUP(O174,LabourFromFeed[Feed Quantity (kg)],LabourFromFeed[No. Labour],"Out of range",-1) ->  | U174: =T174*OperatingCosts!$C$9 -> 
A175: 173 | B175: =IF(A175<='S1-Standard'!$C$7, B174*EXP((LN((E174/100)+1))*1),) -> 0 | C175: =_xlfn.XLOOKUP($B175,FeedTables!$C$42:$T$42,FeedTables!$C$44:$T$44,,-1) ->  | D175: =_xlfn.XLOOKUP($B175,FeedTables!$C$42:$T$42,FeedTables!$C$45:$T$45,,-1) ->  | E175: =_xlfn.XLOOKUP($B175,FeedTables!$C$42:$T$42,FeedTables!$C$46:$T$46,,-1)*_xlfn.XLOOKUP(N174,DensityMultiplier[Biomass kg/m3],DensityMultiplier[Multiplier],,-1) ->  | F175: 1926.601943 | G175: =IF(A175<='S1-Standard'!$C$7,('Growth-Model-1'!G174*EXP($AA$7)),0) -> 0 | H175: =IF(A175<='S1-Standard'!$C$7,$AD$6*EXP($AD$7*('S1-Standard'!C$7-'Growth-Model-1'!A175)),0) -> 0 | I175: 98.39805686 | J175: 0.04859163302 | K175: 0 | L175: 9.613422088 | M175: 0 | N175: =M175/'S1-Standard'!$C$17 -> 0 | Q175: =_xlfn.XLOOKUP(B175,FeedTables!$C$17:$T$17,FeedTables!$C$31:$T$31,,-1) ->  | R175: =_xlfn.XLOOKUP(Q175,FeedPrice[Feed],FeedPrice[Price per kg],"Unknown",0)*O175 ->  | T175: =_xlfn.XLOOKUP(O175,LabourFromFeed[Feed Quantity (kg)],LabourFromFeed[No. Labour],"Out of range",-1) ->  | U175: =T175*OperatingCosts!$C$9 -> 
A176: 174 | B176: =IF(A176<='S1-Standard'!$C$7, B175*EXP((LN((E175/100)+1))*1),) -> 0 | C176: =_xlfn.XLOOKUP($B176,FeedTables!$C$42:$T$42,FeedTables!$C$44:$T$44,,-1) ->  | D176: =_xlfn.XLOOKUP($B176,FeedTables!$C$42:$T$42,FeedTables!$C$45:$T$45,,-1) ->  | E176: =_xlfn.XLOOKUP($B176,FeedTables!$C$42:$T$42,FeedTables!$C$46:$T$46,,-1)*_xlfn.XLOOKUP(N175,DensityMultiplier[Biomass kg/m3],DensityMultiplier[Multiplier],,-1) ->  | F176: 1926.601943 | G176: =IF(A176<='S1-Standard'!$C$7,('Growth-Model-1'!G175*EXP($AA$7)),0) -> 0 | H176: =IF(A176<='S1-Standard'!$C$7,$AD$6*EXP($AD$7*('S1-Standard'!C$7-'Growth-Model-1'!A176)),0) -> 0 | I176: 98.39805686 | J176: 0.04859163302 | K176: 0 | L176: 9.613422088 | M176: 0 | N176: =M176/'S1-Standard'!$C$17 -> 0 | Q176: =_xlfn.XLOOKUP(B176,FeedTables!$C$17:$T$17,FeedTables!$C$31:$T$31,,-1) ->  | R176: =_xlfn.XLOOKUP(Q176,FeedPrice[Feed],FeedPrice[Price per kg],"Unknown",0)*O176 ->  | T176: =_xlfn.XLOOKUP(O176,LabourFromFeed[Feed Quantity (kg)],LabourFromFeed[No. Labour],"Out of range",-1) ->  | U176: =T176*OperatingCosts!$C$9 -> 
A177: 175 | B177: =IF(A177<='S1-Standard'!$C$7, B176*EXP((LN((E176/100)+1))*1),) -> 0 | C177: =_xlfn.XLOOKUP($B177,FeedTables!$C$42:$T$42,FeedTables!$C$44:$T$44,,-1) ->  | D177: =_xlfn.XLOOKUP($B177,FeedTables!$C$42:$T$42,FeedTables!$C$45:$T$45,,-1) ->  | E177: =_xlfn.XLOOKUP($B177,FeedTables!$C$42:$T$42,FeedTables!$C$46:$T$46,,-1)*_xlfn.XLOOKUP(N176,DensityMultiplier[Biomass kg/m3],DensityMultiplier[Multiplier],,-1) ->  | F177: 1926.601943 | G177: =IF(A177<='S1-Standard'!$C$7,('Growth-Model-1'!G176*EXP($AA$7)),0) -> 0 | H177: =IF(A177<='S1-Standard'!$C$7,$AD$6*EXP($AD$7*('S1-Standard'!C$7-'Growth-Model-1'!A177)),0) -> 0 | I177: 98.39805686 | J177: 0.04859163302 | K177: 0 | L177: 9.613422088 | M177: 0 | N177: =M177/'S1-Standard'!$C$17 -> 0 | Q177: =_xlfn.XLOOKUP(B177,FeedTables!$C$17:$T$17,FeedTables!$C$31:$T$31,,-1) ->  | R177: =_xlfn.XLOOKUP(Q177,FeedPrice[Feed],FeedPrice[Price per kg],"Unknown",0)*O177 ->  | T177: =_xlfn.XLOOKUP(O177,LabourFromFeed[Feed Quantity (kg)],LabourFromFeed[No. Labour],"Out of range",-1) ->  | U177: =T177*OperatingCosts!$C$9 -> 
A178: 176 | B178: =IF(A178<='S1-Standard'!$C$7, B177*EXP((LN((E177/100)+1))*1),) -> 0 | C178: =_xlfn.XLOOKUP($B178,FeedTables!$C$42:$T$42,FeedTables!$C$44:$T$44,,-1) ->  | D178: =_xlfn.XLOOKUP($B178,FeedTables!$C$42:$T$42,FeedTables!$C$45:$T$45,,-1) ->  | E178: =_xlfn.XLOOKUP($B178,FeedTables!$C$42:$T$42,FeedTables!$C$46:$T$46,,-1)*_xlfn.XLOOKUP(N177,DensityMultiplier[Biomass kg/m3],DensityMultiplier[Multiplier],,-1) ->  | F178: 1926.601943 | G178: =IF(A178<='S1-Standard'!$C$7,('Growth-Model-1'!G177*EXP($AA$7)),0) -> 0 | H178: =IF(A178<='S1-Standard'!$C$7,$AD$6*EXP($AD$7*('S1-Standard'!C$7-'Growth-Model-1'!A178)),0) -> 0 | I178: 98.39805686 | J178: 0.04859163302 | K178: 0 | L178: 9.613422088 | M178: 0 | N178: =M178/'S1-Standard'!$C$17 -> 0 | Q178: =_xlfn.XLOOKUP(B178,FeedTables!$C$17:$T$17,FeedTables!$C$31:$T$31,,-1) ->  | R178: =_xlfn.XLOOKUP(Q178,FeedPrice[Feed],FeedPrice[Price per kg],"Unknown",0)*O178 ->  | T178: =_xlfn.XLOOKUP(O178,LabourFromFeed[Feed Quantity (kg)],LabourFromFeed[No. Labour],"Out of range",-1) ->  | U178: =T178*OperatingCosts!$C$9 -> 
A179: 177 | B179: =IF(A179<='S1-Standard'!$C$7, B178*EXP((LN((E178/100)+1))*1),) -> 0 | C179: =_xlfn.XLOOKUP($B179,FeedTables!$C$42:$T$42,FeedTables!$C$44:$T$44,,-1) ->  | D179: =_xlfn.XLOOKUP($B179,FeedTables!$C$42:$T$42,FeedTables!$C$45:$T$45,,-1) ->  | E179: =_xlfn.XLOOKUP($B179,FeedTables!$C$42:$T$42,FeedTables!$C$46:$T$46,,-1)*_xlfn.XLOOKUP(N178,DensityMultiplier[Biomass kg/m3],DensityMultiplier[Multiplier],,-1) ->  | F179: 1926.601943 | G179: =IF(A179<='S1-Standard'!$C$7,('Growth-Model-1'!G178*EXP($AA$7)),0) -> 0 | H179: =IF(A179<='S1-Standard'!$C$7,$AD$6*EXP($AD$7*('S1-Standard'!C$7-'Growth-Model-1'!A179)),0) -> 0 | I179: 98.39805686 | J179: 0.04859163302 | K179: 0 | L179: 9.613422088 | M179: 0 | N179: =M179/'S1-Standard'!$C$17 -> 0 | Q179: =_xlfn.XLOOKUP(B179,FeedTables!$C$17:$T$17,FeedTables!$C$31:$T$31,,-1) ->  | R179: =_xlfn.XLOOKUP(Q179,FeedPrice[Feed],FeedPrice[Price per kg],"Unknown",0)*O179 ->  | T179: =_xlfn.XLOOKUP(O179,LabourFromFeed[Feed Quantity (kg)],LabourFromFeed[No. Labour],"Out of range",-1) ->  | U179: =T179*OperatingCosts!$C$9 -> 
A180: 178 | B180: =IF(A180<='S1-Standard'!$C$7, B179*EXP((LN((E179/100)+1))*1),) -> 0 | C180: =_xlfn.XLOOKUP($B180,FeedTables!$C$42:$T$42,FeedTables!$C$44:$T$44,,-1) ->  | D180: =_xlfn.XLOOKUP($B180,FeedTables!$C$42:$T$42,FeedTables!$C$45:$T$45,,-1) ->  | E180: =_xlfn.XLOOKUP($B180,FeedTables!$C$42:$T$42,FeedTables!$C$46:$T$46,,-1)*_xlfn.XLOOKUP(N179,DensityMultiplier[Biomass kg/m3],DensityMultiplier[Multiplier],,-1) ->  | F180: 1926.601943 | G180: =IF(A180<='S1-Standard'!$C$7,('Growth-Model-1'!G179*EXP($AA$7)),0) -> 0 | H180: =IF(A180<='S1-Standard'!$C$7,$AD$6*EXP($AD$7*('S1-Standard'!C$7-'Growth-Model-1'!A180)),0) -> 0 | I180: 98.39805686 | J180: 0.04859163302 | K180: 0 | L180: 9.613422088 | M180: 0 | N180: =M180/'S1-Standard'!$C$17 -> 0 | Q180: =_xlfn.XLOOKUP(B180,FeedTables!$C$17:$T$17,FeedTables!$C$31:$T$31,,-1) ->  | R180: =_xlfn.XLOOKUP(Q180,FeedPrice[Feed],FeedPrice[Price per kg],"Unknown",0)*O180 ->  | T180: =_xlfn.XLOOKUP(O180,LabourFromFeed[Feed Quantity (kg)],LabourFromFeed[No. Labour],"Out of range",-1) ->  | U180: =T180*OperatingCosts!$C$9 -> 
A181: 179 | B181: =IF(A181<='S1-Standard'!$C$7, B180*EXP((LN((E180/100)+1))*1),) -> 0 | C181: =_xlfn.XLOOKUP($B181,FeedTables!$C$42:$T$42,FeedTables!$C$44:$T$44,,-1) ->  | D181: =_xlfn.XLOOKUP($B181,FeedTables!$C$42:$T$42,FeedTables!$C$45:$T$45,,-1) ->  | E181: =_xlfn.XLOOKUP($B181,FeedTables!$C$42:$T$42,FeedTables!$C$46:$T$46,,-1)*_xlfn.XLOOKUP(N180,DensityMultiplier[Biomass kg/m3],DensityMultiplier[Multiplier],,-1) ->  | F181: 1926.601943 | G181: =IF(A181<='S1-Standard'!$C$7,('Growth-Model-1'!G180*EXP($AA$7)),0) -> 0 | H181: =IF(A181<='S1-Standard'!$C$7,$AD$6*EXP($AD$7*('S1-Standard'!C$7-'Growth-Model-1'!A181)),0) -> 0 | I181: 98.39805686 | J181: 0.04859163302 | K181: 0 | L181: 9.613422088 | M181: 0 | N181: =M181/'S1-Standard'!$C$17 -> 0 | Q181: =_xlfn.XLOOKUP(B181,FeedTables!$C$17:$T$17,FeedTables!$C$31:$T$31,,-1) ->  | R181: =_xlfn.XLOOKUP(Q181,FeedPrice[Feed],FeedPrice[Price per kg],"Unknown",0)*O181 ->  | T181: =_xlfn.XLOOKUP(O181,LabourFromFeed[Feed Quantity (kg)],LabourFromFeed[No. Labour],"Out of range",-1) ->  | U181: =T181*OperatingCosts!$C$9 -> 
A182: 180 | B182: =IF(A182<='S1-Standard'!$C$7, B181*EXP((LN((E181/100)+1))*1),) -> 0 | C182: =_xlfn.XLOOKUP($B182,FeedTables!$C$42:$T$42,FeedTables!$C$44:$T$44,,-1) ->  | D182: =_xlfn.XLOOKUP($B182,FeedTables!$C$42:$T$42,FeedTables!$C$45:$T$45,,-1) ->  | E182: =_xlfn.XLOOKUP($B182,FeedTables!$C$42:$T$42,FeedTables!$C$46:$T$46,,-1)*_xlfn.XLOOKUP(N181,DensityMultiplier[Biomass kg/m3],DensityMultiplier[Multiplier],,-1) ->  | F182: 1926.601943 | G182: =IF(A182<='S1-Standard'!$C$7,('Growth-Model-1'!G181*EXP($AA$7)),0) -> 0 | H182: =IF(A182<='S1-Standard'!$C$7,$AD$6*EXP($AD$7*('S1-Standard'!C$7-'Growth-Model-1'!A182)),0) -> 0 | I182: 98.39805686 | J182: 0.04859163302 | K182: 0 | L182: 9.613422088 | M182: 0 | N182: =M182/'S1-Standard'!$C$17 -> 0 | Q182: =_xlfn.XLOOKUP(B182,FeedTables!$C$17:$T$17,FeedTables!$C$31:$T$31,,-1) ->  | R182: =_xlfn.XLOOKUP(Q182,FeedPrice[Feed],FeedPrice[Price per kg],"Unknown",0)*O182 ->  | T182: =_xlfn.XLOOKUP(O182,LabourFromFeed[Feed Quantity (kg)],LabourFromFeed[No. Labour],"Out of range",-1) ->  | U182: =T182*OperatingCosts!$C$9 -> 
A183: 181 | B183: =IF(A183<='S1-Standard'!$C$7, B182*EXP((LN((E182/100)+1))*1),) -> 0 | C183: =_xlfn.XLOOKUP($B183,FeedTables!$C$42:$T$42,FeedTables!$C$44:$T$44,,-1) ->  | D183: =_xlfn.XLOOKUP($B183,FeedTables!$C$42:$T$42,FeedTables!$C$45:$T$45,,-1) ->  | E183: =_xlfn.XLOOKUP($B183,FeedTables!$C$42:$T$42,FeedTables!$C$46:$T$46,,-1)*_xlfn.XLOOKUP(N182,DensityMultiplier[Biomass kg/m3],DensityMultiplier[Multiplier],,-1) ->  | F183: 1926.601943 | G183: =IF(A183<='S1-Standard'!$C$7,('Growth-Model-1'!G182*EXP($AA$7)),0) -> 0 | H183: =IF(A183<='S1-Standard'!$C$7,$AD$6*EXP($AD$7*('S1-Standard'!C$7-'Growth-Model-1'!A183)),0) -> 0 | I183: 98.39805686 | J183: 0.04859163302 | K183: 0 | L183: 9.613422088 | M183: 0 | N183: =M183/'S1-Standard'!$C$17 -> 0 | Q183: =_xlfn.XLOOKUP(B183,FeedTables!$C$17:$T$17,FeedTables!$C$31:$T$31,,-1) ->  | R183: =_xlfn.XLOOKUP(Q183,FeedPrice[Feed],FeedPrice[Price per kg],"Unknown",0)*O183 ->  | T183: =_xlfn.XLOOKUP(O183,LabourFromFeed[Feed Quantity (kg)],LabourFromFeed[No. Labour],"Out of range",-1) ->  | U183: =T183*OperatingCosts!$C$9 -> 
A184: 182 | B184: =IF(A184<='S1-Standard'!$C$7, B183*EXP((LN((E183/100)+1))*1),) -> 0 | C184: =_xlfn.XLOOKUP($B184,FeedTables!$C$42:$T$42,FeedTables!$C$44:$T$44,,-1) ->  | D184: =_xlfn.XLOOKUP($B184,FeedTables!$C$42:$T$42,FeedTables!$C$45:$T$45,,-1) ->  | E184: =_xlfn.XLOOKUP($B184,FeedTables!$C$42:$T$42,FeedTables!$C$46:$T$46,,-1)*_xlfn.XLOOKUP(N183,DensityMultiplier[Biomass kg/m3],DensityMultiplier[Multiplier],,-1) ->  | F184: 1926.601943 | G184: =IF(A184<='S1-Standard'!$C$7,('Growth-Model-1'!G183*EXP($AA$7)),0) -> 0 | H184: =IF(A184<='S1-Standard'!$C$7,$AD$6*EXP($AD$7*('S1-Standard'!C$7-'Growth-Model-1'!A184)),0) -> 0 | I184: 98.39805686 | J184: 0.04859163302 | K184: 0 | L184: 9.613422088 | M184: 0 | N184: =M184/'S1-Standard'!$C$17 -> 0 | Q184: =_xlfn.XLOOKUP(B184,FeedTables!$C$17:$T$17,FeedTables!$C$31:$T$31,,-1) ->  | R184: =_xlfn.XLOOKUP(Q184,FeedPrice[Feed],FeedPrice[Price per kg],"Unknown",0)*O184 ->  | T184: =_xlfn.XLOOKUP(O184,LabourFromFeed[Feed Quantity (kg)],LabourFromFeed[No. Labour],"Out of range",-1) ->  | U184: =T184*OperatingCosts!$C$9 -> 
A185: 183 | B185: =IF(A185<='S1-Standard'!$C$7, B184*EXP((LN((E184/100)+1))*1),) -> 0 | C185: =_xlfn.XLOOKUP($B185,FeedTables!$C$42:$T$42,FeedTables!$C$44:$T$44,,-1) ->  | D185: =_xlfn.XLOOKUP($B185,FeedTables!$C$42:$T$42,FeedTables!$C$45:$T$45,,-1) ->  | E185: =_xlfn.XLOOKUP($B185,FeedTables!$C$42:$T$42,FeedTables!$C$46:$T$46,,-1)*_xlfn.XLOOKUP(N184,DensityMultiplier[Biomass kg/m3],DensityMultiplier[Multiplier],,-1) ->  | F185: 1926.601943 | G185: =IF(A185<='S1-Standard'!$C$7,('Growth-Model-1'!G184*EXP($AA$7)),0) -> 0 | H185: =IF(A185<='S1-Standard'!$C$7,$AD$6*EXP($AD$7*('S1-Standard'!C$7-'Growth-Model-1'!A185)),0) -> 0 | I185: 98.39805686 | J185: 0.04859163302 | K185: 0 | L185: 9.613422088 | M185: 0 | N185: =M185/'S1-Standard'!$C$17 -> 0 | Q185: =_xlfn.XLOOKUP(B185,FeedTables!$C$17:$T$17,FeedTables!$C$31:$T$31,,-1) ->  | R185: =_xlfn.XLOOKUP(Q185,FeedPrice[Feed],FeedPrice[Price per kg],"Unknown",0)*O185 ->  | T185: =_xlfn.XLOOKUP(O185,LabourFromFeed[Feed Quantity (kg)],LabourFromFeed[No. Labour],"Out of range",-1) ->  | U185: =T185*OperatingCosts!$C$9 -> 
A186: 184 | B186: =IF(A186<='S1-Standard'!$C$7, B185*EXP((LN((E185/100)+1))*1),) -> 0 | C186: =_xlfn.XLOOKUP($B186,FeedTables!$C$42:$T$42,FeedTables!$C$44:$T$44,,-1) ->  | D186: =_xlfn.XLOOKUP($B186,FeedTables!$C$42:$T$42,FeedTables!$C$45:$T$45,,-1) ->  | E186: =_xlfn.XLOOKUP($B186,FeedTables!$C$42:$T$42,FeedTables!$C$46:$T$46,,-1)*_xlfn.XLOOKUP(N185,DensityMultiplier[Biomass kg/m3],DensityMultiplier[Multiplier],,-1) ->  | F186: 1926.601943 | G186: =IF(A186<='S1-Standard'!$C$7,('Growth-Model-1'!G185*EXP($AA$7)),0) -> 0 | H186: =IF(A186<='S1-Standard'!$C$7,$AD$6*EXP($AD$7*('S1-Standard'!C$7-'Growth-Model-1'!A186)),0) -> 0 | I186: 98.39805686 | J186: 0.04859163302 | K186: 0 | L186: 9.613422088 | M186: 0 | N186: =M186/'S1-Standard'!$C$17 -> 0 | Q186: =_xlfn.XLOOKUP(B186,FeedTables!$C$17:$T$17,FeedTables!$C$31:$T$31,,-1) ->  | R186: =_xlfn.XLOOKUP(Q186,FeedPrice[Feed],FeedPrice[Price per kg],"Unknown",0)*O186 ->  | T186: =_xlfn.XLOOKUP(O186,LabourFromFeed[Feed Quantity (kg)],LabourFromFeed[No. Labour],"Out of range",-1) ->  | U186: =T186*OperatingCosts!$C$9 -> 
A187: 185 | B187: =IF(A187<='S1-Standard'!$C$7, B186*EXP((LN((E186/100)+1))*1),) -> 0 | C187: =_xlfn.XLOOKUP($B187,FeedTables!$C$42:$T$42,FeedTables!$C$44:$T$44,,-1) ->  | D187: =_xlfn.XLOOKUP($B187,FeedTables!$C$42:$T$42,FeedTables!$C$45:$T$45,,-1) ->  | E187: =_xlfn.XLOOKUP($B187,FeedTables!$C$42:$T$42,FeedTables!$C$46:$T$46,,-1)*_xlfn.XLOOKUP(N186,DensityMultiplier[Biomass kg/m3],DensityMultiplier[Multiplier],,-1) ->  | F187: 1926.601943 | G187: =IF(A187<='S1-Standard'!$C$7,('Growth-Model-1'!G186*EXP($AA$7)),0) -> 0 | H187: =IF(A187<='S1-Standard'!$C$7,$AD$6*EXP($AD$7*('S1-Standard'!C$7-'Growth-Model-1'!A187)),0) -> 0 | I187: 98.39805686 | J187: 0.04859163302 | K187: 0 | L187: 9.613422088 | M187: 0 | N187: =M187/'S1-Standard'!$C$17 -> 0 | Q187: =_xlfn.XLOOKUP(B187,FeedTables!$C$17:$T$17,FeedTables!$C$31:$T$31,,-1) ->  | R187: =_xlfn.XLOOKUP(Q187,FeedPrice[Feed],FeedPrice[Price per kg],"Unknown",0)*O187 ->  | T187: =_xlfn.XLOOKUP(O187,LabourFromFeed[Feed Quantity (kg)],LabourFromFeed[No. Labour],"Out of range",-1) ->  | U187: =T187*OperatingCosts!$C$9 -> 
A188: 186 | B188: =IF(A188<='S1-Standard'!$C$7, B187*EXP((LN((E187/100)+1))*1),) -> 0 | C188: =_xlfn.XLOOKUP($B188,FeedTables!$C$42:$T$42,FeedTables!$C$44:$T$44,,-1) ->  | D188: =_xlfn.XLOOKUP($B188,FeedTables!$C$42:$T$42,FeedTables!$C$45:$T$45,,-1) ->  | E188: =_xlfn.XLOOKUP($B188,FeedTables!$C$42:$T$42,FeedTables!$C$46:$T$46,,-1)*_xlfn.XLOOKUP(N187,DensityMultiplier[Biomass kg/m3],DensityMultiplier[Multiplier],,-1) ->  | F188: 1926.601943 | G188: =IF(A188<='S1-Standard'!$C$7,('Growth-Model-1'!G187*EXP($AA$7)),0) -> 0 | H188: =IF(A188<='S1-Standard'!$C$7,$AD$6*EXP($AD$7*('S1-Standard'!C$7-'Growth-Model-1'!A188)),0) -> 0 | I188: 98.39805686 | J188: 0.04859163302 | K188: 0 | L188: 9.613422088 | M188: 0 | N188: =M188/'S1-Standard'!$C$17 -> 0 | Q188: =_xlfn.XLOOKUP(B188,FeedTables!$C$17:$T$17,FeedTables!$C$31:$T$31,,-1) ->  | R188: =_xlfn.XLOOKUP(Q188,FeedPrice[Feed],FeedPrice[Price per kg],"Unknown",0)*O188 ->  | T188: =_xlfn.XLOOKUP(O188,LabourFromFeed[Feed Quantity (kg)],LabourFromFeed[No. Labour],"Out of range",-1) ->  | U188: =T188*OperatingCosts!$C$9 -> 
A189: 187 | B189: =IF(A189<='S1-Standard'!$C$7, B188*EXP((LN((E188/100)+1))*1),) -> 0 | C189: =_xlfn.XLOOKUP($B189,FeedTables!$C$42:$T$42,FeedTables!$C$44:$T$44,,-1) ->  | D189: =_xlfn.XLOOKUP($B189,FeedTables!$C$42:$T$42,FeedTables!$C$45:$T$45,,-1) ->  | E189: =_xlfn.XLOOKUP($B189,FeedTables!$C$42:$T$42,FeedTables!$C$46:$T$46,,-1)*_xlfn.XLOOKUP(N188,DensityMultiplier[Biomass kg/m3],DensityMultiplier[Multiplier],,-1) ->  | F189: 1926.601943 | G189: =IF(A189<='S1-Standard'!$C$7,('Growth-Model-1'!G188*EXP($AA$7)),0) -> 0 | H189: =IF(A189<='S1-Standard'!$C$7,$AD$6*EXP($AD$7*('S1-Standard'!C$7-'Growth-Model-1'!A189)),0) -> 0 | I189: 98.39805686 | J189: 0.04859163302 | K189: 0 | L189: 9.613422088 | M189: 0 | N189: =M189/'S1-Standard'!$C$17 -> 0 | Q189: =_xlfn.XLOOKUP(B189,FeedTables!$C$17:$T$17,FeedTables!$C$31:$T$31,,-1) ->  | R189: =_xlfn.XLOOKUP(Q189,FeedPrice[Feed],FeedPrice[Price per kg],"Unknown",0)*O189 ->  | T189: =_xlfn.XLOOKUP(O189,LabourFromFeed[Feed Quantity (kg)],LabourFromFeed[No. Labour],"Out of range",-1) ->  | U189: =T189*OperatingCosts!$C$9 -> 
A190: 188 | B190: =IF(A190<='S1-Standard'!$C$7, B189*EXP((LN((E189/100)+1))*1),) -> 0 | C190: =_xlfn.XLOOKUP($B190,FeedTables!$C$42:$T$42,FeedTables!$C$44:$T$44,,-1) ->  | D190: =_xlfn.XLOOKUP($B190,FeedTables!$C$42:$T$42,FeedTables!$C$45:$T$45,,-1) ->  | E190: =_xlfn.XLOOKUP($B190,FeedTables!$C$42:$T$42,FeedTables!$C$46:$T$46,,-1)*_xlfn.XLOOKUP(N189,DensityMultiplier[Biomass kg/m3],DensityMultiplier[Multiplier],,-1) ->  | F190: 1926.601943 | G190: =IF(A190<='S1-Standard'!$C$7,('Growth-Model-1'!G189*EXP($AA$7)),0) -> 0 | H190: =IF(A190<='S1-Standard'!$C$7,$AD$6*EXP($AD$7*('S1-Standard'!C$7-'Growth-Model-1'!A190)),0) -> 0 | I190: 98.39805686 | J190: 0.04859163302 | K190: 0 | L190: 9.613422088 | M190: 0 | N190: =M190/'S1-Standard'!$C$17 -> 0 | Q190: =_xlfn.XLOOKUP(B190,FeedTables!$C$17:$T$17,FeedTables!$C$31:$T$31,,-1) ->  | R190: =_xlfn.XLOOKUP(Q190,FeedPrice[Feed],FeedPrice[Price per kg],"Unknown",0)*O190 ->  | T190: =_xlfn.XLOOKUP(O190,LabourFromFeed[Feed Quantity (kg)],LabourFromFeed[No. Labour],"Out of range",-1) ->  | U190: =T190*OperatingCosts!$C$9 -> 
A191: 189 | B191: =IF(A191<='S1-Standard'!$C$7, B190*EXP((LN((E190/100)+1))*1),) -> 0 | C191: =_xlfn.XLOOKUP($B191,FeedTables!$C$42:$T$42,FeedTables!$C$44:$T$44,,-1) ->  | D191: =_xlfn.XLOOKUP($B191,FeedTables!$C$42:$T$42,FeedTables!$C$45:$T$45,,-1) ->  | E191: =_xlfn.XLOOKUP($B191,FeedTables!$C$42:$T$42,FeedTables!$C$46:$T$46,,-1)*_xlfn.XLOOKUP(N190,DensityMultiplier[Biomass kg/m3],DensityMultiplier[Multiplier],,-1) ->  | F191: 1926.601943 | G191: =IF(A191<='S1-Standard'!$C$7,('Growth-Model-1'!G190*EXP($AA$7)),0) -> 0 | H191: =IF(A191<='S1-Standard'!$C$7,$AD$6*EXP($AD$7*('S1-Standard'!C$7-'Growth-Model-1'!A191)),0) -> 0 | I191: 98.39805686 | J191: 0.04859163302 | K191: 0 | L191: 9.613422088 | M191: 0 | N191: =M191/'S1-Standard'!$C$17 -> 0 | Q191: =_xlfn.XLOOKUP(B191,FeedTables!$C$17:$T$17,FeedTables!$C$31:$T$31,,-1) ->  | R191: =_xlfn.XLOOKUP(Q191,FeedPrice[Feed],FeedPrice[Price per kg],"Unknown",0)*O191 ->  | T191: =_xlfn.XLOOKUP(O191,LabourFromFeed[Feed Quantity (kg)],LabourFromFeed[No. Labour],"Out of range",-1) ->  | U191: =T191*OperatingCosts!$C$9 -> 
A192: 190 | B192: =IF(A192<='S1-Standard'!$C$7, B191*EXP((LN((E191/100)+1))*1),) -> 0 | C192: =_xlfn.XLOOKUP($B192,FeedTables!$C$42:$T$42,FeedTables!$C$44:$T$44,,-1) ->  | D192: =_xlfn.XLOOKUP($B192,FeedTables!$C$42:$T$42,FeedTables!$C$45:$T$45,,-1) ->  | E192: =_xlfn.XLOOKUP($B192,FeedTables!$C$42:$T$42,FeedTables!$C$46:$T$46,,-1)*_xlfn.XLOOKUP(N191,DensityMultiplier[Biomass kg/m3],DensityMultiplier[Multiplier],,-1) ->  | F192: 1926.601943 | G192: =IF(A192<='S1-Standard'!$C$7,('Growth-Model-1'!G191*EXP($AA$7)),0) -> 0 | H192: =IF(A192<='S1-Standard'!$C$7,$AD$6*EXP($AD$7*('S1-Standard'!C$7-'Growth-Model-1'!A192)),0) -> 0 | I192: 98.39805686 | J192: 0.04859163302 | K192: 0 | L192: 9.613422088 | M192: 0 | N192: =M192/'S1-Standard'!$C$17 -> 0 | Q192: =_xlfn.XLOOKUP(B192,FeedTables!$C$17:$T$17,FeedTables!$C$31:$T$31,,-1) ->  | R192: =_xlfn.XLOOKUP(Q192,FeedPrice[Feed],FeedPrice[Price per kg],"Unknown",0)*O192 ->  | T192: =_xlfn.XLOOKUP(O192,LabourFromFeed[Feed Quantity (kg)],LabourFromFeed[No. Labour],"Out of range",-1) ->  | U192: =T192*OperatingCosts!$C$9 -> 
A193: 191 | B193: =IF(A193<='S1-Standard'!$C$7, B192*EXP((LN((E192/100)+1))*1),) -> 0 | C193: =_xlfn.XLOOKUP($B193,FeedTables!$C$42:$T$42,FeedTables!$C$44:$T$44,,-1) ->  | D193: =_xlfn.XLOOKUP($B193,FeedTables!$C$42:$T$42,FeedTables!$C$45:$T$45,,-1) ->  | E193: =_xlfn.XLOOKUP($B193,FeedTables!$C$42:$T$42,FeedTables!$C$46:$T$46,,-1)*_xlfn.XLOOKUP(N192,DensityMultiplier[Biomass kg/m3],DensityMultiplier[Multiplier],,-1) ->  | F193: 1926.601943 | G193: =IF(A193<='S1-Standard'!$C$7,('Growth-Model-1'!G192*EXP($AA$7)),0) -> 0 | H193: =IF(A193<='S1-Standard'!$C$7,$AD$6*EXP($AD$7*('S1-Standard'!C$7-'Growth-Model-1'!A193)),0) -> 0 | I193: 98.39805686 | J193: 0.04859163302 | K193: 0 | L193: 9.613422088 | M193: 0 | N193: =M193/'S1-Standard'!$C$17 -> 0 | Q193: =_xlfn.XLOOKUP(B193,FeedTables!$C$17:$T$17,FeedTables!$C$31:$T$31,,-1) ->  | R193: =_xlfn.XLOOKUP(Q193,FeedPrice[Feed],FeedPrice[Price per kg],"Unknown",0)*O193 ->  | T193: =_xlfn.XLOOKUP(O193,LabourFromFeed[Feed Quantity (kg)],LabourFromFeed[No. Labour],"Out of range",-1) ->  | U193: =T193*OperatingCosts!$C$9 -> 
A194: 192 | B194: =IF(A194<='S1-Standard'!$C$7, B193*EXP((LN((E193/100)+1))*1),) -> 0 | C194: =_xlfn.XLOOKUP($B194,FeedTables!$C$42:$T$42,FeedTables!$C$44:$T$44,,-1) ->  | D194: =_xlfn.XLOOKUP($B194,FeedTables!$C$42:$T$42,FeedTables!$C$45:$T$45,,-1) ->  | E194: =_xlfn.XLOOKUP($B194,FeedTables!$C$42:$T$42,FeedTables!$C$46:$T$46,,-1)*_xlfn.XLOOKUP(N193,DensityMultiplier[Biomass kg/m3],DensityMultiplier[Multiplier],,-1) ->  | F194: 1926.601943 | G194: =IF(A194<='S1-Standard'!$C$7,('Growth-Model-1'!G193*EXP($AA$7)),0) -> 0 | H194: =IF(A194<='S1-Standard'!$C$7,$AD$6*EXP($AD$7*('S1-Standard'!C$7-'Growth-Model-1'!A194)),0) -> 0 | I194: 98.39805686 | J194: 0.04859163302 | K194: 0 | L194: 9.613422088 | M194: =(B194*F194)/1000 -> 0 | N194: =M194/'S1-Standard'!$C$17 -> 0 | O194: =M194*(C194/100) ->  | Q194: =_xlfn.XLOOKUP(B194,FeedTables!$C$17:$T$17,FeedTables!$C$31:$T$31,,-1) ->  | R194: =_xlfn.XLOOKUP(Q194,FeedPrice[Feed],FeedPrice[Price per kg],"Unknown",0)*O194 ->  | T194: =_xlfn.XLOOKUP(O194,LabourFromFeed[Feed Quantity (kg)],LabourFromFeed[No. Labour],"Out of range",-1) ->  | U194: =T194*OperatingCosts!$C$9 -> 
A195: 193 | B195: =IF(A195<='S1-Standard'!$C$7, B194*EXP((LN((E194/100)+1))*1),) -> 0 | C195: =_xlfn.XLOOKUP($B195,FeedTables!$C$42:$T$42,FeedTables!$C$44:$T$44,,-1) ->  | D195: =_xlfn.XLOOKUP($B195,FeedTables!$C$42:$T$42,FeedTables!$C$45:$T$45,,-1) ->  | E195: =_xlfn.XLOOKUP($B195,FeedTables!$C$42:$T$42,FeedTables!$C$46:$T$46,,-1)*_xlfn.XLOOKUP(N194,DensityMultiplier[Biomass kg/m3],DensityMultiplier[Multiplier],,-1) ->  | F195: 1926.601943 | G195: =IF(A195<='S1-Standard'!$C$7,('Growth-Model-1'!G194*EXP($AA$7)),0) -> 0 | H195: =IF(A195<='S1-Standard'!$C$7,$AD$6*EXP($AD$7*('S1-Standard'!C$7-'Growth-Model-1'!A195)),0) -> 0 | I195: 98.39805686 | J195: =I195/$F$2 -> 0.04859163302 | K195: =(G195+H195)*B195 -> 0 | L195: 9.613422088 | M195: 0 | N195: =M195/'S1-Standard'!$C$17 -> 0 | Q195: =_xlfn.XLOOKUP(B195,FeedTables!$C$17:$T$17,FeedTables!$C$31:$T$31,,-1) ->  | R195: =_xlfn.XLOOKUP(Q195,FeedPrice[Feed],FeedPrice[Price per kg],"Unknown",0)*O195 ->  | T195: =_xlfn.XLOOKUP(O195,LabourFromFeed[Feed Quantity (kg)],LabourFromFeed[No. Labour],"Out of range",-1) ->  | U195: =T195*OperatingCosts!$C$9 -> 
A196: 194 | B196: =IF(A196<='S1-Standard'!$C$7, B195*EXP((LN((E195/100)+1))*1),) -> 0 | C196: =_xlfn.XLOOKUP($B196,FeedTables!$C$42:$T$42,FeedTables!$C$44:$T$44,,-1) ->  | D196: =_xlfn.XLOOKUP($B196,FeedTables!$C$42:$T$42,FeedTables!$C$45:$T$45,,-1) ->  | E196: =_xlfn.XLOOKUP($B196,FeedTables!$C$42:$T$42,FeedTables!$C$46:$T$46,,-1)*_xlfn.XLOOKUP(N195,DensityMultiplier[Biomass kg/m3],DensityMultiplier[Multiplier],,-1) ->  | F196: 1926.601943 | G196: =IF(A196<='S1-Standard'!$C$7,('Growth-Model-1'!G195*EXP($AA$7)),0) -> 0 | H196: =IF(A196<='S1-Standard'!$C$7,$AD$6*EXP($AD$7*('S1-Standard'!C$7-'Growth-Model-1'!A196)),0) -> 0 | I196: =I195+G196+H196 -> 98.39805686 | J196: 0.04859163302 | K196: 0 | L196: =(K196/1000)+L195 -> 9.613422088 | M196: 0 | N196: =M196/'S1-Standard'!$C$17 -> 0 | P196: =O196+P195 ->  | Q196: =_xlfn.XLOOKUP(B196,FeedTables!$C$17:$T$17,FeedTables!$C$31:$T$31,,-1) ->  | R196: =_xlfn.XLOOKUP(Q196,FeedPrice[Feed],FeedPrice[Price per kg],"Unknown",0)*O196 ->  | S196: =R196+S195 ->  | T196: =_xlfn.XLOOKUP(O196,LabourFromFeed[Feed Quantity (kg)],LabourFromFeed[No. Labour],"Out of range",-1) ->  | U196: =T196*OperatingCosts!$C$9 ->  | V196: =U196+V195 -> 
A197: 195 | B197: =IF(A197<='S1-Standard'!$C$7, B196*EXP((LN((E196/100)+1))*1),) -> 0 | C197: =_xlfn.XLOOKUP($B197,FeedTables!$C$42:$T$42,FeedTables!$C$44:$T$44,,-1) ->  | D197: =_xlfn.XLOOKUP($B197,FeedTables!$C$42:$T$42,FeedTables!$C$45:$T$45,,-1) ->  | E197: =_xlfn.XLOOKUP($B197,FeedTables!$C$42:$T$42,FeedTables!$C$46:$T$46,,-1)*_xlfn.XLOOKUP(N196,DensityMultiplier[Biomass kg/m3],DensityMultiplier[Multiplier],,-1) ->  | F197: =F196-G196-H196 -> 1926.601943 | G197: =IF(A197<='S1-Standard'!$C$7,('Growth-Model-1'!G196*EXP($AA$7)),0) -> 0 | H197: =IF(A197<='S1-Standard'!$C$7,$AD$6*EXP($AD$7*('S1-Standard'!C$7-'Growth-Model-1'!A197)),0) -> 0 | I197: 98.39805686 | J197: 0.04859163302 | K197: 0 | L197: 9.613422088 | M197: 0 | N197: =M197/'S1-Standard'!$C$17 -> 0 | Q197: =_xlfn.XLOOKUP(B197,FeedTables!$C$17:$T$17,FeedTables!$C$31:$T$31,,-1) ->  | R197: =_xlfn.XLOOKUP(Q197,FeedPrice[Feed],FeedPrice[Price per kg],"Unknown",0)*O197 ->  | T197: =_xlfn.XLOOKUP(O197,LabourFromFeed[Feed Quantity (kg)],LabourFromFeed[No. Labour],"Out of range",-1) ->  | U197: =T197*OperatingCosts!$C$9 -> 
A198: 196 | B198: =IF(A198<='S1-Standard'!$C$7, B197*EXP((LN((E197/100)+1))*1),) -> 0 | C198: =_xlfn.XLOOKUP($B198,FeedTables!$C$42:$T$42,FeedTables!$C$44:$T$44,,-1) ->  | D198: =_xlfn.XLOOKUP($B198,FeedTables!$C$42:$T$42,FeedTables!$C$45:$T$45,,-1) ->  | E198: =_xlfn.XLOOKUP($B198,FeedTables!$C$42:$T$42,FeedTables!$C$46:$T$46,,-1)*_xlfn.XLOOKUP(N197,DensityMultiplier[Biomass kg/m3],DensityMultiplier[Multiplier],,-1) ->  | F198: 1926.601943 | G198: =IF(A198<='S1-Standard'!$C$7,('Growth-Model-1'!G197*EXP($AA$7)),0) -> 0 | H198: =IF(A198<='S1-Standard'!$C$7,$AD$6*EXP($AD$7*('S1-Standard'!C$7-'Growth-Model-1'!A198)),0) -> 0 | I198: 98.39805686 | J198: 0.04859163302 | K198: 0 | L198: 9.613422088 | M198: 0 | N198: =M198/'S1-Standard'!$C$17 -> 0 | Q198: =_xlfn.XLOOKUP(B198,FeedTables!$C$17:$T$17,FeedTables!$C$31:$T$31,,-1) ->  | R198: =_xlfn.XLOOKUP(Q198,FeedPrice[Feed],FeedPrice[Price per kg],"Unknown",0)*O198 ->  | T198: =_xlfn.XLOOKUP(O198,LabourFromFeed[Feed Quantity (kg)],LabourFromFeed[No. Labour],"Out of range",-1) ->  | U198: =T198*OperatingCosts!$C$9 -> 
A199: 197 | B199: =IF(A199<='S1-Standard'!$C$7, B198*EXP((LN((E198/100)+1))*1),) -> 0 | C199: =_xlfn.XLOOKUP($B199,FeedTables!$C$42:$T$42,FeedTables!$C$44:$T$44,,-1) ->  | D199: =_xlfn.XLOOKUP($B199,FeedTables!$C$42:$T$42,FeedTables!$C$45:$T$45,,-1) ->  | E199: =_xlfn.XLOOKUP($B199,FeedTables!$C$42:$T$42,FeedTables!$C$46:$T$46,,-1)*_xlfn.XLOOKUP(N198,DensityMultiplier[Biomass kg/m3],DensityMultiplier[Multiplier],,-1) ->  | F199: 1926.601943 | G199: =IF(A199<='S1-Standard'!$C$7,('Growth-Model-1'!G198*EXP($AA$7)),0) -> 0 | H199: =IF(A199<='S1-Standard'!$C$7,$AD$6*EXP($AD$7*('S1-Standard'!C$7-'Growth-Model-1'!A199)),0) -> 0 | I199: 98.39805686 | J199: 0.04859163302 | K199: 0 | L199: 9.613422088 | M199: 0 | N199: =M199/'S1-Standard'!$C$17 -> 0 | Q199: =_xlfn.XLOOKUP(B199,FeedTables!$C$17:$T$17,FeedTables!$C$31:$T$31,,-1) ->  | R199: =_xlfn.XLOOKUP(Q199,FeedPrice[Feed],FeedPrice[Price per kg],"Unknown",0)*O199 ->  | T199: =_xlfn.XLOOKUP(O199,LabourFromFeed[Feed Quantity (kg)],LabourFromFeed[No. Labour],"Out of range",-1) ->  | U199: =T199*OperatingCosts!$C$9 -> 
A200: 198 | B200: =IF(A200<='S1-Standard'!$C$7, B199*EXP((LN((E199/100)+1))*1),) -> 0 | C200: =_xlfn.XLOOKUP($B200,FeedTables!$C$42:$T$42,FeedTables!$C$44:$T$44,,-1) ->  | D200: =_xlfn.XLOOKUP($B200,FeedTables!$C$42:$T$42,FeedTables!$C$45:$T$45,,-1) ->  | E200: =_xlfn.XLOOKUP($B200,FeedTables!$C$42:$T$42,FeedTables!$C$46:$T$46,,-1)*_xlfn.XLOOKUP(N199,DensityMultiplier[Biomass kg/m3],DensityMultiplier[Multiplier],,-1) ->  | F200: 1926.601943 | G200: =IF(A200<='S1-Standard'!$C$7,('Growth-Model-1'!G199*EXP($AA$7)),0) -> 0 | H200: =IF(A200<='S1-Standard'!$C$7,$AD$6*EXP($AD$7*('S1-Standard'!C$7-'Growth-Model-1'!A200)),0) -> 0 | I200: 98.39805686 | J200: 0.04859163302 | K200: 0 | L200: 9.613422088 | M200: 0 | N200: =M200/'S1-Standard'!$C$17 -> 0 | Q200: =_xlfn.XLOOKUP(B200,FeedTables!$C$17:$T$17,FeedTables!$C$31:$T$31,,-1) ->  | R200: =_xlfn.XLOOKUP(Q200,FeedPrice[Feed],FeedPrice[Price per kg],"Unknown",0)*O200 ->  | T200: =_xlfn.XLOOKUP(O200,LabourFromFeed[Feed Quantity (kg)],LabourFromFeed[No. Labour],"Out of range",-1) ->  | U200: =T200*OperatingCosts!$C$9 -> 
... 185 more rows

Sheet Growth-Model-2
A1: Day | B1: Av. Wt (g) | C1: Feed rate % bw/day | D1: FCR | E1: SGR | F1: No. | G1: Early Morts | H1: Late Morts | I1: Cum. Morts | J1: Cum Mort % | K1: Mort Biomas (g) | L1: Cum. Mort biomass (kg) | M1: Biomass (kg) | N1: Density (kg/m3) | O1: Feed fed (kg) | P1: Cum. Feed (kg) | Q1: FeedType | R1: Feed cost | S1: Cum. Feed Cost | T1: Labour needed | U1: Labour cost | V1: Cum. labour cost | Z1: EXP Mortalities
A2: 0 | B2: ='S2-Double'!C5 -> 40 | C2: =_xlfn.XLOOKUP($B2,FeedTables!$C$42:$T$42,FeedTables!$C$44:$T$44,,-1) -> 4.168455011 | D2: =_xlfn.XLOOKUP($B2,FeedTables!$C$42:$T$42,FeedTables!$C$45:$T$45,,-1) -> 1.283309932 | E2: =_xlfn.XLOOKUP($B2,FeedTables!$C$42:$T$42,FeedTables!$C$46:$T$46,,-1) -> 3.248205993 | F2: ='S2-Double'!C18 -> 4050 | G2: =AA6 -> 24.3 | H2: =IF(A2<='S2-Double'!$C$7,$AD$6*EXP($AD$7*('S2-Double'!C$7-'Growth-Model-2'!A2)),0) -> 5.102537663e-12 | I2: =G2+H2 -> 24.3 | J2: =I2/$F$2 -> 0.006 | K2: =(G2+H2)*B2 -> 972 | L2: =K2/1000 -> 0.972 | M2: =(B2*F2)/1000 -> 162 | N2: =M2/'S2-Double'!$C$17 -> 6 | O2: =M2*(C2/100) -> 6.752897118 | P2: =O2 -> 6.752897118 | Q2: =_xlfn.XLOOKUP(B2,FeedTables!$C$17:$T$17,FeedTables!$C$31:$T$31,,-1) -> Unga 3mm | R2: =_xlfn.XLOOKUP(Q2,FeedPrice[Feed],FeedPrice[Price per kg],"Unknown",0)*O2 -> 716.8139515 | S2: =R2 -> 716.8139515 | T2: =_xlfn.XLOOKUP(O2,LabourFromFeed[Feed Quantity (kg)],LabourFromFeed[No. Labour],"Out of range",-1) -> 1 | U2: =T2*OperatingCosts!$C$9 -> 1200 | V2: =U2 -> 1200 | Z2: (Mort=Prev * EXP(L) | AC2: (Mort=Final * EXP(L*(T-t)) | AE2: (T = total culture days, t = day no.)
A3: 1 | B3: =IF(A3<='S2-Double'!$C$7, B2*EXP((LN((E2/100)+1))*1),) -> 41.2992824 | C3: =_xlfn.XLOOKUP($B3,FeedTables!$C$42:$T$42,FeedTables!$C$44:$T$44,,-1) -> 4.168455011 | D3: =_xlfn.XLOOKUP($B3,FeedTables!$C$42:$T$42,FeedTables!$C$45:$T$45,,-1) -> 1.283309932 | E3: =_xlfn.XLOOKUP($B3,FeedTables!$C$42:$T$42,FeedTables!$C$46:$T$46,,-1)*_xlfn.XLOOKUP(N2,DensityMultiplier[Biomass kg/m3],DensityMultiplier[Multiplier],,-1) -> 3.248205993 | F3: =F2-G2-H2 -> 4025.7 | G3: =IF(A3<='S2-Double'!$C$7,('Growth-Model-2'!G2*EXP($AA$7)),0) -> 20.91520383 | H3: =IF(A3<='S2-Double'!$C$7,$AD$6*EXP($AD$7*('S2-Double'!C$7-'Growth-Model-2'!A3)),0) -> 6.232253576e-12 | I3: =I2+G3+H3 -> 45.21520383 | J3: =I3/$F$2 -> 0.01116424786 | K3: =(G3+H3)*B3 -> 863.7829093 | L3: =(K3/1000)+L2 -> 1.835782909 | M3: =(B3*F3)/1000 -> 166.2585211 | N3: =M3/'S2-Double'!$C$17 -> 6.157723005 | O3: =M3*(C3/100) -> 6.930411657 | P3: =O3+P2 -> 13.68330878 | Q3: =_xlfn.XLOOKUP(B3,FeedTables!$C$17:$T$17,FeedTables!$C$31:$T$31,,-1) -> Unga 3mm | R3: =_xlfn.XLOOKUP(Q3,FeedPrice[Feed],FeedPrice[Price per kg],"Unknown",0)*O3 -> 735.65696 | S3: =R3+S2 -> 1452.470911 | T3: =_xlfn.XLOOKUP(O3,LabourFromFeed[Feed Quantity (kg)],LabourFromFeed[No. Labour],"Out of range",-1) -> 1 | U3: =T3*OperatingCosts!$C$9 -> 1200 | V3: =U3+V2 -> 2400 | Z3: (Mort Final =Start*EXP(L*t) | AE3: (Final = No. of morts on final day)
A4: 2 | B4: =IF(A4<='S2-Double'!$C$7, B3*EXP((LN((E3/100)+1))*1),) -> 42.64076816 | C4: =_xlfn.XLOOKUP($B4,FeedTables!$C$42:$T$42,FeedTables!$C$44:$T$44,,-1) -> 4.168455011 | D4: =_xlfn.XLOOKUP($B4,FeedTables!$C$42:$T$42,FeedTables!$C$45:$T$45,,-1) -> 1.283309932 | E4: =_xlfn.XLOOKUP($B4,FeedTables!$C$42:$T$42,FeedTables!$C$46:$T$46,,-1)*_xlfn.XLOOKUP(N3,DensityMultiplier[Biomass kg/m3],DensityMultiplier[Multiplier],,-1) -> 3.248205993 | F4: =F3-G3-H3 -> 4004.784796 | G4: =IF(A4<='S2-Double'!$C$7,('Growth-Model-2'!G3*EXP($AA$7)),0) -> 18.00188276 | H4: =IF(A4<='S2-Double'!$C$7,$AD$6*EXP($AD$7*('S2-Double'!C$7-'Growth-Model-2'!A4)),0) -> 7.612091707e-12 | I4: =I3+G4+H4 -> 63.21708659 | J4: 0.01560915718 | K4: 767.6141094 | L4: =(K4/1000)+L3 -> 2.603397019 | M4: 170.7671 | N4: =M4/'S2-Double'!$C$17 -> 6.324707409 | O4: 7.118349739 | P4: =O4+P3 -> 20.80165851 | Q4: =_xlfn.XLOOKUP(B4,FeedTables!$C$17:$T$17,FeedTables!$C$31:$T$31,,-1) -> Unga 3mm | R4: =_xlfn.XLOOKUP(Q4,FeedPrice[Feed],FeedPrice[Price per kg],"Unknown",0)*O4 -> 755.6064183 | S4: =R4+S3 -> 2208.07733 | T4: =_xlfn.XLOOKUP(O4,LabourFromFeed[Feed Quantity (kg)],LabourFromFeed[No. Labour],"Out of range",-1) -> 1 | U4: =T4*OperatingCosts!$C$9 -> 1200 | V4: =U4+V3 -> 3600 | Z4: Early Mortalities | AC4: Late Mortalities
A5: 3 | B5: =IF(A5<='S2-Double'!$C$7, B4*EXP((LN((E4/100)+1))*1),) -> 44.02582815 | C5: =_xlfn.XLOOKUP($B5,FeedTables!$C$42:$T$42,FeedTables!$C$44:$T$44,,-1) -> 4.168455011 | D5: =_xlfn.XLOOKUP($B5,FeedTables!$C$42:$T$42,FeedTables!$C$45:$T$45,,-1) -> 1.283309932 | E5: =_xlfn.XLOOKUP($B5,FeedTables!$C$42:$T$42,FeedTables!$C$46:$T$46,,-1)*_xlfn.XLOOKUP(N4,DensityMultiplier[Biomass kg/m3],DensityMultiplier[Multiplier],,-1) -> 3.248205993 | F5: 3986.782913 | G5: =IF(A5<='S2-Double'!$C$7,('Growth-Model-2'!G4*EXP($AA$7)),0) -> 15.49436408 | H5: =IF(A5<='S2-Double'!$C$7,$AD$6*EXP($AD$7*('S2-Double'!C$7-'Growth-Model-2'!A5)),0) -> 9.297429806e-12 | I5: 78.71145067 | J5: 0.01943492609 | K5: 682.1522105 | L5: 3.285549229 | M5: 175.5214194 | N5: =M5/'S2-Double'!$C$17 -> 6.500793312 | O5: 7.316531404 | P5: 28.11818992 | Q5: =_xlfn.XLOOKUP(B5,FeedTables!$C$17:$T$17,FeedTables!$C$31:$T$31,,-1) -> Unga 3mm | R5: =_xlfn.XLOOKUP(Q5,FeedPrice[Feed],FeedPrice[Price per kg],"Unknown",0)*O5 -> 776.6432236 | S5: 2984.720553 | T5: =_xlfn.XLOOKUP(O5,LabourFromFeed[Feed Quantity (kg)],LabourFromFeed[No. Labour],"Out of range",-1) -> 1 | U5: =T5*OperatingCosts!$C$9 -> 1200 | V5: 4800 | Z5: First morts % | AA5: ='0-StartHere'!C76 -> 0.006 | AC5: Final morts % | AD5: ='0-StartHere'!$C$81 -> 0.001
A6: 4 | B6: =IF(A6<='S2-Double'!$C$7, B5*EXP((LN((E5/100)+1))*1),) -> 45.45587774 | C6: =_xlfn.XLOOKUP($B6,FeedTables!$C$42:$T$42,FeedTables!$C$44:$T$44,,-1) -> 4.168455011 | D6: =_xlfn.XLOOKUP($B6,FeedTables!$C$42:$T$42,FeedTables!$C$45:$T$45,,-1) -> 1.283309932 | E6: =_xlfn.XLOOKUP($B6,FeedTables!$C$42:$T$42,FeedTables!$C$46:$T$46,,-1)*_xlfn.XLOOKUP(N5,DensityMultiplier[Biomass kg/m3],DensityMultiplier[Multiplier],,-1) -> 3.248205993 | F6: 3971.288549 | G6: =IF(A6<='S2-Double'!$C$7,('Growth-Model-2'!G5*EXP($AA$7)),0) -> 13.33612276 | H6: =IF(A6<='S2-Double'!$C$7,$AD$6*EXP($AD$7*('S2-Double'!C$7-'Growth-Model-2'!A6)),0) -> 1.135590641e-11 | I6: 92.04757343 | J6: 0.02272779591 | K6: 606.2051656 | L6: 3.891754395 | M6: 180.5184068 | N6: =M6/'S2-Double'!$C$17 -> 6.685866917 | O6: 7.524828573 | P6: 35.64301849 | Q6: =_xlfn.XLOOKUP(B6,FeedTables!$C$17:$T$17,FeedTables!$C$31:$T$31,,-1) -> Unga 3mm | R6: =_xlfn.XLOOKUP(Q6,FeedPrice[Feed],FeedPrice[Price per kg],"Unknown",0)*O6 -> 798.7537807 | S6: 3783.474334 | T6: =_xlfn.XLOOKUP(O6,LabourFromFeed[Feed Quantity (kg)],LabourFromFeed[No. Labour],"Out of range",-1) -> 1 | U6: =T6*OperatingCosts!$C$9 -> 1200 | V6: 6000 | Z6: First morts | AA6: ='S2-Double'!C18*AA5 -> 24.3 | AC6: Final day morts | AD6: ='S2-Double'!C18*AD5 -> 4.05
A7: 5 | B7: =IF(A7<='S2-Double'!$C$7, B6*EXP((LN((E6/100)+1))*1),) -> 46.93237828 | C7: =_xlfn.XLOOKUP($B7,FeedTables!$C$42:$T$42,FeedTables!$C$44:$T$44,,-1) -> 4.168455011 | D7: =_xlfn.XLOOKUP($B7,FeedTables!$C$42:$T$42,FeedTables!$C$45:$T$45,,-1) -> 1.283309932 | E7: =_xlfn.XLOOKUP($B7,FeedTables!$C$42:$T$42,FeedTables!$C$46:$T$46,,-1)*_xlfn.XLOOKUP(N6,DensityMultiplier[Biomass kg/m3],DensityMultiplier[Multiplier],,-1) -> 3.248205993 | F7: 3957.952427 | G7: =IF(A7<='S2-Double'!$C$7,('Growth-Model-2'!G6*EXP($AA$7)),0) -> 11.47850723 | H7: =IF(A7<='S2-Double'!$C$7,$AD$6*EXP($AD$7*('S2-Double'!C$7-'Growth-Model-2'!A7)),0) -> 1.387013541e-11 | I7: 103.5260807 | J7: 0.02556199523 | K7: 538.7136435 | L7: 4.430468038 | M7: 185.7561205 | N7: =M7/'S2-Double'!$C$17 -> 6.879856315 | O7: 7.743160314 | P7: 43.38617881 | Q7: =_xlfn.XLOOKUP(B7,FeedTables!$C$17:$T$17,FeedTables!$C$31:$T$31,,-1) -> Unga 3mm | R7: =_xlfn.XLOOKUP(Q7,FeedPrice[Feed],FeedPrice[Price per kg],"Unknown",0)*O7 -> 821.9294985 | S7: 4605.403833 | T7: =_xlfn.XLOOKUP(O7,LabourFromFeed[Feed Quantity (kg)],LabourFromFeed[No. Labour],"Out of range",-1) -> 1 | U7: =T7*OperatingCosts!$C$9 -> 1200 | V7: 7200 | Z7: Li | AA7: ='0-StartHere'!C78 -> -0.15 | AC7: Lf | AD7: ='0-StartHere'!$C$83 -> -0.2
A8: 6 | B8: =IF(A8<='S2-Double'!$C$7, B7*EXP((LN((E7/100)+1))*1),) -> 48.45683861 | C8: =_xlfn.XLOOKUP($B8,FeedTables!$C$42:$T$42,FeedTables!$C$44:$T$44,,-1) -> 4.168455011 | D8: =_xlfn.XLOOKUP($B8,FeedTables!$C$42:$T$42,FeedTables!$C$45:$T$45,,-1) -> 1.283309932 | E8: =_xlfn.XLOOKUP($B8,FeedTables!$C$42:$T$42,FeedTables!$C$46:$T$46,,-1)*_xlfn.XLOOKUP(N7,DensityMultiplier[Biomass kg/m3],DensityMultiplier[Multiplier],,-1) -> 3.248205993 | F8: 3946.473919 | G8: =IF(A8<='S2-Double'!$C$7,('Growth-Model-2'!G7*EXP($AA$7)),0) -> 9.879642732 | H8: =IF(A8<='S2-Double'!$C$7,$AD$6*EXP($AD$7*('S2-Double'!C$7-'Growth-Model-2'!A8)),0) -> 1.694102165e-11 | I8: 113.4057234 | J8: 0.02800141318 | K8: 478.7362534 | L8: 4.909204292 | M8: 191.2336498 | N8: =M8/'S2-Double'!$C$17 -> 7.08272777 | O8: 7.971488658 | P8: 51.35766746 | Q8: =_xlfn.XLOOKUP(B8,FeedTables!$C$17:$T$17,FeedTables!$C$31:$T$31,,-1) -> Unga 3mm | R8: =_xlfn.XLOOKUP(Q8,FeedPrice[Feed],FeedPrice[Price per kg],"Unknown",0)*O8 -> 846.1663467 | S8: 5451.570179 | T8: =_xlfn.XLOOKUP(O8,LabourFromFeed[Feed Quantity (kg)],LabourFromFeed[No. Labour],"Out of range",-1) -> 1 | U8: =T8*OperatingCosts!$C$9 -> 1200 | V8: 8400 | Z8: Final morts | AA8: =AA6*EXP(AA7*'S2-Double'!C7) -> 2.889712726e-08
A9: 7 | B9: =IF(A9<='S2-Double'!$C$7, B8*EXP((LN((E8/100)+1))*1),) -> 50.03081654 | C9: =_xlfn.XLOOKUP($B9,FeedTables!$C$42:$T$42,FeedTables!$C$44:$T$44,,-1) -> 4.168455011 | D9: =_xlfn.XLOOKUP($B9,FeedTables!$C$42:$T$42,FeedTables!$C$45:$T$45,,-1) -> 1.283309932 | E9: =_xlfn.XLOOKUP($B9,FeedTables!$C$42:$T$42,FeedTables!$C$46:$T$46,,-1)*_xlfn.XLOOKUP(N8,DensityMultiplier[Biomass kg/m3],DensityMultiplier[Multiplier],,-1) -> 3.248205993 | F9: 3936.594277 | G9: =IF(A9<='S2-Double'!$C$7,('Growth-Model-2'!G8*EXP($AA$7)),0) -> 8.503487303 | H9: =IF(A9<='S2-Double'!$C$7,$AD$6*EXP($AD$7*('S2-Double'!C$7-'Growth-Model-2'!A9)),0) -> 2.069181056e-11 | I9: 121.9092107 | J9: 0.03010103968 | K9: 425.4364133 | L9: 5.334640705 | M9: 196.9510261 | N9: =M9/'S2-Double'!$C$17 -> 7.294482447 | O9: 8.209814916 | P9: 59.56748238 | Q9: =_xlfn.XLOOKUP(B9,FeedTables!$C$17:$T$17,FeedTables!$C$31:$T$31,,-1) -> Unga 3mm | R9: =_xlfn.XLOOKUP(Q9,FeedPrice[Feed],FeedPrice[Price per kg],"Unknown",0)*O9 -> 871.4644645 | S9: 6323.034644 | T9: =_xlfn.XLOOKUP(O9,LabourFromFeed[Feed Quantity (kg)],LabourFromFeed[No. Labour],"Out of range",-1) -> 1 | U9: =T9*OperatingCosts!$C$9 -> 1200 | V9: 9600
A10: 8 | B10: =IF(A10<='S2-Double'!$C$7, B9*EXP((LN((E9/100)+1))*1),) -> 51.65592052 | C10: =_xlfn.XLOOKUP($B10,FeedTables!$C$42:$T$42,FeedTables!$C$44:$T$44,,-1) -> 4.168455011 | D10: =_xlfn.XLOOKUP($B10,FeedTables!$C$42:$T$42,FeedTables!$C$45:$T$45,,-1) -> 1.283309932 | E10: =_xlfn.XLOOKUP($B10,FeedTables!$C$42:$T$42,FeedTables!$C$46:$T$46,,-1)*_xlfn.XLOOKUP(N9,DensityMultiplier[Biomass kg/m3],DensityMultiplier[Multiplier],,-1) -> 3.248205993 | F10: 3928.090789 | G10: =IF(A10<='S2-Double'!$C$7,('Growth-Model-2'!G9*EXP($AA$7)),0) -> 7.319019349 | H10: =IF(A10<='S2-Double'!$C$7,$AD$6*EXP($AD$7*('S2-Double'!C$7-'Growth-Model-2'!A10)),0) -> 2.527303449e-11 | I10: 129.22823 | J10: 0.03190820495 | K10: 378.0706818 | L10: 5.712711387 | M10: 202.9091456 | N10: =M10/'S2-Double'!$C$17 -> 7.515153542 | O10: 8.458176449 | P10: 68.02565883 | Q10: =_xlfn.XLOOKUP(B10,FeedTables!$C$17:$T$17,FeedTables!$C$31:$T$31,,-1) -> Unga 3mm | R10: =_xlfn.XLOOKUP(Q10,FeedPrice[Feed],FeedPrice[Price per kg],"Unknown",0)*O10 -> 897.8278177 | S10: 7220.862462 | T10: =_xlfn.XLOOKUP(O10,LabourFromFeed[Feed Quantity (kg)],LabourFromFeed[No. Labour],"Out of range",-1) -> 1 | U10: =T10*OperatingCosts!$C$9 -> 1200 | V10: 10800
A11: 9 | B11: =IF(A11<='S2-Double'!$C$7, B10*EXP((LN((E10/100)+1))*1),) -> 53.33381123 | C11: =_xlfn.XLOOKUP($B11,FeedTables!$C$42:$T$42,FeedTables!$C$44:$T$44,,-1) -> 4.168455011 | D11: =_xlfn.XLOOKUP($B11,FeedTables!$C$42:$T$42,FeedTables!$C$45:$T$45,,-1) -> 1.283309932 | E11: =_xlfn.XLOOKUP($B11,FeedTables!$C$42:$T$42,FeedTables!$C$46:$T$46,,-1)*_xlfn.XLOOKUP(N10,DensityMultiplier[Biomass kg/m3],DensityMultiplier[Multiplier],,-1) -> 3.248205993 | F11: 3920.77177 | G11: =IF(A11<='S2-Double'!$C$7,('Growth-Model-2'!G10*EXP($AA$7)),0) -> 6.299538334 | H11: =IF(A11<='S2-Double'!$C$7,$AD$6*EXP($AD$7*('S2-Double'!C$7-'Growth-Model-2'!A11)),0) -> 3.086855404e-11 | I11: 135.5277684 | J11: 0.03346364651 | K11: 335.9783883 | L11: 6.048689775 | M11: 209.1097015 | N11: =M11/'S2-Double'!$C$17 -> 7.744803758 | O11: 8.71664383 | P11: 76.74230266 | Q11: =_xlfn.XLOOKUP(B11,FeedTables!$C$17:$T$17,FeedTables!$C$31:$T$31,,-1) -> Unga 3mm | R11: =_xlfn.XLOOKUP(Q11,FeedPrice[Feed],FeedPrice[Price per kg],"Unknown",0)*O11 -> 925.2638976 | S11: 8146.126359 | T11: =_xlfn.XLOOKUP(O11,LabourFromFeed[Feed Quantity (kg)],LabourFromFeed[No. Labour],"Out of range",-1) -> 1 | U11: =T11*OperatingCosts!$C$9 -> 1200 | V11: 12000
